Workbook

Sheet Title
A1: The column titles for this worksheet are in row 2. They span cells C2. The data spans cells A3 through C29. There is information in every cell for column A through C inclusive. If you are not using a screen reader, you can press Alt + R, T for the Review Ribbon, Edit Comment to move to and open a Comment once you are on a cell with a Comment. When you are finished reading the Comment, press Escape to close the comment and return to the worksheet. If you are using the JAWS screen reader, press Ctrl + Shift + Apostrophe to get a list of Comments and their cell coordinates in the worksheet. Press Enter on the Comment you want to go to or Escape once you’ve read the Comment for a cell. You are returned to the workbook. Note that there is no keyboard command with JAWS to reread Comments or read Comments once you are on them in a cell. You must use the ability to list Comments in order to read them if you are using the JAWS screen reader.
C2: California Life-Cycle Benefit/Cost Analysis Model for 2023 for INFRA/RAISE Applications (Cal-B/C PnR) Version 8.1
B22: Office of Data Analytics-Transportation Economics Branch
B23: Division of Transportation Planning
B24: January 2023
B27: For questions and comments, please contact:
B29: Transportation Economics Branch | C29: eab@dot.ca.gov

Sheet Instructions

Sheet 1) Project Information
C2: District: | E2: HQ | W2: Enter all project costs (in today's dollars) in columns 1 to 7. Costs during construction should be entered in the first eight rows.
P3: EA: | W3: Project costs (including maintenance and operating costs) should be net of costs without project.
C4: PROJECT: | E4: Hypothetical Project | P4: PPNO:
AM7: Park and Ride Lot Project Types
C8: 1A | D8: PROJECT DATA | L8: 1C | M8: DESTINATION INFORMATION | V8: 1D | W8: PROJECT COSTS (enter costs in thousands of dollars)
AN9: New Park and Ride Lot
C10: Type of Project | L10: Destination Description | O10: Dest 1 | P10: Dest 2 | Q10: Dest 3 | V10: Col. no. | W10: (1) | X10: (2) | Y10: (3) | Z10: (4) | AA10: (5) | AB10: (6) | AC10: (7) | AN10: Park and Ride Leased Lot
D11: Select project type from list | M11: Destination Name | W11: DIRECT PROJECT COSTS | AC11: Transit | AN11: Park and Ride Lot Expansion
M12: Distance from Park-and-Ride Lot (miles) | W12: INITIAL COSTS | Z12: SUBSEQUENT COSTS | AC12: Agency | AD12: TOTAL COSTS (in dollars)
C13: Project Location (enter 1 for So. Cal., 2 for No. Cal., or 3 for rural) | M13: Distance to Next Lot (miles) | V13: Year | W13: Project | Z13: Maint./ | AC13: Cost | AD13: Constant | AE13: Present
M14: Parking Cost at Destination (avg $/day) | W14: Support | X14: R / W | Y14: Construction | Z14: Op. | AA14: Rehab. | AB14: Mitigation | AC14: Savings | AD14: Dollars | AE14: Value
D15: Length of Construction Period | G15: years | V15: Construction Period
L16: Demand for Travel to Destination | O16: Dest 1 | P16: Dest 2 | Q16: Dest 3 | V16: 1 | Z16: =IF(SUM(W16:Y16,AB16:AC16)=0,"<-- Must enter a cost -->","") -> <-- Must enter a cost --> | AD16: =SUM(W16:AC16)*1000 -> 0 | AE16: =$AD16/(1+DiscRate)^($V16-1) -> 0
M17: Percent of Lot Users to Destination | V17: 2 | Z17: =IF(V17<=Construct,IF(SUM(W17:Y17,AB17:AC17)=0,"<-- Must enter a cost -->",""),IF(SUM(W17:Y17,AB17:AC17)<>0,"Adjust Construction Period","")) ->  | AD17: =SUM(W17:AC17)*1000 -> 0 | AE17: 0
O18: =IF(OR(SUM(O17:Q17)=100%,SUM(O17:Q17)=0%),"","Destination percents must sum to 100%") ->  | V18: 3 | AD18: =SUM(W18:AC18)*1000 -> 0 | AE18: 0
M19: Distribution | N19: New Transit Riders | V19: 4 | AD19: 0 | AE19: 0
C20: 1B | D20: PARK-AND-RIDE LOT INFORMATION | M20: (percent) | N20: Existing Transit Riders | V20: 5 | AD20: 0 | AE20: 0
N21: New Carpoolers | V21: 6 | AD21: 0 | AE21: 0
C22: Lot Design | G22: No Build | H22: Build | N22: Existing Carpoolers | V22: 7 | AD22: 0 | AE22: 0
D23: Number of Parking Spaces | G23: 0 | O23: =IF(OR(SUM(O19:O22)=100%,SUM(O19:O22)=0%),"","Sum to 100%") ->  | P23: =IF(OR(SUM(P19:P22)=100%,SUM(P19:P22)=0%),"","Sum to 100%") ->  | Q23: =IF(OR(SUM(Q19:Q22)=100%,SUM(Q19:Q22)=0%),"","Sum to 100%") ->  | V23: 8 | AD23: 0 | AE23: 0
L24: Highway Travel to Destination | O24: Dest 1 | P24: Dest 2 | Q24: Dest 3 | V24: Project Open
M25: HOV Travel Time (in min) | V25: 1 | AD25: =SUM(W25:AC25)*1000 -> 0 | AE25: =$AD25/(1+DiscRate)^($V25+Construct-1) -> 0
C26: Park-and-Ride Demand | G26: No Build | H26: Build | M26: Non-HOV Travel Time (in min) | V26: 2 | AD26: =SUM(W26:AC26)*1000 -> 0 | AE26: 0
D27: Typical Percent Filled (for current or opening year) | V27: 3 | AD27: =SUM(W27:AC27)*1000 -> 0 | AE27: 0
D28: Number of Years until Lot Reaches Capacity | M28: Crash Rate (per million vehicle-miles) | V28: 4 | AD28: 0 | AE28: 0
D29: Number of Bicycle/Pedestrian Users | M29: Percent Fatal Crashes (Pct Fat) | V29: 5 | AD29: 0 | AE29: 0
D30: Average Vehicle Occupancy of Lot Users | G30: 1 | H30: =AVONB -> 1 | M30: Percent Injury Crashes (Pct Inj) | V30: 6 | AD30: 0 | AE30: 0
V31: 7 | AD31: 0 | AE31: 0
L32: Transit Travel to Destination | O32: Dest 1 | P32: Dest 2 | Q32: Dest 3 | V32: 8 | AD32: 0 | AE32: 0
M33: Express Bus | N33: Travel Time (in min) | V33: 9 | AD33: 0 | AE33: 0
N34: Average Fare | V34: 10 | AD34: 0 | AE34: 0
N35: Headway (in min) | V35: 11 | AD35: 0 | AE35: 0
M36: Local Bus | N36: Travel Time (in min) | V36: 12 | AD36: 0 | AE36: 0
N37: Average Fare | V37: 13 | AD37: 0 | AE37: 0
V38: 14 | AD38: 0 | AE38: 0
L39: Carpool/Vanpool Travel to Destination | O39: Dest 1 | P39: Dest 2 | Q39: Dest 3 | V39: 15 | AD39: 0 | AE39: 0
M40: Average Carpool Size (people/vehicle) | V40: 16 | AD40: 0 | AE40: 0
M41: Average Carpool Wait Time (in min) | V41: 17 | AD41: 0 | AE41: 0
V42: 18 | AD42: 0 | AE42: 0
V43: 19 | AD43: 0 | AE43: 0
V44: 20 | AD44: 0 | AE44: 0
V45: Total | W45: =SUM(W16:W44) -> 0 | X45: 0 | Y45: 0 | Z45: 0 | AA45: 0 | AB45: 0 | AC45: 0 | AD45: 0 | AE45: 0
W49: Residual Value in Year 21 | AB49: Present Value = Future Value (in Constant Dollars)
W50: (in thousands of dollars) | Y50: =X45 -> 0 | AD50: ( 1 + Real Discount Rate) ^ Year

Sheet 2) Results
B2: District: | E2: ='1) Project Information'!E2 -> HQ
Q3: EA: | R3: ='1) Project Information'!Q3 -> 0
B4: PROJECT: | E4: =ProjName -> Hypothetical Project | Q4: PPNO: | R4: ='1) Project Information'!Q4 -> 0
D9: 2 | E9: INVESTMENT ANALYSIS
E10: SUMMARY RESULTS
Q12: Total Over | R12: Average
E13: Life-Cycle Costs (mil. $) | H13: =LifeCycleCost/1000000 -> 0 | L13: ITEMIZED BENEFITS (mil. $) | Q13: 20 Years | R13: Annual
E14: Life-Cycle Benefits (mil. $) | H14: =LifeCycleBene/1000000 ->  | L14: Travel Time Savings | Q14: =('Final Calculations'!C55+'Final Calculations'!G55+'Final Calculations'!K55)/1000000 -> 0 | R14: =Q14/20 -> 0
E15: Net Present Value (mil. $) | H15: =NetPresentValue/1000000 ->  | L15: Veh. Op. Cost Savings | Q15: =('Final Calculations'!D55+'Final Calculations'!H55+'Final Calculations'!L55)/1000000 -> 0 | R15: =Q15/20 -> 0
L16: Accident Cost Savings | Q16: =('Final Calculations'!E55+'Final Calculations'!I55+'Final Calculations'!M55)/1000000 -> 0 | R16: =Q16/20 -> 0
E17: Benefit / Cost Ratio: | H17: =IF(LifeCycleCost=0,"N/A",LifeCycleBene/LifeCycleCost) -> N/A | L17: Emission Cost Savings | Q17: =('Final Calculations'!F55+'Final Calculations'!J55+'Final Calculations'!N55)/1000000 ->  | R17: =Q17/20 -> 
L18: Residual Value | Q18: =ResidualValue/1000/(1+DiscRate)^(20+Construct) -> 0
E19: Rate of Return on Investment: | H19: =ReturnOnInvest -> N/A | L19: TOTAL BENEFITS | Q19: =SUM(Q14:Q18) -> 
E21: Payback Period: | H21: =Payback -> N/A | L21: Person-Hours of Time Saved | Q21: ='Final Calculations'!C57+'Final Calculations'!G57+'Final Calculations'!K57 -> 0 | R21: =Q21/20 -> 0
L22: VMT Reduction | Q22: ='Final Calculations'!C58+'Final Calculations'!G58+'Final Calculations'!K58 -> 0 | R22: =Q22/20 -> 0
D25: Should benefit-cost results include: | O25: Tons | Q25: Value (mil. $)
O26: Total Over | P26: Average | Q26: Total Over | R26: Average
E27: 1) Induced Travel is not considered | L27: EMISSIONS REDUCTION | O27: 20 Years | P27: Annual | Q27: 20 Years | R27: Annual
L28: CO Emissions Saved | O28: ='Final Calculations'!C61+'Final Calculations'!G61+'Final Calculations'!K61 -> 0 | P28: =O28/20 -> 0 | Q28: =('Final Calculations'!D61+'Final Calculations'!H61+'Final Calculations'!L61)/1000000 ->  | R28: =Q28/20 -> 
E29: 2) Vehicle Operating Costs? (y/n) | H29: Y | L29: CO2 Emissions Saved | O29: ='Final Calculations'!C62+'Final Calculations'!G62+'Final Calculations'!K62 -> 0 | P29: =O29/20 -> 0 | Q29: =('Final Calculations'!D62+'Final Calculations'!H62+'Final Calculations'!L62)/1000000 ->  | R29: =Q29/20 -> 
H30: Default = Y | L30: NOX Emissions Saved | O30: ='Final Calculations'!C63+'Final Calculations'!G63+'Final Calculations'!K63 -> 0 | P30: 0 | Q30: =('Final Calculations'!D63+'Final Calculations'!H63+'Final Calculations'!L63)/1000000 -> 
E31: 3) Accident Costs? (y/n) | H31: Y | L31: PM10 Emissions Saved | O31: ='Final Calculations'!C64+'Final Calculations'!G64+'Final Calculations'!K64 -> 0 | P31: 0 | Q31: =('Final Calculations'!D64+'Final Calculations'!H64+'Final Calculations'!L64)/1000000 -> 
H32: Default = Y | L32: PM2.5 Emissions Saved | O32: ='Final Calculations'!C65+'Final Calculations'!G65+'Final Calculations'!K65 -> 0 | P32: 0
E33: 4) Vehicle Emissions? (y/n) | H33: Y | L33: SOX Emissions Saved | O33: ='Final Calculations'!C66+'Final Calculations'!G66+'Final Calculations'!K66 -> 0 | P33: 0 | Q33: =('Final Calculations'!D66+'Final Calculations'!H66+'Final Calculations'!L66)/1000000 -> 
E34: includes value for CO2e | H34: Default = Y | L34: VOC Emissions Saved | O34: ='Final Calculations'!C67+'Final Calculations'!G67+'Final Calculations'!K67 -> 0 | P34: 0 | Q34: =('Final Calculations'!D67+'Final Calculations'!H67+'Final Calculations'!L67)/1000000 -> 

Sheet Travel Time
B1: Travel Time Benefits
B3: This sheet calculates total travel time benefits by user group.
B5: Formulas:
G6: Wait Time = Transit Headway x 0.5 or Carpool Wait Time
B7: Users Benefited = New Lost Users - Existing Lot Users
B8: people / yr | G8: Time Benefit = Travel Time Reduction x Avg. Value of Time
G9: $ / year
B10: Travel Time = User Provided | G10: Same Value of Time Used for All Users
B11: minutes/user
B15: A | C15: =IF(ISBLANK(DestName1),"DESTINATION 1", "DESTINATION 1 - "&DestName1) -> DESTINATION 1 | O15: B | P15: =IF(ISBLANK(DestName2),"DESTINATION 2", "DESTINATION 2 - "&DestName2) -> DESTINATION 2 | AB15: C | AC15: =IF(ISBLANK(DestName3),"DESTINATION 3", "DESTINATION 3 - "&DestName3) -> DESTINATION 3 | AO15: D | AP15: SUMMARY OF TRAVEL TIME BENEFITS | AX15: SUMMARY OF TRAVEL TIME BENEFITS (continued)
B18: New Transit Riders (switch from automobile to express bus) | O18: New Transit Riders (switch from automobile to express bus) | AB18: New Transit Riders (switch from automobile to express bus)
C20: ANNUAL NUMBER OF USERS | F20: AVG TRAVEL TIME | H20: AVERAGE WAIT TIME | J20: TIME BENEFIT | P20: ANNUAL NUMBER OF USERS | S20: AVG TRAVEL TIME | U20: AVERAGE WAIT TIME | W20: TIME BENEFIT | AC20: ANNUAL NUMBER OF USERS | AF20: AVG TRAVEL TIME | AH20: AVERAGE WAIT TIME | AJ20: TIME BENEFIT | AP20: DESTINATION 1 | AT20: DESTINATION 2 | AX20: DESTINATION 3 | BB20: Present | BF20: Total
C21: (people/yr) | F21: (minutes) | H21: (minutes) | J21: (person-hours/yr) | P21: (people/yr) | S21: (minutes) | U21: (minutes) | W21: (person-hours/yr) | AC21: (people/yr) | AF21: (minutes) | AH21: (minutes) | AJ21: (person-hours/yr) | BB21: Value of | BF21: Per-Hrs
B22: Year | C22: Existing | D22: New | E22: Users | J22: Travel | K22: Wait | L22: Constant | M22: Present | O22: Year | P22: Existing | Q22: New | R22: Users | W22: Travel | X22: Wait | Y22: Constant | Z22: Present | AB22: Year | AC22: Existing | AD22: New | AE22: Users | AJ22: Travel | AK22: Wait | AL22: Constant | AM22: Present | AO22: Year | AP22: New | AQ22: Existing | AR22: New | AS22: Existing | AT22: New | AU22: Existing | AV22: New | AW22: Existing | AX22: New | AY22: Existing | AZ22: New | BA22: Existing | BB22: Travel Time | BD22: Constant | BF22: of Time
C23: Lot | D23: Lot | E23: Benefited | F23: No Build | G23: Build | H23: No Build | I23: Build | J23: Time | K23: Time | L23: Dollars | M23: Value | P23: Lot | Q23: Lot | R23: Benefited | S23: No Build | T23: Build | U23: No Build | V23: Build | W23: Time | X23: Time | Y23: Dollars | Z23: Value | AC23: Lot | AD23: Lot | AE23: Benefited | AF23: No Build | AG23: Build | AH23: No Build | AI23: Build | AJ23: Time | AK23: Time | AL23: Dollars | AM23: Value | AP23: Transit | AQ23: Transit | AR23: Carpool | AS23: Carpool | AT23: Transit | AU23: Transit | AV23: Carpool | AW23: Carpool | AX23: Transit | AY23: Transit | AZ23: Carpool | BA23: Carpool | BB23: Benefits | BD23: Dollars | BF23: Saved
B24: 1 | C24: =IF(SpacesNB=0,0,(IF(B24>CapYrNB,1,(B24-1)/CapYrNB)*MAX(0,(100%-PctFillNB))+(PctFillNB))*(SpacesNB*AVONB+IF(PctFillNB=0,BikePedNB,BikePedNB/PctFillNB))*AnnualFactor)*PctLotUser1*PctNTransit1 -> 0 | D24: =IF(SpacesB=0,0,(IF(B24>CapYrB,1,(B24-1)/CapYrB)*MAX(0,(100%-PctFillB))+(PctFillB))*(SpacesB*AVOB+IF(PctFillB=0,BikePedB,BikePedB/PctFillB))*AnnualFactor)*PctLotUser1*PctNTransit1 -> 0 | E24: =MAX(0,D24-C24) -> 0 | F24: =TTNonHOV1 -> 0 | G24: =TTExpress1 -> 0 | H24: 0 | I24: =MIN(10,HdwyExpress1/2) -> 0 | J24: =(F24-G24)/60*E24*2 -> 0 | K24: =(H24-I24)/60*E24*2 -> 0 | L24: =SUM(J24,K24)*ValTimeAuto*(1+TTUprater)^($B24+Construct-1) -> 0 | M24: =$L24/(1+DiscRate)^($B24+Construct-1) -> 0 | O24: 1 | P24: =IF(SpacesNB=0,0,(IF(O24>CapYrNB,1,(O24-1)/CapYrNB)*MAX(0,(100%-PctFillNB))+(PctFillNB))*(SpacesNB*AVONB+IF(PctFillNB=0,BikePedNB,BikePedNB/PctFillNB))*AnnualFactor)*PctLotUser2*PctNTransit2 -> 0 | Q24: =IF(SpacesB=0,0,(IF(O24>CapYrB,1,(O24-1)/CapYrB)*MAX(0,(100%-PctFillB))+(PctFillB))*(SpacesB*AVOB+IF(PctFillB=0,BikePedB,BikePedB/PctFillB))*AnnualFactor)*PctLotUser2*PctNTransit2 -> 0 | R24: =MAX(0,Q24-P24) -> 0 | S24: =TTNonHOV2 -> 0 | T24: =TTExpress2 -> 0 | U24: 0 | V24: =MIN(10,HdwyExpress2/2) -> 0 | W24: =(S24-T24)/60*R24*2 -> 0 | X24: =(U24-V24)/60*R24*2 -> 0 | Y24: =SUM(W24,X24)*ValTimeAuto*(1+TTUprater)^($O24+Construct-1) -> 0 | Z24: =$Y24/(1+DiscRate)^($O24+Construct-1) -> 0 | AB24: 1 | AC24: =IF(SpacesNB=0,0,(IF(AB24>CapYrNB,1,(AB24-1)/CapYrNB)*MAX(0,(100%-PctFillNB))+(PctFillNB))*(SpacesNB*AVONB+IF(PctFillNB=0,BikePedNB,BikePedNB/PctFillNB))*AnnualFactor)*PctLotUser3*PctNTransit3 -> 0 | AD24: =IF(SpacesB=0,0,(IF(AB24>CapYrB,1,(AB24-1)/CapYrB)*MAX(0,(100%-PctFillB))+(PctFillB))*(SpacesB*AVOB+IF(PctFillB=0,BikePedB,BikePedB/PctFillB))*AnnualFactor)*PctLotUser3*PctNTransit3 -> 0 | AE24: =MAX(0,AD24-AC24) -> 0 | AF24: =TTNonHOV3 -> 0 | AG24: =TTExpress3 -> 0 | AH24: 0 | AI24: =MIN(10,HdwyExpress3/2) -> 0 | AJ24: =(AF24-AG24)/60*AE24*2 -> 0 | AK24: =(AH24-AI24)/60*AE24*2 -> 0 | AL24: =SUM(AJ24,AK24)*ValTimeAuto*(1+TTUprater)^($AB24+Construct-1) -> 0 | AM24: =$AL24/(1+DiscRate)^($AB24+Construct-1) -> 0 | AO24: 1 | AP24: =M24 -> 0 | AQ24: =M54 -> 0 | AR24: =M84 -> 0 | AS24: =M114 -> 0 | AT24: =Z24 -> 0 | AU24: =Z54 -> 0 | AV24: =Z84 -> 0 | AW24: =Z114 -> 0 | AX24: =AM24 -> 0 | AY24: =AM54 -> 0 | AZ24: =AM84 -> 0 | BA24: =AM114 -> 0 | BB24: =SUM(AP24:BA24) -> 0 | BD24: =$BB24*(1+DiscRate)^($AO24+Construct-1) -> 0 | BF24: =SUM(J24:K24,J54:K54,J84:K84,J114:K114,W24:X24,W54:X54,W84:X84,W114:X114,AJ24:AK24,AJ54:AK54,AJ84:AK84,AJ114:AK114) -> 0
B25: 2 | C25: 0 | D25: 0 | E25: =MAX(0,D25-C25) -> 0 | F25: 0 | G25: 0 | H25: 0 | I25: 0 | J25: =(F25-G25)/60*E25*2 -> 0 | K25: =(H25-I25)/60*E25*2 -> 0 | L25: 0 | M25: 0 | O25: 2 | P25: 0 | Q25: 0 | R25: =MAX(0,Q25-P25) -> 0 | S25: 0 | T25: 0 | U25: 0 | V25: 0 | W25: =(S25-T25)/60*R25*2 -> 0 | X25: =(U25-V25)/60*R25*2 -> 0 | Y25: 0 | Z25: 0 | AB25: 2 | AC25: 0 | AD25: 0 | AE25: =MAX(0,AD25-AC25) -> 0 | AF25: 0 | AG25: 0 | AH25: 0 | AI25: 0 | AJ25: =(AF25-AG25)/60*AE25*2 -> 0 | AK25: =(AH25-AI25)/60*AE25*2 -> 0 | AL25: 0 | AM25: 0 | AO25: 2 | AP25: 0 | AQ25: 0 | AR25: 0 | AS25: 0 | AT25: 0 | AU25: 0 | AV25: 0 | AW25: 0 | AX25: 0 | AY25: 0 | AZ25: 0 | BA25: 0 | BB25: 0 | BD25: 0 | BF25: =SUM(J25:K25,J55:K55,J85:K85,J115:K115,W25:X25,W55:X55,W85:X85,W115:X115,AJ25:AK25,AJ55:AK55,AJ85:AK85,AJ115:AK115) -> 0
B26: 3 | C26: 0 | D26: 0 | E26: 0 | F26: 0 | G26: 0 | H26: 0 | I26: 0 | J26: 0 | K26: 0 | L26: 0 | M26: 0 | O26: 3 | P26: 0 | Q26: 0 | R26: 0 | S26: 0 | T26: 0 | U26: 0 | V26: 0 | W26: 0 | X26: 0 | Y26: 0 | Z26: 0 | AB26: 3 | AC26: 0 | AD26: 0 | AE26: 0 | AF26: 0 | AG26: 0 | AH26: 0 | AI26: 0 | AJ26: 0 | AK26: 0 | AL26: 0 | AM26: 0 | AO26: 3 | AP26: 0 | AQ26: 0 | AR26: 0 | AS26: 0 | AT26: 0 | AU26: 0 | AV26: 0 | AW26: 0 | AX26: 0 | AY26: 0 | AZ26: 0 | BA26: 0 | BB26: 0 | BD26: 0 | BF26: 0
B27: 4 | C27: 0 | D27: 0 | E27: 0 | F27: 0 | G27: 0 | H27: 0 | I27: 0 | J27: 0 | K27: 0 | L27: 0 | M27: 0 | O27: 4 | P27: 0 | Q27: 0 | R27: 0 | S27: 0 | T27: 0 | U27: 0 | V27: 0 | W27: 0 | X27: 0 | Y27: 0 | Z27: 0 | AB27: 4 | AC27: 0 | AD27: 0 | AE27: 0 | AF27: 0 | AG27: 0 | AH27: 0 | AI27: 0 | AJ27: 0 | AK27: 0 | AL27: 0 | AM27: 0 | AO27: 4 | AP27: 0 | AQ27: 0 | AR27: 0 | AS27: 0 | AT27: 0 | AU27: 0 | AV27: 0 | AW27: 0 | AX27: 0 | AY27: 0 | AZ27: 0 | BA27: 0 | BB27: 0 | BD27: 0 | BF27: 0
B28: 5 | C28: 0 | D28: 0 | E28: 0 | F28: 0 | G28: 0 | H28: 0 | I28: 0 | J28: 0 | K28: 0 | L28: 0 | M28: 0 | O28: 5 | P28: 0 | Q28: 0 | R28: 0 | S28: 0 | T28: 0 | U28: 0 | V28: 0 | W28: 0 | X28: 0 | Y28: 0 | Z28: 0 | AB28: 5 | AC28: 0 | AD28: 0 | AE28: 0 | AF28: 0 | AG28: 0 | AH28: 0 | AI28: 0 | AJ28: 0 | AK28: 0 | AL28: 0 | AM28: 0 | AO28: 5 | AP28: 0 | AQ28: 0 | AR28: 0 | AS28: 0 | AT28: 0 | AU28: 0 | AV28: 0 | AW28: 0 | AX28: 0 | AY28: 0 | AZ28: 0 | BA28: 0 | BB28: 0 | BD28: 0 | BF28: 0
B29: 6 | C29: 0 | D29: 0 | E29: 0 | F29: 0 | G29: 0 | H29: 0 | I29: 0 | J29: 0 | K29: 0 | L29: 0 | M29: 0 | O29: 6 | P29: 0 | Q29: 0 | R29: 0 | S29: 0 | T29: 0 | U29: 0 | V29: 0 | W29: 0 | X29: 0 | Y29: 0 | Z29: 0 | AB29: 6 | AC29: 0 | AD29: 0 | AE29: 0 | AF29: 0 | AG29: 0 | AH29: 0 | AI29: 0 | AJ29: 0 | AK29: 0 | AL29: 0 | AM29: 0 | AO29: 6 | AP29: 0 | AQ29: 0 | AR29: 0 | AS29: 0 | AT29: 0 | AU29: 0 | AV29: 0 | AW29: 0 | AX29: 0 | AY29: 0 | AZ29: 0 | BA29: 0 | BB29: 0 | BD29: 0 | BF29: 0
B30: 7 | C30: 0 | D30: 0 | E30: 0 | F30: 0 | G30: 0 | H30: 0 | I30: 0 | J30: 0 | K30: 0 | L30: 0 | M30: 0 | O30: 7 | P30: 0 | Q30: 0 | R30: 0 | S30: 0 | T30: 0 | U30: 0 | V30: 0 | W30: 0 | X30: 0 | Y30: 0 | Z30: 0 | AB30: 7 | AC30: 0 | AD30: 0 | AE30: 0 | AF30: 0 | AG30: 0 | AH30: 0 | AI30: 0 | AJ30: 0 | AK30: 0 | AL30: 0 | AM30: 0 | AO30: 7 | AP30: 0 | AQ30: 0 | AR30: 0 | AS30: 0 | AT30: 0 | AU30: 0 | AV30: 0 | AW30: 0 | AX30: 0 | AY30: 0 | AZ30: 0 | BA30: 0 | BB30: 0 | BD30: 0 | BF30: 0
B31: 8 | C31: 0 | D31: 0 | E31: 0 | F31: 0 | G31: 0 | H31: 0 | I31: 0 | J31: 0 | K31: 0 | L31: 0 | M31: 0 | O31: 8 | P31: 0 | Q31: 0 | R31: 0 | S31: 0 | T31: 0 | U31: 0 | V31: 0 | W31: 0 | X31: 0 | Y31: 0 | Z31: 0 | AB31: 8 | AC31: 0 | AD31: 0 | AE31: 0 | AF31: 0 | AG31: 0 | AH31: 0 | AI31: 0 | AJ31: 0 | AK31: 0 | AL31: 0 | AM31: 0 | AO31: 8 | AP31: 0 | AQ31: 0 | AR31: 0 | AS31: 0 | AT31: 0 | AU31: 0 | AV31: 0 | AW31: 0 | AX31: 0 | AY31: 0 | AZ31: 0 | BA31: 0 | BB31: 0 | BD31: 0 | BF31: 0
B32: 9 | C32: 0 | D32: 0 | E32: 0 | F32: 0 | G32: 0 | H32: 0 | I32: 0 | J32: 0 | K32: 0 | L32: 0 | M32: 0 | O32: 9 | P32: 0 | Q32: 0 | R32: 0 | S32: 0 | T32: 0 | U32: 0 | V32: 0 | W32: 0 | X32: 0 | Y32: 0 | Z32: 0 | AB32: 9 | AC32: 0 | AD32: 0 | AE32: 0 | AF32: 0 | AG32: 0 | AH32: 0 | AI32: 0 | AJ32: 0 | AK32: 0 | AL32: 0 | AM32: 0 | AO32: 9 | AP32: 0 | AQ32: 0 | AR32: 0 | AS32: 0 | AT32: 0 | AU32: 0 | AV32: 0 | AW32: 0 | AX32: 0 | AY32: 0 | AZ32: 0 | BA32: 0 | BB32: 0 | BD32: 0 | BF32: 0
B33: 10 | C33: 0 | D33: 0 | E33: 0 | F33: 0 | G33: 0 | H33: 0 | I33: 0 | J33: 0 | K33: 0 | L33: 0 | M33: 0 | O33: 10 | P33: 0 | Q33: 0 | R33: 0 | S33: 0 | T33: 0 | U33: 0 | V33: 0 | W33: 0 | X33: 0 | Y33: 0 | Z33: 0 | AB33: 10 | AC33: 0 | AD33: 0 | AE33: 0 | AF33: 0 | AG33: 0 | AH33: 0 | AI33: 0 | AJ33: 0 | AK33: 0 | AL33: 0 | AM33: 0 | AO33: 10 | AP33: 0 | AQ33: 0 | AR33: 0 | AS33: 0 | AT33: 0 | AU33: 0 | AV33: 0 | AW33: 0 | AX33: 0 | AY33: 0 | AZ33: 0 | BA33: 0 | BB33: 0 | BD33: 0 | BF33: 0
B34: 11 | C34: 0 | D34: 0 | E34: 0 | F34: 0 | G34: 0 | H34: 0 | I34: 0 | J34: 0 | K34: 0 | L34: 0 | M34: 0 | O34: 11 | P34: 0 | Q34: 0 | R34: 0 | S34: 0 | T34: 0 | U34: 0 | V34: 0 | W34: 0 | X34: 0 | Y34: 0 | Z34: 0 | AB34: 11 | AC34: 0 | AD34: 0 | AE34: 0 | AF34: 0 | AG34: 0 | AH34: 0 | AI34: 0 | AJ34: 0 | AK34: 0 | AL34: 0 | AM34: 0 | AO34: 11 | AP34: 0 | AQ34: 0 | AR34: 0 | AS34: 0 | AT34: 0 | AU34: 0 | AV34: 0 | AW34: 0 | AX34: 0 | AY34: 0 | AZ34: 0 | BA34: 0 | BB34: 0 | BD34: 0 | BF34: 0
B35: 12 | C35: 0 | D35: 0 | E35: 0 | F35: 0 | G35: 0 | H35: 0 | I35: 0 | J35: 0 | K35: 0 | L35: 0 | M35: 0 | O35: 12 | P35: 0 | Q35: 0 | R35: 0 | S35: 0 | T35: 0 | U35: 0 | V35: 0 | W35: 0 | X35: 0 | Y35: 0 | Z35: 0 | AB35: 12 | AC35: 0 | AD35: 0 | AE35: 0 | AF35: 0 | AG35: 0 | AH35: 0 | AI35: 0 | AJ35: 0 | AK35: 0 | AL35: 0 | AM35: 0 | AO35: 12 | AP35: 0 | AQ35: 0 | AR35: 0 | AS35: 0 | AT35: 0 | AU35: 0 | AV35: 0 | AW35: 0 | AX35: 0 | AY35: 0 | AZ35: 0 | BA35: 0 | BB35: 0 | BD35: 0 | BF35: 0
B36: 13 | C36: 0 | D36: 0 | E36: 0 | F36: 0 | G36: 0 | H36: 0 | I36: 0 | J36: 0 | K36: 0 | L36: 0 | M36: 0 | O36: 13 | P36: 0 | Q36: 0 | R36: 0 | S36: 0 | T36: 0 | U36: 0 | V36: 0 | W36: 0 | X36: 0 | Y36: 0 | Z36: 0 | AB36: 13 | AC36: 0 | AD36: 0 | AE36: 0 | AF36: 0 | AG36: 0 | AH36: 0 | AI36: 0 | AJ36: 0 | AK36: 0 | AL36: 0 | AM36: 0 | AO36: 13 | AP36: 0 | AQ36: 0 | AR36: 0 | AS36: 0 | AT36: 0 | AU36: 0 | AV36: 0 | AW36: 0 | AX36: 0 | AY36: 0 | AZ36: 0 | BA36: 0 | BB36: 0 | BD36: 0 | BF36: 0
B37: 14 | C37: 0 | D37: 0 | E37: 0 | F37: 0 | G37: 0 | H37: 0 | I37: 0 | J37: 0 | K37: 0 | L37: 0 | M37: 0 | O37: 14 | P37: 0 | Q37: 0 | R37: 0 | S37: 0 | T37: 0 | U37: 0 | V37: 0 | W37: 0 | X37: 0 | Y37: 0 | Z37: 0 | AB37: 14 | AC37: 0 | AD37: 0 | AE37: 0 | AF37: 0 | AG37: 0 | AH37: 0 | AI37: 0 | AJ37: 0 | AK37: 0 | AL37: 0 | AM37: 0 | AO37: 14 | AP37: 0 | AQ37: 0 | AR37: 0 | AS37: 0 | AT37: 0 | AU37: 0 | AV37: 0 | AW37: 0 | AX37: 0 | AY37: 0 | AZ37: 0 | BA37: 0 | BB37: 0 | BD37: 0 | BF37: 0
B38: 15 | C38: 0 | D38: 0 | E38: 0 | F38: 0 | G38: 0 | H38: 0 | I38: 0 | J38: 0 | K38: 0 | L38: 0 | M38: 0 | O38: 15 | P38: 0 | Q38: 0 | R38: 0 | S38: 0 | T38: 0 | U38: 0 | V38: 0 | W38: 0 | X38: 0 | Y38: 0 | Z38: 0 | AB38: 15 | AC38: 0 | AD38: 0 | AE38: 0 | AF38: 0 | AG38: 0 | AH38: 0 | AI38: 0 | AJ38: 0 | AK38: 0 | AL38: 0 | AM38: 0 | AO38: 15 | AP38: 0 | AQ38: 0 | AR38: 0 | AS38: 0 | AT38: 0 | AU38: 0 | AV38: 0 | AW38: 0 | AX38: 0 | AY38: 0 | AZ38: 0 | BA38: 0 | BB38: 0 | BD38: 0 | BF38: 0
B39: 16 | C39: 0 | D39: 0 | E39: 0 | F39: 0 | G39: 0 | H39: 0 | I39: 0 | J39: 0 | K39: 0 | L39: 0 | M39: 0 | O39: 16 | P39: 0 | Q39: 0 | R39: 0 | S39: 0 | T39: 0 | U39: 0 | V39: 0 | W39: 0 | X39: 0 | Y39: 0 | Z39: 0 | AB39: 16 | AC39: 0 | AD39: 0 | AE39: 0 | AF39: 0 | AG39: 0 | AH39: 0 | AI39: 0 | AJ39: 0 | AK39: 0 | AL39: 0 | AM39: 0 | AO39: 16 | AP39: 0 | AQ39: 0 | AR39: 0 | AS39: 0 | AT39: 0 | AU39: 0 | AV39: 0 | AW39: 0 | AX39: 0 | AY39: 0 | AZ39: 0 | BA39: 0 | BB39: 0 | BD39: 0 | BF39: 0
B40: 17 | C40: 0 | D40: 0 | E40: 0 | F40: 0 | G40: 0 | H40: 0 | I40: 0 | J40: 0 | K40: 0 | L40: 0 | M40: 0 | O40: 17 | P40: 0 | Q40: 0 | R40: 0 | S40: 0 | T40: 0 | U40: 0 | V40: 0 | W40: 0 | X40: 0 | Y40: 0 | Z40: 0 | AB40: 17 | AC40: 0 | AD40: 0 | AE40: 0 | AF40: 0 | AG40: 0 | AH40: 0 | AI40: 0 | AJ40: 0 | AK40: 0 | AL40: 0 | AM40: 0 | AO40: 17 | AP40: 0 | AQ40: 0 | AR40: 0 | AS40: 0 | AT40: 0 | AU40: 0 | AV40: 0 | AW40: 0 | AX40: 0 | AY40: 0 | AZ40: 0 | BA40: 0 | BB40: 0 | BD40: 0 | BF40: 0
B41: 18 | C41: 0 | D41: 0 | E41: 0 | F41: 0 | G41: 0 | H41: 0 | I41: 0 | J41: 0 | K41: 0 | L41: 0 | M41: 0 | O41: 18 | P41: 0 | Q41: 0 | R41: 0 | S41: 0 | T41: 0 | U41: 0 | V41: 0 | W41: 0 | X41: 0 | Y41: 0 | Z41: 0 | AB41: 18 | AC41: 0 | AD41: 0 | AE41: 0 | AF41: 0 | AG41: 0 | AH41: 0 | AI41: 0 | AJ41: 0 | AK41: 0 | AL41: 0 | AM41: 0 | AO41: 18 | AP41: 0 | AQ41: 0 | AR41: 0 | AS41: 0 | AT41: 0 | AU41: 0 | AV41: 0 | AW41: 0 | AX41: 0 | AY41: 0 | AZ41: 0 | BA41: 0 | BB41: 0 | BD41: 0 | BF41: 0
B42: 19 | C42: 0 | D42: 0 | E42: 0 | F42: 0 | G42: 0 | H42: 0 | I42: 0 | J42: 0 | K42: 0 | L42: 0 | M42: 0 | O42: 19 | P42: 0 | Q42: 0 | R42: 0 | S42: 0 | T42: 0 | U42: 0 | V42: 0 | W42: 0 | X42: 0 | Y42: 0 | Z42: 0 | AB42: 19 | AC42: 0 | AD42: 0 | AE42: 0 | AF42: 0 | AG42: 0 | AH42: 0 | AI42: 0 | AJ42: 0 | AK42: 0 | AL42: 0 | AM42: 0 | AO42: 19 | AP42: 0 | AQ42: 0 | AR42: 0 | AS42: 0 | AT42: 0 | AU42: 0 | AV42: 0 | AW42: 0 | AX42: 0 | AY42: 0 | AZ42: 0 | BA42: 0 | BB42: 0 | BD42: 0 | BF42: 0
B43: 20 | C43: 0 | D43: 0 | E43: 0 | F43: 0 | G43: 0 | H43: 0 | I43: 0 | J43: 0 | K43: 0 | L43: 0 | M43: 0 | O43: 20 | P43: 0 | Q43: 0 | R43: 0 | S43: 0 | T43: 0 | U43: 0 | V43: 0 | W43: 0 | X43: 0 | Y43: 0 | Z43: 0 | AB43: 20 | AC43: 0 | AD43: 0 | AE43: 0 | AF43: 0 | AG43: 0 | AH43: 0 | AI43: 0 | AJ43: 0 | AK43: 0 | AL43: 0 | AM43: 0 | AO43: 20 | AP43: 0 | AQ43: 0 | AR43: 0 | AS43: 0 | AT43: 0 | AU43: 0 | AV43: 0 | AW43: 0 | AX43: 0 | AY43: 0 | AZ43: 0 | BA43: 0 | BB43: 0 | BD43: 0 | BF43: 0
B45: Total | M45: =SUM(M24:M43) -> 0 | O45: Total | Z45: =SUM(Z24:Z43) -> 0 | AB45: Total | AM45: =SUM(AM24:AM43) -> 0 | AO45: Total | AP45: =SUM(AP24:AP43) -> 0 | AQ45: 0 | AR45: 0 | AS45: 0 | AT45: 0 | AU45: 0 | AV45: 0 | AW45: 0 | AX45: 0 | AY45: 0 | AZ45: 0 | BA45: 0 | BB45: 0 | BD45: =SUM(BD24:BD43) -> 0 | BF45: =SUM(BF24:BF43) -> 0
B48: Existing Transit Riders (switch from local bus to express bus) | O48: Existing Transit Riders (switch from local bus to express bus) | AB48: Existing Transit Riders (switch from local bus to express bus)
C50: ANNUAL NUMBER OF USERS | F50: AVG TRAVEL TIME | H50: AVERAGE WAIT TIME | J50: TIME BENEFIT | P50: ANNUAL NUMBER OF USERS | S50: AVG TRAVEL TIME | U50: AVERAGE WAIT TIME | W50: TIME BENEFIT | AC50: ANNUAL NUMBER OF USERS | AF50: AVG TRAVEL TIME | AH50: AVERAGE WAIT TIME | AJ50: TIME BENEFIT
C51: (people/yr) | F51: (minutes) | H51: (minutes) | J51: (person-hours/yr) | P51: (people/yr) | S51: (minutes) | U51: (minutes) | W51: (person-hours/yr) | AC51: (people/yr) | AF51: (minutes) | AH51: (minutes) | AJ51: (person-hours/yr)
B52: Year | C52: Existing | D52: New | E52: Users | J52: Travel | K52: Wait | L52: Constant | M52: Present | O52: Year | P52: Existing | Q52: New | R52: Users | W52: Travel | X52: Wait | Y52: Constant | Z52: Present | AB52: Year | AC52: Existing | AD52: New | AE52: Users | AJ52: Travel | AK52: Wait | AL52: Constant | AM52: Present
C53: Lot | D53: Lot | E53: Benefited | F53: No Build | G53: Build | H53: No Build | I53: Build | J53: Time | K53: Time | L53: Dollars | M53: Value | P53: Lot | Q53: Lot | R53: Benefited | S53: No Build | T53: Build | U53: No Build | V53: Build | W53: Time | X53: Time | Y53: Dollars | Z53: Value | AC53: Lot | AD53: Lot | AE53: Benefited | AF53: No Build | AG53: Build | AH53: No Build | AI53: Build | AJ53: Time | AK53: Time | AL53: Dollars | AM53: Value
B54: 1 | C54: =IF(SpacesNB=0,0,(IF(B54>CapYrNB,1,(B54-1)/CapYrNB)*MAX(0,(100%-PctFillNB))+(PctFillNB))*(SpacesNB*AVONB+IF(PctFillNB=0,BikePedNB,BikePedNB/PctFillNB))*AnnualFactor)*PctLotUser1*PctETransit1 -> 0 | D54: =IF(SpacesB=0,0,(IF(B54>CapYrB,1,(B54-1)/CapYrB)*MAX(0,(100%-PctFillB))+(PctFillB))*(SpacesB*AVOB+IF(PctFillB=0,BikePedB,BikePedB/PctFillB))*AnnualFactor)*PctLotUser1*PctETransit1 -> 0 | E54: =MAX(0,D54-C54) -> 0 | F54: =TTLocal1 -> 0 | G54: =TTExpress1 -> 0 | H54: 0 | I54: 0 | J54: =(F54-G54)/60*E54*2 -> 0 | K54: =(H54-I54)/60*E54*2 -> 0 | L54: =SUM(J54,K54)*ValTimeAuto*(1+TTUprater)^($B54+Construct-1) -> 0 | M54: =$L54/(1+DiscRate)^($B54+Construct-1) -> 0 | O54: 1 | P54: =IF(SpacesNB=0,0,(IF(O54>CapYrNB,1,(O54-1)/CapYrNB)*MAX(0,(100%-PctFillNB))+(PctFillNB))*(SpacesNB*AVONB+IF(PctFillNB=0,BikePedNB,BikePedNB/PctFillNB))*AnnualFactor)*PctLotUser2*PctETransit2 -> 0 | Q54: =IF(SpacesB=0,0,(IF(O54>CapYrB,1,(O54-1)/CapYrB)*MAX(0,(100%-PctFillB))+(PctFillB))*(SpacesB*AVOB+IF(PctFillB=0,BikePedB,BikePedB/PctFillB))*AnnualFactor)*PctLotUser2*PctETransit2 -> 0 | R54: =MAX(0,Q54-P54) -> 0 | S54: =TTLocal2 -> 0 | T54: =TTExpress2 -> 0 | U54: 0 | V54: 0 | W54: =(S54-T54)/60*R54*2 -> 0 | X54: =(U54-V54)/60*R54*2 -> 0 | Y54: =SUM(W54,X54)*ValTimeAuto*(1+TTUprater)^($O54+Construct-1) -> 0 | Z54: =$Y54/(1+DiscRate)^($O54+Construct-1) -> 0 | AB54: 1 | AC54: =IF(SpacesNB=0,0,(IF(AB54>CapYrNB,1,(AB54-1)/CapYrNB)*MAX(0,(100%-PctFillNB))+(PctFillNB))*(SpacesNB*AVONB+IF(PctFillNB=0,BikePedNB,BikePedNB/PctFillNB))*AnnualFactor)*PctLotUser3*PctETransit3 -> 0 | AD54: =IF(SpacesB=0,0,(IF(AB54>CapYrB,1,(AB54-1)/CapYrB)*MAX(0,(100%-PctFillB))+(PctFillB))*(SpacesB*AVOB+IF(PctFillB=0,BikePedB,BikePedB/PctFillB))*AnnualFactor)*PctLotUser3*PctETransit3 -> 0 | AE54: =MAX(0,AD54-AC54) -> 0 | AF54: =TTLocal3 -> 0 | AG54: =TTExpress3 -> 0 | AH54: 0 | AI54: 0 | AJ54: =(AF54-AG54)/60*AE54*2 -> 0 | AK54: =(AH54-AI54)/60*AE54*2 -> 0 | AL54: =SUM(AJ54,AK54)*ValTimeAuto*(1+TTUprater)^($AB54+Construct-1) -> 0 | AM54: =$AL54/(1+DiscRate)^($AB54+Construct-1) -> 0
B55: 2 | C55: 0 | D55: 0 | E55: =MAX(0,D55-C55) -> 0 | F55: 0 | G55: 0 | H55: 0 | I55: 0 | J55: =(F55-G55)/60*E55*2 -> 0 | K55: =(H55-I55)/60*E55*2 -> 0 | L55: 0 | M55: 0 | O55: 2 | P55: 0 | Q55: 0 | R55: =MAX(0,Q55-P55) -> 0 | S55: 0 | T55: 0 | U55: 0 | V55: 0 | W55: =(S55-T55)/60*R55*2 -> 0 | X55: =(U55-V55)/60*R55*2 -> 0 | Y55: 0 | Z55: 0 | AB55: 2 | AC55: 0 | AD55: 0 | AE55: =MAX(0,AD55-AC55) -> 0 | AF55: 0 | AG55: 0 | AH55: 0 | AI55: 0 | AJ55: =(AF55-AG55)/60*AE55*2 -> 0 | AK55: =(AH55-AI55)/60*AE55*2 -> 0 | AL55: 0 | AM55: 0
B56: 3 | C56: 0 | D56: 0 | E56: 0 | F56: 0 | G56: 0 | H56: 0 | I56: 0 | J56: 0 | K56: 0 | L56: 0 | M56: 0 | O56: 3 | P56: 0 | Q56: 0 | R56: 0 | S56: 0 | T56: 0 | U56: 0 | V56: 0 | W56: 0 | X56: 0 | Y56: 0 | Z56: 0 | AB56: 3 | AC56: 0 | AD56: 0 | AE56: 0 | AF56: 0 | AG56: 0 | AH56: 0 | AI56: 0 | AJ56: 0 | AK56: 0 | AL56: 0 | AM56: 0
B57: 4 | C57: 0 | D57: 0 | E57: 0 | F57: 0 | G57: 0 | H57: 0 | I57: 0 | J57: 0 | K57: 0 | L57: 0 | M57: 0 | O57: 4 | P57: 0 | Q57: 0 | R57: 0 | S57: 0 | T57: 0 | U57: 0 | V57: 0 | W57: 0 | X57: 0 | Y57: 0 | Z57: 0 | AB57: 4 | AC57: 0 | AD57: 0 | AE57: 0 | AF57: 0 | AG57: 0 | AH57: 0 | AI57: 0 | AJ57: 0 | AK57: 0 | AL57: 0 | AM57: 0
B58: 5 | C58: 0 | D58: 0 | E58: 0 | F58: 0 | G58: 0 | H58: 0 | I58: 0 | J58: 0 | K58: 0 | L58: 0 | M58: 0 | O58: 5 | P58: 0 | Q58: 0 | R58: 0 | S58: 0 | T58: 0 | U58: 0 | V58: 0 | W58: 0 | X58: 0 | Y58: 0 | Z58: 0 | AB58: 5 | AC58: 0 | AD58: 0 | AE58: 0 | AF58: 0 | AG58: 0 | AH58: 0 | AI58: 0 | AJ58: 0 | AK58: 0 | AL58: 0 | AM58: 0
B59: 6 | C59: 0 | D59: 0 | E59: 0 | F59: 0 | G59: 0 | H59: 0 | I59: 0 | J59: 0 | K59: 0 | L59: 0 | M59: 0 | O59: 6 | P59: 0 | Q59: 0 | R59: 0 | S59: 0 | T59: 0 | U59: 0 | V59: 0 | W59: 0 | X59: 0 | Y59: 0 | Z59: 0 | AB59: 6 | AC59: 0 | AD59: 0 | AE59: 0 | AF59: 0 | AG59: 0 | AH59: 0 | AI59: 0 | AJ59: 0 | AK59: 0 | AL59: 0 | AM59: 0
B60: 7 | C60: 0 | D60: 0 | E60: 0 | F60: 0 | G60: 0 | H60: 0 | I60: 0 | J60: 0 | K60: 0 | L60: 0 | M60: 0 | O60: 7 | P60: 0 | Q60: 0 | R60: 0 | S60: 0 | T60: 0 | U60: 0 | V60: 0 | W60: 0 | X60: 0 | Y60: 0 | Z60: 0 | AB60: 7 | AC60: 0 | AD60: 0 | AE60: 0 | AF60: 0 | AG60: 0 | AH60: 0 | AI60: 0 | AJ60: 0 | AK60: 0 | AL60: 0 | AM60: 0
B61: 8 | C61: 0 | D61: 0 | E61: 0 | F61: 0 | G61: 0 | H61: 0 | I61: 0 | J61: 0 | K61: 0 | L61: 0 | M61: 0 | O61: 8 | P61: 0 | Q61: 0 | R61: 0 | S61: 0 | T61: 0 | U61: 0 | V61: 0 | W61: 0 | X61: 0 | Y61: 0 | Z61: 0 | AB61: 8 | AC61: 0 | AD61: 0 | AE61: 0 | AF61: 0 | AG61: 0 | AH61: 0 | AI61: 0 | AJ61: 0 | AK61: 0 | AL61: 0 | AM61: 0
B62: 9 | C62: 0 | D62: 0 | E62: 0 | F62: 0 | G62: 0 | H62: 0 | I62: 0 | J62: 0 | K62: 0 | L62: 0 | M62: 0 | O62: 9 | P62: 0 | Q62: 0 | R62: 0 | S62: 0 | T62: 0 | U62: 0 | V62: 0 | W62: 0 | X62: 0 | Y62: 0 | Z62: 0 | AB62: 9 | AC62: 0 | AD62: 0 | AE62: 0 | AF62: 0 | AG62: 0 | AH62: 0 | AI62: 0 | AJ62: 0 | AK62: 0 | AL62: 0 | AM62: 0
B63: 10 | C63: 0 | D63: 0 | E63: 0 | F63: 0 | G63: 0 | H63: 0 | I63: 0 | J63: 0 | K63: 0 | L63: 0 | M63: 0 | O63: 10 | P63: 0 | Q63: 0 | R63: 0 | S63: 0 | T63: 0 | U63: 0 | V63: 0 | W63: 0 | X63: 0 | Y63: 0 | Z63: 0 | AB63: 10 | AC63: 0 | AD63: 0 | AE63: 0 | AF63: 0 | AG63: 0 | AH63: 0 | AI63: 0 | AJ63: 0 | AK63: 0 | AL63: 0 | AM63: 0
B64: 11 | C64: 0 | D64: 0 | E64: 0 | F64: 0 | G64: 0 | H64: 0 | I64: 0 | J64: 0 | K64: 0 | L64: 0 | M64: 0 | O64: 11 | P64: 0 | Q64: 0 | R64: 0 | S64: 0 | T64: 0 | U64: 0 | V64: 0 | W64: 0 | X64: 0 | Y64: 0 | Z64: 0 | AB64: 11 | AC64: 0 | AD64: 0 | AE64: 0 | AF64: 0 | AG64: 0 | AH64: 0 | AI64: 0 | AJ64: 0 | AK64: 0 | AL64: 0 | AM64: 0
B65: 12 | C65: 0 | D65: 0 | E65: 0 | F65: 0 | G65: 0 | H65: 0 | I65: 0 | J65: 0 | K65: 0 | L65: 0 | M65: 0 | O65: 12 | P65: 0 | Q65: 0 | R65: 0 | S65: 0 | T65: 0 | U65: 0 | V65: 0 | W65: 0 | X65: 0 | Y65: 0 | Z65: 0 | AB65: 12 | AC65: 0 | AD65: 0 | AE65: 0 | AF65: 0 | AG65: 0 | AH65: 0 | AI65: 0 | AJ65: 0 | AK65: 0 | AL65: 0 | AM65: 0
B66: 13 | C66: 0 | D66: 0 | E66: 0 | F66: 0 | G66: 0 | H66: 0 | I66: 0 | J66: 0 | K66: 0 | L66: 0 | M66: 0 | O66: 13 | P66: 0 | Q66: 0 | R66: 0 | S66: 0 | T66: 0 | U66: 0 | V66: 0 | W66: 0 | X66: 0 | Y66: 0 | Z66: 0 | AB66: 13 | AC66: 0 | AD66: 0 | AE66: 0 | AF66: 0 | AG66: 0 | AH66: 0 | AI66: 0 | AJ66: 0 | AK66: 0 | AL66: 0 | AM66: 0
B67: 14 | C67: 0 | D67: 0 | E67: 0 | F67: 0 | G67: 0 | H67: 0 | I67: 0 | J67: 0 | K67: 0 | L67: 0 | M67: 0 | O67: 14 | P67: 0 | Q67: 0 | R67: 0 | S67: 0 | T67: 0 | U67: 0 | V67: 0 | W67: 0 | X67: 0 | Y67: 0 | Z67: 0 | AB67: 14 | AC67: 0 | AD67: 0 | AE67: 0 | AF67: 0 | AG67: 0 | AH67: 0 | AI67: 0 | AJ67: 0 | AK67: 0 | AL67: 0 | AM67: 0
B68: 15 | C68: 0 | D68: 0 | E68: 0 | F68: 0 | G68: 0 | H68: 0 | I68: 0 | J68: 0 | K68: 0 | L68: 0 | M68: 0 | O68: 15 | P68: 0 | Q68: 0 | R68: 0 | S68: 0 | T68: 0 | U68: 0 | V68: 0 | W68: 0 | X68: 0 | Y68: 0 | Z68: 0 | AB68: 15 | AC68: 0 | AD68: 0 | AE68: 0 | AF68: 0 | AG68: 0 | AH68: 0 | AI68: 0 | AJ68: 0 | AK68: 0 | AL68: 0 | AM68: 0
B69: 16 | C69: 0 | D69: 0 | E69: 0 | F69: 0 | G69: 0 | H69: 0 | I69: 0 | J69: 0 | K69: 0 | L69: 0 | M69: 0 | O69: 16 | P69: 0 | Q69: 0 | R69: 0 | S69: 0 | T69: 0 | U69: 0 | V69: 0 | W69: 0 | X69: 0 | Y69: 0 | Z69: 0 | AB69: 16 | AC69: 0 | AD69: 0 | AE69: 0 | AF69: 0 | AG69: 0 | AH69: 0 | AI69: 0 | AJ69: 0 | AK69: 0 | AL69: 0 | AM69: 0
B70: 17 | C70: 0 | D70: 0 | E70: 0 | F70: 0 | G70: 0 | H70: 0 | I70: 0 | J70: 0 | K70: 0 | L70: 0 | M70: 0 | O70: 17 | P70: 0 | Q70: 0 | R70: 0 | S70: 0 | T70: 0 | U70: 0 | V70: 0 | W70: 0 | X70: 0 | Y70: 0 | Z70: 0 | AB70: 17 | AC70: 0 | AD70: 0 | AE70: 0 | AF70: 0 | AG70: 0 | AH70: 0 | AI70: 0 | AJ70: 0 | AK70: 0 | AL70: 0 | AM70: 0
B71: 18 | C71: 0 | D71: 0 | E71: 0 | F71: 0 | G71: 0 | H71: 0 | I71: 0 | J71: 0 | K71: 0 | L71: 0 | M71: 0 | O71: 18 | P71: 0 | Q71: 0 | R71: 0 | S71: 0 | T71: 0 | U71: 0 | V71: 0 | W71: 0 | X71: 0 | Y71: 0 | Z71: 0 | AB71: 18 | AC71: 0 | AD71: 0 | AE71: 0 | AF71: 0 | AG71: 0 | AH71: 0 | AI71: 0 | AJ71: 0 | AK71: 0 | AL71: 0 | AM71: 0
B72: 19 | C72: 0 | D72: 0 | E72: 0 | F72: 0 | G72: 0 | H72: 0 | I72: 0 | J72: 0 | K72: 0 | L72: 0 | M72: 0 | O72: 19 | P72: 0 | Q72: 0 | R72: 0 | S72: 0 | T72: 0 | U72: 0 | V72: 0 | W72: 0 | X72: 0 | Y72: 0 | Z72: 0 | AB72: 19 | AC72: 0 | AD72: 0 | AE72: 0 | AF72: 0 | AG72: 0 | AH72: 0 | AI72: 0 | AJ72: 0 | AK72: 0 | AL72: 0 | AM72: 0
B73: 20 | C73: 0 | D73: 0 | E73: 0 | F73: 0 | G73: 0 | H73: 0 | I73: 0 | J73: 0 | K73: 0 | L73: 0 | M73: 0 | O73: 20 | P73: 0 | Q73: 0 | R73: 0 | S73: 0 | T73: 0 | U73: 0 | V73: 0 | W73: 0 | X73: 0 | Y73: 0 | Z73: 0 | AB73: 20 | AC73: 0 | AD73: 0 | AE73: 0 | AF73: 0 | AG73: 0 | AH73: 0 | AI73: 0 | AJ73: 0 | AK73: 0 | AL73: 0 | AM73: 0
B75: Total | M75: =SUM(M54:M73) -> 0 | O75: Total | Z75: =SUM(Z54:Z73) -> 0 | AB75: Total | AM75: =SUM(AM54:AM73) -> 0
B78: New Carpoolers (switch from automobile to carpool) | O78: New Carpoolers (switch from automobile to carpool) | AB78: New Carpoolers (switch from automobile to carpool)
C80: ANNUAL NUMBER OF USERS | F80: AVG TRAVEL TIME | H80: AVERAGE WAIT TIME | J80: TIME BENEFIT | P80: ANNUAL NUMBER OF USERS | S80: AVG TRAVEL TIME | U80: AVERAGE WAIT TIME | W80: TIME BENEFIT | AC80: ANNUAL NUMBER OF USERS | AF80: AVG TRAVEL TIME | AH80: AVERAGE WAIT TIME | AJ80: TIME BENEFIT
C81: (people/yr) | F81: (minutes) | H81: (minutes) | J81: (person-hours/yr) | P81: (people/yr) | S81: (minutes) | U81: (minutes) | W81: (person-hours/yr) | AC81: (people/yr) | AF81: (minutes) | AH81: (minutes) | AJ81: (person-hours/yr)
B82: Year | C82: Existing | D82: New | E82: Users | J82: Travel | K82: Wait | L82: Constant | M82: Present | O82: Year | P82: Existing | Q82: New | R82: Users | W82: Travel | X82: Wait | Y82: Constant | Z82: Present | AB82: Year | AC82: Existing | AD82: New | AE82: Users | AJ82: Travel | AK82: Wait | AL82: Constant | AM82: Present
C83: Lot | D83: Lot | E83: Benefited | F83: No Build | G83: Build | H83: No Build | I83: Build | J83: Time | K83: Time | L83: Dollars | M83: Value | P83: Lot | Q83: Lot | R83: Benefited | S83: No Build | T83: Build | U83: No Build | V83: Build | W83: Time | X83: Time | Y83: Dollars | Z83: Value | AC83: Lot | AD83: Lot | AE83: Benefited | AF83: No Build | AG83: Build | AH83: No Build | AI83: Build | AJ83: Time | AK83: Time | AL83: Dollars | AM83: Value
B84: 1 | C84: =IF(SpacesNB=0,0,(IF(B84>CapYrNB,1,(B84-1)/CapYrNB)*MAX(0,(100%-PctFillNB))+(PctFillNB))*(SpacesNB*AVONB+IF(PctFillNB=0,BikePedNB,BikePedNB/PctFillNB))*AnnualFactor)*PctLotUser1*PctNCarpool1 -> 0 | D84: =IF(SpacesB=0,0,(IF(B84>CapYrB,1,(B84-1)/CapYrB)*MAX(0,(100%-PctFillB))+(PctFillB))*(SpacesB*AVOB+IF(PctFillB=0,BikePedB,BikePedB/PctFillB))*AnnualFactor)*PctLotUser1*PctNCarpool1 -> 0 | E84: =MAX(0,D84-C84) -> 0 | F84: =TTNonHOV1 -> 0 | G84: =TTHOV1 -> 0 | H84: 0 | I84: =WaitCarpool1 -> 0 | J84: =(F84-G84)/60*E84*2 -> 0 | K84: =(H84-I84)/60*E84*2 -> 0 | L84: =SUM(J84,K84)*ValTimeAuto*(1+TTUprater)^($B84+Construct-1) -> 0 | M84: =$L84/(1+DiscRate)^($B84+Construct-1) -> 0 | O84: 1 | P84: =IF(SpacesNB=0,0,(IF(O84>CapYrNB,1,(O84-1)/CapYrNB)*MAX(0,(100%-PctFillNB))+(PctFillNB))*(SpacesNB*AVONB+IF(PctFillNB=0,BikePedNB,BikePedNB/PctFillNB))*AnnualFactor)*PctLotUser2*PctNCarpool2 -> 0 | Q84: =IF(SpacesB=0,0,(IF(O84>CapYrB,1,(O84-1)/CapYrB)*MAX(0,(100%-PctFillB))+(PctFillB))*(SpacesB*AVOB+IF(PctFillB=0,BikePedB,BikePedB/PctFillB))*AnnualFactor)*PctLotUser2*PctNCarpool2 -> 0 | R84: =MAX(0,Q84-P84) -> 0 | S84: =TTNonHOV2 -> 0 | T84: =TTHOV2 -> 0 | U84: 0 | V84: =WaitCarpool2 -> 0 | W84: =(S84-T84)/60*R84*2 -> 0 | X84: =(U84-V84)/60*R84*2 -> 0 | Y84: =SUM(W84,X84)*ValTimeAuto*(1+TTUprater)^($O84+Construct-1) -> 0 | Z84: =$Y84/(1+DiscRate)^($O84+Construct-1) -> 0 | AB84: 1 | AC84: =IF(SpacesNB=0,0,(IF(AB84>CapYrNB,1,(AB84-1)/CapYrNB)*MAX(0,(100%-PctFillNB))+(PctFillNB))*(SpacesNB*AVONB+IF(PctFillNB=0,BikePedNB,BikePedNB/PctFillNB))*AnnualFactor)*PctLotUser3*PctNCarpool3 -> 0 | AD84: =IF(SpacesB=0,0,(IF(AB84>CapYrB,1,(AB84-1)/CapYrB)*MAX(0,(100%-PctFillB))+(PctFillB))*(SpacesB*AVOB+IF(PctFillB=0,BikePedB,BikePedB/PctFillB))*AnnualFactor)*PctLotUser3*PctNCarpool3 -> 0 | AE84: =MAX(0,AD84-AC84) -> 0 | AF84: =TTNonHOV3 -> 0 | AG84: =TTHOV3 -> 0 | AH84: 0 | AI84: =WaitCarpool3 -> 0 | AJ84: =(AF84-AG84)/60*AE84*2 -> 0 | AK84: =(AH84-AI84)/60*AE84*2 -> 0 | AL84: =SUM(AJ84,AK84)*ValTimeAuto*(1+TTUprater)^($AB84+Construct-1) -> 0 | AM84: =$AL84/(1+DiscRate)^($AB84+Construct-1) -> 0
B85: 2 | C85: 0 | D85: 0 | E85: =MAX(0,D85-C85) -> 0 | F85: 0 | G85: 0 | H85: 0 | I85: 0 | J85: =(F85-G85)/60*E85*2 -> 0 | K85: =(H85-I85)/60*E85*2 -> 0 | L85: 0 | M85: 0 | O85: 2 | P85: 0 | Q85: 0 | R85: =MAX(0,Q85-P85) -> 0 | S85: 0 | T85: 0 | U85: 0 | V85: 0 | W85: =(S85-T85)/60*R85*2 -> 0 | X85: =(U85-V85)/60*R85*2 -> 0 | Y85: 0 | Z85: 0 | AB85: 2 | AC85: 0 | AD85: 0 | AE85: =MAX(0,AD85-AC85) -> 0 | AF85: 0 | AG85: 0 | AH85: 0 | AI85: 0 | AJ85: =(AF85-AG85)/60*AE85*2 -> 0 | AK85: =(AH85-AI85)/60*AE85*2 -> 0 | AL85: 0 | AM85: 0
B86: 3 | C86: 0 | D86: 0 | E86: 0 | F86: 0 | G86: 0 | H86: 0 | I86: 0 | J86: 0 | K86: 0 | L86: 0 | M86: 0 | O86: 3 | P86: 0 | Q86: 0 | R86: 0 | S86: 0 | T86: 0 | U86: 0 | V86: 0 | W86: 0 | X86: 0 | Y86: 0 | Z86: 0 | AB86: 3 | AC86: 0 | AD86: 0 | AE86: 0 | AF86: 0 | AG86: 0 | AH86: 0 | AI86: 0 | AJ86: 0 | AK86: 0 | AL86: 0 | AM86: 0
B87: 4 | C87: 0 | D87: 0 | E87: 0 | F87: 0 | G87: 0 | H87: 0 | I87: 0 | J87: 0 | K87: 0 | L87: 0 | M87: 0 | O87: 4 | P87: 0 | Q87: 0 | R87: 0 | S87: 0 | T87: 0 | U87: 0 | V87: 0 | W87: 0 | X87: 0 | Y87: 0 | Z87: 0 | AB87: 4 | AC87: 0 | AD87: 0 | AE87: 0 | AF87: 0 | AG87: 0 | AH87: 0 | AI87: 0 | AJ87: 0 | AK87: 0 | AL87: 0 | AM87: 0
B88: 5 | C88: 0 | D88: 0 | E88: 0 | F88: 0 | G88: 0 | H88: 0 | I88: 0 | J88: 0 | K88: 0 | L88: 0 | M88: 0 | O88: 5 | P88: 0 | Q88: 0 | R88: 0 | S88: 0 | T88: 0 | U88: 0 | V88: 0 | W88: 0 | X88: 0 | Y88: 0 | Z88: 0 | AB88: 5 | AC88: 0 | AD88: 0 | AE88: 0 | AF88: 0 | AG88: 0 | AH88: 0 | AI88: 0 | AJ88: 0 | AK88: 0 | AL88: 0 | AM88: 0
B89: 6 | C89: 0 | D89: 0 | E89: 0 | F89: 0 | G89: 0 | H89: 0 | I89: 0 | J89: 0 | K89: 0 | L89: 0 | M89: 0 | O89: 6 | P89: 0 | Q89: 0 | R89: 0 | S89: 0 | T89: 0 | U89: 0 | V89: 0 | W89: 0 | X89: 0 | Y89: 0 | Z89: 0 | AB89: 6 | AC89: 0 | AD89: 0 | AE89: 0 | AF89: 0 | AG89: 0 | AH89: 0 | AI89: 0 | AJ89: 0 | AK89: 0 | AL89: 0 | AM89: 0
B90: 7 | C90: 0 | D90: 0 | E90: 0 | F90: 0 | G90: 0 | H90: 0 | I90: 0 | J90: 0 | K90: 0 | L90: 0 | M90: 0 | O90: 7 | P90: 0 | Q90: 0 | R90: 0 | S90: 0 | T90: 0 | U90: 0 | V90: 0 | W90: 0 | X90: 0 | Y90: 0 | Z90: 0 | AB90: 7 | AC90: 0 | AD90: 0 | AE90: 0 | AF90: 0 | AG90: 0 | AH90: 0 | AI90: 0 | AJ90: 0 | AK90: 0 | AL90: 0 | AM90: 0
B91: 8 | C91: 0 | D91: 0 | E91: 0 | F91: 0 | G91: 0 | H91: 0 | I91: 0 | J91: 0 | K91: 0 | L91: 0 | M91: 0 | O91: 8 | P91: 0 | Q91: 0 | R91: 0 | S91: 0 | T91: 0 | U91: 0 | V91: 0 | W91: 0 | X91: 0 | Y91: 0 | Z91: 0 | AB91: 8 | AC91: 0 | AD91: 0 | AE91: 0 | AF91: 0 | AG91: 0 | AH91: 0 | AI91: 0 | AJ91: 0 | AK91: 0 | AL91: 0 | AM91: 0
B92: 9 | C92: 0 | D92: 0 | E92: 0 | F92: 0 | G92: 0 | H92: 0 | I92: 0 | J92: 0 | K92: 0 | L92: 0 | M92: 0 | O92: 9 | P92: 0 | Q92: 0 | R92: 0 | S92: 0 | T92: 0 | U92: 0 | V92: 0 | W92: 0 | X92: 0 | Y92: 0 | Z92: 0 | AB92: 9 | AC92: 0 | AD92: 0 | AE92: 0 | AF92: 0 | AG92: 0 | AH92: 0 | AI92: 0 | AJ92: 0 | AK92: 0 | AL92: 0 | AM92: 0
B93: 10 | C93: 0 | D93: 0 | E93: 0 | F93: 0 | G93: 0 | H93: 0 | I93: 0 | J93: 0 | K93: 0 | L93: 0 | M93: 0 | O93: 10 | P93: 0 | Q93: 0 | R93: 0 | S93: 0 | T93: 0 | U93: 0 | V93: 0 | W93: 0 | X93: 0 | Y93: 0 | Z93: 0 | AB93: 10 | AC93: 0 | AD93: 0 | AE93: 0 | AF93: 0 | AG93: 0 | AH93: 0 | AI93: 0 | AJ93: 0 | AK93: 0 | AL93: 0 | AM93: 0
B94: 11 | C94: 0 | D94: 0 | E94: 0 | F94: 0 | G94: 0 | H94: 0 | I94: 0 | J94: 0 | K94: 0 | L94: 0 | M94: 0 | O94: 11 | P94: 0 | Q94: 0 | R94: 0 | S94: 0 | T94: 0 | U94: 0 | V94: 0 | W94: 0 | X94: 0 | Y94: 0 | Z94: 0 | AB94: 11 | AC94: 0 | AD94: 0 | AE94: 0 | AF94: 0 | AG94: 0 | AH94: 0 | AI94: 0 | AJ94: 0 | AK94: 0 | AL94: 0 | AM94: 0
B95: 12 | C95: 0 | D95: 0 | E95: 0 | F95: 0 | G95: 0 | H95: 0 | I95: 0 | J95: 0 | K95: 0 | L95: 0 | M95: 0 | O95: 12 | P95: 0 | Q95: 0 | R95: 0 | S95: 0 | T95: 0 | U95: 0 | V95: 0 | W95: 0 | X95: 0 | Y95: 0 | Z95: 0 | AB95: 12 | AC95: 0 | AD95: 0 | AE95: 0 | AF95: 0 | AG95: 0 | AH95: 0 | AI95: 0 | AJ95: 0 | AK95: 0 | AL95: 0 | AM95: 0
B96: 13 | C96: 0 | D96: 0 | E96: 0 | F96: 0 | G96: 0 | H96: 0 | I96: 0 | J96: 0 | K96: 0 | L96: 0 | M96: 0 | O96: 13 | P96: 0 | Q96: 0 | R96: 0 | S96: 0 | T96: 0 | U96: 0 | V96: 0 | W96: 0 | X96: 0 | Y96: 0 | Z96: 0 | AB96: 13 | AC96: 0 | AD96: 0 | AE96: 0 | AF96: 0 | AG96: 0 | AH96: 0 | AI96: 0 | AJ96: 0 | AK96: 0 | AL96: 0 | AM96: 0
B97: 14 | C97: 0 | D97: 0 | E97: 0 | F97: 0 | G97: 0 | H97: 0 | I97: 0 | J97: 0 | K97: 0 | L97: 0 | M97: 0 | O97: 14 | P97: 0 | Q97: 0 | R97: 0 | S97: 0 | T97: 0 | U97: 0 | V97: 0 | W97: 0 | X97: 0 | Y97: 0 | Z97: 0 | AB97: 14 | AC97: 0 | AD97: 0 | AE97: 0 | AF97: 0 | AG97: 0 | AH97: 0 | AI97: 0 | AJ97: 0 | AK97: 0 | AL97: 0 | AM97: 0
B98: 15 | C98: 0 | D98: 0 | E98: 0 | F98: 0 | G98: 0 | H98: 0 | I98: 0 | J98: 0 | K98: 0 | L98: 0 | M98: 0 | O98: 15 | P98: 0 | Q98: 0 | R98: 0 | S98: 0 | T98: 0 | U98: 0 | V98: 0 | W98: 0 | X98: 0 | Y98: 0 | Z98: 0 | AB98: 15 | AC98: 0 | AD98: 0 | AE98: 0 | AF98: 0 | AG98: 0 | AH98: 0 | AI98: 0 | AJ98: 0 | AK98: 0 | AL98: 0 | AM98: 0
B99: 16 | C99: 0 | D99: 0 | E99: 0 | F99: 0 | G99: 0 | H99: 0 | I99: 0 | J99: 0 | K99: 0 | L99: 0 | M99: 0 | O99: 16 | P99: 0 | Q99: 0 | R99: 0 | S99: 0 | T99: 0 | U99: 0 | V99: 0 | W99: 0 | X99: 0 | Y99: 0 | Z99: 0 | AB99: 16 | AC99: 0 | AD99: 0 | AE99: 0 | AF99: 0 | AG99: 0 | AH99: 0 | AI99: 0 | AJ99: 0 | AK99: 0 | AL99: 0 | AM99: 0
B100: 17 | C100: 0 | D100: 0 | E100: 0 | F100: 0 | G100: 0 | H100: 0 | I100: 0 | J100: 0 | K100: 0 | L100: 0 | M100: 0 | O100: 17 | P100: 0 | Q100: 0 | R100: 0 | S100: 0 | T100: 0 | U100: 0 | V100: 0 | W100: 0 | X100: 0 | Y100: 0 | Z100: 0 | AB100: 17 | AC100: 0 | AD100: 0 | AE100: 0 | AF100: 0 | AG100: 0 | AH100: 0 | AI100: 0 | AJ100: 0 | AK100: 0 | AL100: 0 | AM100: 0
B101: 18 | C101: 0 | D101: 0 | E101: 0 | F101: 0 | G101: 0 | H101: 0 | I101: 0 | J101: 0 | K101: 0 | L101: 0 | M101: 0 | O101: 18 | P101: 0 | Q101: 0 | R101: 0 | S101: 0 | T101: 0 | U101: 0 | V101: 0 | W101: 0 | X101: 0 | Y101: 0 | Z101: 0 | AB101: 18 | AC101: 0 | AD101: 0 | AE101: 0 | AF101: 0 | AG101: 0 | AH101: 0 | AI101: 0 | AJ101: 0 | AK101: 0 | AL101: 0 | AM101: 0
B102: 19 | C102: 0 | D102: 0 | E102: 0 | F102: 0 | G102: 0 | H102: 0 | I102: 0 | J102: 0 | K102: 0 | L102: 0 | M102: 0 | O102: 19 | P102: 0 | Q102: 0 | R102: 0 | S102: 0 | T102: 0 | U102: 0 | V102: 0 | W102: 0 | X102: 0 | Y102: 0 | Z102: 0 | AB102: 19 | AC102: 0 | AD102: 0 | AE102: 0 | AF102: 0 | AG102: 0 | AH102: 0 | AI102: 0 | AJ102: 0 | AK102: 0 | AL102: 0 | AM102: 0
B103: 20 | C103: 0 | D103: 0 | E103: 0 | F103: 0 | G103: 0 | H103: 0 | I103: 0 | J103: 0 | K103: 0 | L103: 0 | M103: 0 | O103: 20 | P103: 0 | Q103: 0 | R103: 0 | S103: 0 | T103: 0 | U103: 0 | V103: 0 | W103: 0 | X103: 0 | Y103: 0 | Z103: 0 | AB103: 20 | AC103: 0 | AD103: 0 | AE103: 0 | AF103: 0 | AG103: 0 | AH103: 0 | AI103: 0 | AJ103: 0 | AK103: 0 | AL103: 0 | AM103: 0
B105: Total | M105: =SUM(M84:M103) -> 0 | O105: Total | Z105: =SUM(Z84:Z103) -> 0 | AB105: Total | AM105: =SUM(AM84:AM103) -> 0
B108: Existing Carpoolers (switch park-n-ride lots) | O108: Existing Carpoolers (switch park-n-ride lots) | AB108: Existing Carpoolers (switch park-n-ride lots)
C110: ANNUAL NUMBER OF USERS | F110: AVG TRAVEL TIME | H110: AVERAGE WAIT TIME | J110: TIME BENEFIT | P110: ANNUAL NUMBER OF USERS | S110: AVG TRAVEL TIME | U110: AVERAGE WAIT TIME | W110: TIME BENEFIT | AC110: ANNUAL NUMBER OF USERS | AF110: AVG TRAVEL TIME | AH110: AVERAGE WAIT TIME | AJ110: TIME BENEFIT
C111: (people/yr) | F111: (minutes) | H111: (minutes) | J111: (person-hours/yr) | P111: (people/yr) | S111: (minutes) | U111: (minutes) | W111: (person-hours/yr) | AC111: (people/yr) | AF111: (minutes) | AH111: (minutes) | AJ111: (person-hours/yr)
B112: Year | C112: Existing | D112: New | E112: Users | J112: Travel | K112: Wait | L112: Constant | M112: Present | O112: Year | P112: Existing | Q112: New | R112: Users | W112: Travel | X112: Wait | Y112: Constant | Z112: Present | AB112: Year | AC112: Existing | AD112: New | AE112: Users | AJ112: Travel | AK112: Wait | AL112: Constant | AM112: Present
C113: Lot | D113: Lot | E113: Benefited | F113: No Build | G113: Build | H113: No Build | I113: Build | J113: Time | K113: Time | L113: Dollars | M113: Value | P113: Lot | Q113: Lot | R113: Benefited | S113: No Build | T113: Build | U113: No Build | V113: Build | W113: Time | X113: Time | Y113: Dollars | Z113: Value | AC113: Lot | AD113: Lot | AE113: Benefited | AF113: No Build | AG113: Build | AH113: No Build | AI113: Build | AJ113: Time | AK113: Time | AL113: Dollars | AM113: Value
B114: 1 | C114: =IF(SpacesNB=0,0,(IF(B114>CapYrNB,1,(B114-1)/CapYrNB)*MAX(0,(100%-PctFillNB))+(PctFillNB))*(SpacesNB*AVONB+IF(PctFillNB=0,BikePedNB,BikePedNB/PctFillNB))*AnnualFactor)*PctLotUser1*PctECarpool1 -> 0 | D114: =IF(SpacesB=0,0,(IF(B114>CapYrB,1,(B114-1)/CapYrB)*MAX(0,(100%-PctFillB))+(PctFillB))*(SpacesB*AVOB+IF(PctFillB=0,BikePedB,BikePedB/PctFillB))*AnnualFactor)*PctLotUser1*PctECarpool1 -> 0 | E114: =MAX(0,D114-C114) -> 0 | F114: =IF(PctECarpool1=0,0,NextDist1/Distance1*TTNonHOV1) -> 0 | G114: =IF(PctECarpool1=0,0,NextDist1/Distance1*TTHOV1) -> 0 | H114: 0 | I114: 0 | J114: =(F114-G114)/60*E114*2 -> 0 | K114: =(H114-I114)/60*E114*2 -> 0 | L114: =SUM(J114,K114)*ValTimeAuto*(1+TTUprater)^($B114+Construct-1) -> 0 | M114: =$L114/(1+DiscRate)^($B114+Construct-1) -> 0 | O114: 1 | P114: =IF(SpacesNB=0,0,(IF(O114>CapYrNB,1,(O114-1)/CapYrNB)*MAX(0,(100%-PctFillNB))+(PctFillNB))*(SpacesNB*AVONB+IF(PctFillNB=0,BikePedNB,BikePedNB/PctFillNB))*AnnualFactor)*PctLotUser2*PctECarpool2 -> 0 | Q114: =IF(SpacesB=0,0,(IF(O114>CapYrB,1,(O114-1)/CapYrB)*MAX(0,(100%-PctFillB))+(PctFillB))*(SpacesB*AVOB+IF(PctFillB=0,BikePedB,BikePedB/PctFillB))*AnnualFactor)*PctLotUser2*PctECarpool2 -> 0 | R114: =MAX(0,Q114-P114) -> 0 | S114: =IF(PctECarpool2=0,0,NextDist2/Distance2*TTNonHOV2) -> 0 | T114: =IF(PctECarpool2=0,0,NextDist2/Distance2*TTHOV2) -> 0 | U114: 0 | V114: 0 | W114: =(S114-T114)/60*R114*2 -> 0 | X114: =(U114-V114)/60*R114*2 -> 0 | Y114: =SUM(W114,X114)*ValTimeAuto*(1+TTUprater)^($O114+Construct-1) -> 0 | Z114: =$Y114/(1+DiscRate)^($O114+Construct-1) -> 0 | AB114: 1 | AC114: =IF(SpacesNB=0,0,(IF(AB114>CapYrNB,1,(AB114-1)/CapYrNB)*MAX(0,(100%-PctFillNB))+(PctFillNB))*(SpacesNB*AVONB+IF(PctFillNB=0,BikePedNB,BikePedNB/PctFillNB))*AnnualFactor)*PctLotUser3*PctECarpool3 -> 0 | AD114: =IF(SpacesB=0,0,(IF(AB114>CapYrB,1,(AB114-1)/CapYrB)*MAX(0,(100%-PctFillB))+(PctFillB))*(SpacesB*AVOB+IF(PctFillB=0,BikePedB,BikePedB/PctFillB))*AnnualFactor)*PctLotUser3*PctECarpool3 -> 0 | AE114: =MAX(0,AD114-AC114) -> 0 | AF114: =IF(PctECarpool3=0,0,NextDist3/Distance3*TTNonHOV3) -> 0 | AG114: =IF(PctECarpool3=0,0,NextDist3/Distance3*TTHOV3) -> 0 | AH114: 0 | AI114: 0 | AJ114: =(AF114-AG114)/60*AE114*2 -> 0 | AK114: =(AH114-AI114)/60*AE114*2 -> 0 | AL114: =SUM(AJ114,AK114)*ValTimeAuto*(1+TTUprater)^($AB114+Construct-1) -> 0 | AM114: =$AL114/(1+DiscRate)^($AB114+Construct-1) -> 0
B115: 2 | C115: 0 | D115: 0 | E115: =MAX(0,D115-C115) -> 0 | F115: 0 | G115: 0 | H115: 0 | I115: 0 | J115: =(F115-G115)/60*E115*2 -> 0 | K115: =(H115-I115)/60*E115*2 -> 0 | L115: 0 | M115: 0 | O115: 2 | P115: 0 | Q115: 0 | R115: =MAX(0,Q115-P115) -> 0 | S115: 0 | T115: 0 | U115: 0 | V115: 0 | W115: =(S115-T115)/60*R115*2 -> 0 | X115: =(U115-V115)/60*R115*2 -> 0 | Y115: 0 | Z115: 0 | AB115: 2 | AC115: 0 | AD115: 0 | AE115: =MAX(0,AD115-AC115) -> 0 | AF115: 0 | AG115: 0 | AH115: 0 | AI115: 0 | AJ115: =(AF115-AG115)/60*AE115*2 -> 0 | AK115: =(AH115-AI115)/60*AE115*2 -> 0 | AL115: 0 | AM115: 0
B116: 3 | C116: 0 | D116: 0 | E116: 0 | F116: 0 | G116: 0 | H116: 0 | I116: 0 | J116: 0 | K116: 0 | L116: 0 | M116: 0 | O116: 3 | P116: 0 | Q116: 0 | R116: 0 | S116: 0 | T116: 0 | U116: 0 | V116: 0 | W116: 0 | X116: 0 | Y116: 0 | Z116: 0 | AB116: 3 | AC116: 0 | AD116: 0 | AE116: 0 | AF116: 0 | AG116: 0 | AH116: 0 | AI116: 0 | AJ116: 0 | AK116: 0 | AL116: 0 | AM116: 0
B117: 4 | C117: 0 | D117: 0 | E117: 0 | F117: 0 | G117: 0 | H117: 0 | I117: 0 | J117: 0 | K117: 0 | L117: 0 | M117: 0 | O117: 4 | P117: 0 | Q117: 0 | R117: 0 | S117: 0 | T117: 0 | U117: 0 | V117: 0 | W117: 0 | X117: 0 | Y117: 0 | Z117: 0 | AB117: 4 | AC117: 0 | AD117: 0 | AE117: 0 | AF117: 0 | AG117: 0 | AH117: 0 | AI117: 0 | AJ117: 0 | AK117: 0 | AL117: 0 | AM117: 0
B118: 5 | C118: 0 | D118: 0 | E118: 0 | F118: 0 | G118: 0 | H118: 0 | I118: 0 | J118: 0 | K118: 0 | L118: 0 | M118: 0 | O118: 5 | P118: 0 | Q118: 0 | R118: 0 | S118: 0 | T118: 0 | U118: 0 | V118: 0 | W118: 0 | X118: 0 | Y118: 0 | Z118: 0 | AB118: 5 | AC118: 0 | AD118: 0 | AE118: 0 | AF118: 0 | AG118: 0 | AH118: 0 | AI118: 0 | AJ118: 0 | AK118: 0 | AL118: 0 | AM118: 0
B119: 6 | C119: 0 | D119: 0 | E119: 0 | F119: 0 | G119: 0 | H119: 0 | I119: 0 | J119: 0 | K119: 0 | L119: 0 | M119: 0 | O119: 6 | P119: 0 | Q119: 0 | R119: 0 | S119: 0 | T119: 0 | U119: 0 | V119: 0 | W119: 0 | X119: 0 | Y119: 0 | Z119: 0 | AB119: 6 | AC119: 0 | AD119: 0 | AE119: 0 | AF119: 0 | AG119: 0 | AH119: 0 | AI119: 0 | AJ119: 0 | AK119: 0 | AL119: 0 | AM119: 0
B120: 7 | C120: 0 | D120: 0 | E120: 0 | F120: 0 | G120: 0 | H120: 0 | I120: 0 | J120: 0 | K120: 0 | L120: 0 | M120: 0 | O120: 7 | P120: 0 | Q120: 0 | R120: 0 | S120: 0 | T120: 0 | U120: 0 | V120: 0 | W120: 0 | X120: 0 | Y120: 0 | Z120: 0 | AB120: 7 | AC120: 0 | AD120: 0 | AE120: 0 | AF120: 0 | AG120: 0 | AH120: 0 | AI120: 0 | AJ120: 0 | AK120: 0 | AL120: 0 | AM120: 0
B121: 8 | C121: 0 | D121: 0 | E121: 0 | F121: 0 | G121: 0 | H121: 0 | I121: 0 | J121: 0 | K121: 0 | L121: 0 | M121: 0 | O121: 8 | P121: 0 | Q121: 0 | R121: 0 | S121: 0 | T121: 0 | U121: 0 | V121: 0 | W121: 0 | X121: 0 | Y121: 0 | Z121: 0 | AB121: 8 | AC121: 0 | AD121: 0 | AE121: 0 | AF121: 0 | AG121: 0 | AH121: 0 | AI121: 0 | AJ121: 0 | AK121: 0 | AL121: 0 | AM121: 0
B122: 9 | C122: 0 | D122: 0 | E122: 0 | F122: 0 | G122: 0 | H122: 0 | I122: 0 | J122: 0 | K122: 0 | L122: 0 | M122: 0 | O122: 9 | P122: 0 | Q122: 0 | R122: 0 | S122: 0 | T122: 0 | U122: 0 | V122: 0 | W122: 0 | X122: 0 | Y122: 0 | Z122: 0 | AB122: 9 | AC122: 0 | AD122: 0 | AE122: 0 | AF122: 0 | AG122: 0 | AH122: 0 | AI122: 0 | AJ122: 0 | AK122: 0 | AL122: 0 | AM122: 0
B123: 10 | C123: 0 | D123: 0 | E123: 0 | F123: 0 | G123: 0 | H123: 0 | I123: 0 | J123: 0 | K123: 0 | L123: 0 | M123: 0 | O123: 10 | P123: 0 | Q123: 0 | R123: 0 | S123: 0 | T123: 0 | U123: 0 | V123: 0 | W123: 0 | X123: 0 | Y123: 0 | Z123: 0 | AB123: 10 | AC123: 0 | AD123: 0 | AE123: 0 | AF123: 0 | AG123: 0 | AH123: 0 | AI123: 0 | AJ123: 0 | AK123: 0 | AL123: 0 | AM123: 0
B124: 11 | C124: 0 | D124: 0 | E124: 0 | F124: 0 | G124: 0 | H124: 0 | I124: 0 | J124: 0 | K124: 0 | L124: 0 | M124: 0 | O124: 11 | P124: 0 | Q124: 0 | R124: 0 | S124: 0 | T124: 0 | U124: 0 | V124: 0 | W124: 0 | X124: 0 | Y124: 0 | Z124: 0 | AB124: 11 | AC124: 0 | AD124: 0 | AE124: 0 | AF124: 0 | AG124: 0 | AH124: 0 | AI124: 0 | AJ124: 0 | AK124: 0 | AL124: 0 | AM124: 0
B125: 12 | C125: 0 | D125: 0 | E125: 0 | F125: 0 | G125: 0 | H125: 0 | I125: 0 | J125: 0 | K125: 0 | L125: 0 | M125: 0 | O125: 12 | P125: 0 | Q125: 0 | R125: 0 | S125: 0 | T125: 0 | U125: 0 | V125: 0 | W125: 0 | X125: 0 | Y125: 0 | Z125: 0 | AB125: 12 | AC125: 0 | AD125: 0 | AE125: 0 | AF125: 0 | AG125: 0 | AH125: 0 | AI125: 0 | AJ125: 0 | AK125: 0 | AL125: 0 | AM125: 0
B126: 13 | C126: 0 | D126: 0 | E126: 0 | F126: 0 | G126: 0 | H126: 0 | I126: 0 | J126: 0 | K126: 0 | L126: 0 | M126: 0 | O126: 13 | P126: 0 | Q126: 0 | R126: 0 | S126: 0 | T126: 0 | U126: 0 | V126: 0 | W126: 0 | X126: 0 | Y126: 0 | Z126: 0 | AB126: 13 | AC126: 0 | AD126: 0 | AE126: 0 | AF126: 0 | AG126: 0 | AH126: 0 | AI126: 0 | AJ126: 0 | AK126: 0 | AL126: 0 | AM126: 0
B127: 14 | C127: 0 | D127: 0 | E127: 0 | F127: 0 | G127: 0 | H127: 0 | I127: 0 | J127: 0 | K127: 0 | L127: 0 | M127: 0 | O127: 14 | P127: 0 | Q127: 0 | R127: 0 | S127: 0 | T127: 0 | U127: 0 | V127: 0 | W127: 0 | X127: 0 | Y127: 0 | Z127: 0 | AB127: 14 | AC127: 0 | AD127: 0 | AE127: 0 | AF127: 0 | AG127: 0 | AH127: 0 | AI127: 0 | AJ127: 0 | AK127: 0 | AL127: 0 | AM127: 0
B128: 15 | C128: 0 | D128: 0 | E128: 0 | F128: 0 | G128: 0 | H128: 0 | I128: 0 | J128: 0 | K128: 0 | L128: 0 | M128: 0 | O128: 15 | P128: 0 | Q128: 0 | R128: 0 | S128: 0 | T128: 0 | U128: 0 | V128: 0 | W128: 0 | X128: 0 | Y128: 0 | Z128: 0 | AB128: 15 | AC128: 0 | AD128: 0 | AE128: 0 | AF128: 0 | AG128: 0 | AH128: 0 | AI128: 0 | AJ128: 0 | AK128: 0 | AL128: 0 | AM128: 0
B129: 16 | C129: 0 | D129: 0 | E129: 0 | F129: 0 | G129: 0 | H129: 0 | I129: 0 | J129: 0 | K129: 0 | L129: 0 | M129: 0 | O129: 16 | P129: 0 | Q129: 0 | R129: 0 | S129: 0 | T129: 0 | U129: 0 | V129: 0 | W129: 0 | X129: 0 | Y129: 0 | Z129: 0 | AB129: 16 | AC129: 0 | AD129: 0 | AE129: 0 | AF129: 0 | AG129: 0 | AH129: 0 | AI129: 0 | AJ129: 0 | AK129: 0 | AL129: 0 | AM129: 0
B130: 17 | C130: 0 | D130: 0 | E130: 0 | F130: 0 | G130: 0 | H130: 0 | I130: 0 | J130: 0 | K130: 0 | L130: 0 | M130: 0 | O130: 17 | P130: 0 | Q130: 0 | R130: 0 | S130: 0 | T130: 0 | U130: 0 | V130: 0 | W130: 0 | X130: 0 | Y130: 0 | Z130: 0 | AB130: 17 | AC130: 0 | AD130: 0 | AE130: 0 | AF130: 0 | AG130: 0 | AH130: 0 | AI130: 0 | AJ130: 0 | AK130: 0 | AL130: 0 | AM130: 0
B131: 18 | C131: 0 | D131: 0 | E131: 0 | F131: 0 | G131: 0 | H131: 0 | I131: 0 | J131: 0 | K131: 0 | L131: 0 | M131: 0 | O131: 18 | P131: 0 | Q131: 0 | R131: 0 | S131: 0 | T131: 0 | U131: 0 | V131: 0 | W131: 0 | X131: 0 | Y131: 0 | Z131: 0 | AB131: 18 | AC131: 0 | AD131: 0 | AE131: 0 | AF131: 0 | AG131: 0 | AH131: 0 | AI131: 0 | AJ131: 0 | AK131: 0 | AL131: 0 | AM131: 0
B132: 19 | C132: 0 | D132: 0 | E132: 0 | F132: 0 | G132: 0 | H132: 0 | I132: 0 | J132: 0 | K132: 0 | L132: 0 | M132: 0 | O132: 19 | P132: 0 | Q132: 0 | R132: 0 | S132: 0 | T132: 0 | U132: 0 | V132: 0 | W132: 0 | X132: 0 | Y132: 0 | Z132: 0 | AB132: 19 | AC132: 0 | AD132: 0 | AE132: 0 | AF132: 0 | AG132: 0 | AH132: 0 | AI132: 0 | AJ132: 0 | AK132: 0 | AL132: 0 | AM132: 0
B133: 20 | C133: 0 | D133: 0 | E133: 0 | F133: 0 | G133: 0 | H133: 0 | I133: 0 | J133: 0 | K133: 0 | L133: 0 | M133: 0 | O133: 20 | P133: 0 | Q133: 0 | R133: 0 | S133: 0 | T133: 0 | U133: 0 | V133: 0 | W133: 0 | X133: 0 | Y133: 0 | Z133: 0 | AB133: 20 | AC133: 0 | AD133: 0 | AE133: 0 | AF133: 0 | AG133: 0 | AH133: 0 | AI133: 0 | AJ133: 0 | AK133: 0 | AL133: 0 | AM133: 0
B135: Total | M135: =SUM(M114:M133) -> 0 | O135: Total | Z135: =SUM(Z114:Z133) -> 0 | AB135: Total | AM135: =SUM(AM114:AM133) -> 0
J139: Present Value = Future Value (in Constant Dollars)
K140: ( 1 + Real Discount Rate) ^ Year

Sheet Vehicle Operating Costs
B1: Vehicle Operating Cost Benefits
B3: This sheet calculates changes in highway vehicle operating costs and out-of-pocket costs.
B4: Net changes in transit operating costs should be included as project costs.
B6: Formulas:
H7: Non-Fuel Cost = VMT x Cost Per Mile
B8: Vehicle-Miles Traveled = Distance x Users / Avg Veh Occupancy | H8: dollars | I8: $/miles
B9: veh-miles/yr | D9: miles | E9: vehicles/yr | H9: Out-Of-Pocket Costs = Parking Costs or Transit Fares
B11: Fuel Cost = VMT x Fuel Consumption x Fuel Price | H11: Benefit = No Build Cost - Build Cost
B12: dollars | D12: gallons/mile | E12: $/gallon
B15: A | C15: =IF(ISBLANK(DestName1),"DESTINATION 1", "DESTINATION 1 - "&DestName1) -> DESTINATION 1 | Q15: B | R15: =IF(ISBLANK(DestName2),"DESTINATION 2", "DESTINATION 2 - "&DestName2) -> DESTINATION 2 | AF15: C | AG15: =IF(ISBLANK(DestName3),"DESTINATION 3", "DESTINATION 3 - "&DestName3) -> DESTINATION 3 | AU15: D | AV15: SUMMARY OF VEHICLE OPERATING COST BENEFITS | BD15: SUMMARY OF VEHICLE OPERATING COST BENEFITS (continued)
B18: New Transit Riders (switch from automobile to express bus) | Q18: New Transit Riders (switch from automobile to express bus) | AF18: New Transit Riders (switch from automobile to express bus)
C20: ANNUAL NUMBER OF USERS | F20: TOTAL AUTO VMT | H20: HWY VEH OP COSTS | J20: OUT-POCKET COSTS | L20: BENEFITS | R20: ANNUAL NUMBER OF USERS | U20: TOTAL AUTO VMT | W20: HWY VEH OP COSTS | Y20: OUT-POCKET COSTS | AA20: BENEFITS | AG20: ANNUAL NUMBER OF USERS | AJ20: TOTAL AUTO VMT | AL20: HWY VEH OP COSTS | AN20: OUT-POCKET COSTS | AP20: BENEFITS | AV20: DESTINATION 1 | AZ20: DESTINATION 2 | BD20: DESTINATION 3 | BH20: Present
C21: (people/yr) | F21: (veh-miles/yr) | H21: ($/yr) | J21: ($/yr) | L21: ($/yr) | R21: (people/yr) | U21: (veh-miles/yr) | W21: ($/yr) | Y21: ($/yr) | AA21: ($/yr) | AG21: (people/yr) | AJ21: (veh-miles/yr) | AL21: ($/yr) | AN21: ($/yr) | AP21: ($/yr) | BH21: Value of | BL21: Total
B22: Year | C22: Existing | D22: New | E22: Users | L22: Hwy Veh | M22: Out-of | N22: Constant | O22: Present | Q22: Year | R22: Existing | S22: New | T22: Users | AA22: Hwy Veh | AB22: Out-of | AC22: Constant | AD22: Present | AF22: Year | AG22: Existing | AH22: New | AI22: Users | AP22: Hwy Veh | AQ22: Out-of | AR22: Constant | AS22: Present | AU22: Year | AV22: New | AW22: Existing | AX22: New | AY22: Existing | AZ22: New | BA22: Existing | BB22: New | BC22: Existing | BD22: New | BE22: Existing | BF22: New | BG22: Existing | BH22: Veh Op Cost | BJ22: Constant | BL22: VMT
C23: Lot | D23: Lot | E23: Benefited | F23: No Build | G23: Build | H23: No Build | I23: Build | J23: No Build | K23: Build | L23: Op Costs | M23: Pocket | N23: Dollars | O23: Value | R23: Lot | S23: Lot | T23: Benefited | U23: No Build | V23: Build | W23: No Build | X23: Build | Y23: No Build | Z23: Build | AA23: Op Costs | AB23: Pocket | AC23: Dollars | AD23: Value | AG23: Lot | AH23: Lot | AI23: Benefited | AJ23: No Build | AK23: Build | AL23: No Build | AM23: Build | AN23: No Build | AO23: Build | AP23: Op Costs | AQ23: Pocket | AR23: Dollars | AS23: Value | AV23: Transit | AW23: Transit | AX23: Carpool | AY23: Carpool | AZ23: Transit | BA23: Transit | BB23: Carpool | BC23: Carpool | BD23: Transit | BE23: Transit | BF23: Carpool | BG23: Carpool | BH23: =IF(VehOp<>"N","Benefits","Benefits*") -> Benefits | BJ23: Dollars | BL23: Reduction
B24: 1 | C24: =IF(SpacesNB=0,0,(IF(B24>CapYrNB,1,(B24-1)/CapYrNB)*MAX(0,(100%-PctFillNB))+(PctFillNB))*(SpacesNB*AVONB+IF(PctFillNB=0,BikePedNB,BikePedNB/PctFillNB))*AnnualFactor)*PctLotUser1*PctNTransit1 -> 0 | D24: =IF(SpacesB=0,0,(IF(B24>CapYrB,1,(B24-1)/CapYrB)*MAX(0,(100%-PctFillB))+(PctFillB))*(SpacesB*AVOB+IF(PctFillB=0,BikePedB,BikePedB/PctFillB))*AnnualFactor)*PctLotUser1*PctNTransit1 -> 0 | E24: =MAX(0,D24-C24) -> 0 | F24: =E24/AVOB*Distance1*2 -> 0 | G24: 0 | H24: =IF(PctNTransit1=0,0,F24*(VLOOKUP(Distance1/TTNonHOV1*60,FuelCon,2)+NonFuelAuto)) -> 0 | I24: 0 | J24: =E24/AVOB*ParkingCost1 -> 0 | K24: =E24*FareExpress1*2 -> 0 | L24: =H24-I24 -> 0 | M24: =J24-K24 -> 0 | N24: =SUM($L24:$M24) -> 0 | O24: =$N24/(1+DiscRate)^($B24+Construct-1) -> 0 | Q24: 1 | R24: =IF(SpacesNB=0,0,(IF(Q24>CapYrNB,1,(Q24-1)/CapYrNB)*MAX(0,(100%-PctFillNB))+(PctFillNB))*(SpacesNB*AVONB+IF(PctFillNB=0,BikePedNB,BikePedNB/PctFillNB))*AnnualFactor)*PctLotUser2*PctNTransit2 -> 0 | S24: =IF(SpacesB=0,0,(IF(Q24>CapYrB,1,(Q24-1)/CapYrB)*MAX(0,(100%-PctFillB))+(PctFillB))*(SpacesB*AVOB+IF(PctFillB=0,BikePedB,BikePedB/PctFillB))*AnnualFactor)*PctLotUser2*PctNTransit2 -> 0 | T24: =MAX(0,S24-R24) -> 0 | U24: =T24/AVOB*Distance2*2 -> 0 | V24: 0 | W24: =IF(PctNTransit2=0,0,U24*(VLOOKUP(Distance2/TTNonHOV2*60,FuelCon,2)+NonFuelAuto)) -> 0 | X24: 0 | Y24: =T24/AVOB*ParkingCost2 -> 0 | Z24: =T24*FareExpress2*2 -> 0 | AA24: =W24-X24 -> 0 | AB24: =Y24-Z24 -> 0 | AC24: =SUM($AA24:$AB24) -> 0 | AD24: =$AC24/(1+DiscRate)^($Q24+Construct-1) -> 0 | AF24: 1 | AG24: =IF(SpacesNB=0,0,(IF(AF24>CapYrNB,1,(AF24-1)/CapYrNB)*MAX(0,(100%-PctFillNB))+(PctFillNB))*(SpacesNB*AVONB+IF(PctFillNB=0,BikePedNB,BikePedNB/PctFillNB))*AnnualFactor)*PctLotUser3*PctNTransit3 -> 0 | AH24: =IF(SpacesB=0,0,(IF(AF24>CapYrB,1,(AF24-1)/CapYrB)*MAX(0,(100%-PctFillB))+(PctFillB))*(SpacesB*AVOB+IF(PctFillB=0,BikePedB,BikePedB/PctFillB))*AnnualFactor)*PctLotUser3*PctNTransit3 -> 0 | AI24: =MAX(0,AH24-AG24) -> 0 | AJ24: =AI24/AVOB*Distance3*2 -> 0 | AK24: 0 | AL24: =IF(PctNTransit3=0,0,AJ24*(VLOOKUP(Distance3/TTNonHOV3*60,FuelCon,2)+NonFuelAuto)) -> 0 | AM24: 0 | AN24: =AI24/AVOB*ParkingCost3 -> 0 | AO24: =AI24*FareExpress3*2 -> 0 | AP24: =AL24-AM24 -> 0 | AQ24: =AN24-AO24 -> 0 | AR24: =SUM($AP24:$AQ24) -> 0 | AS24: =$AR24/(1+DiscRate)^($AF24+Construct-1) -> 0 | AU24: 1 | AV24: =O24 -> 0 | AW24: =O54 -> 0 | AX24: =O84 -> 0 | AY24: =O114 -> 0 | AZ24: =AD24 -> 0 | BA24: =AD54 -> 0 | BB24: =AD84 -> 0 | BC24: =AD114 -> 0 | BD24: =AS24 -> 0 | BE24: =AS54 -> 0 | BF24: =AS84 -> 0 | BG24: =AS114 -> 0 | BH24: =IF(VehOp<>"N",SUM(AV24:BG24),0) -> 0 | BJ24: =$BH24*(1+DiscRate)^($AU24+Construct-1) -> 0 | BL24: =SUM(F24,F54,F84,F114,U24,U54,U84,U114,AJ24,AJ54,AJ84,AJ114)-SUM(G24,G54,G84,G114,V24,V54,V84,V114,AK24,AK54,AK84,AK114) -> 0
B25: 2 | C25: 0 | D25: 0 | E25: =MAX(0,D25-C25) -> 0 | F25: 0 | G25: 0 | H25: 0 | I25: 0 | J25: 0 | K25: 0 | L25: =H25-I25 -> 0 | M25: =J25-K25 -> 0 | N25: =SUM($L25:$M25) -> 0 | O25: 0 | Q25: 2 | R25: 0 | S25: 0 | T25: =MAX(0,S25-R25) -> 0 | U25: 0 | V25: 0 | W25: 0 | X25: 0 | Y25: 0 | Z25: 0 | AA25: =W25-X25 -> 0 | AB25: =Y25-Z25 -> 0 | AC25: =SUM($AA25:$AB25) -> 0 | AD25: 0 | AF25: 2 | AG25: 0 | AH25: 0 | AI25: =MAX(0,AH25-AG25) -> 0 | AJ25: 0 | AK25: 0 | AL25: 0 | AM25: 0 | AN25: 0 | AO25: 0 | AP25: =AL25-AM25 -> 0 | AQ25: =AN25-AO25 -> 0 | AR25: =SUM($AP25:$AQ25) -> 0 | AS25: 0 | AU25: 2 | AV25: =O25 -> 0 | AW25: =O55 -> 0 | AX25: =O85 -> 0 | AY25: =O115 -> 0 | AZ25: =AD25 -> 0 | BA25: =AD55 -> 0 | BB25: =AD85 -> 0 | BC25: =AD115 -> 0 | BD25: =AS25 -> 0 | BE25: =AS55 -> 0 | BF25: =AS85 -> 0 | BG25: =AS115 -> 0 | BH25: =IF(VehOp<>"N",SUM(AV25:BG25),0) -> 0 | BJ25: 0 | BL25: =SUM(F25,F55,F85,F115,U25,U55,U85,U115,AJ25,AJ55,AJ85,AJ115)-SUM(G25,G55,G85,G115,V25,V55,V85,V115,AK25,AK55,AK85,AK115) -> 0
B26: 3 | C26: 0 | D26: 0 | E26: 0 | F26: 0 | G26: 0 | H26: 0 | I26: 0 | J26: 0 | K26: 0 | L26: 0 | M26: 0 | N26: =SUM($L26:$M26) -> 0 | O26: 0 | Q26: 3 | R26: 0 | S26: 0 | T26: 0 | U26: 0 | V26: 0 | W26: 0 | X26: 0 | Y26: 0 | Z26: 0 | AA26: 0 | AB26: 0 | AC26: 0 | AD26: 0 | AF26: 3 | AG26: 0 | AH26: 0 | AI26: 0 | AJ26: 0 | AK26: 0 | AL26: 0 | AM26: 0 | AN26: 0 | AO26: 0 | AP26: 0 | AQ26: 0 | AR26: 0 | AS26: 0 | AU26: 3 | AV26: =O26 -> 0 | AW26: 0 | AX26: =O86 -> 0 | AY26: =O116 -> 0 | AZ26: 0 | BA26: 0 | BB26: 0 | BC26: 0 | BD26: 0 | BE26: 0 | BF26: 0 | BG26: 0 | BH26: =IF(VehOp<>"N",SUM(AV26:BG26),0) -> 0 | BJ26: 0 | BL26: 0
B27: 4 | C27: 0 | D27: 0 | E27: 0 | F27: 0 | G27: 0 | H27: 0 | I27: 0 | J27: 0 | K27: 0 | L27: 0 | M27: 0 | N27: 0 | O27: 0 | Q27: 4 | R27: 0 | S27: 0 | T27: 0 | U27: 0 | V27: 0 | W27: 0 | X27: 0 | Y27: 0 | Z27: 0 | AA27: 0 | AB27: 0 | AC27: 0 | AD27: 0 | AF27: 4 | AG27: 0 | AH27: 0 | AI27: 0 | AJ27: 0 | AK27: 0 | AL27: 0 | AM27: 0 | AN27: 0 | AO27: 0 | AP27: 0 | AQ27: 0 | AR27: 0 | AS27: 0 | AU27: 4 | AV27: 0 | AW27: 0 | AX27: 0 | AY27: 0 | AZ27: 0 | BA27: 0 | BB27: 0 | BC27: 0 | BD27: 0 | BE27: 0 | BF27: 0 | BG27: 0 | BH27: 0 | BJ27: 0 | BL27: 0
B28: 5 | C28: 0 | D28: 0 | E28: 0 | F28: 0 | G28: 0 | H28: 0 | I28: 0 | J28: 0 | K28: 0 | L28: 0 | M28: 0 | N28: 0 | O28: 0 | Q28: 5 | R28: 0 | S28: 0 | T28: 0 | U28: 0 | V28: 0 | W28: 0 | X28: 0 | Y28: 0 | Z28: 0 | AA28: 0 | AB28: 0 | AC28: 0 | AD28: 0 | AF28: 5 | AG28: 0 | AH28: 0 | AI28: 0 | AJ28: 0 | AK28: 0 | AL28: 0 | AM28: 0 | AN28: 0 | AO28: 0 | AP28: 0 | AQ28: 0 | AR28: 0 | AS28: 0 | AU28: 5 | AV28: 0 | AW28: 0 | AX28: 0 | AY28: 0 | AZ28: 0 | BA28: 0 | BB28: 0 | BC28: 0 | BD28: 0 | BE28: 0 | BF28: 0 | BG28: 0 | BH28: 0 | BJ28: 0 | BL28: 0
B29: 6 | C29: 0 | D29: 0 | E29: 0 | F29: 0 | G29: 0 | H29: 0 | I29: 0 | J29: 0 | K29: 0 | L29: 0 | M29: 0 | N29: 0 | O29: 0 | Q29: 6 | R29: 0 | S29: 0 | T29: 0 | U29: 0 | V29: 0 | W29: 0 | X29: 0 | Y29: 0 | Z29: 0 | AA29: 0 | AB29: 0 | AC29: 0 | AD29: 0 | AF29: 6 | AG29: 0 | AH29: 0 | AI29: 0 | AJ29: 0 | AK29: 0 | AL29: 0 | AM29: 0 | AN29: 0 | AO29: 0 | AP29: 0 | AQ29: 0 | AR29: 0 | AS29: 0 | AU29: 6 | AV29: 0 | AW29: 0 | AX29: 0 | AY29: 0 | AZ29: 0 | BA29: 0 | BB29: 0 | BC29: 0 | BD29: 0 | BE29: 0 | BF29: 0 | BG29: 0 | BH29: 0 | BJ29: 0 | BL29: 0
B30: 7 | C30: 0 | D30: 0 | E30: 0 | F30: 0 | G30: 0 | H30: 0 | I30: 0 | J30: 0 | K30: 0 | L30: 0 | M30: 0 | N30: 0 | O30: 0 | Q30: 7 | R30: 0 | S30: 0 | T30: 0 | U30: 0 | V30: 0 | W30: 0 | X30: 0 | Y30: 0 | Z30: 0 | AA30: 0 | AB30: 0 | AC30: 0 | AD30: 0 | AF30: 7 | AG30: 0 | AH30: 0 | AI30: 0 | AJ30: 0 | AK30: 0 | AL30: 0 | AM30: 0 | AN30: 0 | AO30: 0 | AP30: 0 | AQ30: 0 | AR30: 0 | AS30: 0 | AU30: 7 | AV30: 0 | AW30: 0 | AX30: 0 | AY30: 0 | AZ30: 0 | BA30: 0 | BB30: 0 | BC30: 0 | BD30: 0 | BE30: 0 | BF30: 0 | BG30: 0 | BH30: 0 | BJ30: 0 | BL30: 0
B31: 8 | C31: 0 | D31: 0 | E31: 0 | F31: 0 | G31: 0 | H31: 0 | I31: 0 | J31: 0 | K31: 0 | L31: 0 | M31: 0 | N31: 0 | O31: 0 | Q31: 8 | R31: 0 | S31: 0 | T31: 0 | U31: 0 | V31: 0 | W31: 0 | X31: 0 | Y31: 0 | Z31: 0 | AA31: 0 | AB31: 0 | AC31: 0 | AD31: 0 | AF31: 8 | AG31: 0 | AH31: 0 | AI31: 0 | AJ31: 0 | AK31: 0 | AL31: 0 | AM31: 0 | AN31: 0 | AO31: 0 | AP31: 0 | AQ31: 0 | AR31: 0 | AS31: 0 | AU31: 8 | AV31: 0 | AW31: 0 | AX31: 0 | AY31: 0 | AZ31: 0 | BA31: 0 | BB31: 0 | BC31: 0 | BD31: 0 | BE31: 0 | BF31: 0 | BG31: 0 | BH31: 0 | BJ31: 0 | BL31: 0
B32: 9 | C32: 0 | D32: 0 | E32: 0 | F32: 0 | G32: 0 | H32: 0 | I32: 0 | J32: 0 | K32: 0 | L32: 0 | M32: 0 | N32: 0 | O32: 0 | Q32: 9 | R32: 0 | S32: 0 | T32: 0 | U32: 0 | V32: 0 | W32: 0 | X32: 0 | Y32: 0 | Z32: 0 | AA32: 0 | AB32: 0 | AC32: 0 | AD32: 0 | AF32: 9 | AG32: 0 | AH32: 0 | AI32: 0 | AJ32: 0 | AK32: 0 | AL32: 0 | AM32: 0 | AN32: 0 | AO32: 0 | AP32: 0 | AQ32: 0 | AR32: 0 | AS32: 0 | AU32: 9 | AV32: 0 | AW32: 0 | AX32: 0 | AY32: 0 | AZ32: 0 | BA32: 0 | BB32: 0 | BC32: 0 | BD32: 0 | BE32: 0 | BF32: 0 | BG32: 0 | BH32: 0 | BJ32: 0 | BL32: 0
B33: 10 | C33: 0 | D33: 0 | E33: 0 | F33: 0 | G33: 0 | H33: 0 | I33: 0 | J33: 0 | K33: 0 | L33: 0 | M33: 0 | N33: 0 | O33: 0 | Q33: 10 | R33: 0 | S33: 0 | T33: 0 | U33: 0 | V33: 0 | W33: 0 | X33: 0 | Y33: 0 | Z33: 0 | AA33: 0 | AB33: 0 | AC33: 0 | AD33: 0 | AF33: 10 | AG33: 0 | AH33: 0 | AI33: 0 | AJ33: 0 | AK33: 0 | AL33: 0 | AM33: 0 | AN33: 0 | AO33: 0 | AP33: 0 | AQ33: 0 | AR33: 0 | AS33: 0 | AU33: 10 | AV33: 0 | AW33: 0 | AX33: 0 | AY33: 0 | AZ33: 0 | BA33: 0 | BB33: 0 | BC33: 0 | BD33: 0 | BE33: 0 | BF33: 0 | BG33: 0 | BH33: 0 | BJ33: 0 | BL33: 0
B34: 11 | C34: 0 | D34: 0 | E34: 0 | F34: 0 | G34: 0 | H34: 0 | I34: 0 | J34: 0 | K34: 0 | L34: 0 | M34: 0 | N34: 0 | O34: 0 | Q34: 11 | R34: 0 | S34: 0 | T34: 0 | U34: 0 | V34: 0 | W34: 0 | X34: 0 | Y34: 0 | Z34: 0 | AA34: 0 | AB34: 0 | AC34: 0 | AD34: 0 | AF34: 11 | AG34: 0 | AH34: 0 | AI34: 0 | AJ34: 0 | AK34: 0 | AL34: 0 | AM34: 0 | AN34: 0 | AO34: 0 | AP34: 0 | AQ34: 0 | AR34: 0 | AS34: 0 | AU34: 11 | AV34: 0 | AW34: 0 | AX34: 0 | AY34: 0 | AZ34: 0 | BA34: 0 | BB34: 0 | BC34: 0 | BD34: 0 | BE34: 0 | BF34: 0 | BG34: 0 | BH34: 0 | BJ34: 0 | BL34: 0
B35: 12 | C35: 0 | D35: 0 | E35: 0 | F35: 0 | G35: 0 | H35: 0 | I35: 0 | J35: 0 | K35: 0 | L35: 0 | M35: 0 | N35: 0 | O35: 0 | Q35: 12 | R35: 0 | S35: 0 | T35: 0 | U35: 0 | V35: 0 | W35: 0 | X35: 0 | Y35: 0 | Z35: 0 | AA35: 0 | AB35: 0 | AC35: 0 | AD35: 0 | AF35: 12 | AG35: 0 | AH35: 0 | AI35: 0 | AJ35: 0 | AK35: 0 | AL35: 0 | AM35: 0 | AN35: 0 | AO35: 0 | AP35: 0 | AQ35: 0 | AR35: 0 | AS35: 0 | AU35: 12 | AV35: 0 | AW35: 0 | AX35: 0 | AY35: 0 | AZ35: 0 | BA35: 0 | BB35: 0 | BC35: 0 | BD35: 0 | BE35: 0 | BF35: 0 | BG35: 0 | BH35: 0 | BJ35: 0 | BL35: 0
B36: 13 | C36: 0 | D36: 0 | E36: 0 | F36: 0 | G36: 0 | H36: 0 | I36: 0 | J36: 0 | K36: 0 | L36: 0 | M36: 0 | N36: 0 | O36: 0 | Q36: 13 | R36: 0 | S36: 0 | T36: 0 | U36: 0 | V36: 0 | W36: 0 | X36: 0 | Y36: 0 | Z36: 0 | AA36: 0 | AB36: 0 | AC36: 0 | AD36: 0 | AF36: 13 | AG36: 0 | AH36: 0 | AI36: 0 | AJ36: 0 | AK36: 0 | AL36: 0 | AM36: 0 | AN36: 0 | AO36: 0 | AP36: 0 | AQ36: 0 | AR36: 0 | AS36: 0 | AU36: 13 | AV36: 0 | AW36: 0 | AX36: 0 | AY36: 0 | AZ36: 0 | BA36: 0 | BB36: 0 | BC36: 0 | BD36: 0 | BE36: 0 | BF36: 0 | BG36: 0 | BH36: 0 | BJ36: 0 | BL36: 0
B37: 14 | C37: 0 | D37: 0 | E37: 0 | F37: 0 | G37: 0 | H37: 0 | I37: 0 | J37: 0 | K37: 0 | L37: 0 | M37: 0 | N37: 0 | O37: 0 | Q37: 14 | R37: 0 | S37: 0 | T37: 0 | U37: 0 | V37: 0 | W37: 0 | X37: 0 | Y37: 0 | Z37: 0 | AA37: 0 | AB37: 0 | AC37: 0 | AD37: 0 | AF37: 14 | AG37: 0 | AH37: 0 | AI37: 0 | AJ37: 0 | AK37: 0 | AL37: 0 | AM37: 0 | AN37: 0 | AO37: 0 | AP37: 0 | AQ37: 0 | AR37: 0 | AS37: 0 | AU37: 14 | AV37: 0 | AW37: 0 | AX37: 0 | AY37: 0 | AZ37: 0 | BA37: 0 | BB37: 0 | BC37: 0 | BD37: 0 | BE37: 0 | BF37: 0 | BG37: 0 | BH37: 0 | BJ37: 0 | BL37: 0
B38: 15 | C38: 0 | D38: 0 | E38: 0 | F38: 0 | G38: 0 | H38: 0 | I38: 0 | J38: 0 | K38: 0 | L38: 0 | M38: 0 | N38: 0 | O38: 0 | Q38: 15 | R38: 0 | S38: 0 | T38: 0 | U38: 0 | V38: 0 | W38: 0 | X38: 0 | Y38: 0 | Z38: 0 | AA38: 0 | AB38: 0 | AC38: 0 | AD38: 0 | AF38: 15 | AG38: 0 | AH38: 0 | AI38: 0 | AJ38: 0 | AK38: 0 | AL38: 0 | AM38: 0 | AN38: 0 | AO38: 0 | AP38: 0 | AQ38: 0 | AR38: 0 | AS38: 0 | AU38: 15 | AV38: 0 | AW38: 0 | AX38: 0 | AY38: 0 | AZ38: 0 | BA38: 0 | BB38: 0 | BC38: 0 | BD38: 0 | BE38: 0 | BF38: 0 | BG38: 0 | BH38: 0 | BJ38: 0 | BL38: 0
B39: 16 | C39: 0 | D39: 0 | E39: 0 | F39: 0 | G39: 0 | H39: 0 | I39: 0 | J39: 0 | K39: 0 | L39: 0 | M39: 0 | N39: 0 | O39: 0 | Q39: 16 | R39: 0 | S39: 0 | T39: 0 | U39: 0 | V39: 0 | W39: 0 | X39: 0 | Y39: 0 | Z39: 0 | AA39: 0 | AB39: 0 | AC39: 0 | AD39: 0 | AF39: 16 | AG39: 0 | AH39: 0 | AI39: 0 | AJ39: 0 | AK39: 0 | AL39: 0 | AM39: 0 | AN39: 0 | AO39: 0 | AP39: 0 | AQ39: 0 | AR39: 0 | AS39: 0 | AU39: 16 | AV39: 0 | AW39: 0 | AX39: 0 | AY39: 0 | AZ39: 0 | BA39: 0 | BB39: 0 | BC39: 0 | BD39: 0 | BE39: 0 | BF39: 0 | BG39: 0 | BH39: 0 | BJ39: 0 | BL39: 0
B40: 17 | C40: 0 | D40: 0 | E40: 0 | F40: 0 | G40: 0 | H40: 0 | I40: 0 | J40: 0 | K40: 0 | L40: 0 | M40: 0 | N40: 0 | O40: 0 | Q40: 17 | R40: 0 | S40: 0 | T40: 0 | U40: 0 | V40: 0 | W40: 0 | X40: 0 | Y40: 0 | Z40: 0 | AA40: 0 | AB40: 0 | AC40: 0 | AD40: 0 | AF40: 17 | AG40: 0 | AH40: 0 | AI40: 0 | AJ40: 0 | AK40: 0 | AL40: 0 | AM40: 0 | AN40: 0 | AO40: 0 | AP40: 0 | AQ40: 0 | AR40: 0 | AS40: 0 | AU40: 17 | AV40: 0 | AW40: 0 | AX40: 0 | AY40: 0 | AZ40: 0 | BA40: 0 | BB40: 0 | BC40: 0 | BD40: 0 | BE40: 0 | BF40: 0 | BG40: 0 | BH40: 0 | BJ40: 0 | BL40: 0
B41: 18 | C41: 0 | D41: 0 | E41: 0 | F41: 0 | G41: 0 | H41: 0 | I41: 0 | J41: 0 | K41: 0 | L41: 0 | M41: 0 | N41: 0 | O41: 0 | Q41: 18 | R41: 0 | S41: 0 | T41: 0 | U41: 0 | V41: 0 | W41: 0 | X41: 0 | Y41: 0 | Z41: 0 | AA41: 0 | AB41: 0 | AC41: 0 | AD41: 0 | AF41: 18 | AG41: 0 | AH41: 0 | AI41: 0 | AJ41: 0 | AK41: 0 | AL41: 0 | AM41: 0 | AN41: 0 | AO41: 0 | AP41: 0 | AQ41: 0 | AR41: 0 | AS41: 0 | AU41: 18 | AV41: 0 | AW41: 0 | AX41: 0 | AY41: 0 | AZ41: 0 | BA41: 0 | BB41: 0 | BC41: 0 | BD41: 0 | BE41: 0 | BF41: 0 | BG41: 0 | BH41: 0 | BJ41: 0 | BL41: 0
B42: 19 | C42: 0 | D42: 0 | E42: 0 | F42: 0 | G42: 0 | H42: 0 | I42: 0 | J42: 0 | K42: 0 | L42: 0 | M42: 0 | N42: 0 | O42: 0 | Q42: 19 | R42: 0 | S42: 0 | T42: 0 | U42: 0 | V42: 0 | W42: 0 | X42: 0 | Y42: 0 | Z42: 0 | AA42: 0 | AB42: 0 | AC42: 0 | AD42: 0 | AF42: 19 | AG42: 0 | AH42: 0 | AI42: 0 | AJ42: 0 | AK42: 0 | AL42: 0 | AM42: 0 | AN42: 0 | AO42: 0 | AP42: 0 | AQ42: 0 | AR42: 0 | AS42: 0 | AU42: 19 | AV42: 0 | AW42: 0 | AX42: 0 | AY42: 0 | AZ42: 0 | BA42: 0 | BB42: 0 | BC42: 0 | BD42: 0 | BE42: 0 | BF42: 0 | BG42: 0 | BH42: 0 | BJ42: 0 | BL42: 0
B43: 20 | C43: 0 | D43: 0 | E43: 0 | F43: 0 | G43: 0 | H43: 0 | I43: 0 | J43: 0 | K43: 0 | L43: 0 | M43: 0 | N43: 0 | O43: 0 | Q43: 20 | R43: 0 | S43: 0 | T43: 0 | U43: 0 | V43: 0 | W43: 0 | X43: 0 | Y43: 0 | Z43: 0 | AA43: 0 | AB43: 0 | AC43: 0 | AD43: 0 | AF43: 20 | AG43: 0 | AH43: 0 | AI43: 0 | AJ43: 0 | AK43: 0 | AL43: 0 | AM43: 0 | AN43: 0 | AO43: 0 | AP43: 0 | AQ43: 0 | AR43: 0 | AS43: 0 | AU43: 20 | AV43: 0 | AW43: 0 | AX43: 0 | AY43: 0 | AZ43: 0 | BA43: 0 | BB43: 0 | BC43: 0 | BD43: 0 | BE43: 0 | BF43: 0 | BG43: 0 | BH43: 0 | BJ43: 0 | BL43: 0
B45: Total | O45: =SUM(O24:O43) -> 0 | Q45: Total | AD45: =SUM(AD24:AD43) -> 0 | AF45: Total | AS45: =SUM(AS24:AS43) -> 0 | AU45: Total | AV45: =SUM(AV24:AV43) -> 0 | AW45: 0 | AX45: 0 | AY45: 0 | AZ45: 0 | BA45: 0 | BB45: 0 | BC45: 0 | BD45: 0 | BE45: 0 | BF45: 0 | BG45: 0 | BH45: 0 | BJ45: =SUM(BJ24:BJ43) -> 0 | BL45: =SUM(BL24:BL43) -> 0
AU47: =IF(VehOp<>"N","","* Vehicle Operating Cost Savings Not Counted") -> 
B48: Existing Transit Riders (switch from local bus to express bus) | Q48: Existing Transit Riders (switch from local bus to express bus) | AF48: Existing Transit Riders (switch from local bus to express bus)
C50: ANNUAL NUMBER OF USERS | F50: TOTAL AUTO VMT | H50: HWY VEH OP COSTS | J50: OUT-POCKET COSTS | L50: BENEFITS | R50: ANNUAL NUMBER OF USERS | U50: TOTAL AUTO VMT | W50: HWY VEH OP COSTS | Y50: OUT-POCKET COSTS | AA50: BENEFITS | AG50: ANNUAL NUMBER OF USERS | AJ50: TOTAL AUTO VMT | AL50: HWY VEH OP COSTS | AN50: OUT-POCKET COSTS | AP50: BENEFITS
C51: (people/yr) | F51: (veh-miles/yr) | H51: ($/yr) | J51: ($/yr) | L51: ($/yr) | R51: (people/yr) | U51: (veh-miles/yr) | W51: ($/yr) | Y51: ($/yr) | AA51: ($/yr) | AG51: (people/yr) | AJ51: (veh-miles/yr) | AL51: ($/yr) | AN51: ($/yr) | AP51: ($/yr)
B52: Year | C52: Existing | D52: New | E52: Users | L52: Hwy Veh | M52: Out-of | N52: Constant | O52: Present | Q52: Year | R52: Existing | S52: New | T52: Users | AA52: Hwy Veh | AB52: Out-of | AC52: Constant | AD52: Present | AF52: Year | AG52: Existing | AH52: New | AI52: Users | AP52: Hwy Veh | AQ52: Out-of | AR52: Constant | AS52: Present
C53: Lot | D53: Lot | E53: Benefited | F53: No Build | G53: Build | H53: No Build | I53: Build | J53: No Build | K53: Build | L53: Op Costs | M53: Pocket | N53: Dollars | O53: Value | R53: Lot | S53: Lot | T53: Benefited | U53: No Build | V53: Build | W53: No Build | X53: Build | Y53: No Build | Z53: Build | AA53: Op Costs | AB53: Pocket | AC53: Dollars | AD53: Value | AG53: Lot | AH53: Lot | AI53: Benefited | AJ53: No Build | AK53: Build | AL53: No Build | AM53: Build | AN53: No Build | AO53: Build | AP53: Op Costs | AQ53: Pocket | AR53: Dollars | AS53: Value
B54: 1 | C54: =IF(SpacesNB=0,0,(IF(B54>CapYrNB,1,(B54-1)/CapYrNB)*MAX(0,(100%-PctFillNB))+(PctFillNB))*(SpacesNB*AVONB+IF(PctFillNB=0,BikePedNB,BikePedNB/PctFillNB))*AnnualFactor)*PctLotUser1*PctETransit1 -> 0 | D54: =IF(SpacesB=0,0,(IF(B54>CapYrB,1,(B54-1)/CapYrB)*MAX(0,(100%-PctFillB))+(PctFillB))*(SpacesB*AVOB+IF(PctFillB=0,BikePedB,BikePedB/PctFillB))*AnnualFactor)*PctLotUser1*PctETransit1 -> 0 | E54: =MAX(0,D54-C54) -> 0 | F54: 0 | G54: 0 | H54: 0 | I54: 0 | J54: =E54*FareLocal1*2 -> 0 | K54: =E54*FareExpress1*2 -> 0 | L54: =H54-I54 -> 0 | M54: =J54-K54 -> 0 | N54: =SUM($L54:$M54) -> 0 | O54: =$N54/(1+DiscRate)^($B54+Construct-1) -> 0 | Q54: 1 | R54: =IF(SpacesNB=0,0,(IF(Q54>CapYrNB,1,(Q54-1)/CapYrNB)*MAX(0,(100%-PctFillNB))+(PctFillNB))*(SpacesNB*AVONB+IF(PctFillNB=0,BikePedNB,BikePedNB/PctFillNB))*AnnualFactor)*PctLotUser2*PctETransit2 -> 0 | S54: =IF(SpacesB=0,0,(IF(Q54>CapYrB,1,(Q54-1)/CapYrB)*MAX(0,(100%-PctFillB))+(PctFillB))*(SpacesB*AVOB+IF(PctFillB=0,BikePedB,BikePedB/PctFillB))*AnnualFactor)*PctLotUser2*PctETransit2 -> 0 | T54: =MAX(0,S54-R54) -> 0 | U54: 0 | V54: 0 | W54: 0 | X54: 0 | Y54: =T54*FareLocal2*2 -> 0 | Z54: =T54*FareExpress2*2 -> 0 | AA54: =W54-X54 -> 0 | AB54: =Y54-Z54 -> 0 | AC54: =SUM($AA54:$AB54) -> 0 | AD54: =$AC54/(1+DiscRate)^($Q54+Construct-1) -> 0 | AF54: 1 | AG54: =IF(SpacesNB=0,0,(IF(AF54>CapYrNB,1,(AF54-1)/CapYrNB)*MAX(0,(100%-PctFillNB))+(PctFillNB))*(SpacesNB*AVONB+IF(PctFillNB=0,BikePedNB,BikePedNB/PctFillNB))*AnnualFactor)*PctLotUser3*PctETransit3 -> 0 | AH54: =IF(SpacesB=0,0,(IF(AF54>CapYrB,1,(AF54-1)/CapYrB)*MAX(0,(100%-PctFillB))+(PctFillB))*(SpacesB*AVOB+IF(PctFillB=0,BikePedB,BikePedB/PctFillB))*AnnualFactor)*PctLotUser3*PctETransit3 -> 0 | AI54: =MAX(0,AH54-AG54) -> 0 | AJ54: 0 | AK54: 0 | AL54: 0 | AM54: 0 | AN54: =AI54*FareLocal3*2 -> 0 | AO54: =AI54*FareExpress3*2 -> 0 | AP54: =AL54-AM54 -> 0 | AQ54: =AN54-AO54 -> 0 | AR54: =SUM($AP54:$AQ54) -> 0 | AS54: =$AR54/(1+DiscRate)^($AF54+Construct-1) -> 0
B55: 2 | C55: 0 | D55: 0 | E55: =MAX(0,D55-C55) -> 0 | F55: 0 | G55: 0 | H55: 0 | I55: 0 | J55: 0 | K55: 0 | L55: =H55-I55 -> 0 | M55: =J55-K55 -> 0 | N55: =SUM($L55:$M55) -> 0 | O55: 0 | Q55: 2 | R55: 0 | S55: 0 | T55: =MAX(0,S55-R55) -> 0 | U55: 0 | V55: 0 | W55: 0 | X55: 0 | Y55: 0 | Z55: 0 | AA55: =W55-X55 -> 0 | AB55: =Y55-Z55 -> 0 | AC55: =SUM($AA55:$AB55) -> 0 | AD55: 0 | AF55: 2 | AG55: 0 | AH55: 0 | AI55: =MAX(0,AH55-AG55) -> 0 | AJ55: 0 | AK55: 0 | AL55: 0 | AM55: 0 | AN55: 0 | AO55: 0 | AP55: =AL55-AM55 -> 0 | AQ55: =AN55-AO55 -> 0 | AR55: =SUM($AP55:$AQ55) -> 0 | AS55: 0
B56: 3 | C56: 0 | D56: 0 | E56: 0 | F56: 0 | G56: 0 | H56: 0 | I56: 0 | J56: 0 | K56: 0 | L56: 0 | M56: 0 | N56: =SUM($L56:$M56) -> 0 | O56: 0 | Q56: 3 | R56: 0 | S56: 0 | T56: 0 | U56: 0 | V56: 0 | W56: 0 | X56: 0 | Y56: 0 | Z56: 0 | AA56: 0 | AB56: 0 | AC56: 0 | AD56: 0 | AF56: 3 | AG56: 0 | AH56: 0 | AI56: 0 | AJ56: 0 | AK56: 0 | AL56: 0 | AM56: 0 | AN56: 0 | AO56: 0 | AP56: 0 | AQ56: 0 | AR56: 0 | AS56: 0
B57: 4 | C57: 0 | D57: 0 | E57: 0 | F57: 0 | G57: 0 | H57: 0 | I57: 0 | J57: 0 | K57: 0 | L57: 0 | M57: 0 | N57: 0 | O57: 0 | Q57: 4 | R57: 0 | S57: 0 | T57: 0 | U57: 0 | V57: 0 | W57: 0 | X57: 0 | Y57: 0 | Z57: 0 | AA57: 0 | AB57: 0 | AC57: 0 | AD57: 0 | AF57: 4 | AG57: 0 | AH57: 0 | AI57: 0 | AJ57: 0 | AK57: 0 | AL57: 0 | AM57: 0 | AN57: 0 | AO57: 0 | AP57: 0 | AQ57: 0 | AR57: 0 | AS57: 0
B58: 5 | C58: 0 | D58: 0 | E58: 0 | F58: 0 | G58: 0 | H58: 0 | I58: 0 | J58: 0 | K58: 0 | L58: 0 | M58: 0 | N58: 0 | O58: 0 | Q58: 5 | R58: 0 | S58: 0 | T58: 0 | U58: 0 | V58: 0 | W58: 0 | X58: 0 | Y58: 0 | Z58: 0 | AA58: 0 | AB58: 0 | AC58: 0 | AD58: 0 | AF58: 5 | AG58: 0 | AH58: 0 | AI58: 0 | AJ58: 0 | AK58: 0 | AL58: 0 | AM58: 0 | AN58: 0 | AO58: 0 | AP58: 0 | AQ58: 0 | AR58: 0 | AS58: 0
B59: 6 | C59: 0 | D59: 0 | E59: 0 | F59: 0 | G59: 0 | H59: 0 | I59: 0 | J59: 0 | K59: 0 | L59: 0 | M59: 0 | N59: 0 | O59: 0 | Q59: 6 | R59: 0 | S59: 0 | T59: 0 | U59: 0 | V59: 0 | W59: 0 | X59: 0 | Y59: 0 | Z59: 0 | AA59: 0 | AB59: 0 | AC59: 0 | AD59: 0 | AF59: 6 | AG59: 0 | AH59: 0 | AI59: 0 | AJ59: 0 | AK59: 0 | AL59: 0 | AM59: 0 | AN59: 0 | AO59: 0 | AP59: 0 | AQ59: 0 | AR59: 0 | AS59: 0
B60: 7 | C60: 0 | D60: 0 | E60: 0 | F60: 0 | G60: 0 | H60: 0 | I60: 0 | J60: 0 | K60: 0 | L60: 0 | M60: 0 | N60: 0 | O60: 0 | Q60: 7 | R60: 0 | S60: 0 | T60: 0 | U60: 0 | V60: 0 | W60: 0 | X60: 0 | Y60: 0 | Z60: 0 | AA60: 0 | AB60: 0 | AC60: 0 | AD60: 0 | AF60: 7 | AG60: 0 | AH60: 0 | AI60: 0 | AJ60: 0 | AK60: 0 | AL60: 0 | AM60: 0 | AN60: 0 | AO60: 0 | AP60: 0 | AQ60: 0 | AR60: 0 | AS60: 0
B61: 8 | C61: 0 | D61: 0 | E61: 0 | F61: 0 | G61: 0 | H61: 0 | I61: 0 | J61: 0 | K61: 0 | L61: 0 | M61: 0 | N61: 0 | O61: 0 | Q61: 8 | R61: 0 | S61: 0 | T61: 0 | U61: 0 | V61: 0 | W61: 0 | X61: 0 | Y61: 0 | Z61: 0 | AA61: 0 | AB61: 0 | AC61: 0 | AD61: 0 | AF61: 8 | AG61: 0 | AH61: 0 | AI61: 0 | AJ61: 0 | AK61: 0 | AL61: 0 | AM61: 0 | AN61: 0 | AO61: 0 | AP61: 0 | AQ61: 0 | AR61: 0 | AS61: 0
B62: 9 | C62: 0 | D62: 0 | E62: 0 | F62: 0 | G62: 0 | H62: 0 | I62: 0 | J62: 0 | K62: 0 | L62: 0 | M62: 0 | N62: 0 | O62: 0 | Q62: 9 | R62: 0 | S62: 0 | T62: 0 | U62: 0 | V62: 0 | W62: 0 | X62: 0 | Y62: 0 | Z62: 0 | AA62: 0 | AB62: 0 | AC62: 0 | AD62: 0 | AF62: 9 | AG62: 0 | AH62: 0 | AI62: 0 | AJ62: 0 | AK62: 0 | AL62: 0 | AM62: 0 | AN62: 0 | AO62: 0 | AP62: 0 | AQ62: 0 | AR62: 0 | AS62: 0
B63: 10 | C63: 0 | D63: 0 | E63: 0 | F63: 0 | G63: 0 | H63: 0 | I63: 0 | J63: 0 | K63: 0 | L63: 0 | M63: 0 | N63: 0 | O63: 0 | Q63: 10 | R63: 0 | S63: 0 | T63: 0 | U63: 0 | V63: 0 | W63: 0 | X63: 0 | Y63: 0 | Z63: 0 | AA63: 0 | AB63: 0 | AC63: 0 | AD63: 0 | AF63: 10 | AG63: 0 | AH63: 0 | AI63: 0 | AJ63: 0 | AK63: 0 | AL63: 0 | AM63: 0 | AN63: 0 | AO63: 0 | AP63: 0 | AQ63: 0 | AR63: 0 | AS63: 0
B64: 11 | C64: 0 | D64: 0 | E64: 0 | F64: 0 | G64: 0 | H64: 0 | I64: 0 | J64: 0 | K64: 0 | L64: 0 | M64: 0 | N64: 0 | O64: 0 | Q64: 11 | R64: 0 | S64: 0 | T64: 0 | U64: 0 | V64: 0 | W64: 0 | X64: 0 | Y64: 0 | Z64: 0 | AA64: 0 | AB64: 0 | AC64: 0 | AD64: 0 | AF64: 11 | AG64: 0 | AH64: 0 | AI64: 0 | AJ64: 0 | AK64: 0 | AL64: 0 | AM64: 0 | AN64: 0 | AO64: 0 | AP64: 0 | AQ64: 0 | AR64: 0 | AS64: 0
B65: 12 | C65: 0 | D65: 0 | E65: 0 | F65: 0 | G65: 0 | H65: 0 | I65: 0 | J65: 0 | K65: 0 | L65: 0 | M65: 0 | N65: 0 | O65: 0 | Q65: 12 | R65: 0 | S65: 0 | T65: 0 | U65: 0 | V65: 0 | W65: 0 | X65: 0 | Y65: 0 | Z65: 0 | AA65: 0 | AB65: 0 | AC65: 0 | AD65: 0 | AF65: 12 | AG65: 0 | AH65: 0 | AI65: 0 | AJ65: 0 | AK65: 0 | AL65: 0 | AM65: 0 | AN65: 0 | AO65: 0 | AP65: 0 | AQ65: 0 | AR65: 0 | AS65: 0
B66: 13 | C66: 0 | D66: 0 | E66: 0 | F66: 0 | G66: 0 | H66: 0 | I66: 0 | J66: 0 | K66: 0 | L66: 0 | M66: 0 | N66: 0 | O66: 0 | Q66: 13 | R66: 0 | S66: 0 | T66: 0 | U66: 0 | V66: 0 | W66: 0 | X66: 0 | Y66: 0 | Z66: 0 | AA66: 0 | AB66: 0 | AC66: 0 | AD66: 0 | AF66: 13 | AG66: 0 | AH66: 0 | AI66: 0 | AJ66: 0 | AK66: 0 | AL66: 0 | AM66: 0 | AN66: 0 | AO66: 0 | AP66: 0 | AQ66: 0 | AR66: 0 | AS66: 0
B67: 14 | C67: 0 | D67: 0 | E67: 0 | F67: 0 | G67: 0 | H67: 0 | I67: 0 | J67: 0 | K67: 0 | L67: 0 | M67: 0 | N67: 0 | O67: 0 | Q67: 14 | R67: 0 | S67: 0 | T67: 0 | U67: 0 | V67: 0 | W67: 0 | X67: 0 | Y67: 0 | Z67: 0 | AA67: 0 | AB67: 0 | AC67: 0 | AD67: 0 | AF67: 14 | AG67: 0 | AH67: 0 | AI67: 0 | AJ67: 0 | AK67: 0 | AL67: 0 | AM67: 0 | AN67: 0 | AO67: 0 | AP67: 0 | AQ67: 0 | AR67: 0 | AS67: 0
B68: 15 | C68: 0 | D68: 0 | E68: 0 | F68: 0 | G68: 0 | H68: 0 | I68: 0 | J68: 0 | K68: 0 | L68: 0 | M68: 0 | N68: 0 | O68: 0 | Q68: 15 | R68: 0 | S68: 0 | T68: 0 | U68: 0 | V68: 0 | W68: 0 | X68: 0 | Y68: 0 | Z68: 0 | AA68: 0 | AB68: 0 | AC68: 0 | AD68: 0 | AF68: 15 | AG68: 0 | AH68: 0 | AI68: 0 | AJ68: 0 | AK68: 0 | AL68: 0 | AM68: 0 | AN68: 0 | AO68: 0 | AP68: 0 | AQ68: 0 | AR68: 0 | AS68: 0
B69: 16 | C69: 0 | D69: 0 | E69: 0 | F69: 0 | G69: 0 | H69: 0 | I69: 0 | J69: 0 | K69: 0 | L69: 0 | M69: 0 | N69: 0 | O69: 0 | Q69: 16 | R69: 0 | S69: 0 | T69: 0 | U69: 0 | V69: 0 | W69: 0 | X69: 0 | Y69: 0 | Z69: 0 | AA69: 0 | AB69: 0 | AC69: 0 | AD69: 0 | AF69: 16 | AG69: 0 | AH69: 0 | AI69: 0 | AJ69: 0 | AK69: 0 | AL69: 0 | AM69: 0 | AN69: 0 | AO69: 0 | AP69: 0 | AQ69: 0 | AR69: 0 | AS69: 0
B70: 17 | C70: 0 | D70: 0 | E70: 0 | F70: 0 | G70: 0 | H70: 0 | I70: 0 | J70: 0 | K70: 0 | L70: 0 | M70: 0 | N70: 0 | O70: 0 | Q70: 17 | R70: 0 | S70: 0 | T70: 0 | U70: 0 | V70: 0 | W70: 0 | X70: 0 | Y70: 0 | Z70: 0 | AA70: 0 | AB70: 0 | AC70: 0 | AD70: 0 | AF70: 17 | AG70: 0 | AH70: 0 | AI70: 0 | AJ70: 0 | AK70: 0 | AL70: 0 | AM70: 0 | AN70: 0 | AO70: 0 | AP70: 0 | AQ70: 0 | AR70: 0 | AS70: 0
B71: 18 | C71: 0 | D71: 0 | E71: 0 | F71: 0 | G71: 0 | H71: 0 | I71: 0 | J71: 0 | K71: 0 | L71: 0 | M71: 0 | N71: 0 | O71: 0 | Q71: 18 | R71: 0 | S71: 0 | T71: 0 | U71: 0 | V71: 0 | W71: 0 | X71: 0 | Y71: 0 | Z71: 0 | AA71: 0 | AB71: 0 | AC71: 0 | AD71: 0 | AF71: 18 | AG71: 0 | AH71: 0 | AI71: 0 | AJ71: 0 | AK71: 0 | AL71: 0 | AM71: 0 | AN71: 0 | AO71: 0 | AP71: 0 | AQ71: 0 | AR71: 0 | AS71: 0
B72: 19 | C72: 0 | D72: 0 | E72: 0 | F72: 0 | G72: 0 | H72: 0 | I72: 0 | J72: 0 | K72: 0 | L72: 0 | M72: 0 | N72: 0 | O72: 0 | Q72: 19 | R72: 0 | S72: 0 | T72: 0 | U72: 0 | V72: 0 | W72: 0 | X72: 0 | Y72: 0 | Z72: 0 | AA72: 0 | AB72: 0 | AC72: 0 | AD72: 0 | AF72: 19 | AG72: 0 | AH72: 0 | AI72: 0 | AJ72: 0 | AK72: 0 | AL72: 0 | AM72: 0 | AN72: 0 | AO72: 0 | AP72: 0 | AQ72: 0 | AR72: 0 | AS72: 0
B73: 20 | C73: 0 | D73: 0 | E73: 0 | F73: 0 | G73: 0 | H73: 0 | I73: 0 | J73: 0 | K73: 0 | L73: 0 | M73: 0 | N73: 0 | O73: 0 | Q73: 20 | R73: 0 | S73: 0 | T73: 0 | U73: 0 | V73: 0 | W73: 0 | X73: 0 | Y73: 0 | Z73: 0 | AA73: 0 | AB73: 0 | AC73: 0 | AD73: 0 | AF73: 20 | AG73: 0 | AH73: 0 | AI73: 0 | AJ73: 0 | AK73: 0 | AL73: 0 | AM73: 0 | AN73: 0 | AO73: 0 | AP73: 0 | AQ73: 0 | AR73: 0 | AS73: 0
B75: Total | O75: =SUM(O54:O73) -> 0 | Q75: Total | AD75: =SUM(AD54:AD73) -> 0 | AF75: Total | AS75: =SUM(AS54:AS73) -> 0
B78: New Carpoolers (switch from automobile to carpool) | Q78: New Carpoolers (switch from automobile to carpool) | AF78: New Carpoolers (switch from automobile to carpool)
C80: ANNUAL NUMBER OF USERS | F80: TOTAL AUTO VMT | H80: HWY VEH OP COSTS | J80: OUT-POCKET COSTS | L80: BENEFITS | R80: ANNUAL NUMBER OF USERS | U80: TOTAL AUTO VMT | W80: HWY VEH OP COSTS | Y80: OUT-POCKET COSTS | AA80: BENEFITS | AG80: ANNUAL NUMBER OF USERS | AJ80: TOTAL AUTO VMT | AL80: HWY VEH OP COSTS | AN80: OUT-POCKET COSTS | AP80: BENEFITS
C81: (people/yr) | F81: (veh-miles/yr) | H81: ($/yr) | J81: ($/yr) | L81: ($/yr) | R81: (people/yr) | U81: (veh-miles/yr) | W81: ($/yr) | Y81: ($/yr) | AA81: ($/yr) | AG81: (people/yr) | AJ81: (veh-miles/yr) | AL81: ($/yr) | AN81: ($/yr) | AP81: ($/yr)
B82: Year | C82: Existing | D82: New | E82: Users | L82: Hwy Veh | M82: Out-of | N82: Constant | O82: Present | Q82: Year | R82: Existing | S82: New | T82: Users | AA82: Hwy Veh | AB82: Out-of | AC82: Constant | AD82: Present | AF82: Year | AG82: Existing | AH82: New | AI82: Users | AP82: Hwy Veh | AQ82: Out-of | AR82: Constant | AS82: Present
C83: Lot | D83: Lot | E83: Benefited | F83: No Build | G83: Build | H83: No Build | I83: Build | J83: No Build | K83: Build | L83: Op Costs | M83: Pocket | N83: Dollars | O83: Value | R83: Lot | S83: Lot | T83: Benefited | U83: No Build | V83: Build | W83: No Build | X83: Build | Y83: No Build | Z83: Build | AA83: Op Costs | AB83: Pocket | AC83: Dollars | AD83: Value | AG83: Lot | AH83: Lot | AI83: Benefited | AJ83: No Build | AK83: Build | AL83: No Build | AM83: Build | AN83: No Build | AO83: Build | AP83: Op Costs | AQ83: Pocket | AR83: Dollars | AS83: Value
B84: 1 | C84: =IF(SpacesNB=0,0,(IF(B84>CapYrNB,1,(B84-1)/CapYrNB)*MAX(0,(100%-PctFillNB))+(PctFillNB))*(SpacesNB*AVONB+IF(PctFillNB=0,BikePedNB,BikePedNB/PctFillNB))*AnnualFactor)*PctLotUser1*PctNCarpool1 -> 0 | D84: =IF(SpacesB=0,0,(IF(B84>CapYrB,1,(B84-1)/CapYrB)*MAX(0,(100%-PctFillB))+(PctFillB))*(SpacesB*AVOB+IF(PctFillB=0,BikePedB,BikePedB/PctFillB))*AnnualFactor)*PctLotUser1*PctNCarpool1 -> 0 | E84: =MAX(0,D84-C84) -> 0 | F84: =E84/AVOB*Distance1*2 -> 0 | G84: =IF(PctNCarpool1=0,0,E84/AVOCarpool1*Distance1*2) -> 0 | H84: =IF(PctNCarpool1=0,0,F84*(VLOOKUP(Distance1/TTNonHOV1*60,FuelCon,2)+NonFuelAuto)) -> 0 | I84: =IF(PctNCarpool1=0,0,G84*(VLOOKUP(Distance1/TTHOV1*60,FuelCon,2)+NonFuelAuto)) -> 0 | J84: =E84/AVOB*ParkingCost1 -> 0 | K84: =IF(PctNCarpool1=0,0,E84/AVOCarpool1*ParkingCost1) -> 0 | L84: =H84-I84 -> 0 | M84: =J84-K84 -> 0 | N84: =SUM($L84:$M84) -> 0 | O84: =$N84/(1+DiscRate)^($B84+Construct-1) -> 0 | Q84: 1 | R84: =IF(SpacesNB=0,0,(IF(Q84>CapYrNB,1,(Q84-1)/CapYrNB)*MAX(0,(100%-PctFillNB))+(PctFillNB))*(SpacesNB*AVONB+IF(PctFillNB=0,BikePedNB,BikePedNB/PctFillNB))*AnnualFactor)*PctLotUser2*PctNCarpool2 -> 0 | S84: =IF(SpacesB=0,0,(IF(Q84>CapYrB,1,(Q84-1)/CapYrB)*MAX(0,(100%-PctFillB))+(PctFillB))*(SpacesB*AVOB+IF(PctFillB=0,BikePedB,BikePedB/PctFillB))*AnnualFactor)*PctLotUser2*PctNCarpool2 -> 0 | T84: =MAX(0,S84-R84) -> 0 | U84: =T84/AVOB*Distance2*2 -> 0 | V84: =IF(PctNCarpool2=0,0,T84/AVOCarpool2*Distance2*2) -> 0 | W84: =IF(PctNCarpool2=0,0,U84*(VLOOKUP(Distance2/TTNonHOV2*60,FuelCon,2)+NonFuelAuto)) -> 0 | X84: =IF(PctNCarpool2=0,0,V84*(VLOOKUP(Distance2/TTHOV2*60,FuelCon,2)+NonFuelAuto)) -> 0 | Y84: =T84/AVOB*ParkingCost2 -> 0 | Z84: =IF(PctNCarpool2=0,0,T84/AVOCarpool2*ParkingCost2) -> 0 | AA84: =W84-X84 -> 0 | AB84: =Y84-Z84 -> 0 | AC84: =SUM($AA84:$AB84) -> 0 | AD84: =$AC84/(1+DiscRate)^($Q84+Construct-1) -> 0 | AF84: 1 | AG84: =IF(SpacesNB=0,0,(IF(AF84>CapYrNB,1,(AF84-1)/CapYrNB)*MAX(0,(100%-PctFillNB))+(PctFillNB))*(SpacesNB*AVONB+IF(PctFillNB=0,BikePedNB,BikePedNB/PctFillNB))*AnnualFactor)*PctLotUser3*PctNCarpool3 -> 0 | AH84: =IF(SpacesB=0,0,(IF(AF84>CapYrB,1,(AF84-1)/CapYrB)*MAX(0,(100%-PctFillB))+(PctFillB))*(SpacesB*AVOB+IF(PctFillB=0,BikePedB,BikePedB/PctFillB))*AnnualFactor)*PctLotUser3*PctNCarpool3 -> 0 | AI84: =MAX(0,AH84-AG84) -> 0 | AJ84: =AI84/AVOB*Distance3*2 -> 0 | AK84: =IF(PctNCarpool3=0,0,AI84/AVOCarpool3*Distance3*2) -> 0 | AL84: =IF(PctNCarpool3=0,0,AJ84*(VLOOKUP(Distance3/TTNonHOV3*60,FuelCon,2)+NonFuelAuto)) -> 0 | AM84: =IF(PctNCarpool3=0,0,AK84*(VLOOKUP(Distance3/TTHOV3*60,FuelCon,2)+NonFuelAuto)) -> 0 | AN84: =AI84/AVOB*ParkingCost3 -> 0 | AO84: =IF(PctNCarpool3=0,0,AI84/AVOCarpool3*ParkingCost3) -> 0 | AP84: =AL84-AM84 -> 0 | AQ84: =AN84-AO84 -> 0 | AR84: =SUM($AP84:$AQ84) -> 0 | AS84: =$AR84/(1+DiscRate)^($AF84+Construct-1) -> 0
B85: 2 | C85: 0 | D85: 0 | E85: =MAX(0,D85-C85) -> 0 | F85: 0 | G85: 0 | H85: 0 | I85: 0 | J85: 0 | K85: 0 | L85: =H85-I85 -> 0 | M85: =J85-K85 -> 0 | N85: =SUM($L85:$M85) -> 0 | O85: 0 | Q85: 2 | R85: 0 | S85: 0 | T85: =MAX(0,S85-R85) -> 0 | U85: 0 | V85: 0 | W85: 0 | X85: 0 | Y85: 0 | Z85: 0 | AA85: =W85-X85 -> 0 | AB85: =Y85-Z85 -> 0 | AC85: =SUM($AA85:$AB85) -> 0 | AD85: 0 | AF85: 2 | AG85: 0 | AH85: 0 | AI85: =MAX(0,AH85-AG85) -> 0 | AJ85: 0 | AK85: 0 | AL85: 0 | AM85: 0 | AN85: 0 | AO85: 0 | AP85: =AL85-AM85 -> 0 | AQ85: =AN85-AO85 -> 0 | AR85: =SUM($AP85:$AQ85) -> 0 | AS85: 0
B86: 3 | C86: 0 | D86: 0 | E86: 0 | F86: 0 | G86: 0 | H86: 0 | I86: 0 | J86: 0 | K86: 0 | L86: 0 | M86: 0 | N86: =SUM($L86:$M86) -> 0 | O86: 0 | Q86: 3 | R86: 0 | S86: 0 | T86: 0 | U86: 0 | V86: 0 | W86: 0 | X86: 0 | Y86: 0 | Z86: 0 | AA86: 0 | AB86: 0 | AC86: 0 | AD86: 0 | AF86: 3 | AG86: 0 | AH86: 0 | AI86: 0 | AJ86: 0 | AK86: 0 | AL86: 0 | AM86: 0 | AN86: 0 | AO86: 0 | AP86: 0 | AQ86: 0 | AR86: 0 | AS86: 0
B87: 4 | C87: 0 | D87: 0 | E87: 0 | F87: 0 | G87: 0 | H87: 0 | I87: 0 | J87: 0 | K87: 0 | L87: 0 | M87: 0 | N87: 0 | O87: 0 | Q87: 4 | R87: 0 | S87: 0 | T87: 0 | U87: 0 | V87: 0 | W87: 0 | X87: 0 | Y87: 0 | Z87: 0 | AA87: 0 | AB87: 0 | AC87: 0 | AD87: 0 | AF87: 4 | AG87: 0 | AH87: 0 | AI87: 0 | AJ87: 0 | AK87: 0 | AL87: 0 | AM87: 0 | AN87: 0 | AO87: 0 | AP87: 0 | AQ87: 0 | AR87: 0 | AS87: 0
B88: 5 | C88: 0 | D88: 0 | E88: 0 | F88: 0 | G88: 0 | H88: 0 | I88: 0 | J88: 0 | K88: 0 | L88: 0 | M88: 0 | N88: 0 | O88: 0 | Q88: 5 | R88: 0 | S88: 0 | T88: 0 | U88: 0 | V88: 0 | W88: 0 | X88: 0 | Y88: 0 | Z88: 0 | AA88: 0 | AB88: 0 | AC88: 0 | AD88: 0 | AF88: 5 | AG88: 0 | AH88: 0 | AI88: 0 | AJ88: 0 | AK88: 0 | AL88: 0 | AM88: 0 | AN88: 0 | AO88: 0 | AP88: 0 | AQ88: 0 | AR88: 0 | AS88: 0
B89: 6 | C89: 0 | D89: 0 | E89: 0 | F89: 0 | G89: 0 | H89: 0 | I89: 0 | J89: 0 | K89: 0 | L89: 0 | M89: 0 | N89: 0 | O89: 0 | Q89: 6 | R89: 0 | S89: 0 | T89: 0 | U89: 0 | V89: 0 | W89: 0 | X89: 0 | Y89: 0 | Z89: 0 | AA89: 0 | AB89: 0 | AC89: 0 | AD89: 0 | AF89: 6 | AG89: 0 | AH89: 0 | AI89: 0 | AJ89: 0 | AK89: 0 | AL89: 0 | AM89: 0 | AN89: 0 | AO89: 0 | AP89: 0 | AQ89: 0 | AR89: 0 | AS89: 0
B90: 7 | C90: 0 | D90: 0 | E90: 0 | F90: 0 | G90: 0 | H90: 0 | I90: 0 | J90: 0 | K90: 0 | L90: 0 | M90: 0 | N90: 0 | O90: 0 | Q90: 7 | R90: 0 | S90: 0 | T90: 0 | U90: 0 | V90: 0 | W90: 0 | X90: 0 | Y90: 0 | Z90: 0 | AA90: 0 | AB90: 0 | AC90: 0 | AD90: 0 | AF90: 7 | AG90: 0 | AH90: 0 | AI90: 0 | AJ90: 0 | AK90: 0 | AL90: 0 | AM90: 0 | AN90: 0 | AO90: 0 | AP90: 0 | AQ90: 0 | AR90: 0 | AS90: 0
B91: 8 | C91: 0 | D91: 0 | E91: 0 | F91: 0 | G91: 0 | H91: 0 | I91: 0 | J91: 0 | K91: 0 | L91: 0 | M91: 0 | N91: 0 | O91: 0 | Q91: 8 | R91: 0 | S91: 0 | T91: 0 | U91: 0 | V91: 0 | W91: 0 | X91: 0 | Y91: 0 | Z91: 0 | AA91: 0 | AB91: 0 | AC91: 0 | AD91: 0 | AF91: 8 | AG91: 0 | AH91: 0 | AI91: 0 | AJ91: 0 | AK91: 0 | AL91: 0 | AM91: 0 | AN91: 0 | AO91: 0 | AP91: 0 | AQ91: 0 | AR91: 0 | AS91: 0
B92: 9 | C92: 0 | D92: 0 | E92: 0 | F92: 0 | G92: 0 | H92: 0 | I92: 0 | J92: 0 | K92: 0 | L92: 0 | M92: 0 | N92: 0 | O92: 0 | Q92: 9 | R92: 0 | S92: 0 | T92: 0 | U92: 0 | V92: 0 | W92: 0 | X92: 0 | Y92: 0 | Z92: 0 | AA92: 0 | AB92: 0 | AC92: 0 | AD92: 0 | AF92: 9 | AG92: 0 | AH92: 0 | AI92: 0 | AJ92: 0 | AK92: 0 | AL92: 0 | AM92: 0 | AN92: 0 | AO92: 0 | AP92: 0 | AQ92: 0 | AR92: 0 | AS92: 0
B93: 10 | C93: 0 | D93: 0 | E93: 0 | F93: 0 | G93: 0 | H93: 0 | I93: 0 | J93: 0 | K93: 0 | L93: 0 | M93: 0 | N93: 0 | O93: 0 | Q93: 10 | R93: 0 | S93: 0 | T93: 0 | U93: 0 | V93: 0 | W93: 0 | X93: 0 | Y93: 0 | Z93: 0 | AA93: 0 | AB93: 0 | AC93: 0 | AD93: 0 | AF93: 10 | AG93: 0 | AH93: 0 | AI93: 0 | AJ93: 0 | AK93: 0 | AL93: 0 | AM93: 0 | AN93: 0 | AO93: 0 | AP93: 0 | AQ93: 0 | AR93: 0 | AS93: 0
B94: 11 | C94: 0 | D94: 0 | E94: 0 | F94: 0 | G94: 0 | H94: 0 | I94: 0 | J94: 0 | K94: 0 | L94: 0 | M94: 0 | N94: 0 | O94: 0 | Q94: 11 | R94: 0 | S94: 0 | T94: 0 | U94: 0 | V94: 0 | W94: 0 | X94: 0 | Y94: 0 | Z94: 0 | AA94: 0 | AB94: 0 | AC94: 0 | AD94: 0 | AF94: 11 | AG94: 0 | AH94: 0 | AI94: 0 | AJ94: 0 | AK94: 0 | AL94: 0 | AM94: 0 | AN94: 0 | AO94: 0 | AP94: 0 | AQ94: 0 | AR94: 0 | AS94: 0
B95: 12 | C95: 0 | D95: 0 | E95: 0 | F95: 0 | G95: 0 | H95: 0 | I95: 0 | J95: 0 | K95: 0 | L95: 0 | M95: 0 | N95: 0 | O95: 0 | Q95: 12 | R95: 0 | S95: 0 | T95: 0 | U95: 0 | V95: 0 | W95: 0 | X95: 0 | Y95: 0 | Z95: 0 | AA95: 0 | AB95: 0 | AC95: 0 | AD95: 0 | AF95: 12 | AG95: 0 | AH95: 0 | AI95: 0 | AJ95: 0 | AK95: 0 | AL95: 0 | AM95: 0 | AN95: 0 | AO95: 0 | AP95: 0 | AQ95: 0 | AR95: 0 | AS95: 0
B96: 13 | C96: 0 | D96: 0 | E96: 0 | F96: 0 | G96: 0 | H96: 0 | I96: 0 | J96: 0 | K96: 0 | L96: 0 | M96: 0 | N96: 0 | O96: 0 | Q96: 13 | R96: 0 | S96: 0 | T96: 0 | U96: 0 | V96: 0 | W96: 0 | X96: 0 | Y96: 0 | Z96: 0 | AA96: 0 | AB96: 0 | AC96: 0 | AD96: 0 | AF96: 13 | AG96: 0 | AH96: 0 | AI96: 0 | AJ96: 0 | AK96: 0 | AL96: 0 | AM96: 0 | AN96: 0 | AO96: 0 | AP96: 0 | AQ96: 0 | AR96: 0 | AS96: 0
B97: 14 | C97: 0 | D97: 0 | E97: 0 | F97: 0 | G97: 0 | H97: 0 | I97: 0 | J97: 0 | K97: 0 | L97: 0 | M97: 0 | N97: 0 | O97: 0 | Q97: 14 | R97: 0 | S97: 0 | T97: 0 | U97: 0 | V97: 0 | W97: 0 | X97: 0 | Y97: 0 | Z97: 0 | AA97: 0 | AB97: 0 | AC97: 0 | AD97: 0 | AF97: 14 | AG97: 0 | AH97: 0 | AI97: 0 | AJ97: 0 | AK97: 0 | AL97: 0 | AM97: 0 | AN97: 0 | AO97: 0 | AP97: 0 | AQ97: 0 | AR97: 0 | AS97: 0
B98: 15 | C98: 0 | D98: 0 | E98: 0 | F98: 0 | G98: 0 | H98: 0 | I98: 0 | J98: 0 | K98: 0 | L98: 0 | M98: 0 | N98: 0 | O98: 0 | Q98: 15 | R98: 0 | S98: 0 | T98: 0 | U98: 0 | V98: 0 | W98: 0 | X98: 0 | Y98: 0 | Z98: 0 | AA98: 0 | AB98: 0 | AC98: 0 | AD98: 0 | AF98: 15 | AG98: 0 | AH98: 0 | AI98: 0 | AJ98: 0 | AK98: 0 | AL98: 0 | AM98: 0 | AN98: 0 | AO98: 0 | AP98: 0 | AQ98: 0 | AR98: 0 | AS98: 0
B99: 16 | C99: 0 | D99: 0 | E99: 0 | F99: 0 | G99: 0 | H99: 0 | I99: 0 | J99: 0 | K99: 0 | L99: 0 | M99: 0 | N99: 0 | O99: 0 | Q99: 16 | R99: 0 | S99: 0 | T99: 0 | U99: 0 | V99: 0 | W99: 0 | X99: 0 | Y99: 0 | Z99: 0 | AA99: 0 | AB99: 0 | AC99: 0 | AD99: 0 | AF99: 16 | AG99: 0 | AH99: 0 | AI99: 0 | AJ99: 0 | AK99: 0 | AL99: 0 | AM99: 0 | AN99: 0 | AO99: 0 | AP99: 0 | AQ99: 0 | AR99: 0 | AS99: 0
B100: 17 | C100: 0 | D100: 0 | E100: 0 | F100: 0 | G100: 0 | H100: 0 | I100: 0 | J100: 0 | K100: 0 | L100: 0 | M100: 0 | N100: 0 | O100: 0 | Q100: 17 | R100: 0 | S100: 0 | T100: 0 | U100: 0 | V100: 0 | W100: 0 | X100: 0 | Y100: 0 | Z100: 0 | AA100: 0 | AB100: 0 | AC100: 0 | AD100: 0 | AF100: 17 | AG100: 0 | AH100: 0 | AI100: 0 | AJ100: 0 | AK100: 0 | AL100: 0 | AM100: 0 | AN100: 0 | AO100: 0 | AP100: 0 | AQ100: 0 | AR100: 0 | AS100: 0
B101: 18 | C101: 0 | D101: 0 | E101: 0 | F101: 0 | G101: 0 | H101: 0 | I101: 0 | J101: 0 | K101: 0 | L101: 0 | M101: 0 | N101: 0 | O101: 0 | Q101: 18 | R101: 0 | S101: 0 | T101: 0 | U101: 0 | V101: 0 | W101: 0 | X101: 0 | Y101: 0 | Z101: 0 | AA101: 0 | AB101: 0 | AC101: 0 | AD101: 0 | AF101: 18 | AG101: 0 | AH101: 0 | AI101: 0 | AJ101: 0 | AK101: 0 | AL101: 0 | AM101: 0 | AN101: 0 | AO101: 0 | AP101: 0 | AQ101: 0 | AR101: 0 | AS101: 0
B102: 19 | C102: 0 | D102: 0 | E102: 0 | F102: 0 | G102: 0 | H102: 0 | I102: 0 | J102: 0 | K102: 0 | L102: 0 | M102: 0 | N102: 0 | O102: 0 | Q102: 19 | R102: 0 | S102: 0 | T102: 0 | U102: 0 | V102: 0 | W102: 0 | X102: 0 | Y102: 0 | Z102: 0 | AA102: 0 | AB102: 0 | AC102: 0 | AD102: 0 | AF102: 19 | AG102: 0 | AH102: 0 | AI102: 0 | AJ102: 0 | AK102: 0 | AL102: 0 | AM102: 0 | AN102: 0 | AO102: 0 | AP102: 0 | AQ102: 0 | AR102: 0 | AS102: 0
B103: 20 | C103: 0 | D103: 0 | E103: 0 | F103: 0 | G103: 0 | H103: 0 | I103: 0 | J103: 0 | K103: 0 | L103: 0 | M103: 0 | N103: 0 | O103: 0 | Q103: 20 | R103: 0 | S103: 0 | T103: 0 | U103: 0 | V103: 0 | W103: 0 | X103: 0 | Y103: 0 | Z103: 0 | AA103: 0 | AB103: 0 | AC103: 0 | AD103: 0 | AF103: 20 | AG103: 0 | AH103: 0 | AI103: 0 | AJ103: 0 | AK103: 0 | AL103: 0 | AM103: 0 | AN103: 0 | AO103: 0 | AP103: 0 | AQ103: 0 | AR103: 0 | AS103: 0
B105: Total | O105: =SUM(O84:O103) -> 0 | Q105: Total | AD105: =SUM(AD84:AD103) -> 0 | AF105: Total | AS105: =SUM(AS84:AS103) -> 0
B108: Existing Carpoolers (switch park-n-ride lots) | Q108: Existing Carpoolers (switch park-n-ride lots) | AF108: Existing Carpoolers (switch park-n-ride lots)
C110: ANNUAL NUMBER OF USERS | F110: TOTAL AUTO VMT | H110: HWY VEH OP COSTS | J110: OUT-POCKET COSTS | L110: BENEFITS | R110: ANNUAL NUMBER OF USERS | U110: TOTAL AUTO VMT | W110: HWY VEH OP COSTS | Y110: OUT-POCKET COSTS | AA110: BENEFITS | AG110: ANNUAL NUMBER OF USERS | AJ110: TOTAL AUTO VMT | AL110: HWY VEH OP COSTS | AN110: OUT-POCKET COSTS | AP110: BENEFITS
C111: (people/yr) | F111: (veh-miles/yr) | H111: ($/yr) | J111: ($/yr) | L111: ($/yr) | R111: (people/yr) | U111: (veh-miles/yr) | W111: ($/yr) | Y111: ($/yr) | AA111: ($/yr) | AG111: (people/yr) | AJ111: (veh-miles/yr) | AL111: ($/yr) | AN111: ($/yr) | AP111: ($/yr)
B112: Year | C112: Existing | D112: New | E112: Users | L112: Hwy Veh | M112: Out-of | N112: Constant | O112: Present | Q112: Year | R112: Existing | S112: New | T112: Users | AA112: Hwy Veh | AB112: Out-of | AC112: Constant | AD112: Present | AF112: Year | AG112: Existing | AH112: New | AI112: Users | AP112: Hwy Veh | AQ112: Out-of | AR112: Constant | AS112: Present
C113: Lot | D113: Lot | E113: Benefited | F113: No Build | G113: Build | H113: No Build | I113: Build | J113: No Build | K113: Build | L113: Op Costs | M113: Pocket | N113: Dollars | O113: Value | R113: Lot | S113: Lot | T113: Benefited | U113: No Build | V113: Build | W113: No Build | X113: Build | Y113: No Build | Z113: Build | AA113: Op Costs | AB113: Pocket | AC113: Dollars | AD113: Value | AG113: Lot | AH113: Lot | AI113: Benefited | AJ113: No Build | AK113: Build | AL113: No Build | AM113: Build | AN113: No Build | AO113: Build | AP113: Op Costs | AQ113: Pocket | AR113: Dollars | AS113: Value
B114: 1 | C114: =IF(SpacesNB=0,0,(IF(B114>CapYrNB,1,(B114-1)/CapYrNB)*MAX(0,(100%-PctFillNB))+(PctFillNB))*(SpacesNB*AVONB+IF(PctFillNB=0,BikePedNB,BikePedNB/PctFillNB))*AnnualFactor)*PctLotUser1*PctECarpool1 -> 0 | D114: =IF(SpacesB=0,0,(IF(B114>CapYrB,1,(B114-1)/CapYrB)*MAX(0,(100%-PctFillB))+(PctFillB))*(SpacesB*AVOB+IF(PctFillB=0,BikePedB,BikePedB/PctFillB))*AnnualFactor)*PctLotUser1*PctECarpool1 -> 0 | E114: =MAX(0,D114-C114) -> 0 | F114: =E114/AVOB*NextDist1*2 -> 0 | G114: =IF(PctECarpool1=0,0,E114/AVOCarpool1*NextDist1*2) -> 0 | H114: =IF(PctECarpool1=0,0,F114*(VLOOKUP(Distance1/TTNonHOV1*60,FuelCon,2)+NonFuelAuto)) -> 0 | I114: =IF(PctECarpool1=0,0,G114*(VLOOKUP(Distance1/TTHOV1*60,FuelCon,2)+NonFuelAuto)) -> 0 | J114: 0 | K114: 0 | L114: =H114-I114 -> 0 | M114: =J114-K114 -> 0 | N114: =SUM($L114:$M114) -> 0 | O114: =$N114/(1+DiscRate)^($B114+Construct-1) -> 0 | Q114: 1 | R114: =IF(SpacesNB=0,0,(IF(Q114>CapYrNB,1,(Q114-1)/CapYrNB)*MAX(0,(100%-PctFillNB))+(PctFillNB))*(SpacesNB*AVONB+IF(PctFillNB=0,BikePedNB,BikePedNB/PctFillNB))*AnnualFactor)*PctLotUser2*PctECarpool2 -> 0 | S114: =IF(SpacesB=0,0,(IF(Q114>CapYrB,1,(Q114-1)/CapYrB)*MAX(0,(100%-PctFillB))+(PctFillB))*(SpacesB*AVOB+IF(PctFillB=0,BikePedB,BikePedB/PctFillB))*AnnualFactor)*PctLotUser2*PctECarpool2 -> 0 | T114: =MAX(0,S114-R114) -> 0 | U114: =T114/AVOB*NextDist2*2 -> 0 | V114: =IF(PctECarpool2=0,0,T114/AVOCarpool2*NextDist2*2) -> 0 | W114: =IF(PctECarpool2=0,0,U114*(VLOOKUP(Distance2/TTNonHOV2*60,FuelCon,2)+NonFuelAuto)) -> 0 | X114: =IF(PctECarpool2=0,0,V114*(VLOOKUP(Distance2/TTHOV2*60,FuelCon,2)+NonFuelAuto)) -> 0 | Y114: 0 | Z114: 0 | AA114: =W114-X114 -> 0 | AB114: =Y114-Z114 -> 0 | AC114: =SUM($AA114:$AB114) -> 0 | AD114: =$AC114/(1+DiscRate)^($Q114+Construct-1) -> 0 | AF114: 1 | AG114: =IF(SpacesNB=0,0,(IF(AF114>CapYrNB,1,(AF114-1)/CapYrNB)*MAX(0,(100%-PctFillNB))+(PctFillNB))*(SpacesNB*AVONB+IF(PctFillNB=0,BikePedNB,BikePedNB/PctFillNB))*AnnualFactor)*PctLotUser3*PctECarpool3 -> 0 | AH114: =IF(SpacesB=0,0,(IF(AF114>CapYrB,1,(AF114-1)/CapYrB)*MAX(0,(100%-PctFillB))+(PctFillB))*(SpacesB*AVOB+IF(PctFillB=0,BikePedB,BikePedB/PctFillB))*AnnualFactor)*PctLotUser3*PctECarpool3 -> 0 | AI114: =MAX(0,AH114-AG114) -> 0 | AJ114: =AI114/AVOB*NextDist3*2 -> 0 | AK114: =IF(PctECarpool3=0,0,AI114/AVOCarpool3*NextDist3*2) -> 0 | AL114: =IF(PctECarpool3=0,0,AJ114*(VLOOKUP(Distance3/TTNonHOV3*60,FuelCon,2)+NonFuelAuto)) -> 0 | AM114: =IF(PctECarpool3=0,0,AK114*(VLOOKUP(Distance3/TTHOV3*60,FuelCon,2)+NonFuelAuto)) -> 0 | AN114: 0 | AO114: 0 | AP114: =AL114-AM114 -> 0 | AQ114: =AN114-AO114 -> 0 | AR114: =SUM($AP114:$AQ114) -> 0 | AS114: =$AR114/(1+DiscRate)^($AF114+Construct-1) -> 0
B115: 2 | C115: 0 | D115: 0 | E115: =MAX(0,D115-C115) -> 0 | F115: 0 | G115: 0 | H115: 0 | I115: 0 | J115: 0 | K115: 0 | L115: =H115-I115 -> 0 | M115: =J115-K115 -> 0 | N115: =SUM($L115:$M115) -> 0 | O115: 0 | Q115: 2 | R115: 0 | S115: 0 | T115: =MAX(0,S115-R115) -> 0 | U115: 0 | V115: 0 | W115: 0 | X115: 0 | Y115: 0 | Z115: 0 | AA115: =W115-X115 -> 0 | AB115: =Y115-Z115 -> 0 | AC115: =SUM($AA115:$AB115) -> 0 | AD115: 0 | AF115: 2 | AG115: 0 | AH115: 0 | AI115: =MAX(0,AH115-AG115) -> 0 | AJ115: 0 | AK115: 0 | AL115: 0 | AM115: 0 | AN115: 0 | AO115: 0 | AP115: =AL115-AM115 -> 0 | AQ115: =AN115-AO115 -> 0 | AR115: =SUM($AP115:$AQ115) -> 0 | AS115: 0
B116: 3 | C116: 0 | D116: 0 | E116: 0 | F116: 0 | G116: 0 | H116: 0 | I116: 0 | J116: 0 | K116: 0 | L116: 0 | M116: 0 | N116: =SUM($L116:$M116) -> 0 | O116: 0 | Q116: 3 | R116: 0 | S116: 0 | T116: 0 | U116: 0 | V116: 0 | W116: 0 | X116: 0 | Y116: 0 | Z116: 0 | AA116: 0 | AB116: 0 | AC116: 0 | AD116: 0 | AF116: 3 | AG116: 0 | AH116: 0 | AI116: 0 | AJ116: 0 | AK116: 0 | AL116: 0 | AM116: 0 | AN116: 0 | AO116: 0 | AP116: 0 | AQ116: 0 | AR116: 0 | AS116: 0
B117: 4 | C117: 0 | D117: 0 | E117: 0 | F117: 0 | G117: 0 | H117: 0 | I117: 0 | J117: 0 | K117: 0 | L117: 0 | M117: 0 | N117: 0 | O117: 0 | Q117: 4 | R117: 0 | S117: 0 | T117: 0 | U117: 0 | V117: 0 | W117: 0 | X117: 0 | Y117: 0 | Z117: 0 | AA117: 0 | AB117: 0 | AC117: 0 | AD117: 0 | AF117: 4 | AG117: 0 | AH117: 0 | AI117: 0 | AJ117: 0 | AK117: 0 | AL117: 0 | AM117: 0 | AN117: 0 | AO117: 0 | AP117: 0 | AQ117: 0 | AR117: 0 | AS117: 0
B118: 5 | C118: 0 | D118: 0 | E118: 0 | F118: 0 | G118: 0 | H118: 0 | I118: 0 | J118: 0 | K118: 0 | L118: 0 | M118: 0 | N118: 0 | O118: 0 | Q118: 5 | R118: 0 | S118: 0 | T118: 0 | U118: 0 | V118: 0 | W118: 0 | X118: 0 | Y118: 0 | Z118: 0 | AA118: 0 | AB118: 0 | AC118: 0 | AD118: 0 | AF118: 5 | AG118: 0 | AH118: 0 | AI118: 0 | AJ118: 0 | AK118: 0 | AL118: 0 | AM118: 0 | AN118: 0 | AO118: 0 | AP118: 0 | AQ118: 0 | AR118: 0 | AS118: 0
B119: 6 | C119: 0 | D119: 0 | E119: 0 | F119: 0 | G119: 0 | H119: 0 | I119: 0 | J119: 0 | K119: 0 | L119: 0 | M119: 0 | N119: 0 | O119: 0 | Q119: 6 | R119: 0 | S119: 0 | T119: 0 | U119: 0 | V119: 0 | W119: 0 | X119: 0 | Y119: 0 | Z119: 0 | AA119: 0 | AB119: 0 | AC119: 0 | AD119: 0 | AF119: 6 | AG119: 0 | AH119: 0 | AI119: 0 | AJ119: 0 | AK119: 0 | AL119: 0 | AM119: 0 | AN119: 0 | AO119: 0 | AP119: 0 | AQ119: 0 | AR119: 0 | AS119: 0
B120: 7 | C120: 0 | D120: 0 | E120: 0 | F120: 0 | G120: 0 | H120: 0 | I120: 0 | J120: 0 | K120: 0 | L120: 0 | M120: 0 | N120: 0 | O120: 0 | Q120: 7 | R120: 0 | S120: 0 | T120: 0 | U120: 0 | V120: 0 | W120: 0 | X120: 0 | Y120: 0 | Z120: 0 | AA120: 0 | AB120: 0 | AC120: 0 | AD120: 0 | AF120: 7 | AG120: 0 | AH120: 0 | AI120: 0 | AJ120: 0 | AK120: 0 | AL120: 0 | AM120: 0 | AN120: 0 | AO120: 0 | AP120: 0 | AQ120: 0 | AR120: 0 | AS120: 0
B121: 8 | C121: 0 | D121: 0 | E121: 0 | F121: 0 | G121: 0 | H121: 0 | I121: 0 | J121: 0 | K121: 0 | L121: 0 | M121: 0 | N121: 0 | O121: 0 | Q121: 8 | R121: 0 | S121: 0 | T121: 0 | U121: 0 | V121: 0 | W121: 0 | X121: 0 | Y121: 0 | Z121: 0 | AA121: 0 | AB121: 0 | AC121: 0 | AD121: 0 | AF121: 8 | AG121: 0 | AH121: 0 | AI121: 0 | AJ121: 0 | AK121: 0 | AL121: 0 | AM121: 0 | AN121: 0 | AO121: 0 | AP121: 0 | AQ121: 0 | AR121: 0 | AS121: 0
B122: 9 | C122: 0 | D122: 0 | E122: 0 | F122: 0 | G122: 0 | H122: 0 | I122: 0 | J122: 0 | K122: 0 | L122: 0 | M122: 0 | N122: 0 | O122: 0 | Q122: 9 | R122: 0 | S122: 0 | T122: 0 | U122: 0 | V122: 0 | W122: 0 | X122: 0 | Y122: 0 | Z122: 0 | AA122: 0 | AB122: 0 | AC122: 0 | AD122: 0 | AF122: 9 | AG122: 0 | AH122: 0 | AI122: 0 | AJ122: 0 | AK122: 0 | AL122: 0 | AM122: 0 | AN122: 0 | AO122: 0 | AP122: 0 | AQ122: 0 | AR122: 0 | AS122: 0
B123: 10 | C123: 0 | D123: 0 | E123: 0 | F123: 0 | G123: 0 | H123: 0 | I123: 0 | J123: 0 | K123: 0 | L123: 0 | M123: 0 | N123: 0 | O123: 0 | Q123: 10 | R123: 0 | S123: 0 | T123: 0 | U123: 0 | V123: 0 | W123: 0 | X123: 0 | Y123: 0 | Z123: 0 | AA123: 0 | AB123: 0 | AC123: 0 | AD123: 0 | AF123: 10 | AG123: 0 | AH123: 0 | AI123: 0 | AJ123: 0 | AK123: 0 | AL123: 0 | AM123: 0 | AN123: 0 | AO123: 0 | AP123: 0 | AQ123: 0 | AR123: 0 | AS123: 0
B124: 11 | C124: 0 | D124: 0 | E124: 0 | F124: 0 | G124: 0 | H124: 0 | I124: 0 | J124: 0 | K124: 0 | L124: 0 | M124: 0 | N124: 0 | O124: 0 | Q124: 11 | R124: 0 | S124: 0 | T124: 0 | U124: 0 | V124: 0 | W124: 0 | X124: 0 | Y124: 0 | Z124: 0 | AA124: 0 | AB124: 0 | AC124: 0 | AD124: 0 | AF124: 11 | AG124: 0 | AH124: 0 | AI124: 0 | AJ124: 0 | AK124: 0 | AL124: 0 | AM124: 0 | AN124: 0 | AO124: 0 | AP124: 0 | AQ124: 0 | AR124: 0 | AS124: 0
B125: 12 | C125: 0 | D125: 0 | E125: 0 | F125: 0 | G125: 0 | H125: 0 | I125: 0 | J125: 0 | K125: 0 | L125: 0 | M125: 0 | N125: 0 | O125: 0 | Q125: 12 | R125: 0 | S125: 0 | T125: 0 | U125: 0 | V125: 0 | W125: 0 | X125: 0 | Y125: 0 | Z125: 0 | AA125: 0 | AB125: 0 | AC125: 0 | AD125: 0 | AF125: 12 | AG125: 0 | AH125: 0 | AI125: 0 | AJ125: 0 | AK125: 0 | AL125: 0 | AM125: 0 | AN125: 0 | AO125: 0 | AP125: 0 | AQ125: 0 | AR125: 0 | AS125: 0
B126: 13 | C126: 0 | D126: 0 | E126: 0 | F126: 0 | G126: 0 | H126: 0 | I126: 0 | J126: 0 | K126: 0 | L126: 0 | M126: 0 | N126: 0 | O126: 0 | Q126: 13 | R126: 0 | S126: 0 | T126: 0 | U126: 0 | V126: 0 | W126: 0 | X126: 0 | Y126: 0 | Z126: 0 | AA126: 0 | AB126: 0 | AC126: 0 | AD126: 0 | AF126: 13 | AG126: 0 | AH126: 0 | AI126: 0 | AJ126: 0 | AK126: 0 | AL126: 0 | AM126: 0 | AN126: 0 | AO126: 0 | AP126: 0 | AQ126: 0 | AR126: 0 | AS126: 0
B127: 14 | C127: 0 | D127: 0 | E127: 0 | F127: 0 | G127: 0 | H127: 0 | I127: 0 | J127: 0 | K127: 0 | L127: 0 | M127: 0 | N127: 0 | O127: 0 | Q127: 14 | R127: 0 | S127: 0 | T127: 0 | U127: 0 | V127: 0 | W127: 0 | X127: 0 | Y127: 0 | Z127: 0 | AA127: 0 | AB127: 0 | AC127: 0 | AD127: 0 | AF127: 14 | AG127: 0 | AH127: 0 | AI127: 0 | AJ127: 0 | AK127: 0 | AL127: 0 | AM127: 0 | AN127: 0 | AO127: 0 | AP127: 0 | AQ127: 0 | AR127: 0 | AS127: 0
B128: 15 | C128: 0 | D128: 0 | E128: 0 | F128: 0 | G128: 0 | H128: 0 | I128: 0 | J128: 0 | K128: 0 | L128: 0 | M128: 0 | N128: 0 | O128: 0 | Q128: 15 | R128: 0 | S128: 0 | T128: 0 | U128: 0 | V128: 0 | W128: 0 | X128: 0 | Y128: 0 | Z128: 0 | AA128: 0 | AB128: 0 | AC128: 0 | AD128: 0 | AF128: 15 | AG128: 0 | AH128: 0 | AI128: 0 | AJ128: 0 | AK128: 0 | AL128: 0 | AM128: 0 | AN128: 0 | AO128: 0 | AP128: 0 | AQ128: 0 | AR128: 0 | AS128: 0
B129: 16 | C129: 0 | D129: 0 | E129: 0 | F129: 0 | G129: 0 | H129: 0 | I129: 0 | J129: 0 | K129: 0 | L129: 0 | M129: 0 | N129: 0 | O129: 0 | Q129: 16 | R129: 0 | S129: 0 | T129: 0 | U129: 0 | V129: 0 | W129: 0 | X129: 0 | Y129: 0 | Z129: 0 | AA129: 0 | AB129: 0 | AC129: 0 | AD129: 0 | AF129: 16 | AG129: 0 | AH129: 0 | AI129: 0 | AJ129: 0 | AK129: 0 | AL129: 0 | AM129: 0 | AN129: 0 | AO129: 0 | AP129: 0 | AQ129: 0 | AR129: 0 | AS129: 0
B130: 17 | C130: 0 | D130: 0 | E130: 0 | F130: 0 | G130: 0 | H130: 0 | I130: 0 | J130: 0 | K130: 0 | L130: 0 | M130: 0 | N130: 0 | O130: 0 | Q130: 17 | R130: 0 | S130: 0 | T130: 0 | U130: 0 | V130: 0 | W130: 0 | X130: 0 | Y130: 0 | Z130: 0 | AA130: 0 | AB130: 0 | AC130: 0 | AD130: 0 | AF130: 17 | AG130: 0 | AH130: 0 | AI130: 0 | AJ130: 0 | AK130: 0 | AL130: 0 | AM130: 0 | AN130: 0 | AO130: 0 | AP130: 0 | AQ130: 0 | AR130: 0 | AS130: 0
B131: 18 | C131: 0 | D131: 0 | E131: 0 | F131: 0 | G131: 0 | H131: 0 | I131: 0 | J131: 0 | K131: 0 | L131: 0 | M131: 0 | N131: 0 | O131: 0 | Q131: 18 | R131: 0 | S131: 0 | T131: 0 | U131: 0 | V131: 0 | W131: 0 | X131: 0 | Y131: 0 | Z131: 0 | AA131: 0 | AB131: 0 | AC131: 0 | AD131: 0 | AF131: 18 | AG131: 0 | AH131: 0 | AI131: 0 | AJ131: 0 | AK131: 0 | AL131: 0 | AM131: 0 | AN131: 0 | AO131: 0 | AP131: 0 | AQ131: 0 | AR131: 0 | AS131: 0
B132: 19 | C132: 0 | D132: 0 | E132: 0 | F132: 0 | G132: 0 | H132: 0 | I132: 0 | J132: 0 | K132: 0 | L132: 0 | M132: 0 | N132: 0 | O132: 0 | Q132: 19 | R132: 0 | S132: 0 | T132: 0 | U132: 0 | V132: 0 | W132: 0 | X132: 0 | Y132: 0 | Z132: 0 | AA132: 0 | AB132: 0 | AC132: 0 | AD132: 0 | AF132: 19 | AG132: 0 | AH132: 0 | AI132: 0 | AJ132: 0 | AK132: 0 | AL132: 0 | AM132: 0 | AN132: 0 | AO132: 0 | AP132: 0 | AQ132: 0 | AR132: 0 | AS132: 0
B133: 20 | C133: 0 | D133: 0 | E133: 0 | F133: 0 | G133: 0 | H133: 0 | I133: 0 | J133: 0 | K133: 0 | L133: 0 | M133: 0 | N133: 0 | O133: 0 | Q133: 20 | R133: 0 | S133: 0 | T133: 0 | U133: 0 | V133: 0 | W133: 0 | X133: 0 | Y133: 0 | Z133: 0 | AA133: 0 | AB133: 0 | AC133: 0 | AD133: 0 | AF133: 20 | AG133: 0 | AH133: 0 | AI133: 0 | AJ133: 0 | AK133: 0 | AL133: 0 | AM133: 0 | AN133: 0 | AO133: 0 | AP133: 0 | AQ133: 0 | AR133: 0 | AS133: 0
B135: Total | O135: =SUM(O114:O133) -> 0 | Q135: Total | AD135: =SUM(AD114:AD133) -> 0 | AF135: Total | AS135: =SUM(AS114:AS133) -> 0
L139: Present Value = Future Value (in Constant Dollars)
M140: ( 1 + Real Discount Rate) ^ Year

Sheet Accident Costs
B1: Accident Reduction Benefits
B3: This sheet calculates changes in highway crash costs.
B5: Formulas:
B7: Users Benefited = New Lost Users - Existing Lot Users | G7: Crash Cost = (VMT x Rate x Cost/Mile) by Crash Type
B8: people / yr
B10: Vehicle-Miles Traveled = Distance x Users / AVO
B11: veh-miles/yr | D11: miles | E11: vehicles/yr
B15: A | C15: =IF(ISBLANK(DestName1),"DESTINATION 1", "DESTINATION 1 - "&DestName1) -> DESTINATION 1 | M15: B | N15: =IF(ISBLANK(DestName2),"DESTINATION 2", "DESTINATION 2 - "&DestName2) -> DESTINATION 2 | X15: C | Y15: =IF(ISBLANK(DestName3),"DESTINATION 3", "DESTINATION 3 - "&DestName3) -> DESTINATION 3 | AI15: D | AJ15: SUMMARY OF ACCIDENT REDUCTION BENEFITS | AR15: SUMMARY OF ACCIDENT REDUCTION BENEFITS (continued)
B18: New Transit Riders (switch from automobile to express bus) | M18: New Transit Riders (switch from automobile to express bus) | X18: New Transit Riders (switch from automobile to express bus)
C20: ANNUAL NUMBER OF USERS | F20: TOTAL AUTO VMT | H20: CRASH COSTS | N20: ANNUAL NUMBER OF USERS | Q20: TOTAL AUTO VMT | S20: CRASH COSTS | Y20: ANNUAL NUMBER OF USERS | AB20: TOTAL AUTO VMT | AD20: CRASH COSTS | AJ20: DESTINATION 1 | AN20: DESTINATION 2 | AR20: DESTINATION 3 | AV20: Present
C21: (people/yr) | F21: (veh-miles/yr) | H21: ($/yr) | N21: (people/yr) | Q21: (veh-miles/yr) | S21: ($/yr) | Y21: (people/yr) | AB21: (veh-miles/yr) | AD21: ($/yr) | AV21: Value of
B22: Year | C22: Existing | D22: New | E22: Users | J22: Constant | K22: Present | M22: Year | N22: Existing | O22: New | P22: Users | U22: Constant | V22: Present | X22: Year | Y22: Existing | Z22: New | AA22: Users | AF22: Constant | AG22: Present | AI22: Year | AJ22: New | AK22: Existing | AL22: New | AM22: Existing | AN22: New | AO22: Existing | AP22: New | AQ22: Existing | AR22: New | AS22: Existing | AT22: New | AU22: Existing | AV22: Accident | AX22: Constant
C23: Lot | D23: Lot | E23: Benefited | F23: No Build | G23: Build | H23: No Build | I23: Build | J23: Dollars | K23: Value | N23: Lot | O23: Lot | P23: Benefited | Q23: No Build | R23: Build | S23: No Build | T23: Build | U23: Dollars | V23: Value | Y23: Lot | Z23: Lot | AA23: Benefited | AB23: No Build | AC23: Build | AD23: No Build | AE23: Build | AF23: Dollars | AG23: Value | AJ23: Transit | AK23: Transit | AL23: Carpool | AM23: Carpool | AN23: Transit | AO23: Transit | AP23: Carpool | AQ23: Carpool | AR23: Transit | AS23: Transit | AT23: Carpool | AU23: Carpool | AV23: =IF(Accidents<>"N","Benefits","Benefits*") -> Benefits | AX23: Dollars
B24: 1 | C24: =IF(SpacesNB=0,0,(IF(B24>CapYrNB,1,(B24-1)/CapYrNB)*MAX(0,(100%-PctFillNB))+(PctFillNB))*(SpacesNB*AVONB+IF(PctFillNB=0,BikePedNB,BikePedNB/PctFillNB))*AnnualFactor)*PctLotUser1*PctNTransit1 -> 0 | D24: =IF(SpacesB=0,0,(IF(B24>CapYrB,1,(B24-1)/CapYrB)*MAX(0,(100%-PctFillB))+(PctFillB))*(SpacesB*AVOB+IF(PctFillB=0,BikePedB,BikePedB/PctFillB))*AnnualFactor)*PctLotUser1*PctNTransit1 -> 0 | E24: =MAX(0,D24-C24) -> 0 | F24: =E24/AVOB*Distance1*2 -> 0 | G24: 0 | H24: =F24/1000000*HwyAccRate1*(HwyFatCost*HwyPctFat1+HwyInjCost*HwyPctInj1+HwyPDOCost*(1-HwyPctFat1-HwyPctInj1)) -> 0 | I24: 0 | J24: =H24-I24 -> 0 | K24: =$J24/(1+DiscRate)^($B24+Construct-1) -> 0 | M24: 1 | N24: =IF(SpacesNB=0,0,(IF(M24>CapYrNB,1,(M24-1)/CapYrNB)*MAX(0,(100%-PctFillNB))+(PctFillNB))*(SpacesNB*AVONB+IF(PctFillNB=0,BikePedNB,BikePedNB/PctFillNB))*AnnualFactor)*PctLotUser2*PctNTransit2 -> 0 | O24: =IF(SpacesB=0,0,(IF(M24>CapYrB,1,(M24-1)/CapYrB)*MAX(0,(100%-PctFillB))+(PctFillB))*(SpacesB*AVOB+IF(PctFillB=0,BikePedB,BikePedB/PctFillB))*AnnualFactor)*PctLotUser2*PctNTransit2 -> 0 | P24: =MAX(0,O24-N24) -> 0 | Q24: =P24/AVOB*Distance2*2 -> 0 | R24: 0 | S24: =Q24/1000000*HwyAccRate2*(HwyFatCost*HwyPctFat2+HwyInjCost*HwyPctInj2+HwyPDOCost*(1-HwyPctFat2-HwyPctInj2)) -> 0 | T24: 0 | U24: =S24-T24 -> 0 | V24: =$U24/(1+DiscRate)^($M24+Construct-1) -> 0 | X24: 1 | Y24: =IF(SpacesNB=0,0,(IF(X24>CapYrNB,1,(X24-1)/CapYrNB)*MAX(0,(100%-PctFillNB))+(PctFillNB))*(SpacesNB*AVONB+IF(PctFillNB=0,BikePedNB,BikePedNB/PctFillNB))*AnnualFactor)*PctLotUser3*PctNTransit3 -> 0 | Z24: =IF(SpacesB=0,0,(IF(X24>CapYrB,1,(X24-1)/CapYrB)*MAX(0,(100%-PctFillB))+(PctFillB))*(SpacesB*AVOB+IF(PctFillB=0,BikePedB,BikePedB/PctFillB))*AnnualFactor)*PctLotUser3*PctNTransit3 -> 0 | AA24: =MAX(0,Z24-Y24) -> 0 | AB24: =AA24/AVOB*Distance3*2 -> 0 | AC24: 0 | AD24: =AB24/1000000*HwyAccRate3*(HwyFatCost*HwyPctFat3+HwyInjCost*HwyPctInj3+HwyPDOCost*(1-HwyPctFat3-HwyPctInj3)) -> 0 | AE24: 0 | AF24: =AD24-AE24 -> 0 | AG24: =$AF24/(1+DiscRate)^($X24+Construct-1) -> 0 | AI24: 1 | AJ24: =K24 -> 0 | AK24: =K54 -> 0 | AL24: =K84 -> 0 | AM24: =K114 -> 0 | AN24: =V24 -> 0 | AO24: =V54 -> 0 | AP24: =V84 -> 0 | AQ24: =V114 -> 0 | AR24: =AG24 -> 0 | AS24: =AG54 -> 0 | AT24: =AG84 -> 0 | AU24: =AG114 -> 0 | AV24: =IF(Accidents<>"N",SUM(AJ24:AU24),0) -> 0 | AX24: =$AV24*(1+DiscRate)^($AI24+Construct-1) -> 0
B25: 2 | C25: 0 | D25: 0 | E25: =MAX(0,D25-C25) -> 0 | F25: 0 | G25: 0 | H25: 0 | I25: 0 | J25: =H25-I25 -> 0 | K25: =$J25/(1+DiscRate)^($B25+Construct-1) -> 0 | M25: 2 | N25: 0 | O25: 0 | P25: =MAX(0,O25-N25) -> 0 | Q25: 0 | R25: 0 | S25: 0 | T25: 0 | U25: =S25-T25 -> 0 | V25: 0 | X25: 2 | Y25: 0 | Z25: 0 | AA25: =MAX(0,Z25-Y25) -> 0 | AB25: 0 | AC25: 0 | AD25: 0 | AE25: 0 | AF25: =AD25-AE25 -> 0 | AG25: 0 | AI25: 2 | AJ25: =K25 -> 0 | AK25: =K55 -> 0 | AL25: =K85 -> 0 | AM25: =K115 -> 0 | AN25: 0 | AO25: 0 | AP25: 0 | AQ25: 0 | AR25: 0 | AS25: 0 | AT25: 0 | AU25: 0 | AV25: =IF(Accidents<>"N",SUM(AJ25:AU25),0) -> 0 | AX25: 0
B26: 3 | C26: 0 | D26: 0 | E26: 0 | F26: 0 | G26: 0 | H26: 0 | I26: 0 | J26: =H26-I26 -> 0 | K26: =$J26/(1+DiscRate)^($B26+Construct-1) -> 0 | M26: 3 | N26: 0 | O26: 0 | P26: 0 | Q26: 0 | R26: 0 | S26: 0 | T26: 0 | U26: =S26-T26 -> 0 | V26: 0 | X26: 3 | Y26: 0 | Z26: 0 | AA26: 0 | AB26: 0 | AC26: 0 | AD26: 0 | AE26: 0 | AF26: =AD26-AE26 -> 0 | AG26: 0 | AI26: 3 | AJ26: 0 | AK26: 0 | AL26: 0 | AM26: 0 | AN26: 0 | AO26: 0 | AP26: 0 | AQ26: 0 | AR26: 0 | AS26: 0 | AT26: 0 | AU26: 0 | AV26: =IF(Accidents<>"N",SUM(AJ26:AU26),0) -> 0 | AX26: 0
B27: 4 | C27: 0 | D27: 0 | E27: 0 | F27: 0 | G27: 0 | H27: 0 | I27: 0 | J27: 0 | K27: 0 | M27: 4 | N27: 0 | O27: 0 | P27: 0 | Q27: 0 | R27: 0 | S27: 0 | T27: 0 | U27: 0 | V27: 0 | X27: 4 | Y27: 0 | Z27: 0 | AA27: 0 | AB27: 0 | AC27: 0 | AD27: 0 | AE27: 0 | AF27: 0 | AG27: 0 | AI27: 4 | AJ27: 0 | AK27: 0 | AL27: 0 | AM27: 0 | AN27: 0 | AO27: 0 | AP27: 0 | AQ27: 0 | AR27: 0 | AS27: 0 | AT27: 0 | AU27: 0 | AV27: 0 | AX27: 0
B28: 5 | C28: 0 | D28: 0 | E28: 0 | F28: 0 | G28: 0 | H28: 0 | I28: 0 | J28: 0 | K28: 0 | M28: 5 | N28: 0 | O28: 0 | P28: 0 | Q28: 0 | R28: 0 | S28: 0 | T28: 0 | U28: 0 | V28: 0 | X28: 5 | Y28: 0 | Z28: 0 | AA28: 0 | AB28: 0 | AC28: 0 | AD28: 0 | AE28: 0 | AF28: 0 | AG28: 0 | AI28: 5 | AJ28: 0 | AK28: 0 | AL28: 0 | AM28: 0 | AN28: 0 | AO28: 0 | AP28: 0 | AQ28: 0 | AR28: 0 | AS28: 0 | AT28: 0 | AU28: 0 | AV28: 0 | AX28: 0
B29: 6 | C29: 0 | D29: 0 | E29: 0 | F29: 0 | G29: 0 | H29: 0 | I29: 0 | J29: 0 | K29: 0 | M29: 6 | N29: 0 | O29: 0 | P29: 0 | Q29: 0 | R29: 0 | S29: 0 | T29: 0 | U29: 0 | V29: 0 | X29: 6 | Y29: 0 | Z29: 0 | AA29: 0 | AB29: 0 | AC29: 0 | AD29: 0 | AE29: 0 | AF29: 0 | AG29: 0 | AI29: 6 | AJ29: 0 | AK29: 0 | AL29: 0 | AM29: 0 | AN29: 0 | AO29: 0 | AP29: 0 | AQ29: 0 | AR29: 0 | AS29: 0 | AT29: 0 | AU29: 0 | AV29: 0 | AX29: 0
B30: 7 | C30: 0 | D30: 0 | E30: 0 | F30: 0 | G30: 0 | H30: 0 | I30: 0 | J30: 0 | K30: 0 | M30: 7 | N30: 0 | O30: 0 | P30: 0 | Q30: 0 | R30: 0 | S30: 0 | T30: 0 | U30: 0 | V30: 0 | X30: 7 | Y30: 0 | Z30: 0 | AA30: 0 | AB30: 0 | AC30: 0 | AD30: 0 | AE30: 0 | AF30: 0 | AG30: 0 | AI30: 7 | AJ30: 0 | AK30: 0 | AL30: 0 | AM30: 0 | AN30: 0 | AO30: 0 | AP30: 0 | AQ30: 0 | AR30: 0 | AS30: 0 | AT30: 0 | AU30: 0 | AV30: 0 | AX30: 0
B31: 8 | C31: 0 | D31: 0 | E31: 0 | F31: 0 | G31: 0 | H31: 0 | I31: 0 | J31: 0 | K31: 0 | M31: 8 | N31: 0 | O31: 0 | P31: 0 | Q31: 0 | R31: 0 | S31: 0 | T31: 0 | U31: 0 | V31: 0 | X31: 8 | Y31: 0 | Z31: 0 | AA31: 0 | AB31: 0 | AC31: 0 | AD31: 0 | AE31: 0 | AF31: 0 | AG31: 0 | AI31: 8 | AJ31: 0 | AK31: 0 | AL31: 0 | AM31: 0 | AN31: 0 | AO31: 0 | AP31: 0 | AQ31: 0 | AR31: 0 | AS31: 0 | AT31: 0 | AU31: 0 | AV31: 0 | AX31: 0
B32: 9 | C32: 0 | D32: 0 | E32: 0 | F32: 0 | G32: 0 | H32: 0 | I32: 0 | J32: 0 | K32: 0 | M32: 9 | N32: 0 | O32: 0 | P32: 0 | Q32: 0 | R32: 0 | S32: 0 | T32: 0 | U32: 0 | V32: 0 | X32: 9 | Y32: 0 | Z32: 0 | AA32: 0 | AB32: 0 | AC32: 0 | AD32: 0 | AE32: 0 | AF32: 0 | AG32: 0 | AI32: 9 | AJ32: 0 | AK32: 0 | AL32: 0 | AM32: 0 | AN32: 0 | AO32: 0 | AP32: 0 | AQ32: 0 | AR32: 0 | AS32: 0 | AT32: 0 | AU32: 0 | AV32: 0 | AX32: 0
B33: 10 | C33: 0 | D33: 0 | E33: 0 | F33: 0 | G33: 0 | H33: 0 | I33: 0 | J33: 0 | K33: 0 | M33: 10 | N33: 0 | O33: 0 | P33: 0 | Q33: 0 | R33: 0 | S33: 0 | T33: 0 | U33: 0 | V33: 0 | X33: 10 | Y33: 0 | Z33: 0 | AA33: 0 | AB33: 0 | AC33: 0 | AD33: 0 | AE33: 0 | AF33: 0 | AG33: 0 | AI33: 10 | AJ33: 0 | AK33: 0 | AL33: 0 | AM33: 0 | AN33: 0 | AO33: 0 | AP33: 0 | AQ33: 0 | AR33: 0 | AS33: 0 | AT33: 0 | AU33: 0 | AV33: 0 | AX33: 0
B34: 11 | C34: 0 | D34: 0 | E34: 0 | F34: 0 | G34: 0 | H34: 0 | I34: 0 | J34: 0 | K34: 0 | M34: 11 | N34: 0 | O34: 0 | P34: 0 | Q34: 0 | R34: 0 | S34: 0 | T34: 0 | U34: 0 | V34: 0 | X34: 11 | Y34: 0 | Z34: 0 | AA34: 0 | AB34: 0 | AC34: 0 | AD34: 0 | AE34: 0 | AF34: 0 | AG34: 0 | AI34: 11 | AJ34: 0 | AK34: 0 | AL34: 0 | AM34: 0 | AN34: 0 | AO34: 0 | AP34: 0 | AQ34: 0 | AR34: 0 | AS34: 0 | AT34: 0 | AU34: 0 | AV34: 0 | AX34: 0
B35: 12 | C35: 0 | D35: 0 | E35: 0 | F35: 0 | G35: 0 | H35: 0 | I35: 0 | J35: 0 | K35: 0 | M35: 12 | N35: 0 | O35: 0 | P35: 0 | Q35: 0 | R35: 0 | S35: 0 | T35: 0 | U35: 0 | V35: 0 | X35: 12 | Y35: 0 | Z35: 0 | AA35: 0 | AB35: 0 | AC35: 0 | AD35: 0 | AE35: 0 | AF35: 0 | AG35: 0 | AI35: 12 | AJ35: 0 | AK35: 0 | AL35: 0 | AM35: 0 | AN35: 0 | AO35: 0 | AP35: 0 | AQ35: 0 | AR35: 0 | AS35: 0 | AT35: 0 | AU35: 0 | AV35: 0 | AX35: 0
B36: 13 | C36: 0 | D36: 0 | E36: 0 | F36: 0 | G36: 0 | H36: 0 | I36: 0 | J36: 0 | K36: 0 | M36: 13 | N36: 0 | O36: 0 | P36: 0 | Q36: 0 | R36: 0 | S36: 0 | T36: 0 | U36: 0 | V36: 0 | X36: 13 | Y36: 0 | Z36: 0 | AA36: 0 | AB36: 0 | AC36: 0 | AD36: 0 | AE36: 0 | AF36: 0 | AG36: 0 | AI36: 13 | AJ36: 0 | AK36: 0 | AL36: 0 | AM36: 0 | AN36: 0 | AO36: 0 | AP36: 0 | AQ36: 0 | AR36: 0 | AS36: 0 | AT36: 0 | AU36: 0 | AV36: 0 | AX36: 0
B37: 14 | C37: 0 | D37: 0 | E37: 0 | F37: 0 | G37: 0 | H37: 0 | I37: 0 | J37: 0 | K37: 0 | M37: 14 | N37: 0 | O37: 0 | P37: 0 | Q37: 0 | R37: 0 | S37: 0 | T37: 0 | U37: 0 | V37: 0 | X37: 14 | Y37: 0 | Z37: 0 | AA37: 0 | AB37: 0 | AC37: 0 | AD37: 0 | AE37: 0 | AF37: 0 | AG37: 0 | AI37: 14 | AJ37: 0 | AK37: 0 | AL37: 0 | AM37: 0 | AN37: 0 | AO37: 0 | AP37: 0 | AQ37: 0 | AR37: 0 | AS37: 0 | AT37: 0 | AU37: 0 | AV37: 0 | AX37: 0
B38: 15 | C38: 0 | D38: 0 | E38: 0 | F38: 0 | G38: 0 | H38: 0 | I38: 0 | J38: 0 | K38: 0 | M38: 15 | N38: 0 | O38: 0 | P38: 0 | Q38: 0 | R38: 0 | S38: 0 | T38: 0 | U38: 0 | V38: 0 | X38: 15 | Y38: 0 | Z38: 0 | AA38: 0 | AB38: 0 | AC38: 0 | AD38: 0 | AE38: 0 | AF38: 0 | AG38: 0 | AI38: 15 | AJ38: 0 | AK38: 0 | AL38: 0 | AM38: 0 | AN38: 0 | AO38: 0 | AP38: 0 | AQ38: 0 | AR38: 0 | AS38: 0 | AT38: 0 | AU38: 0 | AV38: 0 | AX38: 0
B39: 16 | C39: 0 | D39: 0 | E39: 0 | F39: 0 | G39: 0 | H39: 0 | I39: 0 | J39: 0 | K39: 0 | M39: 16 | N39: 0 | O39: 0 | P39: 0 | Q39: 0 | R39: 0 | S39: 0 | T39: 0 | U39: 0 | V39: 0 | X39: 16 | Y39: 0 | Z39: 0 | AA39: 0 | AB39: 0 | AC39: 0 | AD39: 0 | AE39: 0 | AF39: 0 | AG39: 0 | AI39: 16 | AJ39: 0 | AK39: 0 | AL39: 0 | AM39: 0 | AN39: 0 | AO39: 0 | AP39: 0 | AQ39: 0 | AR39: 0 | AS39: 0 | AT39: 0 | AU39: 0 | AV39: 0 | AX39: 0
B40: 17 | C40: 0 | D40: 0 | E40: 0 | F40: 0 | G40: 0 | H40: 0 | I40: 0 | J40: 0 | K40: 0 | M40: 17 | N40: 0 | O40: 0 | P40: 0 | Q40: 0 | R40: 0 | S40: 0 | T40: 0 | U40: 0 | V40: 0 | X40: 17 | Y40: 0 | Z40: 0 | AA40: 0 | AB40: 0 | AC40: 0 | AD40: 0 | AE40: 0 | AF40: 0 | AG40: 0 | AI40: 17 | AJ40: 0 | AK40: 0 | AL40: 0 | AM40: 0 | AN40: 0 | AO40: 0 | AP40: 0 | AQ40: 0 | AR40: 0 | AS40: 0 | AT40: 0 | AU40: 0 | AV40: 0 | AX40: 0
B41: 18 | C41: 0 | D41: 0 | E41: 0 | F41: 0 | G41: 0 | H41: 0 | I41: 0 | J41: 0 | K41: 0 | M41: 18 | N41: 0 | O41: 0 | P41: 0 | Q41: 0 | R41: 0 | S41: 0 | T41: 0 | U41: 0 | V41: 0 | X41: 18 | Y41: 0 | Z41: 0 | AA41: 0 | AB41: 0 | AC41: 0 | AD41: 0 | AE41: 0 | AF41: 0 | AG41: 0 | AI41: 18 | AJ41: 0 | AK41: 0 | AL41: 0 | AM41: 0 | AN41: 0 | AO41: 0 | AP41: 0 | AQ41: 0 | AR41: 0 | AS41: 0 | AT41: 0 | AU41: 0 | AV41: 0 | AX41: 0
B42: 19 | C42: 0 | D42: 0 | E42: 0 | F42: 0 | G42: 0 | H42: 0 | I42: 0 | J42: 0 | K42: 0 | M42: 19 | N42: 0 | O42: 0 | P42: 0 | Q42: 0 | R42: 0 | S42: 0 | T42: 0 | U42: 0 | V42: 0 | X42: 19 | Y42: 0 | Z42: 0 | AA42: 0 | AB42: 0 | AC42: 0 | AD42: 0 | AE42: 0 | AF42: 0 | AG42: 0 | AI42: 19 | AJ42: 0 | AK42: 0 | AL42: 0 | AM42: 0 | AN42: 0 | AO42: 0 | AP42: 0 | AQ42: 0 | AR42: 0 | AS42: 0 | AT42: 0 | AU42: 0 | AV42: 0 | AX42: 0
B43: 20 | C43: 0 | D43: 0 | E43: 0 | F43: 0 | G43: 0 | H43: 0 | I43: 0 | J43: 0 | K43: 0 | M43: 20 | N43: 0 | O43: 0 | P43: 0 | Q43: 0 | R43: 0 | S43: 0 | T43: 0 | U43: 0 | V43: 0 | X43: 20 | Y43: 0 | Z43: 0 | AA43: 0 | AB43: 0 | AC43: 0 | AD43: 0 | AE43: 0 | AF43: 0 | AG43: 0 | AI43: 20 | AJ43: 0 | AK43: 0 | AL43: 0 | AM43: 0 | AN43: 0 | AO43: 0 | AP43: 0 | AQ43: 0 | AR43: 0 | AS43: 0 | AT43: 0 | AU43: 0 | AV43: 0 | AX43: 0
B45: Total | K45: =SUM(K24:K43) -> 0 | M45: Total | V45: =SUM(V24:V43) -> 0 | X45: Total | AG45: =SUM(AG24:AG43) -> 0 | AI45: Total | AJ45: =SUM(AJ24:AJ43) -> 0 | AK45: =SUM(AK24:AK43) -> 0 | AL45: =SUM(AL24:AL43) -> 0 | AM45: =SUM(AM24:AM43) -> 0 | AN45: =SUM(AN24:AN43) -> 0 | AO45: =SUM(AO24:AO43) -> 0 | AP45: 0 | AQ45: 0 | AR45: =SUM(AR24:AR43) -> 0 | AS45: =SUM(AS24:AS43) -> 0 | AT45: =SUM(AT24:AT43) -> 0 | AU45: =SUM(AU24:AU43) -> 0 | AV45: =SUM(AV24:AV43) -> 0 | AX45: =SUM(AX24:AX43) -> 0
AI47: =IF(Accidents<>"N","","* Accident Cost Savings Not Counted") -> 
B48: Existing Transit Riders (switch from local bus to express bus) | M48: Existing Transit Riders (switch from local bus to express bus) | X48: Existing Transit Riders (switch from local bus to express bus)
C50: ANNUAL NUMBER OF USERS | F50: TOTAL AUTO VMT | H50: CRASH COSTS | N50: ANNUAL NUMBER OF USERS | Q50: TOTAL AUTO VMT | S50: CRASH COSTS | Y50: ANNUAL NUMBER OF USERS | AB50: TOTAL AUTO VMT | AD50: CRASH COSTS
C51: (people/yr) | F51: (veh-miles/yr) | H51: ($/yr) | N51: (people/yr) | Q51: (veh-miles/yr) | S51: ($/yr) | Y51: (people/yr) | AB51: (veh-miles/yr) | AD51: ($/yr)
B52: Year | C52: Existing | D52: New | E52: Users | J52: Constant | K52: Present | M52: Year | N52: Existing | O52: New | P52: Users | U52: Constant | V52: Present | X52: Year | Y52: Existing | Z52: New | AA52: Users | AF52: Constant | AG52: Present
C53: Lot | D53: Lot | E53: Benefited | F53: No Build | G53: Build | H53: No Build | I53: Build | J53: Dollars | K53: Value | N53: Lot | O53: Lot | P53: Benefited | Q53: No Build | R53: Build | S53: No Build | T53: Build | U53: Dollars | V53: Value | Y53: Lot | Z53: Lot | AA53: Benefited | AB53: No Build | AC53: Build | AD53: No Build | AE53: Build | AF53: Dollars | AG53: Value
B54: 1 | C54: =IF(SpacesNB=0,0,(IF(B54>CapYrNB,1,(B54-1)/CapYrNB)*MAX(0,(100%-PctFillNB))+(PctFillNB))*(SpacesNB*AVONB+IF(PctFillNB=0,BikePedNB,BikePedNB/PctFillNB))*AnnualFactor)*PctLotUser1*PctETransit1 -> 0 | D54: =IF(SpacesB=0,0,(IF(B54>CapYrB,1,(B54-1)/CapYrB)*MAX(0,(100%-PctFillB))+(PctFillB))*(SpacesB*AVOB+IF(PctFillB=0,BikePedB,BikePedB/PctFillB))*AnnualFactor)*PctLotUser1*PctETransit1 -> 0 | E54: =MAX(0,D54-C54) -> 0 | F54: 0 | G54: 0 | H54: 0 | I54: 0 | J54: =H54-I54 -> 0 | K54: =$J54/(1+DiscRate)^($B54+Construct-1) -> 0 | M54: 1 | N54: =IF(SpacesNB=0,0,(IF(M54>CapYrNB,1,(M54-1)/CapYrNB)*MAX(0,(100%-PctFillNB))+(PctFillNB))*(SpacesNB*AVONB+IF(PctFillNB=0,BikePedNB,BikePedNB/PctFillNB))*AnnualFactor)*PctLotUser2*PctETransit2 -> 0 | O54: =IF(SpacesB=0,0,(IF(M54>CapYrB,1,(M54-1)/CapYrB)*MAX(0,(100%-PctFillB))+(PctFillB))*(SpacesB*AVOB+IF(PctFillB=0,BikePedB,BikePedB/PctFillB))*AnnualFactor)*PctLotUser2*PctETransit2 -> 0 | P54: =MAX(0,O54-N54) -> 0 | Q54: 0 | R54: 0 | S54: 0 | T54: 0 | U54: =S54-T54 -> 0 | V54: =$U54/(1+DiscRate)^($M54+Construct-1) -> 0 | X54: 1 | Y54: =IF(SpacesNB=0,0,(IF(X54>CapYrNB,1,(X54-1)/CapYrNB)*MAX(0,(100%-PctFillNB))+(PctFillNB))*(SpacesNB*AVONB+IF(PctFillNB=0,BikePedNB,BikePedNB/PctFillNB))*AnnualFactor)*PctLotUser3*PctETransit3 -> 0 | Z54: =IF(SpacesB=0,0,(IF(X54>CapYrB,1,(X54-1)/CapYrB)*MAX(0,(100%-PctFillB))+(PctFillB))*(SpacesB*AVOB+IF(PctFillB=0,BikePedB,BikePedB/PctFillB))*AnnualFactor)*PctLotUser3*PctETransit3 -> 0 | AA54: =MAX(0,Z54-Y54) -> 0 | AB54: 0 | AC54: 0 | AD54: 0 | AE54: 0 | AF54: =AD54-AE54 -> 0 | AG54: =$AF54/(1+DiscRate)^($X54+Construct-1) -> 0
B55: 2 | C55: 0 | D55: 0 | E55: =MAX(0,D55-C55) -> 0 | F55: 0 | G55: 0 | H55: 0 | I55: 0 | J55: =H55-I55 -> 0 | K55: =$J55/(1+DiscRate)^($B55+Construct-1) -> 0 | M55: 2 | N55: 0 | O55: 0 | P55: =MAX(0,O55-N55) -> 0 | Q55: 0 | R55: 0 | S55: 0 | T55: 0 | U55: =S55-T55 -> 0 | V55: 0 | X55: 2 | Y55: 0 | Z55: 0 | AA55: =MAX(0,Z55-Y55) -> 0 | AB55: 0 | AC55: 0 | AD55: 0 | AE55: 0 | AF55: =AD55-AE55 -> 0 | AG55: 0
B56: 3 | C56: 0 | D56: 0 | E56: 0 | F56: 0 | G56: 0 | H56: 0 | I56: 0 | J56: =H56-I56 -> 0 | K56: =$J56/(1+DiscRate)^($B56+Construct-1) -> 0 | M56: 3 | N56: 0 | O56: 0 | P56: 0 | Q56: 0 | R56: 0 | S56: 0 | T56: 0 | U56: =S56-T56 -> 0 | V56: 0 | X56: 3 | Y56: 0 | Z56: 0 | AA56: 0 | AB56: 0 | AC56: 0 | AD56: 0 | AE56: 0 | AF56: =AD56-AE56 -> 0 | AG56: 0
B57: 4 | C57: 0 | D57: 0 | E57: 0 | F57: 0 | G57: 0 | H57: 0 | I57: 0 | J57: 0 | K57: 0 | M57: 4 | N57: 0 | O57: 0 | P57: 0 | Q57: 0 | R57: 0 | S57: 0 | T57: 0 | U57: 0 | V57: 0 | X57: 4 | Y57: 0 | Z57: 0 | AA57: 0 | AB57: 0 | AC57: 0 | AD57: 0 | AE57: 0 | AF57: 0 | AG57: 0
B58: 5 | C58: 0 | D58: 0 | E58: 0 | F58: 0 | G58: 0 | H58: 0 | I58: 0 | J58: 0 | K58: 0 | M58: 5 | N58: 0 | O58: 0 | P58: 0 | Q58: 0 | R58: 0 | S58: 0 | T58: 0 | U58: 0 | V58: 0 | X58: 5 | Y58: 0 | Z58: 0 | AA58: 0 | AB58: 0 | AC58: 0 | AD58: 0 | AE58: 0 | AF58: 0 | AG58: 0
B59: 6 | C59: 0 | D59: 0 | E59: 0 | F59: 0 | G59: 0 | H59: 0 | I59: 0 | J59: 0 | K59: 0 | M59: 6 | N59: 0 | O59: 0 | P59: 0 | Q59: 0 | R59: 0 | S59: 0 | T59: 0 | U59: 0 | V59: 0 | X59: 6 | Y59: 0 | Z59: 0 | AA59: 0 | AB59: 0 | AC59: 0 | AD59: 0 | AE59: 0 | AF59: 0 | AG59: 0
B60: 7 | C60: 0 | D60: 0 | E60: 0 | F60: 0 | G60: 0 | H60: 0 | I60: 0 | J60: 0 | K60: 0 | M60: 7 | N60: 0 | O60: 0 | P60: 0 | Q60: 0 | R60: 0 | S60: 0 | T60: 0 | U60: 0 | V60: 0 | X60: 7 | Y60: 0 | Z60: 0 | AA60: 0 | AB60: 0 | AC60: 0 | AD60: 0 | AE60: 0 | AF60: 0 | AG60: 0
B61: 8 | C61: 0 | D61: 0 | E61: 0 | F61: 0 | G61: 0 | H61: 0 | I61: 0 | J61: 0 | K61: 0 | M61: 8 | N61: 0 | O61: 0 | P61: 0 | Q61: 0 | R61: 0 | S61: 0 | T61: 0 | U61: 0 | V61: 0 | X61: 8 | Y61: 0 | Z61: 0 | AA61: 0 | AB61: 0 | AC61: 0 | AD61: 0 | AE61: 0 | AF61: 0 | AG61: 0
B62: 9 | C62: 0 | D62: 0 | E62: 0 | F62: 0 | G62: 0 | H62: 0 | I62: 0 | J62: 0 | K62: 0 | M62: 9 | N62: 0 | O62: 0 | P62: 0 | Q62: 0 | R62: 0 | S62: 0 | T62: 0 | U62: 0 | V62: 0 | X62: 9 | Y62: 0 | Z62: 0 | AA62: 0 | AB62: 0 | AC62: 0 | AD62: 0 | AE62: 0 | AF62: 0 | AG62: 0
B63: 10 | C63: 0 | D63: 0 | E63: 0 | F63: 0 | G63: 0 | H63: 0 | I63: 0 | J63: 0 | K63: 0 | M63: 10 | N63: 0 | O63: 0 | P63: 0 | Q63: 0 | R63: 0 | S63: 0 | T63: 0 | U63: 0 | V63: 0 | X63: 10 | Y63: 0 | Z63: 0 | AA63: 0 | AB63: 0 | AC63: 0 | AD63: 0 | AE63: 0 | AF63: 0 | AG63: 0
B64: 11 | C64: 0 | D64: 0 | E64: 0 | F64: 0 | G64: 0 | H64: 0 | I64: 0 | J64: 0 | K64: 0 | M64: 11 | N64: 0 | O64: 0 | P64: 0 | Q64: 0 | R64: 0 | S64: 0 | T64: 0 | U64: 0 | V64: 0 | X64: 11 | Y64: 0 | Z64: 0 | AA64: 0 | AB64: 0 | AC64: 0 | AD64: 0 | AE64: 0 | AF64: 0 | AG64: 0
B65: 12 | C65: 0 | D65: 0 | E65: 0 | F65: 0 | G65: 0 | H65: 0 | I65: 0 | J65: 0 | K65: 0 | M65: 12 | N65: 0 | O65: 0 | P65: 0 | Q65: 0 | R65: 0 | S65: 0 | T65: 0 | U65: 0 | V65: 0 | X65: 12 | Y65: 0 | Z65: 0 | AA65: 0 | AB65: 0 | AC65: 0 | AD65: 0 | AE65: 0 | AF65: 0 | AG65: 0
B66: 13 | C66: 0 | D66: 0 | E66: 0 | F66: 0 | G66: 0 | H66: 0 | I66: 0 | J66: 0 | K66: 0 | M66: 13 | N66: 0 | O66: 0 | P66: 0 | Q66: 0 | R66: 0 | S66: 0 | T66: 0 | U66: 0 | V66: 0 | X66: 13 | Y66: 0 | Z66: 0 | AA66: 0 | AB66: 0 | AC66: 0 | AD66: 0 | AE66: 0 | AF66: 0 | AG66: 0
B67: 14 | C67: 0 | D67: 0 | E67: 0 | F67: 0 | G67: 0 | H67: 0 | I67: 0 | J67: 0 | K67: 0 | M67: 14 | N67: 0 | O67: 0 | P67: 0 | Q67: 0 | R67: 0 | S67: 0 | T67: 0 | U67: 0 | V67: 0 | X67: 14 | Y67: 0 | Z67: 0 | AA67: 0 | AB67: 0 | AC67: 0 | AD67: 0 | AE67: 0 | AF67: 0 | AG67: 0
B68: 15 | C68: 0 | D68: 0 | E68: 0 | F68: 0 | G68: 0 | H68: 0 | I68: 0 | J68: 0 | K68: 0 | M68: 15 | N68: 0 | O68: 0 | P68: 0 | Q68: 0 | R68: 0 | S68: 0 | T68: 0 | U68: 0 | V68: 0 | X68: 15 | Y68: 0 | Z68: 0 | AA68: 0 | AB68: 0 | AC68: 0 | AD68: 0 | AE68: 0 | AF68: 0 | AG68: 0
B69: 16 | C69: 0 | D69: 0 | E69: 0 | F69: 0 | G69: 0 | H69: 0 | I69: 0 | J69: 0 | K69: 0 | M69: 16 | N69: 0 | O69: 0 | P69: 0 | Q69: 0 | R69: 0 | S69: 0 | T69: 0 | U69: 0 | V69: 0 | X69: 16 | Y69: 0 | Z69: 0 | AA69: 0 | AB69: 0 | AC69: 0 | AD69: 0 | AE69: 0 | AF69: 0 | AG69: 0
B70: 17 | C70: 0 | D70: 0 | E70: 0 | F70: 0 | G70: 0 | H70: 0 | I70: 0 | J70: 0 | K70: 0 | M70: 17 | N70: 0 | O70: 0 | P70: 0 | Q70: 0 | R70: 0 | S70: 0 | T70: 0 | U70: 0 | V70: 0 | X70: 17 | Y70: 0 | Z70: 0 | AA70: 0 | AB70: 0 | AC70: 0 | AD70: 0 | AE70: 0 | AF70: 0 | AG70: 0
B71: 18 | C71: 0 | D71: 0 | E71: 0 | F71: 0 | G71: 0 | H71: 0 | I71: 0 | J71: 0 | K71: 0 | M71: 18 | N71: 0 | O71: 0 | P71: 0 | Q71: 0 | R71: 0 | S71: 0 | T71: 0 | U71: 0 | V71: 0 | X71: 18 | Y71: 0 | Z71: 0 | AA71: 0 | AB71: 0 | AC71: 0 | AD71: 0 | AE71: 0 | AF71: 0 | AG71: 0
B72: 19 | C72: 0 | D72: 0 | E72: 0 | F72: 0 | G72: 0 | H72: 0 | I72: 0 | J72: 0 | K72: 0 | M72: 19 | N72: 0 | O72: 0 | P72: 0 | Q72: 0 | R72: 0 | S72: 0 | T72: 0 | U72: 0 | V72: 0 | X72: 19 | Y72: 0 | Z72: 0 | AA72: 0 | AB72: 0 | AC72: 0 | AD72: 0 | AE72: 0 | AF72: 0 | AG72: 0
B73: 20 | C73: 0 | D73: 0 | E73: 0 | F73: 0 | G73: 0 | H73: 0 | I73: 0 | J73: 0 | K73: 0 | M73: 20 | N73: 0 | O73: 0 | P73: 0 | Q73: 0 | R73: 0 | S73: 0 | T73: 0 | U73: 0 | V73: 0 | X73: 20 | Y73: 0 | Z73: 0 | AA73: 0 | AB73: 0 | AC73: 0 | AD73: 0 | AE73: 0 | AF73: 0 | AG73: 0
B75: Total | K75: =SUM(K54:K73) -> 0 | M75: Total | V75: =SUM(V54:V73) -> 0 | X75: Total | AG75: =SUM(AG54:AG73) -> 0
B78: New Carpoolers (switch from automobile to carpool) | M78: New Carpoolers (switch from automobile to carpool) | X78: New Carpoolers (switch from automobile to carpool)
C80: ANNUAL NUMBER OF USERS | F80: TOTAL AUTO VMT | H80: CRASH COSTS | N80: ANNUAL NUMBER OF USERS | Q80: TOTAL AUTO VMT | S80: CRASH COSTS | Y80: ANNUAL NUMBER OF USERS | AB80: TOTAL AUTO VMT | AD80: CRASH COSTS
C81: (people/yr) | F81: (veh-miles/yr) | H81: ($/yr) | N81: (people/yr) | Q81: (veh-miles/yr) | S81: ($/yr) | Y81: (people/yr) | AB81: (veh-miles/yr) | AD81: ($/yr)
B82: Year | C82: Existing | D82: New | E82: Users | J82: Constant | K82: Present | M82: Year | N82: Existing | O82: New | P82: Users | U82: Constant | V82: Present | X82: Year | Y82: Existing | Z82: New | AA82: Users | AF82: Constant | AG82: Present
C83: Lot | D83: Lot | E83: Benefited | F83: No Build | G83: Build | H83: No Build | I83: Build | J83: Dollars | K83: Value | N83: Lot | O83: Lot | P83: Benefited | Q83: No Build | R83: Build | S83: No Build | T83: Build | U83: Dollars | V83: Value | Y83: Lot | Z83: Lot | AA83: Benefited | AB83: No Build | AC83: Build | AD83: No Build | AE83: Build | AF83: Dollars | AG83: Value
B84: 1 | C84: =IF(SpacesNB=0,0,(IF(B84>CapYrNB,1,(B84-1)/CapYrNB)*MAX(0,(100%-PctFillNB))+(PctFillNB))*(SpacesNB*AVONB+IF(PctFillNB=0,BikePedNB,BikePedNB/PctFillNB))*AnnualFactor)*PctLotUser1*PctNCarpool1 -> 0 | D84: =IF(SpacesB=0,0,(IF(B84>CapYrB,1,(B84-1)/CapYrB)*MAX(0,(100%-PctFillB))+(PctFillB))*(SpacesB*AVOB+IF(PctFillB=0,BikePedB,BikePedB/PctFillB))*AnnualFactor)*PctLotUser1*PctNCarpool1 -> 0 | E84: =MAX(0,D84-C84) -> 0 | F84: =E84/AVOB*Distance1*2 -> 0 | G84: =IF(PctNCarpool1=0,0,E84/AVOCarpool1*Distance1*2) -> 0 | H84: =F84/1000000*HwyAccRate1*(HwyFatCost*HwyPctFat1+HwyInjCost*HwyPctInj1+HwyPDOCost*(1-HwyPctFat1-HwyPctInj1)) -> 0 | I84: =G84/1000000*HwyAccRate1*(HwyFatCost*HwyPctFat1+HwyInjCost*HwyPctInj1+HwyPDOCost*(1-HwyPctFat1-HwyPctInj1)) -> 0 | J84: =H84-I84 -> 0 | K84: =$J84/(1+DiscRate)^($B84+Construct-1) -> 0 | M84: 1 | N84: =IF(SpacesNB=0,0,(IF(M84>CapYrNB,1,(M84-1)/CapYrNB)*MAX(0,(100%-PctFillNB))+(PctFillNB))*(SpacesNB*AVONB+IF(PctFillNB=0,BikePedNB,BikePedNB/PctFillNB))*AnnualFactor)*PctLotUser2*PctNCarpool2 -> 0 | O84: =IF(SpacesB=0,0,(IF(M84>CapYrB,1,(M84-1)/CapYrB)*MAX(0,(100%-PctFillB))+(PctFillB))*(SpacesB*AVOB+IF(PctFillB=0,BikePedB,BikePedB/PctFillB))*AnnualFactor)*PctLotUser2*PctNCarpool2 -> 0 | P84: =MAX(0,O84-N84) -> 0 | Q84: =P84/AVOB*Distance2*2 -> 0 | R84: =IF(PctNCarpool2=0,0,P84/AVOCarpool2*Distance2*2) -> 0 | S84: =Q84/1000000*HwyAccRate2*(HwyFatCost*HwyPctFat2+HwyInjCost*HwyPctInj2+HwyPDOCost*(1-HwyPctFat2-HwyPctInj2)) -> 0 | T84: =R84/1000000*HwyAccRate2*(HwyFatCost*HwyPctFat2+HwyInjCost*HwyPctInj2+HwyPDOCost*(1-HwyPctFat2-HwyPctInj2)) -> 0 | U84: =S84-T84 -> 0 | V84: =$U84/(1+DiscRate)^($M84+Construct-1) -> 0 | X84: 1 | Y84: =IF(SpacesNB=0,0,(IF(X84>CapYrNB,1,(X84-1)/CapYrNB)*MAX(0,(100%-PctFillNB))+(PctFillNB))*(SpacesNB*AVONB+IF(PctFillNB=0,BikePedNB,BikePedNB/PctFillNB))*AnnualFactor)*PctLotUser3*PctNCarpool3 -> 0 | Z84: =IF(SpacesB=0,0,(IF(X84>CapYrB,1,(X84-1)/CapYrB)*MAX(0,(100%-PctFillB))+(PctFillB))*(SpacesB*AVOB+IF(PctFillB=0,BikePedB,BikePedB/PctFillB))*AnnualFactor)*PctLotUser3*PctNCarpool3 -> 0 | AA84: =MAX(0,Z84-Y84) -> 0 | AB84: =AA84/AVOB*Distance3*2 -> 0 | AC84: =IF(PctNCarpool3=0,0,AA84/AVOCarpool3*Distance3*2) -> 0 | AD84: =AB84/1000000*HwyAccRate3*(HwyFatCost*HwyPctFat3+HwyInjCost*HwyPctInj3+HwyPDOCost*(1-HwyPctFat3-HwyPctInj3)) -> 0 | AE84: =AC84/1000000*HwyAccRate3*(HwyFatCost*HwyPctFat3+HwyInjCost*HwyPctInj3+HwyPDOCost*(1-HwyPctFat3-HwyPctInj3)) -> 0 | AF84: =AD84-AE84 -> 0 | AG84: =$AF84/(1+DiscRate)^($X84+Construct-1) -> 0
B85: 2 | C85: 0 | D85: 0 | E85: =MAX(0,D85-C85) -> 0 | F85: 0 | G85: 0 | H85: 0 | I85: 0 | J85: =H85-I85 -> 0 | K85: =$J85/(1+DiscRate)^($B85+Construct-1) -> 0 | M85: 2 | N85: 0 | O85: 0 | P85: =MAX(0,O85-N85) -> 0 | Q85: 0 | R85: 0 | S85: 0 | T85: 0 | U85: =S85-T85 -> 0 | V85: 0 | X85: 2 | Y85: 0 | Z85: 0 | AA85: =MAX(0,Z85-Y85) -> 0 | AB85: 0 | AC85: 0 | AD85: 0 | AE85: 0 | AF85: =AD85-AE85 -> 0 | AG85: 0
B86: 3 | C86: 0 | D86: 0 | E86: 0 | F86: 0 | G86: 0 | H86: 0 | I86: 0 | J86: =H86-I86 -> 0 | K86: =$J86/(1+DiscRate)^($B86+Construct-1) -> 0 | M86: 3 | N86: 0 | O86: 0 | P86: 0 | Q86: 0 | R86: 0 | S86: 0 | T86: 0 | U86: =S86-T86 -> 0 | V86: 0 | X86: 3 | Y86: 0 | Z86: 0 | AA86: 0 | AB86: 0 | AC86: 0 | AD86: 0 | AE86: 0 | AF86: =AD86-AE86 -> 0 | AG86: 0
B87: 4 | C87: 0 | D87: 0 | E87: 0 | F87: 0 | G87: 0 | H87: 0 | I87: 0 | J87: 0 | K87: 0 | M87: 4 | N87: 0 | O87: 0 | P87: 0 | Q87: 0 | R87: 0 | S87: 0 | T87: 0 | U87: 0 | V87: 0 | X87: 4 | Y87: 0 | Z87: 0 | AA87: 0 | AB87: 0 | AC87: 0 | AD87: 0 | AE87: 0 | AF87: 0 | AG87: 0
B88: 5 | C88: 0 | D88: 0 | E88: 0 | F88: 0 | G88: 0 | H88: 0 | I88: 0 | J88: 0 | K88: 0 | M88: 5 | N88: 0 | O88: 0 | P88: 0 | Q88: 0 | R88: 0 | S88: 0 | T88: 0 | U88: 0 | V88: 0 | X88: 5 | Y88: 0 | Z88: 0 | AA88: 0 | AB88: 0 | AC88: 0 | AD88: 0 | AE88: 0 | AF88: 0 | AG88: 0
B89: 6 | C89: 0 | D89: 0 | E89: 0 | F89: 0 | G89: 0 | H89: 0 | I89: 0 | J89: 0 | K89: 0 | M89: 6 | N89: 0 | O89: 0 | P89: 0 | Q89: 0 | R89: 0 | S89: 0 | T89: 0 | U89: 0 | V89: 0 | X89: 6 | Y89: 0 | Z89: 0 | AA89: 0 | AB89: 0 | AC89: 0 | AD89: 0 | AE89: 0 | AF89: 0 | AG89: 0
B90: 7 | C90: 0 | D90: 0 | E90: 0 | F90: 0 | G90: 0 | H90: 0 | I90: 0 | J90: 0 | K90: 0 | M90: 7 | N90: 0 | O90: 0 | P90: 0 | Q90: 0 | R90: 0 | S90: 0 | T90: 0 | U90: 0 | V90: 0 | X90: 7 | Y90: 0 | Z90: 0 | AA90: 0 | AB90: 0 | AC90: 0 | AD90: 0 | AE90: 0 | AF90: 0 | AG90: 0
B91: 8 | C91: 0 | D91: 0 | E91: 0 | F91: 0 | G91: 0 | H91: 0 | I91: 0 | J91: 0 | K91: 0 | M91: 8 | N91: 0 | O91: 0 | P91: 0 | Q91: 0 | R91: 0 | S91: 0 | T91: 0 | U91: 0 | V91: 0 | X91: 8 | Y91: 0 | Z91: 0 | AA91: 0 | AB91: 0 | AC91: 0 | AD91: 0 | AE91: 0 | AF91: 0 | AG91: 0
B92: 9 | C92: 0 | D92: 0 | E92: 0 | F92: 0 | G92: 0 | H92: 0 | I92: 0 | J92: 0 | K92: 0 | M92: 9 | N92: 0 | O92: 0 | P92: 0 | Q92: 0 | R92: 0 | S92: 0 | T92: 0 | U92: 0 | V92: 0 | X92: 9 | Y92: 0 | Z92: 0 | AA92: 0 | AB92: 0 | AC92: 0 | AD92: 0 | AE92: 0 | AF92: 0 | AG92: 0
B93: 10 | C93: 0 | D93: 0 | E93: 0 | F93: 0 | G93: 0 | H93: 0 | I93: 0 | J93: 0 | K93: 0 | M93: 10 | N93: 0 | O93: 0 | P93: 0 | Q93: 0 | R93: 0 | S93: 0 | T93: 0 | U93: 0 | V93: 0 | X93: 10 | Y93: 0 | Z93: 0 | AA93: 0 | AB93: 0 | AC93: 0 | AD93: 0 | AE93: 0 | AF93: 0 | AG93: 0
B94: 11 | C94: 0 | D94: 0 | E94: 0 | F94: 0 | G94: 0 | H94: 0 | I94: 0 | J94: 0 | K94: 0 | M94: 11 | N94: 0 | O94: 0 | P94: 0 | Q94: 0 | R94: 0 | S94: 0 | T94: 0 | U94: 0 | V94: 0 | X94: 11 | Y94: 0 | Z94: 0 | AA94: 0 | AB94: 0 | AC94: 0 | AD94: 0 | AE94: 0 | AF94: 0 | AG94: 0
B95: 12 | C95: 0 | D95: 0 | E95: 0 | F95: 0 | G95: 0 | H95: 0 | I95: 0 | J95: 0 | K95: 0 | M95: 12 | N95: 0 | O95: 0 | P95: 0 | Q95: 0 | R95: 0 | S95: 0 | T95: 0 | U95: 0 | V95: 0 | X95: 12 | Y95: 0 | Z95: 0 | AA95: 0 | AB95: 0 | AC95: 0 | AD95: 0 | AE95: 0 | AF95: 0 | AG95: 0
B96: 13 | C96: 0 | D96: 0 | E96: 0 | F96: 0 | G96: 0 | H96: 0 | I96: 0 | J96: 0 | K96: 0 | M96: 13 | N96: 0 | O96: 0 | P96: 0 | Q96: 0 | R96: 0 | S96: 0 | T96: 0 | U96: 0 | V96: 0 | X96: 13 | Y96: 0 | Z96: 0 | AA96: 0 | AB96: 0 | AC96: 0 | AD96: 0 | AE96: 0 | AF96: 0 | AG96: 0
B97: 14 | C97: 0 | D97: 0 | E97: 0 | F97: 0 | G97: 0 | H97: 0 | I97: 0 | J97: 0 | K97: 0 | M97: 14 | N97: 0 | O97: 0 | P97: 0 | Q97: 0 | R97: 0 | S97: 0 | T97: 0 | U97: 0 | V97: 0 | X97: 14 | Y97: 0 | Z97: 0 | AA97: 0 | AB97: 0 | AC97: 0 | AD97: 0 | AE97: 0 | AF97: 0 | AG97: 0
B98: 15 | C98: 0 | D98: 0 | E98: 0 | F98: 0 | G98: 0 | H98: 0 | I98: 0 | J98: 0 | K98: 0 | M98: 15 | N98: 0 | O98: 0 | P98: 0 | Q98: 0 | R98: 0 | S98: 0 | T98: 0 | U98: 0 | V98: 0 | X98: 15 | Y98: 0 | Z98: 0 | AA98: 0 | AB98: 0 | AC98: 0 | AD98: 0 | AE98: 0 | AF98: 0 | AG98: 0
B99: 16 | C99: 0 | D99: 0 | E99: 0 | F99: 0 | G99: 0 | H99: 0 | I99: 0 | J99: 0 | K99: 0 | M99: 16 | N99: 0 | O99: 0 | P99: 0 | Q99: 0 | R99: 0 | S99: 0 | T99: 0 | U99: 0 | V99: 0 | X99: 16 | Y99: 0 | Z99: 0 | AA99: 0 | AB99: 0 | AC99: 0 | AD99: 0 | AE99: 0 | AF99: 0 | AG99: 0
B100: 17 | C100: 0 | D100: 0 | E100: 0 | F100: 0 | G100: 0 | H100: 0 | I100: 0 | J100: 0 | K100: 0 | M100: 17 | N100: 0 | O100: 0 | P100: 0 | Q100: 0 | R100: 0 | S100: 0 | T100: 0 | U100: 0 | V100: 0 | X100: 17 | Y100: 0 | Z100: 0 | AA100: 0 | AB100: 0 | AC100: 0 | AD100: 0 | AE100: 0 | AF100: 0 | AG100: 0
B101: 18 | C101: 0 | D101: 0 | E101: 0 | F101: 0 | G101: 0 | H101: 0 | I101: 0 | J101: 0 | K101: 0 | M101: 18 | N101: 0 | O101: 0 | P101: 0 | Q101: 0 | R101: 0 | S101: 0 | T101: 0 | U101: 0 | V101: 0 | X101: 18 | Y101: 0 | Z101: 0 | AA101: 0 | AB101: 0 | AC101: 0 | AD101: 0 | AE101: 0 | AF101: 0 | AG101: 0
B102: 19 | C102: 0 | D102: 0 | E102: 0 | F102: 0 | G102: 0 | H102: 0 | I102: 0 | J102: 0 | K102: 0 | M102: 19 | N102: 0 | O102: 0 | P102: 0 | Q102: 0 | R102: 0 | S102: 0 | T102: 0 | U102: 0 | V102: 0 | X102: 19 | Y102: 0 | Z102: 0 | AA102: 0 | AB102: 0 | AC102: 0 | AD102: 0 | AE102: 0 | AF102: 0 | AG102: 0
B103: 20 | C103: 0 | D103: 0 | E103: 0 | F103: 0 | G103: 0 | H103: 0 | I103: 0 | J103: 0 | K103: 0 | M103: 20 | N103: 0 | O103: 0 | P103: 0 | Q103: 0 | R103: 0 | S103: 0 | T103: 0 | U103: 0 | V103: 0 | X103: 20 | Y103: 0 | Z103: 0 | AA103: 0 | AB103: 0 | AC103: 0 | AD103: 0 | AE103: 0 | AF103: 0 | AG103: 0
B105: Total | K105: =SUM(K84:K103) -> 0 | M105: Total | V105: =SUM(V84:V103) -> 0 | X105: Total | AG105: =SUM(AG84:AG103) -> 0
B108: Existing Carpoolers (switch park-n-ride lots) | M108: Existing Carpoolers (switch park-n-ride lots) | X108: Existing Carpoolers (switch park-n-ride lots)
C110: ANNUAL NUMBER OF USERS | F110: TOTAL AUTO VMT | H110: CRASH COSTS | N110: ANNUAL NUMBER OF USERS | Q110: TOTAL AUTO VMT | S110: CRASH COSTS | Y110: ANNUAL NUMBER OF USERS | AB110: TOTAL AUTO VMT | AD110: CRASH COSTS
C111: (people/yr) | F111: (veh-miles/yr) | H111: ($/yr) | N111: (people/yr) | Q111: (veh-miles/yr) | S111: ($/yr) | Y111: (people/yr) | AB111: (veh-miles/yr) | AD111: ($/yr)
B112: Year | C112: Existing | D112: New | E112: Users | J112: Constant | K112: Present | M112: Year | N112: Existing | O112: New | P112: Users | U112: Constant | V112: Present | X112: Year | Y112: Existing | Z112: New | AA112: Users | AF112: Constant | AG112: Present
C113: Lot | D113: Lot | E113: Benefited | F113: No Build | G113: Build | H113: No Build | I113: Build | J113: Dollars | K113: Value | N113: Lot | O113: Lot | P113: Benefited | Q113: No Build | R113: Build | S113: No Build | T113: Build | U113: Dollars | V113: Value | Y113: Lot | Z113: Lot | AA113: Benefited | AB113: No Build | AC113: Build | AD113: No Build | AE113: Build | AF113: Dollars | AG113: Value
B114: 1 | C114: =IF(SpacesNB=0,0,(IF(B114>CapYrNB,1,(B114-1)/CapYrNB)*MAX(0,(100%-PctFillNB))+(PctFillNB))*(SpacesNB*AVONB+IF(PctFillNB=0,BikePedNB,BikePedNB/PctFillNB))*AnnualFactor)*PctLotUser1*PctECarpool1 -> 0 | D114: =IF(SpacesB=0,0,(IF(B114>CapYrB,1,(B114-1)/CapYrB)*MAX(0,(100%-PctFillB))+(PctFillB))*(SpacesB*AVOB+IF(PctFillB=0,BikePedB,BikePedB/PctFillB))*AnnualFactor)*PctLotUser1*PctECarpool1 -> 0 | E114: =MAX(0,D114-C114) -> 0 | F114: =E114/AVOB*NextDist1*2 -> 0 | G114: =IF(PctECarpool1=0,0,E114/AVOCarpool1*NextDist1*2) -> 0 | H114: =F114/1000000*HwyAccRate1*(HwyFatCost*HwyPctFat1+HwyInjCost*HwyPctInj1+HwyPDOCost*(1-HwyPctFat1-HwyPctInj1)) -> 0 | I114: =G114/1000000*HwyAccRate1*(HwyFatCost*HwyPctFat1+HwyInjCost*HwyPctInj1+HwyPDOCost*(1-HwyPctFat1-HwyPctInj1)) -> 0 | J114: =H114-I114 -> 0 | K114: =$J114/(1+DiscRate)^($B114+Construct-1) -> 0 | M114: 1 | N114: =IF(SpacesNB=0,0,(IF(M114>CapYrNB,1,(M114-1)/CapYrNB)*MAX(0,(100%-PctFillNB))+(PctFillNB))*(SpacesNB*AVONB+IF(PctFillNB=0,BikePedNB,BikePedNB/PctFillNB))*AnnualFactor)*PctLotUser2*PctECarpool2 -> 0 | O114: =IF(SpacesB=0,0,(IF(M114>CapYrB,1,(M114-1)/CapYrB)*MAX(0,(100%-PctFillB))+(PctFillB))*(SpacesB*AVOB+IF(PctFillB=0,BikePedB,BikePedB/PctFillB))*AnnualFactor)*PctLotUser2*PctECarpool2 -> 0 | P114: =MAX(0,O114-N114) -> 0 | Q114: =P114/AVOB*NextDist2*2 -> 0 | R114: =IF(PctECarpool2=0,0,P114/AVOCarpool2*NextDist2*2) -> 0 | S114: =Q114/1000000*HwyAccRate2*(HwyFatCost*HwyPctFat2+HwyInjCost*HwyPctInj2+HwyPDOCost*(1-HwyPctFat2-HwyPctInj2)) -> 0 | T114: =R114/1000000*HwyAccRate2*(HwyFatCost*HwyPctFat2+HwyInjCost*HwyPctInj2+HwyPDOCost*(1-HwyPctFat2-HwyPctInj2)) -> 0 | U114: =S114-T114 -> 0 | V114: =$U114/(1+DiscRate)^($M114+Construct-1) -> 0 | X114: 1 | Y114: =IF(SpacesNB=0,0,(IF(X114>CapYrNB,1,(X114-1)/CapYrNB)*MAX(0,(100%-PctFillNB))+(PctFillNB))*(SpacesNB*AVONB+IF(PctFillNB=0,BikePedNB,BikePedNB/PctFillNB))*AnnualFactor)*PctLotUser3*PctECarpool3 -> 0 | Z114: =IF(SpacesB=0,0,(IF(X114>CapYrB,1,(X114-1)/CapYrB)*MAX(0,(100%-PctFillB))+(PctFillB))*(SpacesB*AVOB+IF(PctFillB=0,BikePedB,BikePedB/PctFillB))*AnnualFactor)*PctLotUser3*PctECarpool3 -> 0 | AA114: =MAX(0,Z114-Y114) -> 0 | AB114: =AA114/AVOB*NextDist3*2 -> 0 | AC114: =IF(PctECarpool3=0,0,AA114/AVOCarpool3*NextDist3*2) -> 0 | AD114: =AB114/1000000*HwyAccRate3*(HwyFatCost*HwyPctFat3+HwyInjCost*HwyPctInj3+HwyPDOCost*(1-HwyPctFat3-HwyPctInj3)) -> 0 | AE114: =AC114/1000000*HwyAccRate3*(HwyFatCost*HwyPctFat3+HwyInjCost*HwyPctInj3+HwyPDOCost*(1-HwyPctFat3-HwyPctInj3)) -> 0 | AF114: =AD114-AE114 -> 0 | AG114: =$AF114/(1+DiscRate)^($X114+Construct-1) -> 0
B115: 2 | C115: 0 | D115: 0 | E115: =MAX(0,D115-C115) -> 0 | F115: 0 | G115: 0 | H115: 0 | I115: 0 | J115: =H115-I115 -> 0 | K115: =$J115/(1+DiscRate)^($B115+Construct-1) -> 0 | M115: 2 | N115: 0 | O115: 0 | P115: =MAX(0,O115-N115) -> 0 | Q115: 0 | R115: 0 | S115: 0 | T115: 0 | U115: =S115-T115 -> 0 | V115: 0 | X115: 2 | Y115: 0 | Z115: 0 | AA115: =MAX(0,Z115-Y115) -> 0 | AB115: 0 | AC115: 0 | AD115: 0 | AE115: 0 | AF115: =AD115-AE115 -> 0 | AG115: 0
B116: 3 | C116: 0 | D116: 0 | E116: 0 | F116: 0 | G116: 0 | H116: 0 | I116: 0 | J116: =H116-I116 -> 0 | K116: =$J116/(1+DiscRate)^($B116+Construct-1) -> 0 | M116: 3 | N116: 0 | O116: 0 | P116: 0 | Q116: 0 | R116: 0 | S116: 0 | T116: 0 | U116: =S116-T116 -> 0 | V116: 0 | X116: 3 | Y116: 0 | Z116: 0 | AA116: 0 | AB116: 0 | AC116: 0 | AD116: 0 | AE116: 0 | AF116: =AD116-AE116 -> 0 | AG116: 0
B117: 4 | C117: 0 | D117: 0 | E117: 0 | F117: 0 | G117: 0 | H117: 0 | I117: 0 | J117: 0 | K117: 0 | M117: 4 | N117: 0 | O117: 0 | P117: 0 | Q117: 0 | R117: 0 | S117: 0 | T117: 0 | U117: 0 | V117: 0 | X117: 4 | Y117: 0 | Z117: 0 | AA117: 0 | AB117: 0 | AC117: 0 | AD117: 0 | AE117: 0 | AF117: 0 | AG117: 0
B118: 5 | C118: 0 | D118: 0 | E118: 0 | F118: 0 | G118: 0 | H118: 0 | I118: 0 | J118: 0 | K118: 0 | M118: 5 | N118: 0 | O118: 0 | P118: 0 | Q118: 0 | R118: 0 | S118: 0 | T118: 0 | U118: 0 | V118: 0 | X118: 5 | Y118: 0 | Z118: 0 | AA118: 0 | AB118: 0 | AC118: 0 | AD118: 0 | AE118: 0 | AF118: 0 | AG118: 0
B119: 6 | C119: 0 | D119: 0 | E119: 0 | F119: 0 | G119: 0 | H119: 0 | I119: 0 | J119: 0 | K119: 0 | M119: 6 | N119: 0 | O119: 0 | P119: 0 | Q119: 0 | R119: 0 | S119: 0 | T119: 0 | U119: 0 | V119: 0 | X119: 6 | Y119: 0 | Z119: 0 | AA119: 0 | AB119: 0 | AC119: 0 | AD119: 0 | AE119: 0 | AF119: 0 | AG119: 0
B120: 7 | C120: 0 | D120: 0 | E120: 0 | F120: 0 | G120: 0 | H120: 0 | I120: 0 | J120: 0 | K120: 0 | M120: 7 | N120: 0 | O120: 0 | P120: 0 | Q120: 0 | R120: 0 | S120: 0 | T120: 0 | U120: 0 | V120: 0 | X120: 7 | Y120: 0 | Z120: 0 | AA120: 0 | AB120: 0 | AC120: 0 | AD120: 0 | AE120: 0 | AF120: 0 | AG120: 0
B121: 8 | C121: 0 | D121: 0 | E121: 0 | F121: 0 | G121: 0 | H121: 0 | I121: 0 | J121: 0 | K121: 0 | M121: 8 | N121: 0 | O121: 0 | P121: 0 | Q121: 0 | R121: 0 | S121: 0 | T121: 0 | U121: 0 | V121: 0 | X121: 8 | Y121: 0 | Z121: 0 | AA121: 0 | AB121: 0 | AC121: 0 | AD121: 0 | AE121: 0 | AF121: 0 | AG121: 0
B122: 9 | C122: 0 | D122: 0 | E122: 0 | F122: 0 | G122: 0 | H122: 0 | I122: 0 | J122: 0 | K122: 0 | M122: 9 | N122: 0 | O122: 0 | P122: 0 | Q122: 0 | R122: 0 | S122: 0 | T122: 0 | U122: 0 | V122: 0 | X122: 9 | Y122: 0 | Z122: 0 | AA122: 0 | AB122: 0 | AC122: 0 | AD122: 0 | AE122: 0 | AF122: 0 | AG122: 0
B123: 10 | C123: 0 | D123: 0 | E123: 0 | F123: 0 | G123: 0 | H123: 0 | I123: 0 | J123: 0 | K123: 0 | M123: 10 | N123: 0 | O123: 0 | P123: 0 | Q123: 0 | R123: 0 | S123: 0 | T123: 0 | U123: 0 | V123: 0 | X123: 10 | Y123: 0 | Z123: 0 | AA123: 0 | AB123: 0 | AC123: 0 | AD123: 0 | AE123: 0 | AF123: 0 | AG123: 0
B124: 11 | C124: 0 | D124: 0 | E124: 0 | F124: 0 | G124: 0 | H124: 0 | I124: 0 | J124: 0 | K124: 0 | M124: 11 | N124: 0 | O124: 0 | P124: 0 | Q124: 0 | R124: 0 | S124: 0 | T124: 0 | U124: 0 | V124: 0 | X124: 11 | Y124: 0 | Z124: 0 | AA124: 0 | AB124: 0 | AC124: 0 | AD124: 0 | AE124: 0 | AF124: 0 | AG124: 0
B125: 12 | C125: 0 | D125: 0 | E125: 0 | F125: 0 | G125: 0 | H125: 0 | I125: 0 | J125: 0 | K125: 0 | M125: 12 | N125: 0 | O125: 0 | P125: 0 | Q125: 0 | R125: 0 | S125: 0 | T125: 0 | U125: 0 | V125: 0 | X125: 12 | Y125: 0 | Z125: 0 | AA125: 0 | AB125: 0 | AC125: 0 | AD125: 0 | AE125: 0 | AF125: 0 | AG125: 0
B126: 13 | C126: 0 | D126: 0 | E126: 0 | F126: 0 | G126: 0 | H126: 0 | I126: 0 | J126: 0 | K126: 0 | M126: 13 | N126: 0 | O126: 0 | P126: 0 | Q126: 0 | R126: 0 | S126: 0 | T126: 0 | U126: 0 | V126: 0 | X126: 13 | Y126: 0 | Z126: 0 | AA126: 0 | AB126: 0 | AC126: 0 | AD126: 0 | AE126: 0 | AF126: 0 | AG126: 0
B127: 14 | C127: 0 | D127: 0 | E127: 0 | F127: 0 | G127: 0 | H127: 0 | I127: 0 | J127: 0 | K127: 0 | M127: 14 | N127: 0 | O127: 0 | P127: 0 | Q127: 0 | R127: 0 | S127: 0 | T127: 0 | U127: 0 | V127: 0 | X127: 14 | Y127: 0 | Z127: 0 | AA127: 0 | AB127: 0 | AC127: 0 | AD127: 0 | AE127: 0 | AF127: 0 | AG127: 0
B128: 15 | C128: 0 | D128: 0 | E128: 0 | F128: 0 | G128: 0 | H128: 0 | I128: 0 | J128: 0 | K128: 0 | M128: 15 | N128: 0 | O128: 0 | P128: 0 | Q128: 0 | R128: 0 | S128: 0 | T128: 0 | U128: 0 | V128: 0 | X128: 15 | Y128: 0 | Z128: 0 | AA128: 0 | AB128: 0 | AC128: 0 | AD128: 0 | AE128: 0 | AF128: 0 | AG128: 0
B129: 16 | C129: 0 | D129: 0 | E129: 0 | F129: 0 | G129: 0 | H129: 0 | I129: 0 | J129: 0 | K129: 0 | M129: 16 | N129: 0 | O129: 0 | P129: 0 | Q129: 0 | R129: 0 | S129: 0 | T129: 0 | U129: 0 | V129: 0 | X129: 16 | Y129: 0 | Z129: 0 | AA129: 0 | AB129: 0 | AC129: 0 | AD129: 0 | AE129: 0 | AF129: 0 | AG129: 0
B130: 17 | C130: 0 | D130: 0 | E130: 0 | F130: 0 | G130: 0 | H130: 0 | I130: 0 | J130: 0 | K130: 0 | M130: 17 | N130: 0 | O130: 0 | P130: 0 | Q130: 0 | R130: 0 | S130: 0 | T130: 0 | U130: 0 | V130: 0 | X130: 17 | Y130: 0 | Z130: 0 | AA130: 0 | AB130: 0 | AC130: 0 | AD130: 0 | AE130: 0 | AF130: 0 | AG130: 0
B131: 18 | C131: 0 | D131: 0 | E131: 0 | F131: 0 | G131: 0 | H131: 0 | I131: 0 | J131: 0 | K131: 0 | M131: 18 | N131: 0 | O131: 0 | P131: 0 | Q131: 0 | R131: 0 | S131: 0 | T131: 0 | U131: 0 | V131: 0 | X131: 18 | Y131: 0 | Z131: 0 | AA131: 0 | AB131: 0 | AC131: 0 | AD131: 0 | AE131: 0 | AF131: 0 | AG131: 0
B132: 19 | C132: 0 | D132: 0 | E132: 0 | F132: 0 | G132: 0 | H132: 0 | I132: 0 | J132: 0 | K132: 0 | M132: 19 | N132: 0 | O132: 0 | P132: 0 | Q132: 0 | R132: 0 | S132: 0 | T132: 0 | U132: 0 | V132: 0 | X132: 19 | Y132: 0 | Z132: 0 | AA132: 0 | AB132: 0 | AC132: 0 | AD132: 0 | AE132: 0 | AF132: 0 | AG132: 0
B133: 20 | C133: 0 | D133: 0 | E133: 0 | F133: 0 | G133: 0 | H133: 0 | I133: 0 | J133: 0 | K133: 0 | M133: 20 | N133: 0 | O133: 0 | P133: 0 | Q133: 0 | R133: 0 | S133: 0 | T133: 0 | U133: 0 | V133: 0 | X133: 20 | Y133: 0 | Z133: 0 | AA133: 0 | AB133: 0 | AC133: 0 | AD133: 0 | AE133: 0 | AF133: 0 | AG133: 0
B135: Total | K135: =SUM(K114:K133) -> 0 | M135: Total | V135: =SUM(V114:V133) -> 0 | X135: Total | AG135: =SUM(AG114:AG133) -> 0
H139: Present Value = Future Value (in Constant Dollars)
I140: ( 1 + Real Discount Rate) ^ Year

Sheet Emissions
B1: Emission Reduction Benefits
B3: This sheet calculates changes in highway emissions.
B5: Formulas:
B7: Vehicle-Miles Traveled = Affected Length x Avg. Annual Volume | H7: Transit Em Cost = (Veh-Miles x Rate x Cost/Mile) by Em Type
B8: veh-miles/yr | D8: miles | F8: vehicles/yr
B10: Hwy Emissions Cost = (VMT x Rate x Cost/Mile) by Emissions Type
B15: A | C15: =IF(ISBLANK(DestName1),"DESTINATION 1", "DESTINATION 1 - "&DestName1) -> DESTINATION 1 | AE15: B | AF15: =IF(ISBLANK(DestName2),"DESTINATION 2", "DESTINATION 2 - "&DestName2) -> DESTINATION 2 | BH15: C | BI15: =IF(ISBLANK(DestName3),"DESTINATION 3", "DESTINATION 3 - "&DestName3) -> DESTINATION 3 | CK15: D | CL15: SUMMARY OF EMISSION REDUCTION BENEFITS | CT15: SUMMARY OF EMISSION REDUCTION BENEFITS (continued) | DB15: SUMMARY OF EMISSION REDUCTION BENEFITS (continued) | DI15: SUMMARY OF EMISSION REDUCTION BENEFITS (continued)
B18: New Transit Riders (switch from automobile to express bus) | AE18: New Transit Riders (switch from automobile to express bus) | BH18: New Transit Riders (switch from automobile to express bus)
C20: ANNUAL NUMBER OF USERS | F20: TOTAL AUTO VMT | H20: AVERAGE HWY SPEED | J20: RUNNING EMISSIONS | L20: STARTING EMISSIONS | Q20: TONS EMISSIONS SAVED | X20: DOLLARS EMISSIONS SAVED | AF20: ANNUAL NUMBER OF USERS | AI20: TOTAL AUTO VMT | AK20: AVERAGE HWY SPEED | AM20: RUNNING EMISSIONS | AO20: STARTING EMISSIONS | AT20: TONS EMISSIONS SAVED | BA20: DOLLARS EMISSIONS SAVED | BI20: ANNUAL NUMBER OF USERS | BL20: TOTAL AUTO VMT | BN20: AVERAGE HWY SPEED | BP20: RUNNING EMISSIONS | BR20: STARTING EMISSIONS | BW20: TONS EMISSIONS SAVED | CD20: DOLLARS EMISSIONS SAVED | CL20: DESTINATION 1 | CP20: DESTINATION 2 | CT20: DESTINATION 3 | CX20: Present | DB20: TONS EMISSIONS SAVED | DI20: DOLLARS EMISSIONS SAVED
C21: (people/yr) | F21: (veh-miles/yr) | H21: (mph) | J21: ($/yr) | L21: ($/yr) | Q21: (tons/yr) | X21: (PV $/yr) | AF21: (people/yr) | AI21: (veh-miles/yr) | AK21: (mph) | AM21: ($/yr) | AO21: ($/yr) | AT21: (tons/yr) | BA21: (PV $/yr) | BI21: (people/yr) | BL21: (veh-miles/yr) | BN21: (mph) | BP21: ($/yr) | BR21: ($/yr) | BW21: (tons/yr) | CD21: (PV $/yr) | CX21: Value of | DB21: (tons/yr) | DI21: (PV $/yr)
B22: Year | C22: Existing | D22: New | E22: Users | N22: Constant | O22: Present | AE22: Year | AF22: Existing | AG22: New | AH22: Users | AQ22: Constant | AR22: Present | BH22: Year | BI22: Existing | BJ22: New | BK22: Users | BT22: Constant | BU22: Present | CK22: Year | CL22: New | CM22: Existing | CN22: New | CO22: Existing | CP22: New | CQ22: Existing | CR22: New | CS22: Existing | CT22: New | CU22: Existing | CV22: New | CW22: Existing | CX22: Emission | CZ22: Constant
C23: Lot | D23: Lot | E23: Benefited | F23: No Build | G23: Build | H23: No Build | I23: Build | J23: No Build | K23: Build | L23: No Build | M23: Build | N23: Dollars | O23: Value | Q23: CO | R23: CO2 | S23: NOX | T23: PM10 | U23: SOX | V23: VOC | W23: PM2.5 | X23: CO | Y23: CO2 | Z23: NOX | AA23: PM10 | AB23: SOX | AC23: VOC | AF23: Lot | AG23: Lot | AH23: Benefited | AI23: No Build | AJ23: Build | AK23: No Build | AL23: Build | AM23: No Build | AN23: Build | AO23: No Build | AP23: Build | AQ23: Dollars | AR23: Value | AT23: CO | AU23: CO2 | AV23: NOX | AW23: PM10 | AX23: SOX | AY23: VOC | AZ23: PM2.5 | BA23: CO | BB23: CO2 | BC23: NOX | BD23: PM10 | BE23: SOX | BF23: VOC | BI23: Lot | BJ23: Lot | BK23: Benefited | BL23: No Build | BM23: Build | BN23: No Build | BO23: Build | BP23: No Build | BQ23: Build | BR23: No Build | BS23: Build | BT23: Dollars | BU23: Value | BW23: CO | BX23: CO2 | BY23: NOX | BZ23: PM10 | CA23: SOX | CB23: VOC | CC23: PM2.5 | CD23: CO | CE23: CO2 | CF23: NOX | CG23: PM10 | CH23: SOX | CI23: VOC | CL23: Transit | CM23: Transit | CN23: Carpool | CO23: Carpool | CP23: Transit | CQ23: Transit | CR23: Carpool | CS23: Carpool | CT23: Transit | CU23: Transit | CV23: Carpool | CW23: Carpool | CX23: =IF(Emissions<>"N","Benefits","Benefits*") -> Benefits | CZ23: Dollars | DB23: CO | DC23: CO2 | DD23: NOX | DE23: PM10 | DF23: SOX | DG23: VOC | DH23: PM2.5 | DI23: CO | DJ23: CO2 | DK23: NOX | DL23: PM10 | DM23: SOX | DN23: VOC
B24: 1 | C24: =IF(SpacesNB=0,0,(IF(B24>CapYrNB,1,(B24-1)/CapYrNB)*MAX(0,(100%-PctFillNB))+(PctFillNB))*(SpacesNB*AVONB+IF(PctFillNB=0,BikePedNB,BikePedNB/PctFillNB))*AnnualFactor)*PctLotUser1*PctNTransit1 -> 0 | D24: =IF(SpacesB=0,0,(IF(B24>CapYrB,1,(B24-1)/CapYrB)*MAX(0,(100%-PctFillB))+(PctFillB))*(SpacesB*AVOB+IF(PctFillB=0,BikePedB,BikePedB/PctFillB))*AnnualFactor)*PctLotUser1*PctNTransit1 -> 0 | E24: =MAX(0,D24-C24) -> 0 | F24: =E24/AVOB*Distance1*2 -> 0 | G24: 0 | H24: =IF(PctNTransit1=0,0,Distance1/TTNonHOV1*60) -> 0 | I24: 0 | J24: =F24*0.00000110231131*(VLOOKUP(H24,EmAuto1,2)*VLOOKUP(ProjLoc,EmCost,2)+VLOOKUP(H24,EmAuto1,3)*VLOOKUP(ProjLoc,EmCost,3)*(1+CO2Uprater)^($B24+Construct-1)+VLOOKUP(H24,EmAuto1,4)*VLOOKUP(ProjLoc,EmCost,4)+VLOOKUP(H24,EmAuto1,5)*VLOOKUP(ProjLoc,EmCost,5)+VLOOKUP(H24,EmAuto1,6)*VLOOKUP(ProjLoc,EmCost,6)+VLOOKUP(H24,EmAuto1,7)*VLOOKUP(ProjLoc,EmCost,7)) ->  | K24: 0 | L24: =PctLotUser1*PctNTransit1*(BikePedB-BikePedNB)*0.00000110231131*(VLOOKUP(0,EmAuto1,2)*VLOOKUP(ProjLoc,EmCost,2)+VLOOKUP(0,EmAuto1,3)*VLOOKUP(ProjLoc,EmCost,3)*(1+CO2Uprater)^($B24+Construct-1)+VLOOKUP(0,EmAuto1,4)*VLOOKUP(ProjLoc,EmCost,4)+VLOOKUP(0,EmAuto1,5)*VLOOKUP(ProjLoc,EmCost,5)+VLOOKUP(0,EmAuto1,6)*VLOOKUP(ProjLoc,EmCost,6)+VLOOKUP(0,EmAuto1,7)*VLOOKUP(ProjLoc,EmCost,7))*2 ->  | M24: 0 | N24: =(J24+L24)-(K24+M24) ->  | O24: =$N24/(1+DiscRate)^($B24+Construct-1) ->  | Q24: =0.00000110231131*(F24*VLOOKUP(H24,EmAuto1,2)-G24*VLOOKUP(I24,EmAuto1,2)+PctLotUser1*PctNTransit1*(BikePedB-BikePedNB)*VLOOKUP(0,EmAuto1,2)*2) -> 0 | R24: =0.00000110231131*(F24*VLOOKUP(H24,EmAuto1,3)-G24*VLOOKUP(I24,EmAuto1,3)+PctLotUser1*PctNTransit1*(BikePedB-BikePedNB)*VLOOKUP(0,EmAuto1,3)*2) -> 0 | S24: =0.00000110231131*(F24*VLOOKUP(H24,EmAuto1,4)-G24*VLOOKUP(I24,EmAuto1,4)+PctLotUser1*PctNTransit1*(BikePedB-BikePedNB)*VLOOKUP(0,EmAuto1,4)*2) -> 0 | T24: =0.00000110231131*(F24*VLOOKUP(H24,EmAuto1,5)-G24*VLOOKUP(I24,EmAuto1,5)+PctLotUser1*PctNTransit1*(BikePedB-BikePedNB)*VLOOKUP(0,EmAuto1,5)*2) -> 0 | U24: =0.00000110231131*(F24*VLOOKUP(H24,EmAuto1,6)-G24*VLOOKUP(I24,EmAuto1,6)+PctLotUser1*PctNTransit1*(BikePedB-BikePedNB)*VLOOKUP(0,EmAuto1,6)*2) -> 0 | V24: =0.00000110231131*(F24*VLOOKUP(H24,EmAuto1,7)-G24*VLOOKUP(I24,EmAuto1,7)+PctLotUser1*PctNTransit1*(BikePedB-BikePedNB)*VLOOKUP(0,EmAuto1,7)*2) -> 0 | W24: =0.00000110231131*(F24*VLOOKUP(H24,EmAuto1,8)-G24*VLOOKUP(I24,EmAuto1,8)+PctLotUser1*PctNTransit1*(BikePedB-BikePedNB)*VLOOKUP(0,EmAuto1,8)*2) -> 0 | X24: =Q24*VLOOKUP(ProjLoc,EmCost,2)/(1+DiscRate)^($B24+Construct-1) ->  | Y24: =R24*VLOOKUP(ProjLoc,EmCost,3)*(1+CO2Uprater)^($B24+Construct-1)/(1+DiscRate)^($B24+Construct-1) ->  | Z24: =S24*VLOOKUP(ProjLoc,EmCost,4)/(1+DiscRate)^($B24+Construct-1) ->  | AA24: =T24*VLOOKUP(ProjLoc,EmCost,5)/(1+DiscRate)^($B24+Construct-1) ->  | AB24: =U24*VLOOKUP(ProjLoc,EmCost,6)/(1+DiscRate)^($B24+Construct-1) ->  | AC24: =V24*VLOOKUP(ProjLoc,EmCost,7)/(1+DiscRate)^($B24+Construct-1) ->  | AE24: 1 | AF24: =IF(SpacesNB=0,0,(IF(AE24>CapYrNB,1,(AE24-1)/CapYrNB)*MAX(0,(100%-PctFillNB))+(PctFillNB))*(SpacesNB*AVONB+IF(PctFillNB=0,BikePedNB,BikePedNB/PctFillNB))*AnnualFactor)*PctLotUser2*PctNTransit2 -> 0 | AG24: =IF(SpacesB=0,0,(IF(AE24>CapYrB,1,(AE24-1)/CapYrB)*MAX(0,(100%-PctFillB))+(PctFillB))*(SpacesB*AVOB+IF(PctFillB=0,BikePedB,BikePedB/PctFillB))*AnnualFactor)*PctLotUser2*PctNTransit2 -> 0 | AH24: =MAX(0,AG24-AF24) -> 0 | AI24: =AH24/AVOB*Distance2*2 -> 0 | AJ24: 0 | AK24: =IF(PctNTransit2=0,0,Distance2/TTNonHOV2*60) -> 0 | AL24: 0 | AM24: =AI24*0.00000110231131*(VLOOKUP(AK24,EmAuto1,2)*VLOOKUP(ProjLoc,EmCost,2)+VLOOKUP(AK24,EmAuto1,3)*VLOOKUP(ProjLoc,EmCost,3)*(1+CO2Uprater)^($AE24+Construct-1)+VLOOKUP(AK24,EmAuto1,4)*VLOOKUP(ProjLoc,EmCost,4)+VLOOKUP(AK24,EmAuto1,5)*VLOOKUP(ProjLoc,EmCost,5)+VLOOKUP(AK24,EmAuto1,6)*VLOOKUP(ProjLoc,EmCost,6)+VLOOKUP(AK24,EmAuto1,7)*VLOOKUP(ProjLoc,EmCost,7)) ->  | AN24: 0 | AO24: =PctLotUser2*PctNTransit2*(BikePedB-BikePedNB)*0.00000110231131*(VLOOKUP(0,EmAuto1,2)*VLOOKUP(ProjLoc,EmCost,2)+VLOOKUP(0,EmAuto1,3)*VLOOKUP(ProjLoc,EmCost,3)*(1+CO2Uprater)^($AE24+Construct-1)+VLOOKUP(0,EmAuto1,4)*VLOOKUP(ProjLoc,EmCost,4)+VLOOKUP(0,EmAuto1,5)*VLOOKUP(ProjLoc,EmCost,5)+VLOOKUP(0,EmAuto1,6)*VLOOKUP(ProjLoc,EmCost,6)+VLOOKUP(0,EmAuto1,7)*VLOOKUP(ProjLoc,EmCost,7))*2 ->  | AP24: 0 | AQ24: =(AM24+AO24)-(AN24+AP24) ->  | AR24: =$AQ24/(1+DiscRate)^($AE24+Construct-1) ->  | AT24: =0.00000110231131*(AI24*VLOOKUP(AK24,EmAuto1,2)-AJ24*VLOOKUP(AL24,EmAuto1,2)+PctLotUser2*PctNTransit2*(BikePedB-BikePedNB)*VLOOKUP(0,EmAuto1,2)*2) -> 0 | AU24: =0.00000110231131*(AI24*VLOOKUP(AK24,EmAuto1,3)-AJ24*VLOOKUP(AL24,EmAuto1,3)+PctLotUser2*PctNTransit2*(BikePedB-BikePedNB)*VLOOKUP(0,EmAuto1,3)*2) -> 0 | AV24: =0.00000110231131*(AI24*VLOOKUP(AK24,EmAuto1,4)-AJ24*VLOOKUP(AL24,EmAuto1,4)+PctLotUser2*PctNTransit2*(BikePedB-BikePedNB)*VLOOKUP(0,EmAuto1,4)*2) -> 0 | AW24: =0.00000110231131*(AI24*VLOOKUP(AK24,EmAuto1,5)-AJ24*VLOOKUP(AL24,EmAuto1,5)+PctLotUser2*PctNTransit2*(BikePedB-BikePedNB)*VLOOKUP(0,EmAuto1,5)*2) -> 0 | AX24: =0.00000110231131*(AI24*VLOOKUP(AK24,EmAuto1,6)-AJ24*VLOOKUP(AL24,EmAuto1,6)+PctLotUser2*PctNTransit2*(BikePedB-BikePedNB)*VLOOKUP(0,EmAuto1,6)*2) -> 0 | AY24: =0.00000110231131*(AI24*VLOOKUP(AK24,EmAuto1,7)-AJ24*VLOOKUP(AL24,EmAuto1,7)+PctLotUser2*PctNTransit2*(BikePedB-BikePedNB)*VLOOKUP(0,EmAuto1,7)*2) -> 0 | AZ24: =0.00000110231131*(AI24*VLOOKUP(AK24,EmAuto1,8)-AJ24*VLOOKUP(AL24,EmAuto1,8)+PctLotUser2*PctNTransit2*(BikePedB-BikePedNB)*VLOOKUP(0,EmAuto1,8)*2) -> 0 | BA24: =AT24*VLOOKUP(ProjLoc,EmCost,2)/(1+DiscRate)^($AE24+Construct-1) ->  | BB24: =AU24*VLOOKUP(ProjLoc,EmCost,3)*(1+CO2Uprater)^($AE24+Construct-1)/(1+DiscRate)^($AE24+Construct-1) ->  | BC24: =AV24*VLOOKUP(ProjLoc,EmCost,4)/(1+DiscRate)^($AE24+Construct-1) ->  | BD24: =AW24*VLOOKUP(ProjLoc,EmCost,5)/(1+DiscRate)^($AE24+Construct-1) ->  | BE24: =AX24*VLOOKUP(ProjLoc,EmCost,6)/(1+DiscRate)^($AE24+Construct-1) ->  | BF24: =AY24*VLOOKUP(ProjLoc,EmCost,7)/(1+DiscRate)^($AE24+Construct-1) ->  | BH24: 1 | BI24: =IF(SpacesNB=0,0,(IF(BH24>CapYrNB,1,(BH24-1)/CapYrNB)*MAX(0,(100%-PctFillNB))+(PctFillNB))*(SpacesNB*AVONB+IF(PctFillNB=0,BikePedNB,BikePedNB/PctFillNB))*AnnualFactor)*PctLotUser3*PctNTransit3 -> 0 | BJ24: =IF(SpacesB=0,0,(IF(BH24>CapYrB,1,(BH24-1)/CapYrB)*MAX(0,(100%-PctFillB))+(PctFillB))*(SpacesB*AVOB+IF(PctFillB=0,BikePedB,BikePedB/PctFillB))*AnnualFactor)*PctLotUser3*PctNTransit3 -> 0 | BK24: =MAX(0,BJ24-BI24) -> 0 | BL24: =BK24/AVOB*Distance3*2 -> 0 | BM24: 0 | BN24: =IF(PctNTransit3=0,0,Distance3/TTNonHOV3*60) -> 0 | BO24: 0 | BP24: =BL24*0.00000110231131*(VLOOKUP(BN24,EmAuto1,2)*VLOOKUP(ProjLoc,EmCost,2)+VLOOKUP(BN24,EmAuto1,3)*VLOOKUP(ProjLoc,EmCost,3)*(1+CO2Uprater)^($BH24+Construct-1)+VLOOKUP(BN24,EmAuto1,4)*VLOOKUP(ProjLoc,EmCost,4)+VLOOKUP(BN24,EmAuto1,5)*VLOOKUP(ProjLoc,EmCost,5)+VLOOKUP(BN24,EmAuto1,6)*VLOOKUP(ProjLoc,EmCost,6)+VLOOKUP(BN24,EmAuto1,7)*VLOOKUP(ProjLoc,EmCost,7)) ->  | BQ24: 0 | BR24: =PctLotUser3*PctNTransit3*(BikePedB-BikePedNB)*0.00000110231131*(VLOOKUP(0,EmAuto1,2)*VLOOKUP(ProjLoc,EmCost,2)+VLOOKUP(0,EmAuto1,3)*VLOOKUP(ProjLoc,EmCost,3)*(1+CO2Uprater)^($BH24+Construct-1)+VLOOKUP(0,EmAuto1,4)*VLOOKUP(ProjLoc,EmCost,4)+VLOOKUP(0,EmAuto1,5)*VLOOKUP(ProjLoc,EmCost,5)+VLOOKUP(0,EmAuto1,6)*VLOOKUP(ProjLoc,EmCost,6)+VLOOKUP(0,EmAuto1,7)*VLOOKUP(ProjLoc,EmCost,7))*2 ->  | BS24: 0 | BT24: =(BP24+BR24)-(BQ24+BS24) ->  | BU24: =$BT24/(1+DiscRate)^($BH24+Construct-1) ->  | BW24: =0.00000110231131*(BL24*VLOOKUP(BN24,EmAuto1,2)-BM24*VLOOKUP(BO24,EmAuto1,2)+PctLotUser3*PctNTransit3*(BikePedB-BikePedNB)*VLOOKUP(0,EmAuto1,2)*2) -> 0 | BX24: =0.00000110231131*(BL24*VLOOKUP(BN24,EmAuto1,3)-BM24*VLOOKUP(BO24,EmAuto1,3)+PctLotUser3*PctNTransit3*(BikePedB-BikePedNB)*VLOOKUP(0,EmAuto1,3)*2) -> 0 | BY24: =0.00000110231131*(BL24*VLOOKUP(BN24,EmAuto1,4)-BM24*VLOOKUP(BO24,EmAuto1,4)+PctLotUser3*PctNTransit3*(BikePedB-BikePedNB)*VLOOKUP(0,EmAuto1,4)*2) -> 0 | BZ24: =0.00000110231131*(BL24*VLOOKUP(BN24,EmAuto1,5)-BM24*VLOOKUP(BO24,EmAuto1,5)+PctLotUser3*PctNTransit3*(BikePedB-BikePedNB)*VLOOKUP(0,EmAuto1,5)*2) -> 0 | CA24: =0.00000110231131*(BL24*VLOOKUP(BN24,EmAuto1,6)-BM24*VLOOKUP(BO24,EmAuto1,6)+PctLotUser3*PctNTransit3*(BikePedB-BikePedNB)*VLOOKUP(0,EmAuto1,6)*2) -> 0 | CB24: =0.00000110231131*(BL24*VLOOKUP(BN24,EmAuto1,7)-BM24*VLOOKUP(BO24,EmAuto1,7)+PctLotUser3*PctNTransit3*(BikePedB-BikePedNB)*VLOOKUP(0,EmAuto1,7)*2) -> 0 | CC24: =0.00000110231131*(BL24*VLOOKUP(BN24,EmAuto1,8)-BM24*VLOOKUP(BO24,EmAuto1,8)+PctLotUser3*PctNTransit3*(BikePedB-BikePedNB)*VLOOKUP(0,EmAuto1,8)*2) -> 0 | CD24: =BW24*VLOOKUP(ProjLoc,EmCost,2)/(1+DiscRate)^($BH24+Construct-1) ->  | CE24: =BX24*VLOOKUP(ProjLoc,EmCost,3)*(1+CO2Uprater)^($BH24+Construct-1)/(1+DiscRate)^($BH24+Construct-1) ->  | CF24: =BY24*VLOOKUP(ProjLoc,EmCost,4)/(1+DiscRate)^($BH24+Construct-1) ->  | CG24: =BZ24*VLOOKUP(ProjLoc,EmCost,5)/(1+DiscRate)^($BH24+Construct-1) ->  | CH24: =CA24*VLOOKUP(ProjLoc,EmCost,6)/(1+DiscRate)^($BH24+Construct-1) ->  | CI24: =CB24*VLOOKUP(ProjLoc,EmCost,7)/(1+DiscRate)^($BH24+Construct-1) ->  | CK24: 1 | CL24: =O24 ->  | CM24: =O54 ->  | CN24: =O84 ->  | CO24: =O114 ->  | CP24: =AR24 ->  | CQ24: =AR54 ->  | CR24: =AR84 ->  | CS24: =AR114 ->  | CT24: =BU24 ->  | CU24: =BU54 ->  | CV24: =BU84 ->  | CW24: =BU114 ->  | CX24: =IF(Emissions<>"N",SUM(CL24:CW24),0) ->  | CZ24: =$CX24*(1+DiscRate)^($B24+Construct-1) ->  | DB24: =SUM(Q24,Q54,Q84,Q114,AT24,AT54,AT84,AT114,BW24,BW54,BW84,BW114) -> 0 | DC24: 0 | DD24: =SUM(S24,S54,S84,S114,AV24,AV54,AV84,AV114,BY24,BY54,BY84,BY114) -> 0 | DE24: =SUM(T24,T54,T84,T114,AW24,AW54,AW84,AW114,BZ24,BZ54,BZ84,BZ114) -> 0 | DF24: =SUM(U24,U54,U84,U114,AX24,AX54,AX84,AX114,CA24,CA54,CA84,CA114) -> 0 | DG24: =SUM(V24,V54,V84,V114,AY24,AY54,AY84,AY114,CB24,CB54,CB84,CB114) -> 0 | DH24: =SUM(W24,W54,W84,W114,AZ24,AZ54,AZ84,AZ114,CC24,CC54,CC84,CC114) -> 0 | DI24: =SUM(X24,X54,X84,X114,BA24,BA54,BA84,BA114,CD24,CD54,CD84,CD114) ->  | DK24: =SUM(Z24,Z54,Z84,Z114,BC24,BC54,BC84,BC114,CF24,CF54,CF84,CF114) ->  | DL24: =SUM(AA24,AA54,AA84,AA114,BD24,BD54,BD84,BD114,CG24,CG54,CG84,CG114) ->  | DM24: =SUM(AB24,AB54,AB84,AB114,BE24,BE54,BE84,BE114,CH24,CH54,CH84,CH114) ->  | DN24: =SUM(AC24,AC54,AC84,AC114,BF24,BF54,BF84,BF114,CI24,CI54,CI84,CI114) -> 
B25: 2 | C25: 0 | D25: 0 | E25: =MAX(0,D25-C25) -> 0 | F25: 0 | G25: 0 | H25: 0 | I25: 0 | K25: 0 | M25: 0 | N25: =(J25+L25)-(K25+M25) ->  | Q25: 0 | R25: =0.00000110231131*(F25*VLOOKUP(H25,EmAuto1,3)-G25*VLOOKUP(I25,EmAuto1,3)+PctLotUser1*PctNTransit1*(BikePedB-BikePedNB)*VLOOKUP(0,EmAuto1,3)*2) -> 0 | S25: 0 | T25: 0 | U25: 0 | V25: 0 | W25: 0 | Y25: =R25*VLOOKUP(ProjLoc,EmCost,3)*(1+CO2Uprater)^($B25+Construct-1)/(1+DiscRate)^($B25+Construct-1) ->  | AE25: 2 | AF25: 0 | AG25: 0 | AH25: =MAX(0,AG25-AF25) -> 0 | AI25: 0 | AJ25: 0 | AK25: 0 | AL25: 0 | AN25: 0 | AP25: 0 | AQ25: =(AM25+AO25)-(AN25+AP25) ->  | AT25: 0 | AU25: 0 | AV25: 0 | AW25: 0 | AX25: 0 | AY25: 0 | AZ25: 0 | BH25: 2 | BI25: 0 | BJ25: 0 | BK25: =MAX(0,BJ25-BI25) -> 0 | BL25: 0 | BM25: 0 | BN25: 0 | BO25: 0 | BQ25: 0 | BS25: 0 | BT25: =(BP25+BR25)-(BQ25+BS25) ->  | BW25: 0 | BX25: 0 | BY25: 0 | BZ25: 0 | CA25: 0 | CB25: 0 | CC25: 0 | CK25: 2 | CL25: =O25 ->  | CM25: =O55 ->  | CN25: =O85 ->  | DB25: 0 | DC25: 0 | DD25: 0 | DE25: 0 | DF25: 0 | DG25: 0 | DH25: 0
B26: 3 | C26: 0 | D26: 0 | E26: 0 | F26: 0 | G26: 0 | H26: 0 | I26: 0 | K26: 0 | M26: 0 | Q26: 0 | R26: 0 | S26: 0 | T26: 0 | U26: 0 | V26: 0 | W26: 0 | AE26: 3 | AF26: 0 | AG26: 0 | AH26: 0 | AI26: 0 | AJ26: 0 | AK26: 0 | AL26: 0 | AN26: 0 | AP26: 0 | AT26: 0 | AU26: 0 | AV26: 0 | AW26: 0 | AX26: 0 | AY26: 0 | AZ26: 0 | BH26: 3 | BI26: 0 | BJ26: 0 | BK26: 0 | BL26: 0 | BM26: 0 | BN26: 0 | BO26: 0 | BQ26: 0 | BS26: 0 | BW26: 0 | BX26: 0 | BY26: 0 | BZ26: 0 | CA26: 0 | CB26: 0 | CC26: 0 | CK26: 3 | DB26: 0 | DC26: 0 | DD26: 0 | DE26: 0 | DF26: 0 | DG26: 0 | DH26: 0
B27: 4 | C27: 0 | D27: 0 | E27: 0 | F27: 0 | G27: 0 | H27: 0 | I27: 0 | K27: 0 | M27: 0 | Q27: 0 | R27: 0 | S27: 0 | T27: 0 | U27: 0 | V27: 0 | W27: 0 | AE27: 4 | AF27: 0 | AG27: 0 | AH27: 0 | AI27: 0 | AJ27: 0 | AK27: 0 | AL27: 0 | AN27: 0 | AP27: 0 | AT27: 0 | AU27: 0 | AV27: 0 | AW27: 0 | AX27: 0 | AY27: 0 | AZ27: 0 | BH27: 4 | BI27: 0 | BJ27: 0 | BK27: 0 | BL27: 0 | BM27: 0 | BN27: 0 | BO27: 0 | BQ27: 0 | BS27: 0 | BW27: 0 | BX27: 0 | BY27: 0 | BZ27: 0 | CA27: 0 | CB27: 0 | CC27: 0 | CK27: 4 | DB27: 0 | DC27: 0 | DD27: 0 | DE27: 0 | DF27: 0 | DG27: 0 | DH27: 0
B28: 5 | C28: 0 | D28: 0 | E28: 0 | F28: 0 | G28: 0 | H28: 0 | I28: 0 | K28: 0 | M28: 0 | Q28: 0 | R28: 0 | S28: 0 | T28: 0 | U28: 0 | V28: 0 | W28: 0 | AE28: 5 | AF28: 0 | AG28: 0 | AH28: 0 | AI28: 0 | AJ28: 0 | AK28: 0 | AL28: 0 | AN28: 0 | AP28: 0 | AT28: 0 | AU28: 0 | AV28: 0 | AW28: 0 | AX28: 0 | AY28: 0 | AZ28: 0 | BH28: 5 | BI28: 0 | BJ28: 0 | BK28: 0 | BL28: 0 | BM28: 0 | BN28: 0 | BO28: 0 | BQ28: 0 | BS28: 0 | BW28: 0 | BX28: 0 | BY28: 0 | BZ28: 0 | CA28: 0 | CB28: 0 | CC28: 0 | CK28: 5 | DB28: 0 | DC28: 0 | DD28: 0 | DE28: 0 | DF28: 0 | DG28: 0 | DH28: 0
B29: 6 | C29: 0 | D29: 0 | E29: 0 | F29: 0 | G29: 0 | H29: 0 | I29: 0 | K29: 0 | M29: 0 | Q29: 0 | R29: 0 | S29: 0 | T29: 0 | U29: 0 | V29: 0 | W29: 0 | AE29: 6 | AF29: 0 | AG29: 0 | AH29: 0 | AI29: 0 | AJ29: 0 | AK29: 0 | AL29: 0 | AN29: 0 | AP29: 0 | AT29: 0 | AU29: 0 | AV29: 0 | AW29: 0 | AX29: 0 | AY29: 0 | AZ29: 0 | BH29: 6 | BI29: 0 | BJ29: 0 | BK29: 0 | BL29: 0 | BM29: 0 | BN29: 0 | BO29: 0 | BQ29: 0 | BS29: 0 | BW29: 0 | BX29: 0 | BY29: 0 | BZ29: 0 | CA29: 0 | CB29: 0 | CC29: 0 | CK29: 6 | DB29: 0 | DC29: 0 | DD29: 0 | DE29: 0 | DF29: 0 | DG29: 0 | DH29: 0
B30: 7 | C30: 0 | D30: 0 | E30: 0 | F30: 0 | G30: 0 | H30: 0 | I30: 0 | K30: 0 | M30: 0 | Q30: 0 | R30: 0 | S30: 0 | T30: 0 | U30: 0 | V30: 0 | W30: 0 | AE30: 7 | AF30: 0 | AG30: 0 | AH30: 0 | AI30: 0 | AJ30: 0 | AK30: 0 | AL30: 0 | AN30: 0 | AP30: 0 | AT30: 0 | AU30: 0 | AV30: 0 | AW30: 0 | AX30: 0 | AY30: 0 | AZ30: 0 | BH30: 7 | BI30: 0 | BJ30: 0 | BK30: 0 | BL30: 0 | BM30: 0 | BN30: 0 | BO30: 0 | BQ30: 0 | BS30: 0 | BW30: 0 | BX30: 0 | BY30: 0 | BZ30: 0 | CA30: 0 | CB30: 0 | CC30: 0 | CK30: 7 | DB30: 0 | DC30: 0 | DD30: 0 | DE30: 0 | DF30: 0 | DG30: 0 | DH30: 0
B31: 8 | C31: 0 | D31: 0 | E31: 0 | F31: 0 | G31: 0 | H31: 0 | I31: 0 | J31: =F31*0.00000110231131*(VLOOKUP(H31,EmAuto20,2)*VLOOKUP(ProjLoc,EmCost,2)+VLOOKUP(H31,EmAuto20,3)*VLOOKUP(ProjLoc,EmCost,3)*(1+CO2Uprater)^($B31+Construct-1)+VLOOKUP(H31,EmAuto20,4)*VLOOKUP(ProjLoc,EmCost,4)+VLOOKUP(H31,EmAuto20,5)*VLOOKUP(ProjLoc,EmCost,5)+VLOOKUP(H31,EmAuto20,6)*VLOOKUP(ProjLoc,EmCost,6)+VLOOKUP(H31,EmAuto20,7)*VLOOKUP(ProjLoc,EmCost,7)) ->  | K31: 0 | L31: =PctLotUser1*PctNTransit1*(BikePedB-BikePedNB)*0.00000110231131*(VLOOKUP(0,EmAuto20,2)*VLOOKUP(ProjLoc,EmCost,2)+VLOOKUP(0,EmAuto20,3)*VLOOKUP(ProjLoc,EmCost,3)*(1+CO2Uprater)^($B31+Construct-1)+VLOOKUP(0,EmAuto20,4)*VLOOKUP(ProjLoc,EmCost,4)+VLOOKUP(0,EmAuto20,5)*VLOOKUP(ProjLoc,EmCost,5)+VLOOKUP(0,EmAuto20,6)*VLOOKUP(ProjLoc,EmCost,6)+VLOOKUP(0,EmAuto20,7)*VLOOKUP(ProjLoc,EmCost,7))*2 ->  | M31: 0 | Q31: =0.00000110231131*(F31*VLOOKUP(H31,EmAuto20,2)-G31*VLOOKUP(I31,EmAuto20,2)+PctLotUser1*PctNTransit1*(BikePedB-BikePedNB)*VLOOKUP(0,EmAuto20,2)*2) -> 0 | R31: =0.00000110231131*(F31*VLOOKUP(H31,EmAuto20,3)-G31*VLOOKUP(I31,EmAuto20,3)+PctLotUser1*PctNTransit1*(BikePedB-BikePedNB)*VLOOKUP(0,EmAuto20,3)*2) -> 0 | S31: =0.00000110231131*(F31*VLOOKUP(H31,EmAuto20,4)-G31*VLOOKUP(I31,EmAuto20,4)+PctLotUser1*PctNTransit1*(BikePedB-BikePedNB)*VLOOKUP(0,EmAuto20,4)*2) -> 0 | T31: =0.00000110231131*(F31*VLOOKUP(H31,EmAuto20,5)-G31*VLOOKUP(I31,EmAuto20,5)+PctLotUser1*PctNTransit1*(BikePedB-BikePedNB)*VLOOKUP(0,EmAuto20,5)*2) -> 0 | U31: =0.00000110231131*(F31*VLOOKUP(H31,EmAuto20,6)-G31*VLOOKUP(I31,EmAuto20,6)+PctLotUser1*PctNTransit1*(BikePedB-BikePedNB)*VLOOKUP(0,EmAuto20,6)*2) -> 0 | V31: =0.00000110231131*(F31*VLOOKUP(H31,EmAuto20,7)-G31*VLOOKUP(I31,EmAuto20,7)+PctLotUser1*PctNTransit1*(BikePedB-BikePedNB)*VLOOKUP(0,EmAuto20,7)*2) -> 0 | W31: =0.00000110231131*(F31*VLOOKUP(H31,EmAuto20,8)-G31*VLOOKUP(I31,EmAuto20,8)+PctLotUser1*PctNTransit1*(BikePedB-BikePedNB)*VLOOKUP(0,EmAuto20,8)*2) -> 0 | AE31: 8 | AF31: 0 | AG31: 0 | AH31: 0 | AI31: 0 | AJ31: 0 | AK31: 0 | AL31: 0 | AM31: =AI31*0.00000110231131*(VLOOKUP(AK31,EmAuto20,2)*VLOOKUP(ProjLoc,EmCost,2)+VLOOKUP(AK31,EmAuto20,3)*VLOOKUP(ProjLoc,EmCost,3)*(1+CO2Uprater)^($AE31+Construct-1)+VLOOKUP(AK31,EmAuto20,4)*VLOOKUP(ProjLoc,EmCost,4)+VLOOKUP(AK31,EmAuto20,5)*VLOOKUP(ProjLoc,EmCost,5)+VLOOKUP(AK31,EmAuto20,6)*VLOOKUP(ProjLoc,EmCost,6)+VLOOKUP(AK31,EmAuto20,7)*VLOOKUP(ProjLoc,EmCost,7)) ->  | AN31: 0 | AO31: =PctLotUser2*PctNTransit2*(BikePedB-BikePedNB)*0.00000110231131*(VLOOKUP(0,EmAuto20,2)*VLOOKUP(ProjLoc,EmCost,2)+VLOOKUP(0,EmAuto20,3)*VLOOKUP(ProjLoc,EmCost,3)*(1+CO2Uprater)^($AE31+Construct-1)+VLOOKUP(0,EmAuto20,4)*VLOOKUP(ProjLoc,EmCost,4)+VLOOKUP(0,EmAuto20,5)*VLOOKUP(ProjLoc,EmCost,5)+VLOOKUP(0,EmAuto20,6)*VLOOKUP(ProjLoc,EmCost,6)+VLOOKUP(0,EmAuto20,7)*VLOOKUP(ProjLoc,EmCost,7))*2 ->  | AP31: 0 | AT31: =0.00000110231131*(AI31*VLOOKUP(AK31,EmAuto20,2)-AJ31*VLOOKUP(AL31,EmAuto20,2)+PctLotUser2*PctNTransit2*(BikePedB-BikePedNB)*VLOOKUP(0,EmAuto20,2)*2) -> 0 | AU31: =0.00000110231131*(AI31*VLOOKUP(AK31,EmAuto20,3)-AJ31*VLOOKUP(AL31,EmAuto20,3)+PctLotUser2*PctNTransit2*(BikePedB-BikePedNB)*VLOOKUP(0,EmAuto20,3)*2) -> 0 | AV31: =0.00000110231131*(AI31*VLOOKUP(AK31,EmAuto20,4)-AJ31*VLOOKUP(AL31,EmAuto20,4)+PctLotUser2*PctNTransit2*(BikePedB-BikePedNB)*VLOOKUP(0,EmAuto20,4)*2) -> 0 | AW31: =0.00000110231131*(AI31*VLOOKUP(AK31,EmAuto20,5)-AJ31*VLOOKUP(AL31,EmAuto20,5)+PctLotUser2*PctNTransit2*(BikePedB-BikePedNB)*VLOOKUP(0,EmAuto20,5)*2) -> 0 | AX31: =0.00000110231131*(AI31*VLOOKUP(AK31,EmAuto20,6)-AJ31*VLOOKUP(AL31,EmAuto20,6)+PctLotUser2*PctNTransit2*(BikePedB-BikePedNB)*VLOOKUP(0,EmAuto20,6)*2) -> 0 | AY31: =0.00000110231131*(AI31*VLOOKUP(AK31,EmAuto20,7)-AJ31*VLOOKUP(AL31,EmAuto20,7)+PctLotUser2*PctNTransit2*(BikePedB-BikePedNB)*VLOOKUP(0,EmAuto20,7)*2) -> 0 | AZ31: =0.00000110231131*(AI31*VLOOKUP(AK31,EmAuto20,8)-AJ31*VLOOKUP(AL31,EmAuto20,8)+PctLotUser2*PctNTransit2*(BikePedB-BikePedNB)*VLOOKUP(0,EmAuto20,8)*2) -> 0 | BH31: 8 | BI31: 0 | BJ31: 0 | BK31: 0 | BL31: 0 | BM31: 0 | BN31: 0 | BO31: 0 | BP31: =BL31*0.00000110231131*(VLOOKUP(BN31,EmAuto20,2)*VLOOKUP(ProjLoc,EmCost,2)+VLOOKUP(BN31,EmAuto20,3)*VLOOKUP(ProjLoc,EmCost,3)*(1+CO2Uprater)^($BH31+Construct-1)+VLOOKUP(BN31,EmAuto20,4)*VLOOKUP(ProjLoc,EmCost,4)+VLOOKUP(BN31,EmAuto20,5)*VLOOKUP(ProjLoc,EmCost,5)+VLOOKUP(BN31,EmAuto20,6)*VLOOKUP(ProjLoc,EmCost,6)+VLOOKUP(BN31,EmAuto20,7)*VLOOKUP(ProjLoc,EmCost,7)) ->  | BQ31: 0 | BR31: =PctLotUser3*PctNTransit3*(BikePedB-BikePedNB)*0.00000110231131*(VLOOKUP(0,EmAuto20,2)*VLOOKUP(ProjLoc,EmCost,2)+VLOOKUP(0,EmAuto20,3)*VLOOKUP(ProjLoc,EmCost,3)*(1+CO2Uprater)^($BH31+Construct-1)+VLOOKUP(0,EmAuto20,4)*VLOOKUP(ProjLoc,EmCost,4)+VLOOKUP(0,EmAuto20,5)*VLOOKUP(ProjLoc,EmCost,5)+VLOOKUP(0,EmAuto20,6)*VLOOKUP(ProjLoc,EmCost,6)+VLOOKUP(0,EmAuto20,7)*VLOOKUP(ProjLoc,EmCost,7))*2 ->  | BS31: 0 | BW31: =0.00000110231131*(BL31*VLOOKUP(BN31,EmAuto20,2)-BM31*VLOOKUP(BO31,EmAuto20,2)+PctLotUser3*PctNTransit3*(BikePedB-BikePedNB)*VLOOKUP(0,EmAuto20,2)*2) -> 0 | BX31: =0.00000110231131*(BL31*VLOOKUP(BN31,EmAuto20,3)-BM31*VLOOKUP(BO31,EmAuto20,3)+PctLotUser3*PctNTransit3*(BikePedB-BikePedNB)*VLOOKUP(0,EmAuto20,3)*2) -> 0 | BY31: =0.00000110231131*(BL31*VLOOKUP(BN31,EmAuto20,4)-BM31*VLOOKUP(BO31,EmAuto20,4)+PctLotUser3*PctNTransit3*(BikePedB-BikePedNB)*VLOOKUP(0,EmAuto20,4)*2) -> 0 | BZ31: =0.00000110231131*(BL31*VLOOKUP(BN31,EmAuto20,5)-BM31*VLOOKUP(BO31,EmAuto20,5)+PctLotUser3*PctNTransit3*(BikePedB-BikePedNB)*VLOOKUP(0,EmAuto20,5)*2) -> 0 | CA31: =0.00000110231131*(BL31*VLOOKUP(BN31,EmAuto20,6)-BM31*VLOOKUP(BO31,EmAuto20,6)+PctLotUser3*PctNTransit3*(BikePedB-BikePedNB)*VLOOKUP(0,EmAuto20,6)*2) -> 0 | CB31: =0.00000110231131*(BL31*VLOOKUP(BN31,EmAuto20,7)-BM31*VLOOKUP(BO31,EmAuto20,7)+PctLotUser3*PctNTransit3*(BikePedB-BikePedNB)*VLOOKUP(0,EmAuto20,7)*2) -> 0 | CC31: =0.00000110231131*(BL31*VLOOKUP(BN31,EmAuto20,8)-BM31*VLOOKUP(BO31,EmAuto20,8)+PctLotUser3*PctNTransit3*(BikePedB-BikePedNB)*VLOOKUP(0,EmAuto20,8)*2) -> 0 | CK31: 8 | DB31: 0 | DC31: 0 | DD31: 0 | DE31: 0 | DF31: 0 | DG31: 0 | DH31: 0
B32: 9 | C32: 0 | D32: 0 | E32: 0 | F32: 0 | G32: 0 | H32: 0 | I32: 0 | K32: 0 | M32: 0 | Q32: 0 | R32: =0.00000110231131*(F32*VLOOKUP(H32,EmAuto20,3)-G32*VLOOKUP(I32,EmAuto20,3)+PctLotUser1*PctNTransit1*(BikePedB-BikePedNB)*VLOOKUP(0,EmAuto20,3)*2) -> 0 | S32: 0 | T32: 0 | U32: 0 | V32: 0 | W32: 0 | AE32: 9 | AF32: 0 | AG32: 0 | AH32: 0 | AI32: 0 | AJ32: 0 | AK32: 0 | AL32: 0 | AN32: 0 | AP32: 0 | AT32: 0 | AU32: 0 | AV32: 0 | AW32: 0 | AX32: 0 | AY32: 0 | AZ32: 0 | BH32: 9 | BI32: 0 | BJ32: 0 | BK32: 0 | BL32: 0 | BM32: 0 | BN32: 0 | BO32: 0 | BQ32: 0 | BS32: 0 | BW32: 0 | BX32: 0 | BY32: 0 | BZ32: 0 | CA32: 0 | CB32: 0 | CC32: 0 | CK32: 9 | DB32: 0 | DC32: 0 | DD32: 0 | DE32: 0 | DF32: 0 | DG32: 0 | DH32: 0
B33: 10 | C33: 0 | D33: 0 | E33: 0 | F33: 0 | G33: 0 | H33: 0 | I33: 0 | K33: 0 | M33: 0 | Q33: 0 | R33: 0 | S33: 0 | T33: 0 | U33: 0 | V33: 0 | W33: 0 | AE33: 10 | AF33: 0 | AG33: 0 | AH33: 0 | AI33: 0 | AJ33: 0 | AK33: 0 | AL33: 0 | AN33: 0 | AP33: 0 | AT33: 0 | AU33: 0 | AV33: 0 | AW33: 0 | AX33: 0 | AY33: 0 | AZ33: 0 | BH33: 10 | BI33: 0 | BJ33: 0 | BK33: 0 | BL33: 0 | BM33: 0 | BN33: 0 | BO33: 0 | BQ33: 0 | BS33: 0 | BW33: 0 | BX33: 0 | BY33: 0 | BZ33: 0 | CA33: 0 | CB33: 0 | CC33: 0 | CK33: 10 | DB33: 0 | DC33: 0 | DD33: 0 | DE33: 0 | DF33: 0 | DG33: 0 | DH33: 0
B34: 11 | C34: 0 | D34: 0 | E34: 0 | F34: 0 | G34: 0 | H34: 0 | I34: 0 | K34: 0 | M34: 0 | Q34: 0 | R34: 0 | S34: 0 | T34: 0 | U34: 0 | V34: 0 | W34: 0 | AE34: 11 | AF34: 0 | AG34: 0 | AH34: 0 | AI34: 0 | AJ34: 0 | AK34: 0 | AL34: 0 | AN34: 0 | AP34: 0 | AT34: 0 | AU34: 0 | AV34: 0 | AW34: 0 | AX34: 0 | AY34: 0 | AZ34: 0 | BH34: 11 | BI34: 0 | BJ34: 0 | BK34: 0 | BL34: 0 | BM34: 0 | BN34: 0 | BO34: 0 | BQ34: 0 | BS34: 0 | BW34: 0 | BX34: 0 | BY34: 0 | BZ34: 0 | CA34: 0 | CB34: 0 | CC34: 0 | CK34: 11 | DB34: 0 | DC34: 0 | DD34: 0 | DE34: 0 | DF34: 0 | DG34: 0 | DH34: 0
B35: 12 | C35: 0 | D35: 0 | E35: 0 | F35: 0 | G35: 0 | H35: 0 | I35: 0 | K35: 0 | M35: 0 | Q35: 0 | R35: 0 | S35: 0 | T35: 0 | U35: 0 | V35: 0 | W35: 0 | AE35: 12 | AF35: 0 | AG35: 0 | AH35: 0 | AI35: 0 | AJ35: 0 | AK35: 0 | AL35: 0 | AN35: 0 | AP35: 0 | AT35: 0 | AU35: 0 | AV35: 0 | AW35: 0 | AX35: 0 | AY35: 0 | AZ35: 0 | BH35: 12 | BI35: 0 | BJ35: 0 | BK35: 0 | BL35: 0 | BM35: 0 | BN35: 0 | BO35: 0 | BQ35: 0 | BS35: 0 | BW35: 0 | BX35: 0 | BY35: 0 | BZ35: 0 | CA35: 0 | CB35: 0 | CC35: 0 | CK35: 12 | DB35: 0 | DC35: 0 | DD35: 0 | DE35: 0 | DF35: 0 | DG35: 0 | DH35: 0
B36: 13 | C36: 0 | D36: 0 | E36: 0 | F36: 0 | G36: 0 | H36: 0 | I36: 0 | K36: 0 | M36: 0 | Q36: 0 | R36: 0 | S36: 0 | T36: 0 | U36: 0 | V36: 0 | W36: 0 | AE36: 13 | AF36: 0 | AG36: 0 | AH36: 0 | AI36: 0 | AJ36: 0 | AK36: 0 | AL36: 0 | AN36: 0 | AP36: 0 | AT36: 0 | AU36: 0 | AV36: 0 | AW36: 0 | AX36: 0 | AY36: 0 | AZ36: 0 | BH36: 13 | BI36: 0 | BJ36: 0 | BK36: 0 | BL36: 0 | BM36: 0 | BN36: 0 | BO36: 0 | BQ36: 0 | BS36: 0 | BW36: 0 | BX36: 0 | BY36: 0 | BZ36: 0 | CA36: 0 | CB36: 0 | CC36: 0 | CK36: 13 | DB36: 0 | DC36: 0 | DD36: 0 | DE36: 0 | DF36: 0 | DG36: 0 | DH36: 0
B37: 14 | C37: 0 | D37: 0 | E37: 0 | F37: 0 | G37: 0 | H37: 0 | I37: 0 | K37: 0 | M37: 0 | Q37: 0 | R37: 0 | S37: 0 | T37: 0 | U37: 0 | V37: 0 | W37: 0 | AE37: 14 | AF37: 0 | AG37: 0 | AH37: 0 | AI37: 0 | AJ37: 0 | AK37: 0 | AL37: 0 | AN37: 0 | AP37: 0 | AT37: 0 | AU37: 0 | AV37: 0 | AW37: 0 | AX37: 0 | AY37: 0 | AZ37: 0 | BH37: 14 | BI37: 0 | BJ37: 0 | BK37: 0 | BL37: 0 | BM37: 0 | BN37: 0 | BO37: 0 | BQ37: 0 | BS37: 0 | BW37: 0 | BX37: 0 | BY37: 0 | BZ37: 0 | CA37: 0 | CB37: 0 | CC37: 0 | CK37: 14 | DB37: 0 | DC37: 0 | DD37: 0 | DE37: 0 | DF37: 0 | DG37: 0 | DH37: 0
B38: 15 | C38: 0 | D38: 0 | E38: 0 | F38: 0 | G38: 0 | H38: 0 | I38: 0 | K38: 0 | M38: 0 | Q38: 0 | R38: 0 | S38: 0 | T38: 0 | U38: 0 | V38: 0 | W38: 0 | AE38: 15 | AF38: 0 | AG38: 0 | AH38: 0 | AI38: 0 | AJ38: 0 | AK38: 0 | AL38: 0 | AN38: 0 | AP38: 0 | AT38: 0 | AU38: 0 | AV38: 0 | AW38: 0 | AX38: 0 | AY38: 0 | AZ38: 0 | BH38: 15 | BI38: 0 | BJ38: 0 | BK38: 0 | BL38: 0 | BM38: 0 | BN38: 0 | BO38: 0 | BQ38: 0 | BS38: 0 | BW38: 0 | BX38: 0 | BY38: 0 | BZ38: 0 | CA38: 0 | CB38: 0 | CC38: 0 | CK38: 15 | DB38: 0 | DC38: 0 | DD38: 0 | DE38: 0 | DF38: 0 | DG38: 0 | DH38: 0
B39: 16 | C39: 0 | D39: 0 | E39: 0 | F39: 0 | G39: 0 | H39: 0 | I39: 0 | K39: 0 | M39: 0 | Q39: 0 | R39: 0 | S39: 0 | T39: 0 | U39: 0 | V39: 0 | W39: 0 | AE39: 16 | AF39: 0 | AG39: 0 | AH39: 0 | AI39: 0 | AJ39: 0 | AK39: 0 | AL39: 0 | AN39: 0 | AP39: 0 | AT39: 0 | AU39: 0 | AV39: 0 | AW39: 0 | AX39: 0 | AY39: 0 | AZ39: 0 | BH39: 16 | BI39: 0 | BJ39: 0 | BK39: 0 | BL39: 0 | BM39: 0 | BN39: 0 | BO39: 0 | BQ39: 0 | BS39: 0 | BW39: 0 | BX39: 0 | BY39: 0 | BZ39: 0 | CA39: 0 | CB39: 0 | CC39: 0 | CK39: 16 | DB39: 0 | DC39: 0 | DD39: 0 | DE39: 0 | DF39: 0 | DG39: 0 | DH39: 0
B40: 17 | C40: 0 | D40: 0 | E40: 0 | F40: 0 | G40: 0 | H40: 0 | I40: 0 | K40: 0 | M40: 0 | Q40: 0 | R40: 0 | S40: 0 | T40: 0 | U40: 0 | V40: 0 | W40: 0 | AE40: 17 | AF40: 0 | AG40: 0 | AH40: 0 | AI40: 0 | AJ40: 0 | AK40: 0 | AL40: 0 | AN40: 0 | AP40: 0 | AT40: 0 | AU40: 0 | AV40: 0 | AW40: 0 | AX40: 0 | AY40: 0 | AZ40: 0 | BH40: 17 | BI40: 0 | BJ40: 0 | BK40: 0 | BL40: 0 | BM40: 0 | BN40: 0 | BO40: 0 | BQ40: 0 | BS40: 0 | BW40: 0 | BX40: 0 | BY40: 0 | BZ40: 0 | CA40: 0 | CB40: 0 | CC40: 0 | CK40: 17 | DB40: 0 | DC40: 0 | DD40: 0 | DE40: 0 | DF40: 0 | DG40: 0 | DH40: 0
B41: 18 | C41: 0 | D41: 0 | E41: 0 | F41: 0 | G41: 0 | H41: 0 | I41: 0 | K41: 0 | M41: 0 | Q41: 0 | R41: 0 | S41: 0 | T41: 0 | U41: 0 | V41: 0 | W41: 0 | AE41: 18 | AF41: 0 | AG41: 0 | AH41: 0 | AI41: 0 | AJ41: 0 | AK41: 0 | AL41: 0 | AN41: 0 | AP41: 0 | AT41: 0 | AU41: 0 | AV41: 0 | AW41: 0 | AX41: 0 | AY41: 0 | AZ41: 0 | BH41: 18 | BI41: 0 | BJ41: 0 | BK41: 0 | BL41: 0 | BM41: 0 | BN41: 0 | BO41: 0 | BQ41: 0 | BS41: 0 | BW41: 0 | BX41: 0 | BY41: 0 | BZ41: 0 | CA41: 0 | CB41: 0 | CC41: 0 | CK41: 18 | DB41: 0 | DC41: 0 | DD41: 0 | DE41: 0 | DF41: 0 | DG41: 0 | DH41: 0
B42: 19 | C42: 0 | D42: 0 | E42: 0 | F42: 0 | G42: 0 | H42: 0 | I42: 0 | K42: 0 | M42: 0 | Q42: 0 | R42: 0 | S42: 0 | T42: 0 | U42: 0 | V42: 0 | W42: 0 | AE42: 19 | AF42: 0 | AG42: 0 | AH42: 0 | AI42: 0 | AJ42: 0 | AK42: 0 | AL42: 0 | AN42: 0 | AP42: 0 | AT42: 0 | AU42: 0 | AV42: 0 | AW42: 0 | AX42: 0 | AY42: 0 | AZ42: 0 | BH42: 19 | BI42: 0 | BJ42: 0 | BK42: 0 | BL42: 0 | BM42: 0 | BN42: 0 | BO42: 0 | BQ42: 0 | BS42: 0 | BW42: 0 | BX42: 0 | BY42: 0 | BZ42: 0 | CA42: 0 | CB42: 0 | CC42: 0 | CK42: 19 | DB42: 0 | DC42: 0 | DD42: 0 | DE42: 0 | DF42: 0 | DG42: 0 | DH42: 0
B43: 20 | C43: 0 | D43: 0 | E43: 0 | F43: 0 | G43: 0 | H43: 0 | I43: 0 | K43: 0 | M43: 0 | Q43: 0 | R43: 0 | S43: 0 | T43: 0 | U43: 0 | V43: 0 | W43: 0 | AE43: 20 | AF43: 0 | AG43: 0 | AH43: 0 | AI43: 0 | AJ43: 0 | AK43: 0 | AL43: 0 | AN43: 0 | AP43: 0 | AT43: 0 | AU43: 0 | AV43: 0 | AW43: 0 | AX43: 0 | AY43: 0 | AZ43: 0 | BH43: 20 | BI43: 0 | BJ43: 0 | BK43: 0 | BL43: 0 | BM43: 0 | BN43: 0 | BO43: 0 | BQ43: 0 | BS43: 0 | BW43: 0 | BX43: 0 | BY43: 0 | BZ43: 0 | CA43: 0 | CB43: 0 | CC43: 0 | CK43: 20 | DB43: 0 | DC43: 0 | DD43: 0 | DE43: 0 | DF43: 0 | DG43: 0 | DH43: 0
B45: Total | O45: =SUM(O24:O43) ->  | Q45: =SUM(Q24:Q43) -> 0 | R45: =SUM(R24:R43) -> 0 | S45: =SUM(S24:S43) -> 0 | T45: 0 | U45: 0 | V45: 0 | W45: 0 | X45: =SUM(X24:X43) ->  | Y45: =SUM(Y24:Y43) ->  | Z45: =SUM(Z24:Z43) ->  | AC45: =SUM(AC24:AC43) ->  | AE45: Total | AR45: =SUM(AR24:AR43) ->  | AT45: =SUM(AT24:AT43) -> 0 | AU45: =SUM(AU24:AU43) -> 0 | AV45: =SUM(AV24:AV43) -> 0 | AW45: 0 | AX45: 0 | AY45: 0 | AZ45: 0 | BA45: =SUM(BA24:BA43) ->  | BB45: =SUM(BB24:BB43) ->  | BC45: =SUM(BC24:BC43) ->  | BF45: =SUM(BF24:BF43) ->  | BH45: Total | BU45: =SUM(BU24:BU43) ->  | BW45: =SUM(BW24:BW43) -> 0 | BX45: =SUM(BX24:BX43) -> 0 | BY45: =SUM(BY24:BY43) -> 0 | BZ45: 0 | CA45: 0 | CB45: 0 | CC45: 0 | CD45: =SUM(CD24:CD43) ->  | CE45: =SUM(CE24:CE43) ->  | CF45: =SUM(CF24:CF43) ->  | CI45: =SUM(CI24:CI43) ->  | CK45: Total | CL45: =SUM(CL24:CL43) ->  | CZ45: =SUM(CZ24:CZ43) ->  | DB45: =SUM(DB24:DB43) -> 0 | DC45: =SUM(DC24:DC43) -> 0 | DD45: =SUM(DD24:DD43) -> 0 | DE45: 0 | DF45: 0 | DG45: 0 | DH45: 0 | DI45: =SUM(DI24:DI43) ->  | DJ45: =SUM(DJ24:DJ43) ->  | DK45: =SUM(DK24:DK43) -> 
CK47: =IF(Emissions<>"N","","* Emissions Benefits Not Counted") -> 
B48: Existing Transit Riders (switch from local bus to express bus) | AE48: Existing Transit Riders (switch from local bus to express bus) | BH48: Existing Transit Riders (switch from local bus to express bus)
C50: ANNUAL NUMBER OF USERS | F50: TOTAL AUTO VMT | H50: AVERAGE HWY SPEED | J50: RUNNING EMISSIONS | L50: STARTING EMISSIONS | Q50: TONS EMISSIONS SAVED | X50: DOLLARS EMISSIONS SAVED | AF50: ANNUAL NUMBER OF USERS | AI50: TOTAL AUTO VMT | AK50: AVERAGE HWY SPEED | AM50: RUNNING EMISSIONS | AO50: STARTING EMISSIONS | AT50: TONS EMISSIONS SAVED | BA50: DOLLARS EMISSIONS SAVED | BI50: ANNUAL NUMBER OF USERS | BL50: TOTAL AUTO VMT | BN50: AVERAGE HWY SPEED | BP50: RUNNING EMISSIONS | BR50: STARTING EMISSIONS | BW50: TONS EMISSIONS SAVED | CD50: DOLLARS EMISSIONS SAVED
C51: (people/yr) | F51: (veh-miles/yr) | H51: (mph) | J51: ($/yr) | L51: ($/yr) | Q51: (tons/yr) | X51: (PV $/yr) | AF51: (people/yr) | AI51: (veh-miles/yr) | AK51: (mph) | AM51: ($/yr) | AO51: ($/yr) | AT51: (tons/yr) | BA51: (PV $/yr) | BI51: (people/yr) | BL51: (veh-miles/yr) | BN51: (mph) | BP51: ($/yr) | BR51: ($/yr) | BW51: (tons/yr) | CD51: (PV $/yr)
B52: Year | C52: Existing | D52: New | E52: Users | N52: Constant | O52: Present | AE52: Year | AF52: Existing | AG52: New | AH52: Users | AQ52: Constant | AR52: Present | BH52: Year | BI52: Existing | BJ52: New | BK52: Users | BT52: Constant | BU52: Present
C53: Lot | D53: Lot | E53: Benefited | F53: No Build | G53: Build | H53: No Build | I53: Build | J53: No Build | K53: Build | L53: No Build | M53: Build | N53: Dollars | O53: Value | Q53: CO | R53: CO2 | S53: NOX | T53: PM10 | U53: SOX | V53: VOC | W53: PM2.5 | X53: CO | Y53: CO2 | Z53: NOX | AA53: PM10 | AB53: SOX | AC53: VOC | AF53: Lot | AG53: Lot | AH53: Benefited | AI53: No Build | AJ53: Build | AK53: No Build | AL53: Build | AM53: No Build | AN53: Build | AO53: No Build | AP53: Build | AQ53: Dollars | AR53: Value | AT53: CO | AU53: CO2 | AV53: NOX | AW53: PM10 | AX53: SOX | AY53: VOC | AZ53: PM2.5 | BA53: CO | BB53: CO2 | BC53: NOX | BD53: PM10 | BE53: SOX | BF53: VOC | BI53: Lot | BJ53: Lot | BK53: Benefited | BL53: No Build | BM53: Build | BN53: No Build | BO53: Build | BP53: No Build | BQ53: Build | BR53: No Build | BS53: Build | BT53: Dollars | BU53: Value | BW53: CO | BX53: CO2 | BY53: NOX | BZ53: PM10 | CA53: SOX | CB53: VOC | CC53: PM2.5 | CD53: CO | CE53: CO2 | CF53: NOX | CG53: PM10 | CH53: SOX | CI53: VOC
B54: 1 | C54: =IF(SpacesNB=0,0,(IF(B54>CapYrNB,1,(B54-1)/CapYrNB)*MAX(0,(100%-PctFillNB))+(PctFillNB))*(SpacesNB*AVONB+IF(PctFillNB=0,BikePedNB,BikePedNB/PctFillNB))*AnnualFactor)*PctLotUser1*PctETransit1 -> 0 | D54: =IF(SpacesB=0,0,(IF(B54>CapYrB,1,(B54-1)/CapYrB)*MAX(0,(100%-PctFillB))+(PctFillB))*(SpacesB*AVOB+IF(PctFillB=0,BikePedB,BikePedB/PctFillB))*AnnualFactor)*PctLotUser1*PctETransit1 -> 0 | E54: =MAX(0,D54-C54) -> 0 | F54: 0 | G54: 0 | H54: 0 | I54: 0 | J54: 0 | K54: 0 | L54: =PctLotUser1*PctETransit1*(BikePedB-BikePedNB)*0.00000110231131*(VLOOKUP(0,EmAuto1,2)*VLOOKUP(ProjLoc,EmCost,2)+VLOOKUP(0,EmAuto1,3)*VLOOKUP(ProjLoc,EmCost,3)*(1+CO2Uprater)^($B54+Construct-1)+VLOOKUP(0,EmAuto1,4)*VLOOKUP(ProjLoc,EmCost,4)+VLOOKUP(0,EmAuto1,5)*VLOOKUP(ProjLoc,EmCost,5)+VLOOKUP(0,EmAuto1,6)*VLOOKUP(ProjLoc,EmCost,6)+VLOOKUP(0,EmAuto1,7)*VLOOKUP(ProjLoc,EmCost,7))*2 ->  | M54: 0 | N54: =(J54+L54)-(K54+M54) ->  | O54: =$N54/(1+DiscRate)^($B54+Construct-1) ->  | Q54: =0.00000110231131*(F54*VLOOKUP(H54,EmAuto1,2)-G54*VLOOKUP(I54,EmAuto1,2)+PctLotUser1*PctETransit1*(BikePedB-BikePedNB)*VLOOKUP(0,EmAuto1,2)*2) -> 0 | R54: =0.00000110231131*(F54*VLOOKUP(H54,EmAuto1,3)-G54*VLOOKUP(I54,EmAuto1,3)+PctLotUser1*PctETransit1*(BikePedB-BikePedNB)*VLOOKUP(0,EmAuto1,3)*2) -> 0 | S54: =0.00000110231131*(F54*VLOOKUP(H54,EmAuto1,4)-G54*VLOOKUP(I54,EmAuto1,4)+PctLotUser1*PctETransit1*(BikePedB-BikePedNB)*VLOOKUP(0,EmAuto1,4)*2) -> 0 | T54: =0.00000110231131*(F54*VLOOKUP(H54,EmAuto1,5)-G54*VLOOKUP(I54,EmAuto1,5)+PctLotUser1*PctETransit1*(BikePedB-BikePedNB)*VLOOKUP(0,EmAuto1,5)*2) -> 0 | U54: =0.00000110231131*(F54*VLOOKUP(H54,EmAuto1,6)-G54*VLOOKUP(I54,EmAuto1,6)+PctLotUser1*PctETransit1*(BikePedB-BikePedNB)*VLOOKUP(0,EmAuto1,6)*2) -> 0 | V54: =0.00000110231131*(F54*VLOOKUP(H54,EmAuto1,7)-G54*VLOOKUP(I54,EmAuto1,7)+PctLotUser1*PctETransit1*(BikePedB-BikePedNB)*VLOOKUP(0,EmAuto1,7)*2) -> 0 | W54: =0.00000110231131*(F54*VLOOKUP(H54,EmAuto1,8)-G54*VLOOKUP(I54,EmAuto1,8)+PctLotUser1*PctETransit1*(BikePedB-BikePedNB)*VLOOKUP(0,EmAuto1,8)*2) -> 0 | X54: =Q54*VLOOKUP(ProjLoc,EmCost,2)/(1+DiscRate)^($B54+Construct-1) ->  | Y54: =R54*VLOOKUP(ProjLoc,EmCost,3)*(1+CO2Uprater)^($B54+Construct-1)/(1+DiscRate)^($B54+Construct-1) ->  | Z54: =S54*VLOOKUP(ProjLoc,EmCost,4)/(1+DiscRate)^($B54+Construct-1) ->  | AA54: =T54*VLOOKUP(ProjLoc,EmCost,5)/(1+DiscRate)^($B54+Construct-1) ->  | AB54: =U54*VLOOKUP(ProjLoc,EmCost,6)/(1+DiscRate)^($B54+Construct-1) ->  | AC54: =V54*VLOOKUP(ProjLoc,EmCost,7)/(1+DiscRate)^($B54+Construct-1) ->  | AE54: 1 | AF54: =IF(SpacesNB=0,0,(IF(AE54>CapYrNB,1,(AE54-1)/CapYrNB)*MAX(0,(100%-PctFillNB))+(PctFillNB))*(SpacesNB*AVONB+IF(PctFillNB=0,BikePedNB,BikePedNB/PctFillNB))*AnnualFactor)*PctLotUser2*PctETransit2 -> 0 | AG54: =IF(SpacesB=0,0,(IF(AE54>CapYrB,1,(AE54-1)/CapYrB)*MAX(0,(100%-PctFillB))+(PctFillB))*(SpacesB*AVOB+IF(PctFillB=0,BikePedB,BikePedB/PctFillB))*AnnualFactor)*PctLotUser2*PctETransit2 -> 0 | AH54: =MAX(0,AG54-AF54) -> 0 | AI54: 0 | AJ54: 0 | AK54: 0 | AL54: 0 | AM54: 0 | AN54: 0 | AO54: =PctLotUser2*PctETransit2*(BikePedB-BikePedNB)*0.00000110231131*(VLOOKUP(0,EmAuto1,2)*VLOOKUP(ProjLoc,EmCost,2)+VLOOKUP(0,EmAuto1,3)*VLOOKUP(ProjLoc,EmCost,3)*(1+CO2Uprater)^($AE54+Construct-1)+VLOOKUP(0,EmAuto1,4)*VLOOKUP(ProjLoc,EmCost,4)+VLOOKUP(0,EmAuto1,5)*VLOOKUP(ProjLoc,EmCost,5)+VLOOKUP(0,EmAuto1,6)*VLOOKUP(ProjLoc,EmCost,6)+VLOOKUP(0,EmAuto1,7)*VLOOKUP(ProjLoc,EmCost,7))*2 ->  | AP54: 0 | AQ54: =(AM54+AO54)-(AN54+AP54) ->  | AR54: =$AQ54/(1+DiscRate)^($AE54+Construct-1) ->  | AT54: =0.00000110231131*(AI54*VLOOKUP(AK54,EmAuto1,2)-AJ54*VLOOKUP(AL54,EmAuto1,2)+PctLotUser2*PctETransit2*(BikePedB-BikePedNB)*VLOOKUP(0,EmAuto1,2)*2) -> 0 | AU54: =0.00000110231131*(AI54*VLOOKUP(AK54,EmAuto1,3)-AJ54*VLOOKUP(AL54,EmAuto1,3)+PctLotUser2*PctETransit2*(BikePedB-BikePedNB)*VLOOKUP(0,EmAuto1,3)*2) -> 0 | AV54: =0.00000110231131*(AI54*VLOOKUP(AK54,EmAuto1,4)-AJ54*VLOOKUP(AL54,EmAuto1,4)+PctLotUser2*PctETransit2*(BikePedB-BikePedNB)*VLOOKUP(0,EmAuto1,4)*2) -> 0 | AW54: =0.00000110231131*(AI54*VLOOKUP(AK54,EmAuto1,5)-AJ54*VLOOKUP(AL54,EmAuto1,5)+PctLotUser2*PctETransit2*(BikePedB-BikePedNB)*VLOOKUP(0,EmAuto1,5)*2) -> 0 | AX54: =0.00000110231131*(AI54*VLOOKUP(AK54,EmAuto1,6)-AJ54*VLOOKUP(AL54,EmAuto1,6)+PctLotUser2*PctETransit2*(BikePedB-BikePedNB)*VLOOKUP(0,EmAuto1,6)*2) -> 0 | AY54: =0.00000110231131*(AI54*VLOOKUP(AK54,EmAuto1,7)-AJ54*VLOOKUP(AL54,EmAuto1,7)+PctLotUser2*PctETransit2*(BikePedB-BikePedNB)*VLOOKUP(0,EmAuto1,7)*2) -> 0 | AZ54: =0.00000110231131*(AI54*VLOOKUP(AK54,EmAuto1,8)-AJ54*VLOOKUP(AL54,EmAuto1,8)+PctLotUser2*PctETransit2*(BikePedB-BikePedNB)*VLOOKUP(0,EmAuto1,8)*2) -> 0 | BA54: =AT54*VLOOKUP(ProjLoc,EmCost,2)/(1+DiscRate)^($AE54+Construct-1) ->  | BB54: =AU54*VLOOKUP(ProjLoc,EmCost,3)*(1+CO2Uprater)^($AE54+Construct-1)/(1+DiscRate)^($AE54+Construct-1) ->  | BC54: =AV54*VLOOKUP(ProjLoc,EmCost,4)/(1+DiscRate)^($AE54+Construct-1) ->  | BD54: =AW54*VLOOKUP(ProjLoc,EmCost,5)/(1+DiscRate)^($AE54+Construct-1) ->  | BE54: =AX54*VLOOKUP(ProjLoc,EmCost,6)/(1+DiscRate)^($AE54+Construct-1) ->  | BF54: =AY54*VLOOKUP(ProjLoc,EmCost,7)/(1+DiscRate)^($AE54+Construct-1) ->  | BH54: 1 | BI54: =IF(SpacesNB=0,0,(IF(BH54>CapYrNB,1,(BH54-1)/CapYrNB)*MAX(0,(100%-PctFillNB))+(PctFillNB))*(SpacesNB*AVONB+IF(PctFillNB=0,BikePedNB,BikePedNB/PctFillNB))*AnnualFactor)*PctLotUser3*PctETransit3 -> 0 | BJ54: =IF(SpacesB=0,0,(IF(BH54>CapYrB,1,(BH54-1)/CapYrB)*MAX(0,(100%-PctFillB))+(PctFillB))*(SpacesB*AVOB+IF(PctFillB=0,BikePedB,BikePedB/PctFillB))*AnnualFactor)*PctLotUser3*PctETransit3 -> 0 | BK54: =MAX(0,BJ54-BI54) -> 0 | BL54: 0 | BM54: 0 | BN54: 0 | BO54: 0 | BP54: 0 | BQ54: 0 | BR54: =PctLotUser3*PctETransit3*(BikePedB-BikePedNB)*0.00000110231131*(VLOOKUP(0,EmAuto1,2)*VLOOKUP(ProjLoc,EmCost,2)+VLOOKUP(0,EmAuto1,3)*VLOOKUP(ProjLoc,EmCost,3)*(1+CO2Uprater)^($BH54+Construct-1)+VLOOKUP(0,EmAuto1,4)*VLOOKUP(ProjLoc,EmCost,4)+VLOOKUP(0,EmAuto1,5)*VLOOKUP(ProjLoc,EmCost,5)+VLOOKUP(0,EmAuto1,6)*VLOOKUP(ProjLoc,EmCost,6)+VLOOKUP(0,EmAuto1,7)*VLOOKUP(ProjLoc,EmCost,7))*2 ->  | BS54: 0 | BT54: =(BP54+BR54)-(BQ54+BS54) ->  | BU54: =$BT54/(1+DiscRate)^($BH54+Construct-1) ->  | BW54: =0.00000110231131*(BL54*VLOOKUP(BN54,EmAuto1,2)-BM54*VLOOKUP(BO54,EmAuto1,2)+PctLotUser3*PctETransit3*(BikePedB-BikePedNB)*VLOOKUP(0,EmAuto1,2)*2) -> 0 | BX54: =0.00000110231131*(BL54*VLOOKUP(BN54,EmAuto1,3)-BM54*VLOOKUP(BO54,EmAuto1,3)+PctLotUser3*PctETransit3*(BikePedB-BikePedNB)*VLOOKUP(0,EmAuto1,3)*2) -> 0 | BY54: =0.00000110231131*(BL54*VLOOKUP(BN54,EmAuto1,4)-BM54*VLOOKUP(BO54,EmAuto1,4)+PctLotUser3*PctETransit3*(BikePedB-BikePedNB)*VLOOKUP(0,EmAuto1,4)*2) -> 0 | BZ54: =0.00000110231131*(BL54*VLOOKUP(BN54,EmAuto1,5)-BM54*VLOOKUP(BO54,EmAuto1,5)+PctLotUser3*PctETransit3*(BikePedB-BikePedNB)*VLOOKUP(0,EmAuto1,5)*2) -> 0 | CA54: =0.00000110231131*(BL54*VLOOKUP(BN54,EmAuto1,6)-BM54*VLOOKUP(BO54,EmAuto1,6)+PctLotUser3*PctETransit3*(BikePedB-BikePedNB)*VLOOKUP(0,EmAuto1,6)*2) -> 0 | CB54: =0.00000110231131*(BL54*VLOOKUP(BN54,EmAuto1,7)-BM54*VLOOKUP(BO54,EmAuto1,7)+PctLotUser3*PctETransit3*(BikePedB-BikePedNB)*VLOOKUP(0,EmAuto1,7)*2) -> 0 | CC54: =0.00000110231131*(BL54*VLOOKUP(BN54,EmAuto1,8)-BM54*VLOOKUP(BO54,EmAuto1,8)+PctLotUser3*PctETransit3*(BikePedB-BikePedNB)*VLOOKUP(0,EmAuto1,8)*2) -> 0 | CD54: =BW54*VLOOKUP(ProjLoc,EmCost,2)/(1+DiscRate)^($BH54+Construct-1) ->  | CE54: =BX54*VLOOKUP(ProjLoc,EmCost,3)*(1+CO2Uprater)^($BH54+Construct-1)/(1+DiscRate)^($BH54+Construct-1) ->  | CF54: =BY54*VLOOKUP(ProjLoc,EmCost,4)/(1+DiscRate)^($BH54+Construct-1) ->  | CG54: =BZ54*VLOOKUP(ProjLoc,EmCost,5)/(1+DiscRate)^($BH54+Construct-1) ->  | CH54: =CA54*VLOOKUP(ProjLoc,EmCost,6)/(1+DiscRate)^($BH54+Construct-1) ->  | CI54: =CB54*VLOOKUP(ProjLoc,EmCost,7)/(1+DiscRate)^($BH54+Construct-1) -> 
B55: 2 | C55: 0 | D55: 0 | E55: =MAX(0,D55-C55) -> 0 | F55: 0 | G55: 0 | H55: 0 | I55: 0 | J55: 0 | K55: 0 | M55: 0 | N55: =(J55+L55)-(K55+M55) ->  | Q55: 0 | R55: =0.00000110231131*(F55*VLOOKUP(H55,EmAuto1,3)-G55*VLOOKUP(I55,EmAuto1,3)+PctLotUser1*PctETransit1*(BikePedB-BikePedNB)*VLOOKUP(0,EmAuto1,3)*2) -> 0 | S55: 0 | T55: 0 | U55: 0 | V55: 0 | W55: 0 | AE55: 2 | AF55: 0 | AG55: 0 | AH55: =MAX(0,AG55-AF55) -> 0 | AI55: 0 | AJ55: 0 | AK55: 0 | AL55: 0 | AM55: 0 | AN55: 0 | AP55: 0 | AQ55: =(AM55+AO55)-(AN55+AP55) ->  | AT55: 0 | AU55: 0 | AV55: 0 | AW55: 0 | AX55: 0 | AY55: 0 | AZ55: 0 | BH55: 2 | BI55: 0 | BJ55: 0 | BK55: =MAX(0,BJ55-BI55) -> 0 | BL55: 0 | BM55: 0 | BN55: 0 | BO55: 0 | BP55: 0 | BQ55: 0 | BS55: 0 | BT55: =(BP55+BR55)-(BQ55+BS55) ->  | BW55: 0 | BX55: 0 | BY55: 0 | BZ55: 0 | CA55: 0 | CB55: 0 | CC55: 0
B56: 3 | C56: 0 | D56: 0 | E56: 0 | F56: 0 | G56: 0 | H56: 0 | I56: 0 | J56: 0 | K56: 0 | M56: 0 | Q56: 0 | R56: 0 | S56: 0 | T56: 0 | U56: 0 | V56: 0 | W56: 0 | AE56: 3 | AF56: 0 | AG56: 0 | AH56: 0 | AI56: 0 | AJ56: 0 | AK56: 0 | AL56: 0 | AM56: 0 | AN56: 0 | AP56: 0 | AT56: 0 | AU56: 0 | AV56: 0 | AW56: 0 | AX56: 0 | AY56: 0 | AZ56: 0 | BH56: 3 | BI56: 0 | BJ56: 0 | BK56: 0 | BL56: 0 | BM56: 0 | BN56: 0 | BO56: 0 | BP56: 0 | BQ56: 0 | BS56: 0 | BW56: 0 | BX56: 0 | BY56: 0 | BZ56: 0 | CA56: 0 | CB56: 0 | CC56: 0
B57: 4 | C57: 0 | D57: 0 | E57: 0 | F57: 0 | G57: 0 | H57: 0 | I57: 0 | J57: 0 | K57: 0 | M57: 0 | Q57: 0 | R57: 0 | S57: 0 | T57: 0 | U57: 0 | V57: 0 | W57: 0 | AE57: 4 | AF57: 0 | AG57: 0 | AH57: 0 | AI57: 0 | AJ57: 0 | AK57: 0 | AL57: 0 | AM57: 0 | AN57: 0 | AP57: 0 | AT57: 0 | AU57: 0 | AV57: 0 | AW57: 0 | AX57: 0 | AY57: 0 | AZ57: 0 | BH57: 4 | BI57: 0 | BJ57: 0 | BK57: 0 | BL57: 0 | BM57: 0 | BN57: 0 | BO57: 0 | BP57: 0 | BQ57: 0 | BS57: 0 | BW57: 0 | BX57: 0 | BY57: 0 | BZ57: 0 | CA57: 0 | CB57: 0 | CC57: 0
B58: 5 | C58: 0 | D58: 0 | E58: 0 | F58: 0 | G58: 0 | H58: 0 | I58: 0 | J58: 0 | K58: 0 | M58: 0 | Q58: 0 | R58: 0 | S58: 0 | T58: 0 | U58: 0 | V58: 0 | W58: 0 | AE58: 5 | AF58: 0 | AG58: 0 | AH58: 0 | AI58: 0 | AJ58: 0 | AK58: 0 | AL58: 0 | AM58: 0 | AN58: 0 | AP58: 0 | AT58: 0 | AU58: 0 | AV58: 0 | AW58: 0 | AX58: 0 | AY58: 0 | AZ58: 0 | BH58: 5 | BI58: 0 | BJ58: 0 | BK58: 0 | BL58: 0 | BM58: 0 | BN58: 0 | BO58: 0 | BP58: 0 | BQ58: 0 | BS58: 0 | BW58: 0 | BX58: 0 | BY58: 0 | BZ58: 0 | CA58: 0 | CB58: 0 | CC58: 0
B59: 6 | C59: 0 | D59: 0 | E59: 0 | F59: 0 | G59: 0 | H59: 0 | I59: 0 | J59: 0 | K59: 0 | M59: 0 | Q59: 0 | R59: 0 | S59: 0 | T59: 0 | U59: 0 | V59: 0 | W59: 0 | AE59: 6 | AF59: 0 | AG59: 0 | AH59: 0 | AI59: 0 | AJ59: 0 | AK59: 0 | AL59: 0 | AM59: 0 | AN59: 0 | AP59: 0 | AT59: 0 | AU59: 0 | AV59: 0 | AW59: 0 | AX59: 0 | AY59: 0 | AZ59: 0 | BH59: 6 | BI59: 0 | BJ59: 0 | BK59: 0 | BL59: 0 | BM59: 0 | BN59: 0 | BO59: 0 | BP59: 0 | BQ59: 0 | BS59: 0 | BW59: 0 | BX59: 0 | BY59: 0 | BZ59: 0 | CA59: 0 | CB59: 0 | CC59: 0
B60: 7 | C60: 0 | D60: 0 | E60: 0 | F60: 0 | G60: 0 | H60: 0 | I60: 0 | J60: 0 | K60: 0 | M60: 0 | Q60: 0 | R60: 0 | S60: 0 | T60: 0 | U60: 0 | V60: 0 | W60: 0 | AE60: 7 | AF60: 0 | AG60: 0 | AH60: 0 | AI60: 0 | AJ60: 0 | AK60: 0 | AL60: 0 | AM60: 0 | AN60: 0 | AP60: 0 | AT60: 0 | AU60: 0 | AV60: 0 | AW60: 0 | AX60: 0 | AY60: 0 | AZ60: 0 | BH60: 7 | BI60: 0 | BJ60: 0 | BK60: 0 | BL60: 0 | BM60: 0 | BN60: 0 | BO60: 0 | BP60: 0 | BQ60: 0 | BS60: 0 | BW60: 0 | BX60: 0 | BY60: 0 | BZ60: 0 | CA60: 0 | CB60: 0 | CC60: 0
B61: 8 | C61: 0 | D61: 0 | E61: 0 | F61: 0 | G61: 0 | H61: 0 | I61: 0 | J61: 0 | K61: 0 | L61: =PctLotUser1*PctETransit1*(BikePedB-BikePedNB)*0.00000110231131*(VLOOKUP(0,EmAuto20,2)*VLOOKUP(ProjLoc,EmCost,2)+VLOOKUP(0,EmAuto20,3)*VLOOKUP(ProjLoc,EmCost,3)*(1+CO2Uprater)^($B61+Construct-1)+VLOOKUP(0,EmAuto20,4)*VLOOKUP(ProjLoc,EmCost,4)+VLOOKUP(0,EmAuto20,5)*VLOOKUP(ProjLoc,EmCost,5)+VLOOKUP(0,EmAuto20,6)*VLOOKUP(ProjLoc,EmCost,6)+VLOOKUP(0,EmAuto20,7)*VLOOKUP(ProjLoc,EmCost,7))*2 ->  | M61: 0 | Q61: =0.00000110231131*(F61*VLOOKUP(H61,EmAuto20,2)-G61*VLOOKUP(I61,EmAuto20,2)+PctLotUser1*PctETransit1*(BikePedB-BikePedNB)*VLOOKUP(0,EmAuto20,2)*2) -> 0 | R61: =0.00000110231131*(F61*VLOOKUP(H61,EmAuto20,3)-G61*VLOOKUP(I61,EmAuto20,3)+PctLotUser1*PctETransit1*(BikePedB-BikePedNB)*VLOOKUP(0,EmAuto20,3)*2) -> 0 | S61: =0.00000110231131*(F61*VLOOKUP(H61,EmAuto20,4)-G61*VLOOKUP(I61,EmAuto20,4)+PctLotUser1*PctETransit1*(BikePedB-BikePedNB)*VLOOKUP(0,EmAuto20,4)*2) -> 0 | T61: =0.00000110231131*(F61*VLOOKUP(H61,EmAuto20,5)-G61*VLOOKUP(I61,EmAuto20,5)+PctLotUser1*PctETransit1*(BikePedB-BikePedNB)*VLOOKUP(0,EmAuto20,5)*2) -> 0 | U61: =0.00000110231131*(F61*VLOOKUP(H61,EmAuto20,6)-G61*VLOOKUP(I61,EmAuto20,6)+PctLotUser1*PctETransit1*(BikePedB-BikePedNB)*VLOOKUP(0,EmAuto20,6)*2) -> 0 | V61: =0.00000110231131*(F61*VLOOKUP(H61,EmAuto20,7)-G61*VLOOKUP(I61,EmAuto20,7)+PctLotUser1*PctETransit1*(BikePedB-BikePedNB)*VLOOKUP(0,EmAuto20,7)*2) -> 0 | W61: =0.00000110231131*(F61*VLOOKUP(H61,EmAuto20,8)-G61*VLOOKUP(I61,EmAuto20,8)+PctLotUser1*PctETransit1*(BikePedB-BikePedNB)*VLOOKUP(0,EmAuto20,8)*2) -> 0 | AE61: 8 | AF61: 0 | AG61: 0 | AH61: 0 | AI61: 0 | AJ61: 0 | AK61: 0 | AL61: 0 | AM61: 0 | AN61: 0 | AO61: =PctLotUser2*PctETransit2*(BikePedB-BikePedNB)*0.00000110231131*(VLOOKUP(0,EmAuto20,2)*VLOOKUP(ProjLoc,EmCost,2)+VLOOKUP(0,EmAuto20,3)*VLOOKUP(ProjLoc,EmCost,3)*(1+CO2Uprater)^($AE61+Construct-1)+VLOOKUP(0,EmAuto20,4)*VLOOKUP(ProjLoc,EmCost,4)+VLOOKUP(0,EmAuto20,5)*VLOOKUP(ProjLoc,EmCost,5)+VLOOKUP(0,EmAuto20,6)*VLOOKUP(ProjLoc,EmCost,6)+VLOOKUP(0,EmAuto20,7)*VLOOKUP(ProjLoc,EmCost,7))*2 ->  | AP61: 0 | AT61: =0.00000110231131*(AI61*VLOOKUP(AK61,EmAuto20,2)-AJ61*VLOOKUP(AL61,EmAuto20,2)+PctLotUser2*PctETransit2*(BikePedB-BikePedNB)*VLOOKUP(0,EmAuto20,2)*2) -> 0 | AU61: =0.00000110231131*(AI61*VLOOKUP(AK61,EmAuto20,3)-AJ61*VLOOKUP(AL61,EmAuto20,3)+PctLotUser2*PctETransit2*(BikePedB-BikePedNB)*VLOOKUP(0,EmAuto20,3)*2) -> 0 | AV61: =0.00000110231131*(AI61*VLOOKUP(AK61,EmAuto20,4)-AJ61*VLOOKUP(AL61,EmAuto20,4)+PctLotUser2*PctETransit2*(BikePedB-BikePedNB)*VLOOKUP(0,EmAuto20,4)*2) -> 0 | AW61: =0.00000110231131*(AI61*VLOOKUP(AK61,EmAuto20,5)-AJ61*VLOOKUP(AL61,EmAuto20,5)+PctLotUser2*PctETransit2*(BikePedB-BikePedNB)*VLOOKUP(0,EmAuto20,5)*2) -> 0 | AX61: =0.00000110231131*(AI61*VLOOKUP(AK61,EmAuto20,6)-AJ61*VLOOKUP(AL61,EmAuto20,6)+PctLotUser2*PctETransit2*(BikePedB-BikePedNB)*VLOOKUP(0,EmAuto20,6)*2) -> 0 | AY61: =0.00000110231131*(AI61*VLOOKUP(AK61,EmAuto20,7)-AJ61*VLOOKUP(AL61,EmAuto20,7)+PctLotUser2*PctETransit2*(BikePedB-BikePedNB)*VLOOKUP(0,EmAuto20,7)*2) -> 0 | AZ61: =0.00000110231131*(AI61*VLOOKUP(AK61,EmAuto20,8)-AJ61*VLOOKUP(AL61,EmAuto20,8)+PctLotUser2*PctETransit2*(BikePedB-BikePedNB)*VLOOKUP(0,EmAuto20,8)*2) -> 0 | BH61: 8 | BI61: 0 | BJ61: 0 | BK61: 0 | BL61: 0 | BM61: 0 | BN61: 0 | BO61: 0 | BP61: 0 | BQ61: 0 | BR61: =PctLotUser3*PctETransit3*(BikePedB-BikePedNB)*0.00000110231131*(VLOOKUP(0,EmAuto20,2)*VLOOKUP(ProjLoc,EmCost,2)+VLOOKUP(0,EmAuto20,3)*VLOOKUP(ProjLoc,EmCost,3)*(1+CO2Uprater)^($BH61+Construct-1)+VLOOKUP(0,EmAuto20,4)*VLOOKUP(ProjLoc,EmCost,4)+VLOOKUP(0,EmAuto20,5)*VLOOKUP(ProjLoc,EmCost,5)+VLOOKUP(0,EmAuto20,6)*VLOOKUP(ProjLoc,EmCost,6)+VLOOKUP(0,EmAuto20,7)*VLOOKUP(ProjLoc,EmCost,7))*2 ->  | BS61: 0 | BW61: =0.00000110231131*(BL61*VLOOKUP(BN61,EmAuto20,2)-BM61*VLOOKUP(BO61,EmAuto20,2)+PctLotUser3*PctETransit3*(BikePedB-BikePedNB)*VLOOKUP(0,EmAuto20,2)*2) -> 0 | BX61: =0.00000110231131*(BL61*VLOOKUP(BN61,EmAuto20,3)-BM61*VLOOKUP(BO61,EmAuto20,3)+PctLotUser3*PctETransit3*(BikePedB-BikePedNB)*VLOOKUP(0,EmAuto20,3)*2) -> 0 | BY61: =0.00000110231131*(BL61*VLOOKUP(BN61,EmAuto20,4)-BM61*VLOOKUP(BO61,EmAuto20,4)+PctLotUser3*PctETransit3*(BikePedB-BikePedNB)*VLOOKUP(0,EmAuto20,4)*2) -> 0 | BZ61: =0.00000110231131*(BL61*VLOOKUP(BN61,EmAuto20,5)-BM61*VLOOKUP(BO61,EmAuto20,5)+PctLotUser3*PctETransit3*(BikePedB-BikePedNB)*VLOOKUP(0,EmAuto20,5)*2) -> 0 | CA61: =0.00000110231131*(BL61*VLOOKUP(BN61,EmAuto20,6)-BM61*VLOOKUP(BO61,EmAuto20,6)+PctLotUser3*PctETransit3*(BikePedB-BikePedNB)*VLOOKUP(0,EmAuto20,6)*2) -> 0 | CB61: =0.00000110231131*(BL61*VLOOKUP(BN61,EmAuto20,7)-BM61*VLOOKUP(BO61,EmAuto20,7)+PctLotUser3*PctETransit3*(BikePedB-BikePedNB)*VLOOKUP(0,EmAuto20,7)*2) -> 0 | CC61: =0.00000110231131*(BL61*VLOOKUP(BN61,EmAuto20,8)-BM61*VLOOKUP(BO61,EmAuto20,8)+PctLotUser3*PctETransit3*(BikePedB-BikePedNB)*VLOOKUP(0,EmAuto20,8)*2) -> 0
B62: 9 | C62: 0 | D62: 0 | E62: 0 | F62: 0 | G62: 0 | H62: 0 | I62: 0 | J62: 0 | K62: 0 | M62: 0 | Q62: 0 | R62: =0.00000110231131*(F62*VLOOKUP(H62,EmAuto20,3)-G62*VLOOKUP(I62,EmAuto20,3)+PctLotUser1*PctETransit1*(BikePedB-BikePedNB)*VLOOKUP(0,EmAuto20,3)*2) -> 0 | S62: 0 | T62: 0 | U62: 0 | V62: 0 | W62: 0 | AE62: 9 | AF62: 0 | AG62: 0 | AH62: 0 | AI62: 0 | AJ62: 0 | AK62: 0 | AL62: 0 | AM62: 0 | AN62: 0 | AP62: 0 | AT62: 0 | AU62: 0 | AV62: 0 | AW62: 0 | AX62: 0 | AY62: 0 | AZ62: 0 | BH62: 9 | BI62: 0 | BJ62: 0 | BK62: 0 | BL62: 0 | BM62: 0 | BN62: 0 | BO62: 0 | BP62: 0 | BQ62: 0 | BS62: 0 | BW62: 0 | BX62: 0 | BY62: 0 | BZ62: 0 | CA62: 0 | CB62: 0 | CC62: 0
B63: 10 | C63: 0 | D63: 0 | E63: 0 | F63: 0 | G63: 0 | H63: 0 | I63: 0 | J63: 0 | K63: 0 | M63: 0 | Q63: 0 | R63: 0 | S63: 0 | T63: 0 | U63: 0 | V63: 0 | W63: 0 | AE63: 10 | AF63: 0 | AG63: 0 | AH63: 0 | AI63: 0 | AJ63: 0 | AK63: 0 | AL63: 0 | AM63: 0 | AN63: 0 | AP63: 0 | AT63: 0 | AU63: 0 | AV63: 0 | AW63: 0 | AX63: 0 | AY63: 0 | AZ63: 0 | BH63: 10 | BI63: 0 | BJ63: 0 | BK63: 0 | BL63: 0 | BM63: 0 | BN63: 0 | BO63: 0 | BP63: 0 | BQ63: 0 | BS63: 0 | BW63: 0 | BX63: 0 | BY63: 0 | BZ63: 0 | CA63: 0 | CB63: 0 | CC63: 0
B64: 11 | C64: 0 | D64: 0 | E64: 0 | F64: 0 | G64: 0 | H64: 0 | I64: 0 | J64: 0 | K64: 0 | M64: 0 | Q64: 0 | R64: 0 | S64: 0 | T64: 0 | U64: 0 | V64: 0 | W64: 0 | AE64: 11 | AF64: 0 | AG64: 0 | AH64: 0 | AI64: 0 | AJ64: 0 | AK64: 0 | AL64: 0 | AM64: 0 | AN64: 0 | AP64: 0 | AT64: 0 | AU64: 0 | AV64: 0 | AW64: 0 | AX64: 0 | AY64: 0 | AZ64: 0 | BH64: 11 | BI64: 0 | BJ64: 0 | BK64: 0 | BL64: 0 | BM64: 0 | BN64: 0 | BO64: 0 | BP64: 0 | BQ64: 0 | BS64: 0 | BW64: 0 | BX64: 0 | BY64: 0 | BZ64: 0 | CA64: 0 | CB64: 0 | CC64: 0
B65: 12 | C65: 0 | D65: 0 | E65: 0 | F65: 0 | G65: 0 | H65: 0 | I65: 0 | J65: 0 | K65: 0 | M65: 0 | Q65: 0 | R65: 0 | S65: 0 | T65: 0 | U65: 0 | V65: 0 | W65: 0 | AE65: 12 | AF65: 0 | AG65: 0 | AH65: 0 | AI65: 0 | AJ65: 0 | AK65: 0 | AL65: 0 | AM65: 0 | AN65: 0 | AP65: 0 | AT65: 0 | AU65: 0 | AV65: 0 | AW65: 0 | AX65: 0 | AY65: 0 | AZ65: 0 | BH65: 12 | BI65: 0 | BJ65: 0 | BK65: 0 | BL65: 0 | BM65: 0 | BN65: 0 | BO65: 0 | BP65: 0 | BQ65: 0 | BS65: 0 | BW65: 0 | BX65: 0 | BY65: 0 | BZ65: 0 | CA65: 0 | CB65: 0 | CC65: 0
B66: 13 | C66: 0 | D66: 0 | E66: 0 | F66: 0 | G66: 0 | H66: 0 | I66: 0 | J66: 0 | K66: 0 | M66: 0 | Q66: 0 | R66: 0 | S66: 0 | T66: 0 | U66: 0 | V66: 0 | W66: 0 | AE66: 13 | AF66: 0 | AG66: 0 | AH66: 0 | AI66: 0 | AJ66: 0 | AK66: 0 | AL66: 0 | AM66: 0 | AN66: 0 | AP66: 0 | AT66: 0 | AU66: 0 | AV66: 0 | AW66: 0 | AX66: 0 | AY66: 0 | AZ66: 0 | BH66: 13 | BI66: 0 | BJ66: 0 | BK66: 0 | BL66: 0 | BM66: 0 | BN66: 0 | BO66: 0 | BP66: 0 | BQ66: 0 | BS66: 0 | BW66: 0 | BX66: 0 | BY66: 0 | BZ66: 0 | CA66: 0 | CB66: 0 | CC66: 0
B67: 14 | C67: 0 | D67: 0 | E67: 0 | F67: 0 | G67: 0 | H67: 0 | I67: 0 | J67: 0 | K67: 0 | M67: 0 | Q67: 0 | R67: 0 | S67: 0 | T67: 0 | U67: 0 | V67: 0 | W67: 0 | AE67: 14 | AF67: 0 | AG67: 0 | AH67: 0 | AI67: 0 | AJ67: 0 | AK67: 0 | AL67: 0 | AM67: 0 | AN67: 0 | AP67: 0 | AT67: 0 | AU67: 0 | AV67: 0 | AW67: 0 | AX67: 0 | AY67: 0 | AZ67: 0 | BH67: 14 | BI67: 0 | BJ67: 0 | BK67: 0 | BL67: 0 | BM67: 0 | BN67: 0 | BO67: 0 | BP67: 0 | BQ67: 0 | BS67: 0 | BW67: 0 | BX67: 0 | BY67: 0 | BZ67: 0 | CA67: 0 | CB67: 0 | CC67: 0
B68: 15 | C68: 0 | D68: 0 | E68: 0 | F68: 0 | G68: 0 | H68: 0 | I68: 0 | J68: 0 | K68: 0 | M68: 0 | Q68: 0 | R68: 0 | S68: 0 | T68: 0 | U68: 0 | V68: 0 | W68: 0 | AE68: 15 | AF68: 0 | AG68: 0 | AH68: 0 | AI68: 0 | AJ68: 0 | AK68: 0 | AL68: 0 | AM68: 0 | AN68: 0 | AP68: 0 | AT68: 0 | AU68: 0 | AV68: 0 | AW68: 0 | AX68: 0 | AY68: 0 | AZ68: 0 | BH68: 15 | BI68: 0 | BJ68: 0 | BK68: 0 | BL68: 0 | BM68: 0 | BN68: 0 | BO68: 0 | BP68: 0 | BQ68: 0 | BS68: 0 | BW68: 0 | BX68: 0 | BY68: 0 | BZ68: 0 | CA68: 0 | CB68: 0 | CC68: 0
B69: 16 | C69: 0 | D69: 0 | E69: 0 | F69: 0 | G69: 0 | H69: 0 | I69: 0 | J69: 0 | K69: 0 | M69: 0 | Q69: 0 | R69: 0 | S69: 0 | T69: 0 | U69: 0 | V69: 0 | W69: 0 | AE69: 16 | AF69: 0 | AG69: 0 | AH69: 0 | AI69: 0 | AJ69: 0 | AK69: 0 | AL69: 0 | AM69: 0 | AN69: 0 | AP69: 0 | AT69: 0 | AU69: 0 | AV69: 0 | AW69: 0 | AX69: 0 | AY69: 0 | AZ69: 0 | BH69: 16 | BI69: 0 | BJ69: 0 | BK69: 0 | BL69: 0 | BM69: 0 | BN69: 0 | BO69: 0 | BP69: 0 | BQ69: 0 | BS69: 0 | BW69: 0 | BX69: 0 | BY69: 0 | BZ69: 0 | CA69: 0 | CB69: 0 | CC69: 0
B70: 17 | C70: 0 | D70: 0 | E70: 0 | F70: 0 | G70: 0 | H70: 0 | I70: 0 | J70: 0 | K70: 0 | M70: 0 | Q70: 0 | R70: 0 | S70: 0 | T70: 0 | U70: 0 | V70: 0 | W70: 0 | AE70: 17 | AF70: 0 | AG70: 0 | AH70: 0 | AI70: 0 | AJ70: 0 | AK70: 0 | AL70: 0 | AM70: 0 | AN70: 0 | AP70: 0 | AT70: 0 | AU70: 0 | AV70: 0 | AW70: 0 | AX70: 0 | AY70: 0 | AZ70: 0 | BH70: 17 | BI70: 0 | BJ70: 0 | BK70: 0 | BL70: 0 | BM70: 0 | BN70: 0 | BO70: 0 | BP70: 0 | BQ70: 0 | BS70: 0 | BW70: 0 | BX70: 0 | BY70: 0 | BZ70: 0 | CA70: 0 | CB70: 0 | CC70: 0
B71: 18 | C71: 0 | D71: 0 | E71: 0 | F71: 0 | G71: 0 | H71: 0 | I71: 0 | J71: 0 | K71: 0 | M71: 0 | Q71: 0 | R71: 0 | S71: 0 | T71: 0 | U71: 0 | V71: 0 | W71: 0 | AE71: 18 | AF71: 0 | AG71: 0 | AH71: 0 | AI71: 0 | AJ71: 0 | AK71: 0 | AL71: 0 | AM71: 0 | AN71: 0 | AP71: 0 | AT71: 0 | AU71: 0 | AV71: 0 | AW71: 0 | AX71: 0 | AY71: 0 | AZ71: 0 | BH71: 18 | BI71: 0 | BJ71: 0 | BK71: 0 | BL71: 0 | BM71: 0 | BN71: 0 | BO71: 0 | BP71: 0 | BQ71: 0 | BS71: 0 | BW71: 0 | BX71: 0 | BY71: 0 | BZ71: 0 | CA71: 0 | CB71: 0 | CC71: 0
B72: 19 | C72: 0 | D72: 0 | E72: 0 | F72: 0 | G72: 0 | H72: 0 | I72: 0 | J72: 0 | K72: 0 | M72: 0 | Q72: 0 | R72: 0 | S72: 0 | T72: 0 | U72: 0 | V72: 0 | W72: 0 | AE72: 19 | AF72: 0 | AG72: 0 | AH72: 0 | AI72: 0 | AJ72: 0 | AK72: 0 | AL72: 0 | AM72: 0 | AN72: 0 | AP72: 0 | AT72: 0 | AU72: 0 | AV72: 0 | AW72: 0 | AX72: 0 | AY72: 0 | AZ72: 0 | BH72: 19 | BI72: 0 | BJ72: 0 | BK72: 0 | BL72: 0 | BM72: 0 | BN72: 0 | BO72: 0 | BP72: 0 | BQ72: 0 | BS72: 0 | BW72: 0 | BX72: 0 | BY72: 0 | BZ72: 0 | CA72: 0 | CB72: 0 | CC72: 0
B73: 20 | C73: 0 | D73: 0 | E73: 0 | F73: 0 | G73: 0 | H73: 0 | I73: 0 | J73: 0 | K73: 0 | M73: 0 | Q73: 0 | R73: 0 | S73: 0 | T73: 0 | U73: 0 | V73: 0 | W73: 0 | AE73: 20 | AF73: 0 | AG73: 0 | AH73: 0 | AI73: 0 | AJ73: 0 | AK73: 0 | AL73: 0 | AM73: 0 | AN73: 0 | AP73: 0 | AT73: 0 | AU73: 0 | AV73: 0 | AW73: 0 | AX73: 0 | AY73: 0 | AZ73: 0 | BH73: 20 | BI73: 0 | BJ73: 0 | BK73: 0 | BL73: 0 | BM73: 0 | BN73: 0 | BO73: 0 | BP73: 0 | BQ73: 0 | BS73: 0 | BW73: 0 | BX73: 0 | BY73: 0 | BZ73: 0 | CA73: 0 | CB73: 0 | CC73: 0
B75: Total | O75: =SUM(O54:O73) ->  | Q75: =SUM(Q54:Q73) -> 0 | R75: =SUM(R54:R73) -> 0 | S75: =SUM(S54:S73) -> 0 | T75: 0 | U75: 0 | V75: 0 | W75: 0 | X75: =SUM(X54:X73) ->  | Y75: =SUM(Y54:Y73) ->  | Z75: =SUM(Z54:Z73) ->  | AC75: =SUM(AC54:AC73) ->  | AE75: Total | AR75: =SUM(AR54:AR73) ->  | AT75: =SUM(AT54:AT73) -> 0 | AU75: =SUM(AU54:AU73) -> 0 | AV75: =SUM(AV54:AV73) -> 0 | AW75: 0 | AX75: 0 | AY75: 0 | AZ75: 0 | BA75: =SUM(BA54:BA73) ->  | BB75: =SUM(BB54:BB73) ->  | BC75: =SUM(BC54:BC73) ->  | BF75: =SUM(BF54:BF73) ->  | BH75: Total | BU75: =SUM(BU54:BU73) ->  | BW75: =SUM(BW54:BW73) -> 0 | BX75: =SUM(BX54:BX73) -> 0 | BY75: =SUM(BY54:BY73) -> 0 | BZ75: 0 | CA75: 0 | CB75: 0 | CC75: 0 | CD75: =SUM(CD54:CD73) ->  | CE75: =SUM(CE54:CE73) ->  | CF75: =SUM(CF54:CF73) ->  | CI75: =SUM(CI54:CI73) -> 
B78: New Carpoolers (switch from automobile to carpool) | AE78: New Carpoolers (switch from automobile to carpool) | BH78: New Carpoolers (switch from automobile to carpool)
C80: ANNUAL NUMBER OF USERS | F80: TOTAL AUTO VMT | H80: AVERAGE HWY SPEED | J80: RUNNING EMISSIONS | L80: STARTING EMISSIONS | Q80: TONS EMISSIONS SAVED | X80: DOLLARS EMISSIONS SAVED | AF80: ANNUAL NUMBER OF USERS | AI80: TOTAL AUTO VMT | AK80: AVERAGE HWY SPEED | AM80: RUNNING EMISSIONS | AO80: STARTING EMISSIONS | AT80: TONS EMISSIONS SAVED | BA80: DOLLARS EMISSIONS SAVED | BI80: ANNUAL NUMBER OF USERS | BL80: TOTAL AUTO VMT | BN80: AVERAGE HWY SPEED | BP80: RUNNING EMISSIONS | BR80: STARTING EMISSIONS | BW80: TONS EMISSIONS SAVED | CD80: DOLLARS EMISSIONS SAVED
C81: (people/yr) | F81: (veh-miles/yr) | H81: (mph) | J81: ($/yr) | L81: ($/yr) | Q81: (tons/yr) | X81: (PV $/yr) | AF81: (people/yr) | AI81: (veh-miles/yr) | AK81: (mph) | AM81: ($/yr) | AO81: ($/yr) | AT81: (tons/yr) | BA81: (PV $/yr) | BI81: (people/yr) | BL81: (veh-miles/yr) | BN81: (mph) | BP81: ($/yr) | BR81: ($/yr) | BW81: (tons/yr) | CD81: (PV $/yr)
B82: Year | C82: Existing | D82: New | E82: Users | N82: Constant | O82: Present | AE82: Year | AF82: Existing | AG82: New | AH82: Users | AQ82: Constant | AR82: Present | BH82: Year | BI82: Existing | BJ82: New | BK82: Users | BT82: Constant | BU82: Present
C83: Lot | D83: Lot | E83: Benefited | F83: No Build | G83: Build | H83: No Build | I83: Build | J83: No Build | K83: Build | L83: No Build | M83: Build | N83: Dollars | O83: Value | Q83: CO | R83: CO2 | S83: NOX | T83: PM10 | U83: SOX | V83: VOC | W83: PM2.5 | X83: CO | Y83: CO2 | Z83: NOX | AA83: PM10 | AB83: SOX | AC83: VOC | AF83: Lot | AG83: Lot | AH83: Benefited | AI83: No Build | AJ83: Build | AK83: No Build | AL83: Build | AM83: No Build | AN83: Build | AO83: No Build | AP83: Build | AQ83: Dollars | AR83: Value | AT83: CO | AU83: CO2 | AV83: NOX | AW83: PM10 | AX83: SOX | AY83: VOC | AZ83: PM2.5 | BA83: CO | BB83: CO2 | BC83: NOX | BD83: PM10 | BE83: SOX | BF83: VOC | BI83: Lot | BJ83: Lot | BK83: Benefited | BL83: No Build | BM83: Build | BN83: No Build | BO83: Build | BP83: No Build | BQ83: Build | BR83: No Build | BS83: Build | BT83: Dollars | BU83: Value | BW83: CO | BX83: CO2 | BY83: NOX | BZ83: PM10 | CA83: SOX | CB83: VOC | CC83: PM2.5 | CD83: CO | CE83: CO2 | CF83: NOX | CG83: PM10 | CH83: SOX | CI83: VOC
B84: 1 | C84: =IF(SpacesNB=0,0,(IF(B84>CapYrNB,1,(B84-1)/CapYrNB)*MAX(0,(100%-PctFillNB))+(PctFillNB))*(SpacesNB*AVONB+IF(PctFillNB=0,BikePedNB,BikePedNB/PctFillNB))*AnnualFactor)*PctLotUser1*PctNCarpool1 -> 0 | D84: =IF(SpacesB=0,0,(IF(B84>CapYrB,1,(B84-1)/CapYrB)*MAX(0,(100%-PctFillB))+(PctFillB))*(SpacesB*AVOB+IF(PctFillB=0,BikePedB,BikePedB/PctFillB))*AnnualFactor)*PctLotUser1*PctNCarpool1 -> 0 | E84: =MAX(0,D84-C84) -> 0 | F84: =E84/AVOB*Distance1*2 -> 0 | G84: =IF(PctNCarpool1=0,0,E84/AVOCarpool1*Distance1*2) -> 0 | H84: =IF(PctNCarpool1=0,0,Distance1/TTNonHOV1*60) -> 0 | I84: =IF(PctNCarpool1=0,0,Distance1/TTHOV1*60) -> 0 | J84: =F84*0.00000110231131*(VLOOKUP(H84,EmAuto1,2)*VLOOKUP(ProjLoc,EmCost,2)+VLOOKUP(H84,EmAuto1,3)*VLOOKUP(ProjLoc,EmCost,3)*(1+CO2Uprater)^($B84+Construct-1)+VLOOKUP(H84,EmAuto1,4)*VLOOKUP(ProjLoc,EmCost,4)+VLOOKUP(H84,EmAuto1,5)*VLOOKUP(ProjLoc,EmCost,5)+VLOOKUP(H84,EmAuto1,6)*VLOOKUP(ProjLoc,EmCost,6)+VLOOKUP(H84,EmAuto1,7)*VLOOKUP(ProjLoc,EmCost,7)) ->  | L84: =PctLotUser1*PctNCarpool1*(BikePedB-BikePedNB)*0.00000110231131*(VLOOKUP(0,EmAuto1,2)*VLOOKUP(ProjLoc,EmCost,2)+VLOOKUP(0,EmAuto1,3)*VLOOKUP(ProjLoc,EmCost,3)*(1+CO2Uprater)^($B84+Construct-1)+VLOOKUP(0,EmAuto1,4)*VLOOKUP(ProjLoc,EmCost,4)+VLOOKUP(0,EmAuto1,5)*VLOOKUP(ProjLoc,EmCost,5)+VLOOKUP(0,EmAuto1,6)*VLOOKUP(ProjLoc,EmCost,6)+VLOOKUP(0,EmAuto1,7)*VLOOKUP(ProjLoc,EmCost,7))*2 ->  | M84: 0 | N84: =(J84+L84)-(K84+M84) ->  | O84: =$N84/(1+DiscRate)^($B84+Construct-1) ->  | Q84: =0.00000110231131*(F84*VLOOKUP(H84,EmAuto1,2)-G84*VLOOKUP(I84,EmAuto1,2)+PctLotUser1*PctNCarpool1*(BikePedB-BikePedNB)*VLOOKUP(0,EmAuto1,2)*2) -> 0 | R84: =0.00000110231131*(F84*VLOOKUP(H84,EmAuto1,3)-G84*VLOOKUP(I84,EmAuto1,3)+PctLotUser1*PctNCarpool1*(BikePedB-BikePedNB)*VLOOKUP(0,EmAuto1,3)*2) -> 0 | S84: =0.00000110231131*(F84*VLOOKUP(H84,EmAuto1,4)-G84*VLOOKUP(I84,EmAuto1,4)+PctLotUser1*PctNCarpool1*(BikePedB-BikePedNB)*VLOOKUP(0,EmAuto1,4)*2) -> 0 | T84: =0.00000110231131*(F84*VLOOKUP(H84,EmAuto1,5)-G84*VLOOKUP(I84,EmAuto1,5)+PctLotUser1*PctNCarpool1*(BikePedB-BikePedNB)*VLOOKUP(0,EmAuto1,5)*2) -> 0 | U84: =0.00000110231131*(F84*VLOOKUP(H84,EmAuto1,6)-G84*VLOOKUP(I84,EmAuto1,6)+PctLotUser1*PctNCarpool1*(BikePedB-BikePedNB)*VLOOKUP(0,EmAuto1,6)*2) -> 0 | V84: =0.00000110231131*(F84*VLOOKUP(H84,EmAuto1,7)-G84*VLOOKUP(I84,EmAuto1,7)+PctLotUser1*PctNCarpool1*(BikePedB-BikePedNB)*VLOOKUP(0,EmAuto1,7)*2) -> 0 | W84: =0.00000110231131*(F84*VLOOKUP(H84,EmAuto1,8)-G84*VLOOKUP(I84,EmAuto1,8)+PctLotUser1*PctNCarpool1*(BikePedB-BikePedNB)*VLOOKUP(0,EmAuto1,8)*2) -> 0 | X84: =Q84*VLOOKUP(ProjLoc,EmCost,2)/(1+DiscRate)^($B84+Construct-1) ->  | Y84: =R84*VLOOKUP(ProjLoc,EmCost,3)*(1+CO2Uprater)^($B84+Construct-1)/(1+DiscRate)^($B84+Construct-1) ->  | Z84: =S84*VLOOKUP(ProjLoc,EmCost,4)/(1+DiscRate)^($B84+Construct-1) ->  | AA84: =T84*VLOOKUP(ProjLoc,EmCost,5)/(1+DiscRate)^($B84+Construct-1) ->  | AB84: =U84*VLOOKUP(ProjLoc,EmCost,6)/(1+DiscRate)^($B84+Construct-1) ->  | AC84: =V84*VLOOKUP(ProjLoc,EmCost,7)/(1+DiscRate)^($B84+Construct-1) ->  | AE84: 1 | AF84: =IF(SpacesNB=0,0,(IF(AE84>CapYrNB,1,(AE84-1)/CapYrNB)*MAX(0,(100%-PctFillNB))+(PctFillNB))*(SpacesNB*AVONB+IF(PctFillNB=0,BikePedNB,BikePedNB/PctFillNB))*AnnualFactor)*PctLotUser2*PctNCarpool2 -> 0 | AG84: =IF(SpacesB=0,0,(IF(AE84>CapYrB,1,(AE84-1)/CapYrB)*MAX(0,(100%-PctFillB))+(PctFillB))*(SpacesB*AVOB+IF(PctFillB=0,BikePedB,BikePedB/PctFillB))*AnnualFactor)*PctLotUser2*PctNCarpool2 -> 0 | AH84: =MAX(0,AG84-AF84) -> 0 | AI84: =AH84/AVOB*Distance2*2 -> 0 | AJ84: =IF(PctNCarpool2=0,0,AH84/AVOCarpool2*Distance2*2) -> 0 | AK84: =IF(PctNCarpool2=0,0,Distance2/TTNonHOV2*60) -> 0 | AL84: =IF(PctNCarpool2=0,0,Distance2/TTHOV2*60) -> 0 | AM84: =AI84*0.00000110231131*(VLOOKUP(AK84,EmAuto1,2)*VLOOKUP(ProjLoc,EmCost,2)+VLOOKUP(AK84,EmAuto1,3)*VLOOKUP(ProjLoc,EmCost,3)*(1+CO2Uprater)^($AE84+Construct-1)+VLOOKUP(AK84,EmAuto1,4)*VLOOKUP(ProjLoc,EmCost,4)+VLOOKUP(AK84,EmAuto1,5)*VLOOKUP(ProjLoc,EmCost,5)+VLOOKUP(AK84,EmAuto1,6)*VLOOKUP(ProjLoc,EmCost,6)+VLOOKUP(AK84,EmAuto1,7)*VLOOKUP(ProjLoc,EmCost,7)) ->  | AO84: =PctLotUser2*PctNCarpool2*(BikePedB-BikePedNB)*0.00000110231131*(VLOOKUP(0,EmAuto1,2)*VLOOKUP(ProjLoc,EmCost,2)+VLOOKUP(0,EmAuto1,3)*VLOOKUP(ProjLoc,EmCost,3)*(1+CO2Uprater)^($AE84+Construct-1)+VLOOKUP(0,EmAuto1,4)*VLOOKUP(ProjLoc,EmCost,4)+VLOOKUP(0,EmAuto1,5)*VLOOKUP(ProjLoc,EmCost,5)+VLOOKUP(0,EmAuto1,6)*VLOOKUP(ProjLoc,EmCost,6)+VLOOKUP(0,EmAuto1,7)*VLOOKUP(ProjLoc,EmCost,7))*2 ->  | AP84: 0 | AQ84: =(AM84+AO84)-(AN84+AP84) ->  | AR84: =$AQ84/(1+DiscRate)^($AE84+Construct-1) ->  | AT84: =0.00000110231131*(AI84*VLOOKUP(AK84,EmAuto1,2)-AJ84*VLOOKUP(AL84,EmAuto1,2)+PctLotUser2*PctNCarpool2*(BikePedB-BikePedNB)*VLOOKUP(0,EmAuto1,2)*2) -> 0 | AU84: =0.00000110231131*(AI84*VLOOKUP(AK84,EmAuto1,3)-AJ84*VLOOKUP(AL84,EmAuto1,3)+PctLotUser2*PctNCarpool2*(BikePedB-BikePedNB)*VLOOKUP(0,EmAuto1,3)*2) -> 0 | AV84: =0.00000110231131*(AI84*VLOOKUP(AK84,EmAuto1,4)-AJ84*VLOOKUP(AL84,EmAuto1,4)+PctLotUser2*PctNCarpool2*(BikePedB-BikePedNB)*VLOOKUP(0,EmAuto1,4)*2) -> 0 | AW84: =0.00000110231131*(AI84*VLOOKUP(AK84,EmAuto1,5)-AJ84*VLOOKUP(AL84,EmAuto1,5)+PctLotUser2*PctNCarpool2*(BikePedB-BikePedNB)*VLOOKUP(0,EmAuto1,5)*2) -> 0 | AX84: =0.00000110231131*(AI84*VLOOKUP(AK84,EmAuto1,6)-AJ84*VLOOKUP(AL84,EmAuto1,6)+PctLotUser2*PctNCarpool2*(BikePedB-BikePedNB)*VLOOKUP(0,EmAuto1,6)*2) -> 0 | AY84: =0.00000110231131*(AI84*VLOOKUP(AK84,EmAuto1,7)-AJ84*VLOOKUP(AL84,EmAuto1,7)+PctLotUser2*PctNCarpool2*(BikePedB-BikePedNB)*VLOOKUP(0,EmAuto1,7)*2) -> 0 | AZ84: =0.00000110231131*(AI84*VLOOKUP(AK84,EmAuto1,8)-AJ84*VLOOKUP(AL84,EmAuto1,8)+PctLotUser2*PctNCarpool2*(BikePedB-BikePedNB)*VLOOKUP(0,EmAuto1,8)*2) -> 0 | BA84: =AT84*VLOOKUP(ProjLoc,EmCost,2)/(1+DiscRate)^($AE84+Construct-1) ->  | BB84: =AU84*VLOOKUP(ProjLoc,EmCost,3)*(1+CO2Uprater)^($AE84+Construct-1)/(1+DiscRate)^($AE84+Construct-1) ->  | BC84: =AV84*VLOOKUP(ProjLoc,EmCost,4)/(1+DiscRate)^($AE84+Construct-1) ->  | BD84: =AW84*VLOOKUP(ProjLoc,EmCost,5)/(1+DiscRate)^($AE84+Construct-1) ->  | BE84: =AX84*VLOOKUP(ProjLoc,EmCost,6)/(1+DiscRate)^($AE84+Construct-1) ->  | BF84: =AY84*VLOOKUP(ProjLoc,EmCost,7)/(1+DiscRate)^($AE84+Construct-1) ->  | BH84: 1 | BI84: =IF(SpacesNB=0,0,(IF(BH84>CapYrNB,1,(BH84-1)/CapYrNB)*MAX(0,(100%-PctFillNB))+(PctFillNB))*(SpacesNB*AVONB+IF(PctFillNB=0,BikePedNB,BikePedNB/PctFillNB))*AnnualFactor)*PctLotUser3*PctNCarpool3 -> 0 | BJ84: =IF(SpacesB=0,0,(IF(BH84>CapYrB,1,(BH84-1)/CapYrB)*MAX(0,(100%-PctFillB))+(PctFillB))*(SpacesB*AVOB+IF(PctFillB=0,BikePedB,BikePedB/PctFillB))*AnnualFactor)*PctLotUser3*PctNCarpool3 -> 0 | BK84: =MAX(0,BJ84-BI84) -> 0 | BL84: =BK84/AVOB*Distance3*2 -> 0 | BM84: =IF(PctNCarpool3=0,0,BK84/AVOCarpool3*Distance3*2) -> 0 | BN84: =IF(PctNCarpool3=0,0,Distance3/TTNonHOV3*60) -> 0 | BO84: =IF(PctNCarpool3=0,0,Distance3/TTHOV3*60) -> 0 | BP84: =BL84*0.00000110231131*(VLOOKUP(BN84,EmAuto1,2)*VLOOKUP(ProjLoc,EmCost,2)+VLOOKUP(BN84,EmAuto1,3)*VLOOKUP(ProjLoc,EmCost,3)*(1+CO2Uprater)^($BH84+Construct-1)+VLOOKUP(BN84,EmAuto1,4)*VLOOKUP(ProjLoc,EmCost,4)+VLOOKUP(BN84,EmAuto1,5)*VLOOKUP(ProjLoc,EmCost,5)+VLOOKUP(BN84,EmAuto1,6)*VLOOKUP(ProjLoc,EmCost,6)+VLOOKUP(BN84,EmAuto1,7)*VLOOKUP(ProjLoc,EmCost,7)) ->  | BR84: =PctLotUser3*PctNCarpool3*(BikePedB-BikePedNB)*0.00000110231131*(VLOOKUP(0,EmAuto1,2)*VLOOKUP(ProjLoc,EmCost,2)+VLOOKUP(0,EmAuto1,3)*VLOOKUP(ProjLoc,EmCost,3)*(1+CO2Uprater)^($BH84+Construct-1)+VLOOKUP(0,EmAuto1,4)*VLOOKUP(ProjLoc,EmCost,4)+VLOOKUP(0,EmAuto1,5)*VLOOKUP(ProjLoc,EmCost,5)+VLOOKUP(0,EmAuto1,6)*VLOOKUP(ProjLoc,EmCost,6)+VLOOKUP(0,EmAuto1,7)*VLOOKUP(ProjLoc,EmCost,7))*2 ->  | BS84: 0 | BT84: =(BP84+BR84)-(BQ84+BS84) ->  | BU84: =$BT84/(1+DiscRate)^($BH84+Construct-1) ->  | BW84: =0.00000110231131*(BL84*VLOOKUP(BN84,EmAuto1,2)-BM84*VLOOKUP(BO84,EmAuto1,2)+PctLotUser3*PctNCarpool3*(BikePedB-BikePedNB)*VLOOKUP(0,EmAuto1,2)*2) -> 0 | BX84: =0.00000110231131*(BL84*VLOOKUP(BN84,EmAuto1,3)-BM84*VLOOKUP(BO84,EmAuto1,3)+PctLotUser3*PctNCarpool3*(BikePedB-BikePedNB)*VLOOKUP(0,EmAuto1,3)*2) -> 0 | BY84: =0.00000110231131*(BL84*VLOOKUP(BN84,EmAuto1,4)-BM84*VLOOKUP(BO84,EmAuto1,4)+PctLotUser3*PctNCarpool3*(BikePedB-BikePedNB)*VLOOKUP(0,EmAuto1,4)*2) -> 0 | BZ84: =0.00000110231131*(BL84*VLOOKUP(BN84,EmAuto1,5)-BM84*VLOOKUP(BO84,EmAuto1,5)+PctLotUser3*PctNCarpool3*(BikePedB-BikePedNB)*VLOOKUP(0,EmAuto1,5)*2) -> 0 | CA84: =0.00000110231131*(BL84*VLOOKUP(BN84,EmAuto1,6)-BM84*VLOOKUP(BO84,EmAuto1,6)+PctLotUser3*PctNCarpool3*(BikePedB-BikePedNB)*VLOOKUP(0,EmAuto1,6)*2) -> 0 | CB84: =0.00000110231131*(BL84*VLOOKUP(BN84,EmAuto1,7)-BM84*VLOOKUP(BO84,EmAuto1,7)+PctLotUser3*PctNCarpool3*(BikePedB-BikePedNB)*VLOOKUP(0,EmAuto1,7)*2) -> 0 | CC84: =0.00000110231131*(BL84*VLOOKUP(BN84,EmAuto1,8)-BM84*VLOOKUP(BO84,EmAuto1,8)+PctLotUser3*PctNCarpool3*(BikePedB-BikePedNB)*VLOOKUP(0,EmAuto1,8)*2) -> 0 | CD84: =BW84*VLOOKUP(ProjLoc,EmCost,2)/(1+DiscRate)^($BH84+Construct-1) ->  | CE84: =BX84*VLOOKUP(ProjLoc,EmCost,3)*(1+CO2Uprater)^($BH84+Construct-1)/(1+DiscRate)^($BH84+Construct-1) ->  | CF84: =BY84*VLOOKUP(ProjLoc,EmCost,4)/(1+DiscRate)^($BH84+Construct-1) ->  | CG84: =BZ84*VLOOKUP(ProjLoc,EmCost,5)/(1+DiscRate)^($BH84+Construct-1) ->  | CH84: =CA84*VLOOKUP(ProjLoc,EmCost,6)/(1+DiscRate)^($BH84+Construct-1) ->  | CI84: =CB84*VLOOKUP(ProjLoc,EmCost,7)/(1+DiscRate)^($BH84+Construct-1) -> 
B85: 2 | C85: 0 | D85: 0 | E85: =MAX(0,D85-C85) -> 0 | F85: 0 | G85: 0 | H85: 0 | I85: 0 | M85: 0 | N85: =(J85+L85)-(K85+M85) ->  | Q85: 0 | R85: =0.00000110231131*(F85*VLOOKUP(H85,EmAuto1,3)-G85*VLOOKUP(I85,EmAuto1,3)+PctLotUser1*PctNCarpool1*(BikePedB-BikePedNB)*VLOOKUP(0,EmAuto1,3)*2) -> 0 | S85: 0 | T85: 0 | U85: 0 | V85: 0 | W85: 0 | AE85: 2 | AF85: 0 | AG85: 0 | AH85: =MAX(0,AG85-AF85) -> 0 | AI85: 0 | AJ85: 0 | AK85: 0 | AL85: 0 | AP85: 0 | AQ85: =(AM85+AO85)-(AN85+AP85) ->  | AT85: 0 | AU85: 0 | AV85: 0 | AW85: 0 | AX85: 0 | AY85: 0 | AZ85: 0 | BH85: 2 | BI85: 0 | BJ85: 0 | BK85: =MAX(0,BJ85-BI85) -> 0 | BL85: 0 | BM85: 0 | BN85: 0 | BO85: 0 | BS85: 0 | BT85: =(BP85+BR85)-(BQ85+BS85) ->  | BW85: 0 | BX85: 0 | BY85: 0 | BZ85: 0 | CA85: 0 | CB85: 0 | CC85: 0
B86: 3 | C86: 0 | D86: 0 | E86: 0 | F86: 0 | G86: 0 | H86: 0 | I86: 0 | M86: 0 | Q86: 0 | R86: 0 | S86: 0 | T86: 0 | U86: 0 | V86: 0 | W86: 0 | AE86: 3 | AF86: 0 | AG86: 0 | AH86: 0 | AI86: 0 | AJ86: 0 | AK86: 0 | AL86: 0 | AP86: 0 | AT86: 0 | AU86: 0 | AV86: 0 | AW86: 0 | AX86: 0 | AY86: 0 | AZ86: 0 | BH86: 3 | BI86: 0 | BJ86: 0 | BK86: 0 | BL86: 0 | BM86: 0 | BN86: 0 | BO86: 0 | BS86: 0 | BW86: 0 | BX86: 0 | BY86: 0 | BZ86: 0 | CA86: 0 | CB86: 0 | CC86: 0
B87: 4 | C87: 0 | D87: 0 | E87: 0 | F87: 0 | G87: 0 | H87: 0 | I87: 0 | M87: 0 | Q87: 0 | R87: 0 | S87: 0 | T87: 0 | U87: 0 | V87: 0 | W87: 0 | AE87: 4 | AF87: 0 | AG87: 0 | AH87: 0 | AI87: 0 | AJ87: 0 | AK87: 0 | AL87: 0 | AP87: 0 | AT87: 0 | AU87: 0 | AV87: 0 | AW87: 0 | AX87: 0 | AY87: 0 | AZ87: 0 | BH87: 4 | BI87: 0 | BJ87: 0 | BK87: 0 | BL87: 0 | BM87: 0 | BN87: 0 | BO87: 0 | BS87: 0 | BW87: 0 | BX87: 0 | BY87: 0 | BZ87: 0 | CA87: 0 | CB87: 0 | CC87: 0
B88: 5 | C88: 0 | D88: 0 | E88: 0 | F88: 0 | G88: 0 | H88: 0 | I88: 0 | M88: 0 | Q88: 0 | R88: 0 | S88: 0 | T88: 0 | U88: 0 | V88: 0 | W88: 0 | AE88: 5 | AF88: 0 | AG88: 0 | AH88: 0 | AI88: 0 | AJ88: 0 | AK88: 0 | AL88: 0 | AP88: 0 | AT88: 0 | AU88: 0 | AV88: 0 | AW88: 0 | AX88: 0 | AY88: 0 | AZ88: 0 | BH88: 5 | BI88: 0 | BJ88: 0 | BK88: 0 | BL88: 0 | BM88: 0 | BN88: 0 | BO88: 0 | BS88: 0 | BW88: 0 | BX88: 0 | BY88: 0 | BZ88: 0 | CA88: 0 | CB88: 0 | CC88: 0
B89: 6 | C89: 0 | D89: 0 | E89: 0 | F89: 0 | G89: 0 | H89: 0 | I89: 0 | M89: 0 | Q89: 0 | R89: 0 | S89: 0 | T89: 0 | U89: 0 | V89: 0 | W89: 0 | AE89: 6 | AF89: 0 | AG89: 0 | AH89: 0 | AI89: 0 | AJ89: 0 | AK89: 0 | AL89: 0 | AP89: 0 | AT89: 0 | AU89: 0 | AV89: 0 | AW89: 0 | AX89: 0 | AY89: 0 | AZ89: 0 | BH89: 6 | BI89: 0 | BJ89: 0 | BK89: 0 | BL89: 0 | BM89: 0 | BN89: 0 | BO89: 0 | BS89: 0 | BW89: 0 | BX89: 0 | BY89: 0 | BZ89: 0 | CA89: 0 | CB89: 0 | CC89: 0
B90: 7 | C90: 0 | D90: 0 | E90: 0 | F90: 0 | G90: 0 | H90: 0 | I90: 0 | M90: 0 | Q90: 0 | R90: 0 | S90: 0 | T90: 0 | U90: 0 | V90: 0 | W90: 0 | AE90: 7 | AF90: 0 | AG90: 0 | AH90: 0 | AI90: 0 | AJ90: 0 | AK90: 0 | AL90: 0 | AP90: 0 | AT90: 0 | AU90: 0 | AV90: 0 | AW90: 0 | AX90: 0 | AY90: 0 | AZ90: 0 | BH90: 7 | BI90: 0 | BJ90: 0 | BK90: 0 | BL90: 0 | BM90: 0 | BN90: 0 | BO90: 0 | BS90: 0 | BW90: 0 | BX90: 0 | BY90: 0 | BZ90: 0 | CA90: 0 | CB90: 0 | CC90: 0
B91: 8 | C91: 0 | D91: 0 | E91: 0 | F91: 0 | G91: 0 | H91: 0 | I91: 0 | J91: =F91*0.00000110231131*(VLOOKUP(H91,EmAuto20,2)*VLOOKUP(ProjLoc,EmCost,2)+VLOOKUP(H91,EmAuto20,3)*VLOOKUP(ProjLoc,EmCost,3)*(1+CO2Uprater)^($B91+Construct-1)+VLOOKUP(H91,EmAuto20,4)*VLOOKUP(ProjLoc,EmCost,4)+VLOOKUP(H91,EmAuto20,5)*VLOOKUP(ProjLoc,EmCost,5)+VLOOKUP(H91,EmAuto20,6)*VLOOKUP(ProjLoc,EmCost,6)+VLOOKUP(H91,EmAuto20,7)*VLOOKUP(ProjLoc,EmCost,7)) ->  | K91: =G91*0.00000110231131*(VLOOKUP(I91,EmAuto20,2)*VLOOKUP(ProjLoc,EmCost,2)+VLOOKUP(I91,EmAuto20,3)*VLOOKUP(ProjLoc,EmCost,3)*(1+CO2Uprater)^($B91+Construct-1)+VLOOKUP(I91,EmAuto20,4)*VLOOKUP(ProjLoc,EmCost,4)+VLOOKUP(I91,EmAuto20,5)*VLOOKUP(ProjLoc,EmCost,5)+VLOOKUP(I91,EmAuto20,6)*VLOOKUP(ProjLoc,EmCost,6)+VLOOKUP(I91,EmAuto20,7)*VLOOKUP(ProjLoc,EmCost,7)) ->  | L91: =PctLotUser1*PctNCarpool1*(BikePedB-BikePedNB)*0.00000110231131*(VLOOKUP(0,EmAuto20,2)*VLOOKUP(ProjLoc,EmCost,2)+VLOOKUP(0,EmAuto20,3)*VLOOKUP(ProjLoc,EmCost,3)*(1+CO2Uprater)^($B91+Construct-1)+VLOOKUP(0,EmAuto20,4)*VLOOKUP(ProjLoc,EmCost,4)+VLOOKUP(0,EmAuto20,5)*VLOOKUP(ProjLoc,EmCost,5)+VLOOKUP(0,EmAuto20,6)*VLOOKUP(ProjLoc,EmCost,6)+VLOOKUP(0,EmAuto20,7)*VLOOKUP(ProjLoc,EmCost,7))*2 ->  | M91: 0 | Q91: =0.00000110231131*(F91*VLOOKUP(H91,EmAuto20,2)-G91*VLOOKUP(I91,EmAuto20,2)+PctLotUser1*PctNCarpool1*(BikePedB-BikePedNB)*VLOOKUP(0,EmAuto20,2)*2) -> 0 | R91: =0.00000110231131*(F91*VLOOKUP(H91,EmAuto20,3)-G91*VLOOKUP(I91,EmAuto20,3)+PctLotUser1*PctNCarpool1*(BikePedB-BikePedNB)*VLOOKUP(0,EmAuto20,3)*2) -> 0 | S91: =0.00000110231131*(F91*VLOOKUP(H91,EmAuto20,4)-G91*VLOOKUP(I91,EmAuto20,4)+PctLotUser1*PctNCarpool1*(BikePedB-BikePedNB)*VLOOKUP(0,EmAuto20,4)*2) -> 0 | T91: =0.00000110231131*(F91*VLOOKUP(H91,EmAuto20,5)-G91*VLOOKUP(I91,EmAuto20,5)+PctLotUser1*PctNCarpool1*(BikePedB-BikePedNB)*VLOOKUP(0,EmAuto20,5)*2) -> 0 | U91: =0.00000110231131*(F91*VLOOKUP(H91,EmAuto20,6)-G91*VLOOKUP(I91,EmAuto20,6)+PctLotUser1*PctNCarpool1*(BikePedB-BikePedNB)*VLOOKUP(0,EmAuto20,6)*2) -> 0 | V91: =0.00000110231131*(F91*VLOOKUP(H91,EmAuto20,7)-G91*VLOOKUP(I91,EmAuto20,7)+PctLotUser1*PctNCarpool1*(BikePedB-BikePedNB)*VLOOKUP(0,EmAuto20,7)*2) -> 0 | W91: =0.00000110231131*(F91*VLOOKUP(H91,EmAuto20,8)-G91*VLOOKUP(I91,EmAuto20,8)+PctLotUser1*PctNCarpool1*(BikePedB-BikePedNB)*VLOOKUP(0,EmAuto20,8)*2) -> 0 | AE91: 8 | AF91: 0 | AG91: 0 | AH91: 0 | AI91: 0 | AJ91: 0 | AK91: 0 | AL91: 0 | AM91: =AI91*0.00000110231131*(VLOOKUP(AK91,EmAuto20,2)*VLOOKUP(ProjLoc,EmCost,2)+VLOOKUP(AK91,EmAuto20,3)*VLOOKUP(ProjLoc,EmCost,3)*(1+CO2Uprater)^($AE91+Construct-1)+VLOOKUP(AK91,EmAuto20,4)*VLOOKUP(ProjLoc,EmCost,4)+VLOOKUP(AK91,EmAuto20,5)*VLOOKUP(ProjLoc,EmCost,5)+VLOOKUP(AK91,EmAuto20,6)*VLOOKUP(ProjLoc,EmCost,6)+VLOOKUP(AK91,EmAuto20,7)*VLOOKUP(ProjLoc,EmCost,7)) ->  | AN91: =AJ91*0.00000110231131*(VLOOKUP(AL91,EmAuto20,2)*VLOOKUP(ProjLoc,EmCost,2)+VLOOKUP(AL91,EmAuto20,3)*VLOOKUP(ProjLoc,EmCost,3)*(1+CO2Uprater)^($AE91+Construct-1)+VLOOKUP(AL91,EmAuto20,4)*VLOOKUP(ProjLoc,EmCost,4)+VLOOKUP(AL91,EmAuto20,5)*VLOOKUP(ProjLoc,EmCost,5)+VLOOKUP(AL91,EmAuto20,6)*VLOOKUP(ProjLoc,EmCost,6)+VLOOKUP(AL91,EmAuto20,7)*VLOOKUP(ProjLoc,EmCost,7)) ->  | AO91: =PctLotUser2*PctNCarpool2*(BikePedB-BikePedNB)*0.00000110231131*(VLOOKUP(0,EmAuto20,2)*VLOOKUP(ProjLoc,EmCost,2)+VLOOKUP(0,EmAuto20,3)*VLOOKUP(ProjLoc,EmCost,3)*(1+CO2Uprater)^($AE91+Construct-1)+VLOOKUP(0,EmAuto20,4)*VLOOKUP(ProjLoc,EmCost,4)+VLOOKUP(0,EmAuto20,5)*VLOOKUP(ProjLoc,EmCost,5)+VLOOKUP(0,EmAuto20,6)*VLOOKUP(ProjLoc,EmCost,6)+VLOOKUP(0,EmAuto20,7)*VLOOKUP(ProjLoc,EmCost,7))*2 ->  | AP91: 0 | AT91: =0.00000110231131*(AI91*VLOOKUP(AK91,EmAuto20,2)-AJ91*VLOOKUP(AL91,EmAuto20,2)+PctLotUser2*PctNCarpool2*(BikePedB-BikePedNB)*VLOOKUP(0,EmAuto20,2)*2) -> 0 | AU91: =0.00000110231131*(AI91*VLOOKUP(AK91,EmAuto20,3)-AJ91*VLOOKUP(AL91,EmAuto20,3)+PctLotUser2*PctNCarpool2*(BikePedB-BikePedNB)*VLOOKUP(0,EmAuto20,3)*2) -> 0 | AV91: =0.00000110231131*(AI91*VLOOKUP(AK91,EmAuto20,4)-AJ91*VLOOKUP(AL91,EmAuto20,4)+PctLotUser2*PctNCarpool2*(BikePedB-BikePedNB)*VLOOKUP(0,EmAuto20,4)*2) -> 0 | AW91: =0.00000110231131*(AI91*VLOOKUP(AK91,EmAuto20,5)-AJ91*VLOOKUP(AL91,EmAuto20,5)+PctLotUser2*PctNCarpool2*(BikePedB-BikePedNB)*VLOOKUP(0,EmAuto20,5)*2) -> 0 | AX91: =0.00000110231131*(AI91*VLOOKUP(AK91,EmAuto20,6)-AJ91*VLOOKUP(AL91,EmAuto20,6)+PctLotUser2*PctNCarpool2*(BikePedB-BikePedNB)*VLOOKUP(0,EmAuto20,6)*2) -> 0 | AY91: =0.00000110231131*(AI91*VLOOKUP(AK91,EmAuto20,7)-AJ91*VLOOKUP(AL91,EmAuto20,7)+PctLotUser2*PctNCarpool2*(BikePedB-BikePedNB)*VLOOKUP(0,EmAuto20,7)*2) -> 0 | AZ91: =0.00000110231131*(AI91*VLOOKUP(AK91,EmAuto20,8)-AJ91*VLOOKUP(AL91,EmAuto20,8)+PctLotUser2*PctNCarpool2*(BikePedB-BikePedNB)*VLOOKUP(0,EmAuto20,8)*2) -> 0 | BH91: 8 | BI91: 0 | BJ91: 0 | BK91: 0 | BL91: 0 | BM91: 0 | BN91: 0 | BO91: 0 | BP91: =BL91*0.00000110231131*(VLOOKUP(BN91,EmAuto20,2)*VLOOKUP(ProjLoc,EmCost,2)+VLOOKUP(BN91,EmAuto20,3)*VLOOKUP(ProjLoc,EmCost,3)*(1+CO2Uprater)^($BH91+Construct-1)+VLOOKUP(BN91,EmAuto20,4)*VLOOKUP(ProjLoc,EmCost,4)+VLOOKUP(BN91,EmAuto20,5)*VLOOKUP(ProjLoc,EmCost,5)+VLOOKUP(BN91,EmAuto20,6)*VLOOKUP(ProjLoc,EmCost,6)+VLOOKUP(BN91,EmAuto20,7)*VLOOKUP(ProjLoc,EmCost,7)) ->  | BQ91: =BM91*0.00000110231131*(VLOOKUP(BO91,EmAuto20,2)*VLOOKUP(ProjLoc,EmCost,2)+VLOOKUP(BO91,EmAuto20,3)*VLOOKUP(ProjLoc,EmCost,3)*(1+CO2Uprater)^($BH91+Construct-1)+VLOOKUP(BO91,EmAuto20,4)*VLOOKUP(ProjLoc,EmCost,4)+VLOOKUP(BO91,EmAuto20,5)*VLOOKUP(ProjLoc,EmCost,5)+VLOOKUP(BO91,EmAuto20,6)*VLOOKUP(ProjLoc,EmCost,6)+VLOOKUP(BO91,EmAuto20,7)*VLOOKUP(ProjLoc,EmCost,7)) ->  | BR91: =PctLotUser3*PctNCarpool3*(BikePedB-BikePedNB)*0.00000110231131*(VLOOKUP(0,EmAuto20,2)*VLOOKUP(ProjLoc,EmCost,2)+VLOOKUP(0,EmAuto20,3)*VLOOKUP(ProjLoc,EmCost,3)*(1+CO2Uprater)^($BH91+Construct-1)+VLOOKUP(0,EmAuto20,4)*VLOOKUP(ProjLoc,EmCost,4)+VLOOKUP(0,EmAuto20,5)*VLOOKUP(ProjLoc,EmCost,5)+VLOOKUP(0,EmAuto20,6)*VLOOKUP(ProjLoc,EmCost,6)+VLOOKUP(0,EmAuto20,7)*VLOOKUP(ProjLoc,EmCost,7))*2 ->  | BS91: 0 | BW91: =0.00000110231131*(BL91*VLOOKUP(BN91,EmAuto20,2)-BM91*VLOOKUP(BO91,EmAuto20,2)+PctLotUser3*PctNCarpool3*(BikePedB-BikePedNB)*VLOOKUP(0,EmAuto20,2)*2) -> 0 | BX91: =0.00000110231131*(BL91*VLOOKUP(BN91,EmAuto20,3)-BM91*VLOOKUP(BO91,EmAuto20,3)+PctLotUser3*PctNCarpool3*(BikePedB-BikePedNB)*VLOOKUP(0,EmAuto20,3)*2) -> 0 | BY91: =0.00000110231131*(BL91*VLOOKUP(BN91,EmAuto20,4)-BM91*VLOOKUP(BO91,EmAuto20,4)+PctLotUser3*PctNCarpool3*(BikePedB-BikePedNB)*VLOOKUP(0,EmAuto20,4)*2) -> 0 | BZ91: =0.00000110231131*(BL91*VLOOKUP(BN91,EmAuto20,5)-BM91*VLOOKUP(BO91,EmAuto20,5)+PctLotUser3*PctNCarpool3*(BikePedB-BikePedNB)*VLOOKUP(0,EmAuto20,5)*2) -> 0 | CA91: =0.00000110231131*(BL91*VLOOKUP(BN91,EmAuto20,6)-BM91*VLOOKUP(BO91,EmAuto20,6)+PctLotUser3*PctNCarpool3*(BikePedB-BikePedNB)*VLOOKUP(0,EmAuto20,6)*2) -> 0 | CB91: =0.00000110231131*(BL91*VLOOKUP(BN91,EmAuto20,7)-BM91*VLOOKUP(BO91,EmAuto20,7)+PctLotUser3*PctNCarpool3*(BikePedB-BikePedNB)*VLOOKUP(0,EmAuto20,7)*2) -> 0 | CC91: =0.00000110231131*(BL91*VLOOKUP(BN91,EmAuto20,8)-BM91*VLOOKUP(BO91,EmAuto20,8)+PctLotUser3*PctNCarpool3*(BikePedB-BikePedNB)*VLOOKUP(0,EmAuto20,8)*2) -> 0
B92: 9 | C92: 0 | D92: 0 | E92: 0 | F92: 0 | G92: 0 | H92: 0 | I92: 0 | M92: 0 | Q92: 0 | R92: =0.00000110231131*(F92*VLOOKUP(H92,EmAuto20,3)-G92*VLOOKUP(I92,EmAuto20,3)+PctLotUser1*PctNCarpool1*(BikePedB-BikePedNB)*VLOOKUP(0,EmAuto20,3)*2) -> 0 | S92: 0 | T92: 0 | U92: 0 | V92: 0 | W92: 0 | AE92: 9 | AF92: 0 | AG92: 0 | AH92: 0 | AI92: 0 | AJ92: 0 | AK92: 0 | AL92: 0 | AP92: 0 | AT92: 0 | AU92: 0 | AV92: 0 | AW92: 0 | AX92: 0 | AY92: 0 | AZ92: 0 | BH92: 9 | BI92: 0 | BJ92: 0 | BK92: 0 | BL92: 0 | BM92: 0 | BN92: 0 | BO92: 0 | BS92: 0 | BW92: 0 | BX92: 0 | BY92: 0 | BZ92: 0 | CA92: 0 | CB92: 0 | CC92: 0
B93: 10 | C93: 0 | D93: 0 | E93: 0 | F93: 0 | G93: 0 | H93: 0 | I93: 0 | M93: 0 | Q93: 0 | R93: 0 | S93: 0 | T93: 0 | U93: 0 | V93: 0 | W93: 0 | AE93: 10 | AF93: 0 | AG93: 0 | AH93: 0 | AI93: 0 | AJ93: 0 | AK93: 0 | AL93: 0 | AP93: 0 | AT93: 0 | AU93: 0 | AV93: 0 | AW93: 0 | AX93: 0 | AY93: 0 | AZ93: 0 | BH93: 10 | BI93: 0 | BJ93: 0 | BK93: 0 | BL93: 0 | BM93: 0 | BN93: 0 | BO93: 0 | BS93: 0 | BW93: 0 | BX93: 0 | BY93: 0 | BZ93: 0 | CA93: 0 | CB93: 0 | CC93: 0
B94: 11 | C94: 0 | D94: 0 | E94: 0 | F94: 0 | G94: 0 | H94: 0 | I94: 0 | M94: 0 | Q94: 0 | R94: 0 | S94: 0 | T94: 0 | U94: 0 | V94: 0 | W94: 0 | AE94: 11 | AF94: 0 | AG94: 0 | AH94: 0 | AI94: 0 | AJ94: 0 | AK94: 0 | AL94: 0 | AP94: 0 | AT94: 0 | AU94: 0 | AV94: 0 | AW94: 0 | AX94: 0 | AY94: 0 | AZ94: 0 | BH94: 11 | BI94: 0 | BJ94: 0 | BK94: 0 | BL94: 0 | BM94: 0 | BN94: 0 | BO94: 0 | BS94: 0 | BW94: 0 | BX94: 0 | BY94: 0 | BZ94: 0 | CA94: 0 | CB94: 0 | CC94: 0
B95: 12 | C95: 0 | D95: 0 | E95: 0 | F95: 0 | G95: 0 | H95: 0 | I95: 0 | M95: 0 | Q95: 0 | R95: 0 | S95: 0 | T95: 0 | U95: 0 | V95: 0 | W95: 0 | AE95: 12 | AF95: 0 | AG95: 0 | AH95: 0 | AI95: 0 | AJ95: 0 | AK95: 0 | AL95: 0 | AP95: 0 | AT95: 0 | AU95: 0 | AV95: 0 | AW95: 0 | AX95: 0 | AY95: 0 | AZ95: 0 | BH95: 12 | BI95: 0 | BJ95: 0 | BK95: 0 | BL95: 0 | BM95: 0 | BN95: 0 | BO95: 0 | BS95: 0 | BW95: 0 | BX95: 0 | BY95: 0 | BZ95: 0 | CA95: 0 | CB95: 0 | CC95: 0
B96: 13 | C96: 0 | D96: 0 | E96: 0 | F96: 0 | G96: 0 | H96: 0 | I96: 0 | M96: 0 | Q96: 0 | R96: 0 | S96: 0 | T96: 0 | U96: 0 | V96: 0 | W96: 0 | AE96: 13 | AF96: 0 | AG96: 0 | AH96: 0 | AI96: 0 | AJ96: 0 | AK96: 0 | AL96: 0 | AP96: 0 | AT96: 0 | AU96: 0 | AV96: 0 | AW96: 0 | AX96: 0 | AY96: 0 | AZ96: 0 | BH96: 13 | BI96: 0 | BJ96: 0 | BK96: 0 | BL96: 0 | BM96: 0 | BN96: 0 | BO96: 0 | BS96: 0 | BW96: 0 | BX96: 0 | BY96: 0 | BZ96: 0 | CA96: 0 | CB96: 0 | CC96: 0
B97: 14 | C97: 0 | D97: 0 | E97: 0 | F97: 0 | G97: 0 | H97: 0 | I97: 0 | M97: 0 | Q97: 0 | R97: 0 | S97: 0 | T97: 0 | U97: 0 | V97: 0 | W97: 0 | AE97: 14 | AF97: 0 | AG97: 0 | AH97: 0 | AI97: 0 | AJ97: 0 | AK97: 0 | AL97: 0 | AP97: 0 | AT97: 0 | AU97: 0 | AV97: 0 | AW97: 0 | AX97: 0 | AY97: 0 | AZ97: 0 | BH97: 14 | BI97: 0 | BJ97: 0 | BK97: 0 | BL97: 0 | BM97: 0 | BN97: 0 | BO97: 0 | BS97: 0 | BW97: 0 | BX97: 0 | BY97: 0 | BZ97: 0 | CA97: 0 | CB97: 0 | CC97: 0
B98: 15 | C98: 0 | D98: 0 | E98: 0 | F98: 0 | G98: 0 | H98: 0 | I98: 0 | M98: 0 | Q98: 0 | R98: 0 | S98: 0 | T98: 0 | U98: 0 | V98: 0 | W98: 0 | AE98: 15 | AF98: 0 | AG98: 0 | AH98: 0 | AI98: 0 | AJ98: 0 | AK98: 0 | AL98: 0 | AP98: 0 | AT98: 0 | AU98: 0 | AV98: 0 | AW98: 0 | AX98: 0 | AY98: 0 | AZ98: 0 | BH98: 15 | BI98: 0 | BJ98: 0 | BK98: 0 | BL98: 0 | BM98: 0 | BN98: 0 | BO98: 0 | BS98: 0 | BW98: 0 | BX98: 0 | BY98: 0 | BZ98: 0 | CA98: 0 | CB98: 0 | CC98: 0
B99: 16 | C99: 0 | D99: 0 | E99: 0 | F99: 0 | G99: 0 | H99: 0 | I99: 0 | M99: 0 | Q99: 0 | R99: 0 | S99: 0 | T99: 0 | U99: 0 | V99: 0 | W99: 0 | AE99: 16 | AF99: 0 | AG99: 0 | AH99: 0 | AI99: 0 | AJ99: 0 | AK99: 0 | AL99: 0 | AP99: 0 | AT99: 0 | AU99: 0 | AV99: 0 | AW99: 0 | AX99: 0 | AY99: 0 | AZ99: 0 | BH99: 16 | BI99: 0 | BJ99: 0 | BK99: 0 | BL99: 0 | BM99: 0 | BN99: 0 | BO99: 0 | BS99: 0 | BW99: 0 | BX99: 0 | BY99: 0 | BZ99: 0 | CA99: 0 | CB99: 0 | CC99: 0
B100: 17 | C100: 0 | D100: 0 | E100: 0 | F100: 0 | G100: 0 | H100: 0 | I100: 0 | M100: 0 | Q100: 0 | R100: 0 | S100: 0 | T100: 0 | U100: 0 | V100: 0 | W100: 0 | AE100: 17 | AF100: 0 | AG100: 0 | AH100: 0 | AI100: 0 | AJ100: 0 | AK100: 0 | AL100: 0 | AP100: 0 | AT100: 0 | AU100: 0 | AV100: 0 | AW100: 0 | AX100: 0 | AY100: 0 | AZ100: 0 | BH100: 17 | BI100: 0 | BJ100: 0 | BK100: 0 | BL100: 0 | BM100: 0 | BN100: 0 | BO100: 0 | BS100: 0 | BW100: 0 | BX100: 0 | BY100: 0 | BZ100: 0 | CA100: 0 | CB100: 0 | CC100: 0
B101: 18 | C101: 0 | D101: 0 | E101: 0 | F101: 0 | G101: 0 | H101: 0 | I101: 0 | M101: 0 | Q101: 0 | R101: 0 | S101: 0 | T101: 0 | U101: 0 | V101: 0 | W101: 0 | AE101: 18 | AF101: 0 | AG101: 0 | AH101: 0 | AI101: 0 | AJ101: 0 | AK101: 0 | AL101: 0 | AP101: 0 | AT101: 0 | AU101: 0 | AV101: 0 | AW101: 0 | AX101: 0 | AY101: 0 | AZ101: 0 | BH101: 18 | BI101: 0 | BJ101: 0 | BK101: 0 | BL101: 0 | BM101: 0 | BN101: 0 | BO101: 0 | BS101: 0 | BW101: 0 | BX101: 0 | BY101: 0 | BZ101: 0 | CA101: 0 | CB101: 0 | CC101: 0
B102: 19 | C102: 0 | D102: 0 | E102: 0 | F102: 0 | G102: 0 | H102: 0 | I102: 0 | M102: 0 | Q102: 0 | R102: 0 | S102: 0 | T102: 0 | U102: 0 | V102: 0 | W102: 0 | AE102: 19 | AF102: 0 | AG102: 0 | AH102: 0 | AI102: 0 | AJ102: 0 | AK102: 0 | AL102: 0 | AP102: 0 | AT102: 0 | AU102: 0 | AV102: 0 | AW102: 0 | AX102: 0 | AY102: 0 | AZ102: 0 | BH102: 19 | BI102: 0 | BJ102: 0 | BK102: 0 | BL102: 0 | BM102: 0 | BN102: 0 | BO102: 0 | BS102: 0 | BW102: 0 | BX102: 0 | BY102: 0 | BZ102: 0 | CA102: 0 | CB102: 0 | CC102: 0
B103: 20 | C103: 0 | D103: 0 | E103: 0 | F103: 0 | G103: 0 | H103: 0 | I103: 0 | M103: 0 | Q103: 0 | R103: 0 | S103: 0 | T103: 0 | U103: 0 | V103: 0 | W103: 0 | AE103: 20 | AF103: 0 | AG103: 0 | AH103: 0 | AI103: 0 | AJ103: 0 | AK103: 0 | AL103: 0 | AP103: 0 | AT103: 0 | AU103: 0 | AV103: 0 | AW103: 0 | AX103: 0 | AY103: 0 | AZ103: 0 | BH103: 20 | BI103: 0 | BJ103: 0 | BK103: 0 | BL103: 0 | BM103: 0 | BN103: 0 | BO103: 0 | BS103: 0 | BW103: 0 | BX103: 0 | BY103: 0 | BZ103: 0 | CA103: 0 | CB103: 0 | CC103: 0
B105: Total | O105: =SUM(O84:O103) ->  | Q105: =SUM(Q84:Q103) -> 0 | R105: =SUM(R84:R103) -> 0 | S105: =SUM(S84:S103) -> 0 | T105: 0 | U105: 0 | V105: 0 | W105: 0 | X105: =SUM(X84:X103) ->  | Y105: =SUM(Y84:Y103) ->  | Z105: =SUM(Z84:Z103) ->  | AC105: =SUM(AC84:AC103) ->  | AE105: Total | AR105: =SUM(AR84:AR103) ->  | AT105: =SUM(AT84:AT103) -> 0 | AU105: =SUM(AU84:AU103) -> 0 | AV105: =SUM(AV84:AV103) -> 0 | AW105: 0 | AX105: 0 | AY105: 0 | AZ105: 0 | BA105: =SUM(BA84:BA103) ->  | BB105: =SUM(BB84:BB103) ->  | BC105: =SUM(BC84:BC103) ->  | BF105: =SUM(BF84:BF103) ->  | BH105: Total | BU105: =SUM(BU84:BU103) ->  | BW105: =SUM(BW84:BW103) -> 0 | BX105: =SUM(BX84:BX103) -> 0 | BY105: =SUM(BY84:BY103) -> 0 | BZ105: 0 | CA105: 0 | CB105: 0 | CC105: 0 | CD105: =SUM(CD84:CD103) ->  | CE105: =SUM(CE84:CE103) ->  | CF105: =SUM(CF84:CF103) ->  | CI105: =SUM(CI84:CI103) -> 
B108: Existing Carpoolers (switch park-n-ride lots) | AE108: Existing Carpoolers (switch park-n-ride lots) | BH108: Existing Carpoolers (switch park-n-ride lots)
C110: ANNUAL NUMBER OF USERS | F110: TOTAL AUTO VMT | H110: AVERAGE HWY SPEED | J110: RUNNING EMISSIONS | L110: STARTING EMISSIONS | Q110: TONS EMISSIONS SAVED | X110: DOLLARS EMISSIONS SAVED | AF110: ANNUAL NUMBER OF USERS | AI110: TOTAL AUTO VMT | AK110: AVERAGE HWY SPEED | AM110: RUNNING EMISSIONS | AO110: STARTING EMISSIONS | AT110: TONS EMISSIONS SAVED | BA110: DOLLARS EMISSIONS SAVED | BI110: ANNUAL NUMBER OF USERS | BL110: TOTAL AUTO VMT | BN110: AVERAGE HWY SPEED | BP110: RUNNING EMISSIONS | BR110: STARTING EMISSIONS | BW110: TONS EMISSIONS SAVED | CD110: DOLLARS EMISSIONS SAVED
C111: (people/yr) | F111: (veh-miles/yr) | H111: (mph) | J111: ($/yr) | L111: ($/yr) | Q111: (tons/yr) | X111: (PV $/yr) | AF111: (people/yr) | AI111: (veh-miles/yr) | AK111: (mph) | AM111: ($/yr) | AO111: ($/yr) | AT111: (tons/yr) | BA111: (PV $/yr) | BI111: (people/yr) | BL111: (veh-miles/yr) | BN111: (mph) | BP111: ($/yr) | BR111: ($/yr) | BW111: (tons/yr) | CD111: (PV $/yr)
B112: Year | C112: Existing | D112: New | E112: Users | N112: Constant | O112: Present | AE112: Year | AF112: Existing | AG112: New | AH112: Users | AQ112: Constant | AR112: Present | BH112: Year | BI112: Existing | BJ112: New | BK112: Users | BT112: Constant | BU112: Present
C113: Lot | D113: Lot | E113: Benefited | F113: No Build | G113: Build | H113: No Build | I113: Build | J113: No Build | K113: Build | L113: No Build | M113: Build | N113: Dollars | O113: Value | Q113: CO | R113: CO2 | S113: NOX | T113: PM10 | U113: SOX | V113: VOC | W113: PM2.5 | X113: CO | Y113: CO2 | Z113: NOX | AA113: PM10 | AB113: SOX | AC113: VOC | AF113: Lot | AG113: Lot | AH113: Benefited | AI113: No Build | AJ113: Build | AK113: No Build | AL113: Build | AM113: No Build | AN113: Build | AO113: No Build | AP113: Build | AQ113: Dollars | AR113: Value | AT113: CO | AU113: CO2 | AV113: NOX | AW113: PM10 | AX113: SOX | AY113: VOC | AZ113: PM2.5 | BA113: CO | BB113: CO2 | BC113: NOX | BD113: PM10 | BE113: SOX | BF113: VOC | BI113: Lot | BJ113: Lot | BK113: Benefited | BL113: No Build | BM113: Build | BN113: No Build | BO113: Build | BP113: No Build | BQ113: Build | BR113: No Build | BS113: Build | BT113: Dollars | BU113: Value | BW113: CO | BX113: CO2 | BY113: NOX | BZ113: PM10 | CA113: SOX | CB113: VOC | CC113: PM2.5 | CD113: CO | CE113: CO2 | CF113: NOX | CG113: PM10 | CH113: SOX | CI113: VOC
B114: 1 | C114: =IF(SpacesNB=0,0,(IF(B114>CapYrNB,1,(B114-1)/CapYrNB)*MAX(0,(100%-PctFillNB))+(PctFillNB))*(SpacesNB*AVONB+IF(PctFillNB=0,BikePedNB,BikePedNB/PctFillNB))*AnnualFactor)*PctLotUser1*PctECarpool1 -> 0 | D114: =IF(SpacesB=0,0,(IF(B114>CapYrB,1,(B114-1)/CapYrB)*MAX(0,(100%-PctFillB))+(PctFillB))*(SpacesB*AVOB+IF(PctFillB=0,BikePedB,BikePedB/PctFillB))*AnnualFactor)*PctLotUser1*PctECarpool1 -> 0 | E114: =MAX(0,D114-C114) -> 0 | F114: =E114/AVOB*NextDist1*2 -> 0 | G114: =IF(PctECarpool1=0,0,E114/AVOCarpool1*NextDist1*2) -> 0 | H114: =IF(PctECarpool1=0,0,Distance1/TTNonHOV1*60) -> 0 | I114: =IF(PctECarpool1=0,0,Distance1/TTHOV1*60) -> 0 | J114: =F114*0.00000110231131*(VLOOKUP(H114,EmAuto1,2)*VLOOKUP(ProjLoc,EmCost,2)+VLOOKUP(H114,EmAuto1,3)*VLOOKUP(ProjLoc,EmCost,3)*(1+CO2Uprater)^($B114+Construct-1)+VLOOKUP(H114,EmAuto1,4)*VLOOKUP(ProjLoc,EmCost,4)+VLOOKUP(H114,EmAuto1,5)*VLOOKUP(ProjLoc,EmCost,5)+VLOOKUP(H114,EmAuto1,6)*VLOOKUP(ProjLoc,EmCost,6)+VLOOKUP(H114,EmAuto1,7)*VLOOKUP(ProjLoc,EmCost,7)) ->  | L114: =PctLotUser1*PctECarpool1*(BikePedB-BikePedNB)*0.00000110231131*(VLOOKUP(0,EmAuto1,2)*VLOOKUP(ProjLoc,EmCost,2)+VLOOKUP(0,EmAuto1,3)*VLOOKUP(ProjLoc,EmCost,3)*(1+CO2Uprater)^($B114+Construct-1)+VLOOKUP(0,EmAuto1,4)*VLOOKUP(ProjLoc,EmCost,4)+VLOOKUP(0,EmAuto1,5)*VLOOKUP(ProjLoc,EmCost,5)+VLOOKUP(0,EmAuto1,6)*VLOOKUP(ProjLoc,EmCost,6)+VLOOKUP(0,EmAuto1,7)*VLOOKUP(ProjLoc,EmCost,7))*2 ->  | M114: 0 | N114: =(J114+L114)-(K114+M114) ->  | O114: =$N114/(1+DiscRate)^($B114+Construct-1) ->  | Q114: =0.00000110231131*(F114*VLOOKUP(H114,EmAuto1,2)-G114*VLOOKUP(I114,EmAuto1,2)+PctLotUser1*PctECarpool1*(BikePedB-BikePedNB)*VLOOKUP(0,EmAuto1,2)*2) -> 0 | R114: =0.00000110231131*(F114*VLOOKUP(H114,EmAuto1,3)-G114*VLOOKUP(I114,EmAuto1,3)+PctLotUser1*PctECarpool1*(BikePedB-BikePedNB)*VLOOKUP(0,EmAuto1,3)*2) -> 0 | S114: =0.00000110231131*(F114*VLOOKUP(H114,EmAuto1,4)-G114*VLOOKUP(I114,EmAuto1,4)+PctLotUser1*PctECarpool1*(BikePedB-BikePedNB)*VLOOKUP(0,EmAuto1,4)*2) -> 0 | T114: =0.00000110231131*(F114*VLOOKUP(H114,EmAuto1,5)-G114*VLOOKUP(I114,EmAuto1,5)+PctLotUser1*PctECarpool1*(BikePedB-BikePedNB)*VLOOKUP(0,EmAuto1,5)*2) -> 0 | U114: =0.00000110231131*(F114*VLOOKUP(H114,EmAuto1,6)-G114*VLOOKUP(I114,EmAuto1,6)+PctLotUser1*PctECarpool1*(BikePedB-BikePedNB)*VLOOKUP(0,EmAuto1,6)*2) -> 0 | V114: =0.00000110231131*(F114*VLOOKUP(H114,EmAuto1,7)-G114*VLOOKUP(I114,EmAuto1,7)+PctLotUser1*PctECarpool1*(BikePedB-BikePedNB)*VLOOKUP(0,EmAuto1,7)*2) -> 0 | W114: =0.00000110231131*(F114*VLOOKUP(H114,EmAuto1,8)-G114*VLOOKUP(I114,EmAuto1,8)+PctLotUser1*PctECarpool1*(BikePedB-BikePedNB)*VLOOKUP(0,EmAuto1,8)*2) -> 0 | X114: =Q114*VLOOKUP(ProjLoc,EmCost,2)/(1+DiscRate)^($B114+Construct-1) ->  | Y114: =R114*VLOOKUP(ProjLoc,EmCost,3)*(1+CO2Uprater)^($B114+Construct-1)/(1+DiscRate)^($B114+Construct-1) ->  | Z114: =S114*VLOOKUP(ProjLoc,EmCost,4)/(1+DiscRate)^($B114+Construct-1) ->  | AA114: =T114*VLOOKUP(ProjLoc,EmCost,5)/(1+DiscRate)^($B114+Construct-1) ->  | AB114: =U114*VLOOKUP(ProjLoc,EmCost,6)/(1+DiscRate)^($B114+Construct-1) ->  | AC114: =V114*VLOOKUP(ProjLoc,EmCost,7)/(1+DiscRate)^($B114+Construct-1) ->  | AE114: 1 | AF114: =IF(SpacesNB=0,0,(IF(AE114>CapYrNB,1,(AE114-1)/CapYrNB)*MAX(0,(100%-PctFillNB))+(PctFillNB))*(SpacesNB*AVONB+IF(PctFillNB=0,BikePedNB,BikePedNB/PctFillNB))*AnnualFactor)*PctLotUser2*PctECarpool2 -> 0 | AG114: =IF(SpacesB=0,0,(IF(AE114>CapYrB,1,(AE114-1)/CapYrB)*MAX(0,(100%-PctFillB))+(PctFillB))*(SpacesB*AVOB+IF(PctFillB=0,BikePedB,BikePedB/PctFillB))*AnnualFactor)*PctLotUser2*PctECarpool2 -> 0 | AH114: =MAX(0,AG114-AF114) -> 0 | AI114: =AH114/AVOB*NextDist2*2 -> 0 | AJ114: =IF(PctECarpool2=0,0,AH114/AVOCarpool2*NextDist2*2) -> 0 | AK114: =IF(PctECarpool2=0,0,Distance2/TTNonHOV2*60) -> 0 | AL114: =IF(PctECarpool2=0,0,Distance2/TTHOV2*60) -> 0 | AM114: =AI114*0.00000110231131*(VLOOKUP(AK114,EmAuto1,2)*VLOOKUP(ProjLoc,EmCost,2)+VLOOKUP(AK114,EmAuto1,3)*VLOOKUP(ProjLoc,EmCost,3)*(1+CO2Uprater)^($AE114+Construct-1)+VLOOKUP(AK114,EmAuto1,4)*VLOOKUP(ProjLoc,EmCost,4)+VLOOKUP(AK114,EmAuto1,5)*VLOOKUP(ProjLoc,EmCost,5)+VLOOKUP(AK114,EmAuto1,6)*VLOOKUP(ProjLoc,EmCost,6)+VLOOKUP(AK114,EmAuto1,7)*VLOOKUP(ProjLoc,EmCost,7)) ->  | AO114: =PctLotUser2*PctECarpool2*(BikePedB-BikePedNB)*0.00000110231131*(VLOOKUP(0,EmAuto1,2)*VLOOKUP(ProjLoc,EmCost,2)+VLOOKUP(0,EmAuto1,3)*VLOOKUP(ProjLoc,EmCost,3)*(1+CO2Uprater)^($AE114+Construct-1)+VLOOKUP(0,EmAuto1,4)*VLOOKUP(ProjLoc,EmCost,4)+VLOOKUP(0,EmAuto1,5)*VLOOKUP(ProjLoc,EmCost,5)+VLOOKUP(0,EmAuto1,6)*VLOOKUP(ProjLoc,EmCost,6)+VLOOKUP(0,EmAuto1,7)*VLOOKUP(ProjLoc,EmCost,7))*2 ->  | AP114: 0 | AQ114: =(AM114+AO114)-(AN114+AP114) ->  | AR114: =$AQ114/(1+DiscRate)^($AE114+Construct-1) ->  | AT114: =0.00000110231131*(AI114*VLOOKUP(AK114,EmAuto1,2)-AJ114*VLOOKUP(AL114,EmAuto1,2)+PctLotUser2*PctECarpool2*(BikePedB-BikePedNB)*VLOOKUP(0,EmAuto1,2)*2) -> 0 | AU114: =0.00000110231131*(AI114*VLOOKUP(AK114,EmAuto1,3)-AJ114*VLOOKUP(AL114,EmAuto1,3)+PctLotUser2*PctECarpool2*(BikePedB-BikePedNB)*VLOOKUP(0,EmAuto1,3)*2) -> 0 | AV114: =0.00000110231131*(AI114*VLOOKUP(AK114,EmAuto1,4)-AJ114*VLOOKUP(AL114,EmAuto1,4)+PctLotUser2*PctECarpool2*(BikePedB-BikePedNB)*VLOOKUP(0,EmAuto1,4)*2) -> 0 | AW114: =0.00000110231131*(AI114*VLOOKUP(AK114,EmAuto1,5)-AJ114*VLOOKUP(AL114,EmAuto1,5)+PctLotUser2*PctECarpool2*(BikePedB-BikePedNB)*VLOOKUP(0,EmAuto1,5)*2) -> 0 | AX114: =0.00000110231131*(AI114*VLOOKUP(AK114,EmAuto1,6)-AJ114*VLOOKUP(AL114,EmAuto1,6)+PctLotUser2*PctECarpool2*(BikePedB-BikePedNB)*VLOOKUP(0,EmAuto1,6)*2) -> 0 | AY114: =0.00000110231131*(AI114*VLOOKUP(AK114,EmAuto1,7)-AJ114*VLOOKUP(AL114,EmAuto1,7)+PctLotUser2*PctECarpool2*(BikePedB-BikePedNB)*VLOOKUP(0,EmAuto1,7)*2) -> 0 | AZ114: =0.00000110231131*(AI114*VLOOKUP(AK114,EmAuto1,8)-AJ114*VLOOKUP(AL114,EmAuto1,8)+PctLotUser2*PctECarpool2*(BikePedB-BikePedNB)*VLOOKUP(0,EmAuto1,8)*2) -> 0 | BA114: =AT114*VLOOKUP(ProjLoc,EmCost,2)/(1+DiscRate)^($AE114+Construct-1) ->  | BB114: =AU114*VLOOKUP(ProjLoc,EmCost,3)*(1+CO2Uprater)^($AE114+Construct-1)/(1+DiscRate)^($AE114+Construct-1) ->  | BC114: =AV114*VLOOKUP(ProjLoc,EmCost,4)/(1+DiscRate)^($AE114+Construct-1) ->  | BD114: =AW114*VLOOKUP(ProjLoc,EmCost,5)/(1+DiscRate)^($AE114+Construct-1) ->  | BE114: =AX114*VLOOKUP(ProjLoc,EmCost,6)/(1+DiscRate)^($AE114+Construct-1) ->  | BF114: =AY114*VLOOKUP(ProjLoc,EmCost,7)/(1+DiscRate)^($AE114+Construct-1) ->  | BH114: 1 | BI114: =IF(SpacesNB=0,0,(IF(BH114>CapYrNB,1,(BH114-1)/CapYrNB)*MAX(0,(100%-PctFillNB))+(PctFillNB))*(SpacesNB*AVONB+IF(PctFillNB=0,BikePedNB,BikePedNB/PctFillNB))*AnnualFactor)*PctLotUser3*PctECarpool3 -> 0 | BJ114: =IF(SpacesB=0,0,(IF(BH114>CapYrB,1,(BH114-1)/CapYrB)*MAX(0,(100%-PctFillB))+(PctFillB))*(SpacesB*AVOB+IF(PctFillB=0,BikePedB,BikePedB/PctFillB))*AnnualFactor)*PctLotUser3*PctECarpool3 -> 0 | BK114: =MAX(0,BJ114-BI114) -> 0 | BL114: =BK114/AVOB*NextDist3*2 -> 0 | BM114: =IF(PctECarpool3=0,0,BK114/AVOCarpool3*NextDist3*2) -> 0 | BN114: =IF(PctECarpool3=0,0,Distance3/TTNonHOV3*60) -> 0 | BO114: =IF(PctECarpool3=0,0,Distance3/TTHOV3*60) -> 0 | BP114: =BL114*0.00000110231131*(VLOOKUP(BN114,EmAuto1,2)*VLOOKUP(ProjLoc,EmCost,2)+VLOOKUP(BN114,EmAuto1,3)*VLOOKUP(ProjLoc,EmCost,3)*(1+CO2Uprater)^($BH114+Construct-1)+VLOOKUP(BN114,EmAuto1,4)*VLOOKUP(ProjLoc,EmCost,4)+VLOOKUP(BN114,EmAuto1,5)*VLOOKUP(ProjLoc,EmCost,5)+VLOOKUP(BN114,EmAuto1,6)*VLOOKUP(ProjLoc,EmCost,6)+VLOOKUP(BN114,EmAuto1,7)*VLOOKUP(ProjLoc,EmCost,7)) ->  | BR114: =PctLotUser3*PctECarpool3*(BikePedB-BikePedNB)*0.00000110231131*(VLOOKUP(0,EmAuto1,2)*VLOOKUP(ProjLoc,EmCost,2)+VLOOKUP(0,EmAuto1,3)*VLOOKUP(ProjLoc,EmCost,3)*(1+CO2Uprater)^($BH114+Construct-1)+VLOOKUP(0,EmAuto1,4)*VLOOKUP(ProjLoc,EmCost,4)+VLOOKUP(0,EmAuto1,5)*VLOOKUP(ProjLoc,EmCost,5)+VLOOKUP(0,EmAuto1,6)*VLOOKUP(ProjLoc,EmCost,6)+VLOOKUP(0,EmAuto1,7)*VLOOKUP(ProjLoc,EmCost,7))*2 ->  | BS114: 0 | BT114: =(BP114+BR114)-(BQ114+BS114) ->  | BU114: =$BT114/(1+DiscRate)^($BH114+Construct-1) ->  | BW114: =0.00000110231131*(BL114*VLOOKUP(BN114,EmAuto1,2)-BM114*VLOOKUP(BO114,EmAuto1,2)+PctLotUser3*PctECarpool3*(BikePedB-BikePedNB)*VLOOKUP(0,EmAuto1,2)*2) -> 0 | BX114: =0.00000110231131*(BL114*VLOOKUP(BN114,EmAuto1,3)-BM114*VLOOKUP(BO114,EmAuto1,3)+PctLotUser3*PctECarpool3*(BikePedB-BikePedNB)*VLOOKUP(0,EmAuto1,3)*2) -> 0 | BY114: =0.00000110231131*(BL114*VLOOKUP(BN114,EmAuto1,4)-BM114*VLOOKUP(BO114,EmAuto1,4)+PctLotUser3*PctECarpool3*(BikePedB-BikePedNB)*VLOOKUP(0,EmAuto1,4)*2) -> 0 | BZ114: =0.00000110231131*(BL114*VLOOKUP(BN114,EmAuto1,5)-BM114*VLOOKUP(BO114,EmAuto1,5)+PctLotUser3*PctECarpool3*(BikePedB-BikePedNB)*VLOOKUP(0,EmAuto1,5)*2) -> 0 | CA114: =0.00000110231131*(BL114*VLOOKUP(BN114,EmAuto1,6)-BM114*VLOOKUP(BO114,EmAuto1,6)+PctLotUser3*PctECarpool3*(BikePedB-BikePedNB)*VLOOKUP(0,EmAuto1,6)*2) -> 0 | CB114: =0.00000110231131*(BL114*VLOOKUP(BN114,EmAuto1,7)-BM114*VLOOKUP(BO114,EmAuto1,7)+PctLotUser3*PctECarpool3*(BikePedB-BikePedNB)*VLOOKUP(0,EmAuto1,7)*2) -> 0 | CC114: =0.00000110231131*(BL114*VLOOKUP(BN114,EmAuto1,8)-BM114*VLOOKUP(BO114,EmAuto1,8)+PctLotUser3*PctECarpool3*(BikePedB-BikePedNB)*VLOOKUP(0,EmAuto1,8)*2) -> 0 | CD114: =BW114*VLOOKUP(ProjLoc,EmCost,2)/(1+DiscRate)^($BH114+Construct-1) ->  | CE114: =BX114*VLOOKUP(ProjLoc,EmCost,3)*(1+CO2Uprater)^($BH114+Construct-1)/(1+DiscRate)^($BH114+Construct-1) ->  | CF114: =BY114*VLOOKUP(ProjLoc,EmCost,4)/(1+DiscRate)^($BH114+Construct-1) ->  | CG114: =BZ114*VLOOKUP(ProjLoc,EmCost,5)/(1+DiscRate)^($BH114+Construct-1) ->  | CH114: =CA114*VLOOKUP(ProjLoc,EmCost,6)/(1+DiscRate)^($BH114+Construct-1) ->  | CI114: =CB114*VLOOKUP(ProjLoc,EmCost,7)/(1+DiscRate)^($BH114+Construct-1) -> 
B115: 2 | C115: 0 | D115: 0 | E115: =MAX(0,D115-C115) -> 0 | F115: 0 | G115: 0 | H115: 0 | I115: 0 | M115: 0 | N115: =(J115+L115)-(K115+M115) ->  | Q115: 0 | R115: 0 | S115: 0 | T115: 0 | U115: 0 | V115: 0 | W115: 0 | AE115: 2 | AF115: 0 | AG115: 0 | AH115: =MAX(0,AG115-AF115) -> 0 | AI115: 0 | AJ115: 0 | AK115: 0 | AL115: 0 | AP115: 0 | AQ115: =(AM115+AO115)-(AN115+AP115) ->  | AT115: 0 | AU115: 0 | AV115: 0 | AW115: 0 | AX115: 0 | AY115: 0 | AZ115: 0 | BH115: 2 | BI115: 0 | BJ115: 0 | BK115: =MAX(0,BJ115-BI115) -> 0 | BL115: 0 | BM115: 0 | BN115: 0 | BO115: 0 | BS115: 0 | BT115: =(BP115+BR115)-(BQ115+BS115) ->  | BW115: 0 | BX115: 0 | BY115: 0 | BZ115: 0 | CA115: 0 | CB115: 0 | CC115: 0
B116: 3 | C116: 0 | D116: 0 | E116: 0 | F116: 0 | G116: 0 | H116: 0 | I116: 0 | M116: 0 | Q116: 0 | R116: 0 | S116: 0 | T116: 0 | U116: 0 | V116: 0 | W116: 0 | AE116: 3 | AF116: 0 | AG116: 0 | AH116: 0 | AI116: 0 | AJ116: 0 | AK116: 0 | AL116: 0 | AP116: 0 | AT116: 0 | AU116: 0 | AV116: 0 | AW116: 0 | AX116: 0 | AY116: 0 | AZ116: 0 | BH116: 3 | BI116: 0 | BJ116: 0 | BK116: 0 | BL116: 0 | BM116: 0 | BN116: 0 | BO116: 0 | BS116: 0 | BW116: 0 | BX116: 0 | BY116: 0 | BZ116: 0 | CA116: 0 | CB116: 0 | CC116: 0
B117: 4 | C117: 0 | D117: 0 | E117: 0 | F117: 0 | G117: 0 | H117: 0 | I117: 0 | M117: 0 | Q117: 0 | R117: 0 | S117: 0 | T117: 0 | U117: 0 | V117: 0 | W117: 0 | AE117: 4 | AF117: 0 | AG117: 0 | AH117: 0 | AI117: 0 | AJ117: 0 | AK117: 0 | AL117: 0 | AP117: 0 | AT117: 0 | AU117: 0 | AV117: 0 | AW117: 0 | AX117: 0 | AY117: 0 | AZ117: 0 | BH117: 4 | BI117: 0 | BJ117: 0 | BK117: 0 | BL117: 0 | BM117: 0 | BN117: 0 | BO117: 0 | BS117: 0 | BW117: 0 | BX117: 0 | BY117: 0 | BZ117: 0 | CA117: 0 | CB117: 0 | CC117: 0
B118: 5 | C118: 0 | D118: 0 | E118: 0 | F118: 0 | G118: 0 | H118: 0 | I118: 0 | M118: 0 | Q118: 0 | R118: 0 | S118: 0 | T118: 0 | U118: 0 | V118: 0 | W118: 0 | AE118: 5 | AF118: 0 | AG118: 0 | AH118: 0 | AI118: 0 | AJ118: 0 | AK118: 0 | AL118: 0 | AP118: 0 | AT118: 0 | AU118: 0 | AV118: 0 | AW118: 0 | AX118: 0 | AY118: 0 | AZ118: 0 | BH118: 5 | BI118: 0 | BJ118: 0 | BK118: 0 | BL118: 0 | BM118: 0 | BN118: 0 | BO118: 0 | BS118: 0 | BW118: 0 | BX118: 0 | BY118: 0 | BZ118: 0 | CA118: 0 | CB118: 0 | CC118: 0
B119: 6 | C119: 0 | D119: 0 | E119: 0 | F119: 0 | G119: 0 | H119: 0 | I119: 0 | M119: 0 | Q119: 0 | R119: 0 | S119: 0 | T119: 0 | U119: 0 | V119: 0 | W119: 0 | AE119: 6 | AF119: 0 | AG119: 0 | AH119: 0 | AI119: 0 | AJ119: 0 | AK119: 0 | AL119: 0 | AP119: 0 | AT119: 0 | AU119: 0 | AV119: 0 | AW119: 0 | AX119: 0 | AY119: 0 | AZ119: 0 | BH119: 6 | BI119: 0 | BJ119: 0 | BK119: 0 | BL119: 0 | BM119: 0 | BN119: 0 | BO119: 0 | BS119: 0 | BW119: 0 | BX119: 0 | BY119: 0 | BZ119: 0 | CA119: 0 | CB119: 0 | CC119: 0
B120: 7 | C120: 0 | D120: 0 | E120: 0 | F120: 0 | G120: 0 | H120: 0 | I120: 0 | M120: 0 | Q120: 0 | R120: 0 | S120: 0 | T120: 0 | U120: 0 | V120: 0 | W120: 0 | AE120: 7 | AF120: 0 | AG120: 0 | AH120: 0 | AI120: 0 | AJ120: 0 | AK120: 0 | AL120: 0 | AP120: 0 | AT120: 0 | AU120: 0 | AV120: 0 | AW120: 0 | AX120: 0 | AY120: 0 | AZ120: 0 | BH120: 7 | BI120: 0 | BJ120: 0 | BK120: 0 | BL120: 0 | BM120: 0 | BN120: 0 | BO120: 0 | BS120: 0 | BW120: 0 | BX120: 0 | BY120: 0 | BZ120: 0 | CA120: 0 | CB120: 0 | CC120: 0
B121: 8 | C121: 0 | D121: 0 | E121: 0 | F121: 0 | G121: 0 | H121: 0 | I121: 0 | J121: =F121*0.00000110231131*(VLOOKUP(H121,EmAuto20,2)*VLOOKUP(ProjLoc,EmCost,2)+VLOOKUP(H121,EmAuto20,3)*VLOOKUP(ProjLoc,EmCost,3)*(1+CO2Uprater)^($B121+Construct-1)+VLOOKUP(H121,EmAuto20,4)*VLOOKUP(ProjLoc,EmCost,4)+VLOOKUP(H121,EmAuto20,5)*VLOOKUP(ProjLoc,EmCost,5)+VLOOKUP(H121,EmAuto20,6)*VLOOKUP(ProjLoc,EmCost,6)+VLOOKUP(H121,EmAuto20,7)*VLOOKUP(ProjLoc,EmCost,7)) ->  | K121: =G121*0.00000110231131*(VLOOKUP(I121,EmAuto20,2)*VLOOKUP(ProjLoc,EmCost,2)+VLOOKUP(I121,EmAuto20,3)*VLOOKUP(ProjLoc,EmCost,3)*(1+CO2Uprater)^($B121+Construct-1)+VLOOKUP(I121,EmAuto20,4)*VLOOKUP(ProjLoc,EmCost,4)+VLOOKUP(I121,EmAuto20,5)*VLOOKUP(ProjLoc,EmCost,5)+VLOOKUP(I121,EmAuto20,6)*VLOOKUP(ProjLoc,EmCost,6)+VLOOKUP(I121,EmAuto20,7)*VLOOKUP(ProjLoc,EmCost,7)) ->  | L121: =PctLotUser1*PctECarpool1*(BikePedB-BikePedNB)*0.00000110231131*(VLOOKUP(0,EmAuto20,2)*VLOOKUP(ProjLoc,EmCost,2)+VLOOKUP(0,EmAuto20,3)*VLOOKUP(ProjLoc,EmCost,3)*(1+CO2Uprater)^($B121+Construct-1)+VLOOKUP(0,EmAuto20,4)*VLOOKUP(ProjLoc,EmCost,4)+VLOOKUP(0,EmAuto20,5)*VLOOKUP(ProjLoc,EmCost,5)+VLOOKUP(0,EmAuto20,6)*VLOOKUP(ProjLoc,EmCost,6)+VLOOKUP(0,EmAuto20,7)*VLOOKUP(ProjLoc,EmCost,7))*2 ->  | M121: 0 | Q121: =0.00000110231131*(F121*VLOOKUP(H121,EmAuto20,2)-G121*VLOOKUP(I121,EmAuto20,2)+PctLotUser1*PctECarpool1*(BikePedB-BikePedNB)*VLOOKUP(0,EmAuto20,2)*2) -> 0 | R121: =0.00000110231131*(F121*VLOOKUP(H121,EmAuto20,3)-G121*VLOOKUP(I121,EmAuto20,3)+PctLotUser1*PctECarpool1*(BikePedB-BikePedNB)*VLOOKUP(0,EmAuto20,3)*2) -> 0 | S121: =0.00000110231131*(F121*VLOOKUP(H121,EmAuto20,4)-G121*VLOOKUP(I121,EmAuto20,4)+PctLotUser1*PctECarpool1*(BikePedB-BikePedNB)*VLOOKUP(0,EmAuto20,4)*2) -> 0 | T121: =0.00000110231131*(F121*VLOOKUP(H121,EmAuto20,5)-G121*VLOOKUP(I121,EmAuto20,5)+PctLotUser1*PctECarpool1*(BikePedB-BikePedNB)*VLOOKUP(0,EmAuto20,5)*2) -> 0 | U121: =0.00000110231131*(F121*VLOOKUP(H121,EmAuto20,6)-G121*VLOOKUP(I121,EmAuto20,6)+PctLotUser1*PctECarpool1*(BikePedB-BikePedNB)*VLOOKUP(0,EmAuto20,6)*2) -> 0 | V121: =0.00000110231131*(F121*VLOOKUP(H121,EmAuto20,7)-G121*VLOOKUP(I121,EmAuto20,7)+PctLotUser1*PctECarpool1*(BikePedB-BikePedNB)*VLOOKUP(0,EmAuto20,7)*2) -> 0 | W121: =0.00000110231131*(F121*VLOOKUP(H121,EmAuto20,8)-G121*VLOOKUP(I121,EmAuto20,8)+PctLotUser1*PctECarpool1*(BikePedB-BikePedNB)*VLOOKUP(0,EmAuto20,8)*2) -> 0 | AE121: 8 | AF121: 0 | AG121: 0 | AH121: 0 | AI121: 0 | AJ121: 0 | AK121: 0 | AL121: 0 | AM121: =AI121*0.00000110231131*(VLOOKUP(AK121,EmAuto20,2)*VLOOKUP(ProjLoc,EmCost,2)+VLOOKUP(AK121,EmAuto20,3)*VLOOKUP(ProjLoc,EmCost,3)*(1+CO2Uprater)^($AE121+Construct-1)+VLOOKUP(AK121,EmAuto20,4)*VLOOKUP(ProjLoc,EmCost,4)+VLOOKUP(AK121,EmAuto20,5)*VLOOKUP(ProjLoc,EmCost,5)+VLOOKUP(AK121,EmAuto20,6)*VLOOKUP(ProjLoc,EmCost,6)+VLOOKUP(AK121,EmAuto20,7)*VLOOKUP(ProjLoc,EmCost,7)) ->  | AN121: =AJ121*0.00000110231131*(VLOOKUP(AL121,EmAuto20,2)*VLOOKUP(ProjLoc,EmCost,2)+VLOOKUP(AL121,EmAuto20,3)*VLOOKUP(ProjLoc,EmCost,3)*(1+CO2Uprater)^($AE121+Construct-1)+VLOOKUP(AL121,EmAuto20,4)*VLOOKUP(ProjLoc,EmCost,4)+VLOOKUP(AL121,EmAuto20,5)*VLOOKUP(ProjLoc,EmCost,5)+VLOOKUP(AL121,EmAuto20,6)*VLOOKUP(ProjLoc,EmCost,6)+VLOOKUP(AL121,EmAuto20,7)*VLOOKUP(ProjLoc,EmCost,7)) ->  | AO121: =PctLotUser2*PctECarpool2*(BikePedB-BikePedNB)*0.00000110231131*(VLOOKUP(0,EmAuto20,2)*VLOOKUP(ProjLoc,EmCost,2)+VLOOKUP(0,EmAuto20,3)*VLOOKUP(ProjLoc,EmCost,3)*(1+CO2Uprater)^($AE121+Construct-1)+VLOOKUP(0,EmAuto20,4)*VLOOKUP(ProjLoc,EmCost,4)+VLOOKUP(0,EmAuto20,5)*VLOOKUP(ProjLoc,EmCost,5)+VLOOKUP(0,EmAuto20,6)*VLOOKUP(ProjLoc,EmCost,6)+VLOOKUP(0,EmAuto20,7)*VLOOKUP(ProjLoc,EmCost,7))*2 ->  | AP121: 0 | AT121: =0.00000110231131*(AI121*VLOOKUP(AK121,EmAuto20,2)-AJ121*VLOOKUP(AL121,EmAuto20,2)+PctLotUser2*PctECarpool2*(BikePedB-BikePedNB)*VLOOKUP(0,EmAuto20,2)*2) -> 0 | AU121: =0.00000110231131*(AI121*VLOOKUP(AK121,EmAuto20,3)-AJ121*VLOOKUP(AL121,EmAuto20,3)+PctLotUser2*PctECarpool2*(BikePedB-BikePedNB)*VLOOKUP(0,EmAuto20,3)*2) -> 0 | AV121: =0.00000110231131*(AI121*VLOOKUP(AK121,EmAuto20,4)-AJ121*VLOOKUP(AL121,EmAuto20,4)+PctLotUser2*PctECarpool2*(BikePedB-BikePedNB)*VLOOKUP(0,EmAuto20,4)*2) -> 0 | AW121: =0.00000110231131*(AI121*VLOOKUP(AK121,EmAuto20,5)-AJ121*VLOOKUP(AL121,EmAuto20,5)+PctLotUser2*PctECarpool2*(BikePedB-BikePedNB)*VLOOKUP(0,EmAuto20,5)*2) -> 0 | AX121: =0.00000110231131*(AI121*VLOOKUP(AK121,EmAuto20,6)-AJ121*VLOOKUP(AL121,EmAuto20,6)+PctLotUser2*PctECarpool2*(BikePedB-BikePedNB)*VLOOKUP(0,EmAuto20,6)*2) -> 0 | AY121: =0.00000110231131*(AI121*VLOOKUP(AK121,EmAuto20,7)-AJ121*VLOOKUP(AL121,EmAuto20,7)+PctLotUser2*PctECarpool2*(BikePedB-BikePedNB)*VLOOKUP(0,EmAuto20,7)*2) -> 0 | AZ121: =0.00000110231131*(AI121*VLOOKUP(AK121,EmAuto20,8)-AJ121*VLOOKUP(AL121,EmAuto20,8)+PctLotUser2*PctECarpool2*(BikePedB-BikePedNB)*VLOOKUP(0,EmAuto20,8)*2) -> 0 | BH121: 8 | BI121: 0 | BJ121: 0 | BK121: 0 | BL121: 0 | BM121: 0 | BN121: 0 | BO121: 0 | BP121: =BL121*0.00000110231131*(VLOOKUP(BN121,EmAuto20,2)*VLOOKUP(ProjLoc,EmCost,2)+VLOOKUP(BN121,EmAuto20,3)*VLOOKUP(ProjLoc,EmCost,3)*(1+CO2Uprater)^($BH121+Construct-1)+VLOOKUP(BN121,EmAuto20,4)*VLOOKUP(ProjLoc,EmCost,4)+VLOOKUP(BN121,EmAuto20,5)*VLOOKUP(ProjLoc,EmCost,5)+VLOOKUP(BN121,EmAuto20,6)*VLOOKUP(ProjLoc,EmCost,6)+VLOOKUP(BN121,EmAuto20,7)*VLOOKUP(ProjLoc,EmCost,7)) ->  | BQ121: =BM121*0.00000110231131*(VLOOKUP(BO121,EmAuto20,2)*VLOOKUP(ProjLoc,EmCost,2)+VLOOKUP(BO121,EmAuto20,3)*VLOOKUP(ProjLoc,EmCost,3)*(1+CO2Uprater)^($BH121+Construct-1)+VLOOKUP(BO121,EmAuto20,4)*VLOOKUP(ProjLoc,EmCost,4)+VLOOKUP(BO121,EmAuto20,5)*VLOOKUP(ProjLoc,EmCost,5)+VLOOKUP(BO121,EmAuto20,6)*VLOOKUP(ProjLoc,EmCost,6)+VLOOKUP(BO121,EmAuto20,7)*VLOOKUP(ProjLoc,EmCost,7)) ->  | BR121: =PctLotUser3*PctECarpool3*(BikePedB-BikePedNB)*0.00000110231131*(VLOOKUP(0,EmAuto20,2)*VLOOKUP(ProjLoc,EmCost,2)+VLOOKUP(0,EmAuto20,3)*VLOOKUP(ProjLoc,EmCost,3)*(1+CO2Uprater)^($BH121+Construct-1)+VLOOKUP(0,EmAuto20,4)*VLOOKUP(ProjLoc,EmCost,4)+VLOOKUP(0,EmAuto20,5)*VLOOKUP(ProjLoc,EmCost,5)+VLOOKUP(0,EmAuto20,6)*VLOOKUP(ProjLoc,EmCost,6)+VLOOKUP(0,EmAuto20,7)*VLOOKUP(ProjLoc,EmCost,7))*2 ->  | BS121: 0 | BW121: =0.00000110231131*(BL121*VLOOKUP(BN121,EmAuto20,2)-BM121*VLOOKUP(BO121,EmAuto20,2)+PctLotUser3*PctECarpool3*(BikePedB-BikePedNB)*VLOOKUP(0,EmAuto20,2)*2) -> 0 | BX121: =0.00000110231131*(BL121*VLOOKUP(BN121,EmAuto20,3)-BM121*VLOOKUP(BO121,EmAuto20,3)+PctLotUser3*PctECarpool3*(BikePedB-BikePedNB)*VLOOKUP(0,EmAuto20,3)*2) -> 0 | BY121: =0.00000110231131*(BL121*VLOOKUP(BN121,EmAuto20,4)-BM121*VLOOKUP(BO121,EmAuto20,4)+PctLotUser3*PctECarpool3*(BikePedB-BikePedNB)*VLOOKUP(0,EmAuto20,4)*2) -> 0 | BZ121: =0.00000110231131*(BL121*VLOOKUP(BN121,EmAuto20,5)-BM121*VLOOKUP(BO121,EmAuto20,5)+PctLotUser3*PctECarpool3*(BikePedB-BikePedNB)*VLOOKUP(0,EmAuto20,5)*2) -> 0 | CA121: =0.00000110231131*(BL121*VLOOKUP(BN121,EmAuto20,6)-BM121*VLOOKUP(BO121,EmAuto20,6)+PctLotUser3*PctECarpool3*(BikePedB-BikePedNB)*VLOOKUP(0,EmAuto20,6)*2) -> 0 | CB121: =0.00000110231131*(BL121*VLOOKUP(BN121,EmAuto20,7)-BM121*VLOOKUP(BO121,EmAuto20,7)+PctLotUser3*PctECarpool3*(BikePedB-BikePedNB)*VLOOKUP(0,EmAuto20,7)*2) -> 0 | CC121: =0.00000110231131*(BL121*VLOOKUP(BN121,EmAuto20,8)-BM121*VLOOKUP(BO121,EmAuto20,8)+PctLotUser3*PctECarpool3*(BikePedB-BikePedNB)*VLOOKUP(0,EmAuto20,8)*2) -> 0
B122: 9 | C122: 0 | D122: 0 | E122: 0 | F122: 0 | G122: 0 | H122: 0 | I122: 0 | M122: 0 | Q122: 0 | R122: =0.00000110231131*(F122*VLOOKUP(H122,EmAuto20,3)-G122*VLOOKUP(I122,EmAuto20,3)+PctLotUser1*PctECarpool1*(BikePedB-BikePedNB)*VLOOKUP(0,EmAuto20,3)*2) -> 0 | S122: 0 | T122: 0 | U122: 0 | V122: 0 | W122: 0 | AE122: 9 | AF122: 0 | AG122: 0 | AH122: 0 | AI122: 0 | AJ122: 0 | AK122: 0 | AL122: 0 | AP122: 0 | AT122: 0 | AU122: 0 | AV122: 0 | AW122: 0 | AX122: 0 | AY122: 0 | AZ122: 0 | BH122: 9 | BI122: 0 | BJ122: 0 | BK122: 0 | BL122: 0 | BM122: 0 | BN122: 0 | BO122: 0 | BS122: 0 | BW122: 0 | BX122: 0 | BY122: 0 | BZ122: 0 | CA122: 0 | CB122: 0 | CC122: 0
B123: 10 | C123: 0 | D123: 0 | E123: 0 | F123: 0 | G123: 0 | H123: 0 | I123: 0 | M123: 0 | Q123: 0 | R123: 0 | S123: 0 | T123: 0 | U123: 0 | V123: 0 | W123: 0 | AE123: 10 | AF123: 0 | AG123: 0 | AH123: 0 | AI123: 0 | AJ123: 0 | AK123: 0 | AL123: 0 | AP123: 0 | AT123: 0 | AU123: 0 | AV123: 0 | AW123: 0 | AX123: 0 | AY123: 0 | AZ123: 0 | BH123: 10 | BI123: 0 | BJ123: 0 | BK123: 0 | BL123: 0 | BM123: 0 | BN123: 0 | BO123: 0 | BS123: 0 | BW123: 0 | BX123: 0 | BY123: 0 | BZ123: 0 | CA123: 0 | CB123: 0 | CC123: 0
B124: 11 | C124: 0 | D124: 0 | E124: 0 | F124: 0 | G124: 0 | H124: 0 | I124: 0 | M124: 0 | Q124: 0 | R124: 0 | S124: 0 | T124: 0 | U124: 0 | V124: 0 | W124: 0 | AE124: 11 | AF124: 0 | AG124: 0 | AH124: 0 | AI124: 0 | AJ124: 0 | AK124: 0 | AL124: 0 | AP124: 0 | AT124: 0 | AU124: 0 | AV124: 0 | AW124: 0 | AX124: 0 | AY124: 0 | AZ124: 0 | BH124: 11 | BI124: 0 | BJ124: 0 | BK124: 0 | BL124: 0 | BM124: 0 | BN124: 0 | BO124: 0 | BS124: 0 | BW124: 0 | BX124: 0 | BY124: 0 | BZ124: 0 | CA124: 0 | CB124: 0 | CC124: 0
B125: 12 | C125: 0 | D125: 0 | E125: 0 | F125: 0 | G125: 0 | H125: 0 | I125: 0 | M125: 0 | Q125: 0 | R125: 0 | S125: 0 | T125: 0 | U125: 0 | V125: 0 | W125: 0 | AE125: 12 | AF125: 0 | AG125: 0 | AH125: 0 | AI125: 0 | AJ125: 0 | AK125: 0 | AL125: 0 | AP125: 0 | AT125: 0 | AU125: 0 | AV125: 0 | AW125: 0 | AX125: 0 | AY125: 0 | AZ125: 0 | BH125: 12 | BI125: 0 | BJ125: 0 | BK125: 0 | BL125: 0 | BM125: 0 | BN125: 0 | BO125: 0 | BS125: 0 | BW125: 0 | BX125: 0 | BY125: 0 | BZ125: 0 | CA125: 0 | CB125: 0 | CC125: 0
B126: 13 | C126: 0 | D126: 0 | E126: 0 | F126: 0 | G126: 0 | H126: 0 | I126: 0 | M126: 0 | Q126: 0 | R126: 0 | S126: 0 | T126: 0 | U126: 0 | V126: 0 | W126: 0 | AE126: 13 | AF126: 0 | AG126: 0 | AH126: 0 | AI126: 0 | AJ126: 0 | AK126: 0 | AL126: 0 | AP126: 0 | AT126: 0 | AU126: 0 | AV126: 0 | AW126: 0 | AX126: 0 | AY126: 0 | AZ126: 0 | BH126: 13 | BI126: 0 | BJ126: 0 | BK126: 0 | BL126: 0 | BM126: 0 | BN126: 0 | BO126: 0 | BS126: 0 | BW126: 0 | BX126: 0 | BY126: 0 | BZ126: 0 | CA126: 0 | CB126: 0 | CC126: 0
B127: 14 | C127: 0 | D127: 0 | E127: 0 | F127: 0 | G127: 0 | H127: 0 | I127: 0 | M127: 0 | Q127: 0 | R127: 0 | S127: 0 | T127: 0 | U127: 0 | V127: 0 | W127: 0 | AE127: 14 | AF127: 0 | AG127: 0 | AH127: 0 | AI127: 0 | AJ127: 0 | AK127: 0 | AL127: 0 | AP127: 0 | AT127: 0 | AU127: 0 | AV127: 0 | AW127: 0 | AX127: 0 | AY127: 0 | AZ127: 0 | BH127: 14 | BI127: 0 | BJ127: 0 | BK127: 0 | BL127: 0 | BM127: 0 | BN127: 0 | BO127: 0 | BS127: 0 | BW127: 0 | BX127: 0 | BY127: 0 | BZ127: 0 | CA127: 0 | CB127: 0 | CC127: 0
B128: 15 | C128: 0 | D128: 0 | E128: 0 | F128: 0 | G128: 0 | H128: 0 | I128: 0 | M128: 0 | Q128: 0 | R128: 0 | S128: 0 | T128: 0 | U128: 0 | V128: 0 | W128: 0 | AE128: 15 | AF128: 0 | AG128: 0 | AH128: 0 | AI128: 0 | AJ128: 0 | AK128: 0 | AL128: 0 | AP128: 0 | AT128: 0 | AU128: 0 | AV128: 0 | AW128: 0 | AX128: 0 | AY128: 0 | AZ128: 0 | BH128: 15 | BI128: 0 | BJ128: 0 | BK128: 0 | BL128: 0 | BM128: 0 | BN128: 0 | BO128: 0 | BS128: 0 | BW128: 0 | BX128: 0 | BY128: 0 | BZ128: 0 | CA128: 0 | CB128: 0 | CC128: 0
B129: 16 | C129: 0 | D129: 0 | E129: 0 | F129: 0 | G129: 0 | H129: 0 | I129: 0 | M129: 0 | Q129: 0 | R129: 0 | S129: 0 | T129: 0 | U129: 0 | V129: 0 | W129: 0 | AE129: 16 | AF129: 0 | AG129: 0 | AH129: 0 | AI129: 0 | AJ129: 0 | AK129: 0 | AL129: 0 | AP129: 0 | AT129: 0 | AU129: 0 | AV129: 0 | AW129: 0 | AX129: 0 | AY129: 0 | AZ129: 0 | BH129: 16 | BI129: 0 | BJ129: 0 | BK129: 0 | BL129: 0 | BM129: 0 | BN129: 0 | BO129: 0 | BS129: 0 | BW129: 0 | BX129: 0 | BY129: 0 | BZ129: 0 | CA129: 0 | CB129: 0 | CC129: 0
B130: 17 | C130: 0 | D130: 0 | E130: 0 | F130: 0 | G130: 0 | H130: 0 | I130: 0 | M130: 0 | Q130: 0 | R130: 0 | S130: 0 | T130: 0 | U130: 0 | V130: 0 | W130: 0 | AE130: 17 | AF130: 0 | AG130: 0 | AH130: 0 | AI130: 0 | AJ130: 0 | AK130: 0 | AL130: 0 | AP130: 0 | AT130: 0 | AU130: 0 | AV130: 0 | AW130: 0 | AX130: 0 | AY130: 0 | AZ130: 0 | BH130: 17 | BI130: 0 | BJ130: 0 | BK130: 0 | BL130: 0 | BM130: 0 | BN130: 0 | BO130: 0 | BS130: 0 | BW130: 0 | BX130: 0 | BY130: 0 | BZ130: 0 | CA130: 0 | CB130: 0 | CC130: 0
B131: 18 | C131: 0 | D131: 0 | E131: 0 | F131: 0 | G131: 0 | H131: 0 | I131: 0 | M131: 0 | Q131: 0 | R131: 0 | S131: 0 | T131: 0 | U131: 0 | V131: 0 | W131: 0 | AE131: 18 | AF131: 0 | AG131: 0 | AH131: 0 | AI131: 0 | AJ131: 0 | AK131: 0 | AL131: 0 | AP131: 0 | AT131: 0 | AU131: 0 | AV131: 0 | AW131: 0 | AX131: 0 | AY131: 0 | AZ131: 0 | BH131: 18 | BI131: 0 | BJ131: 0 | BK131: 0 | BL131: 0 | BM131: 0 | BN131: 0 | BO131: 0 | BS131: 0 | BW131: 0 | BX131: 0 | BY131: 0 | BZ131: 0 | CA131: 0 | CB131: 0 | CC131: 0
B132: 19 | C132: 0 | D132: 0 | E132: 0 | F132: 0 | G132: 0 | H132: 0 | I132: 0 | M132: 0 | Q132: 0 | R132: 0 | S132: 0 | T132: 0 | U132: 0 | V132: 0 | W132: 0 | AE132: 19 | AF132: 0 | AG132: 0 | AH132: 0 | AI132: 0 | AJ132: 0 | AK132: 0 | AL132: 0 | AP132: 0 | AT132: 0 | AU132: 0 | AV132: 0 | AW132: 0 | AX132: 0 | AY132: 0 | AZ132: 0 | BH132: 19 | BI132: 0 | BJ132: 0 | BK132: 0 | BL132: 0 | BM132: 0 | BN132: 0 | BO132: 0 | BS132: 0 | BW132: 0 | BX132: 0 | BY132: 0 | BZ132: 0 | CA132: 0 | CB132: 0 | CC132: 0
B133: 20 | C133: 0 | D133: 0 | E133: 0 | F133: 0 | G133: 0 | H133: 0 | I133: 0 | M133: 0 | Q133: 0 | R133: 0 | S133: 0 | T133: 0 | U133: 0 | V133: 0 | W133: 0 | AE133: 20 | AF133: 0 | AG133: 0 | AH133: 0 | AI133: 0 | AJ133: 0 | AK133: 0 | AL133: 0 | AP133: 0 | AT133: 0 | AU133: 0 | AV133: 0 | AW133: 0 | AX133: 0 | AY133: 0 | AZ133: 0 | BH133: 20 | BI133: 0 | BJ133: 0 | BK133: 0 | BL133: 0 | BM133: 0 | BN133: 0 | BO133: 0 | BS133: 0 | BW133: 0 | BX133: 0 | BY133: 0 | BZ133: 0 | CA133: 0 | CB133: 0 | CC133: 0
B135: Total | O135: =SUM(O114:O133) ->  | Q135: =SUM(Q114:Q133) -> 0 | R135: =SUM(R114:R133) -> 0 | S135: =SUM(S114:S133) -> 0 | T135: 0 | U135: 0 | V135: 0 | W135: 0 | X135: =SUM(X114:X133) ->  | Y135: =SUM(Y114:Y133) ->  | Z135: =SUM(Z114:Z133) ->  | AC135: =SUM(AC114:AC133) ->  | AE135: Total | AR135: =SUM(AR114:AR133) ->  | AT135: =SUM(AT114:AT133) -> 0 | AU135: =SUM(AU114:AU133) -> 0 | AV135: =SUM(AV114:AV133) -> 0 | AW135: 0 | AX135: 0 | AY135: 0 | AZ135: 0 | BA135: =SUM(BA114:BA133) ->  | BB135: =SUM(BB114:BB133) ->  | BC135: =SUM(BC114:BC133) ->  | BF135: =SUM(BF114:BF133) ->  | BH135: Total | BU135: =SUM(BU114:BU133) ->  | BW135: =SUM(BW114:BW133) -> 0 | BX135: =SUM(BX114:BX133) -> 0 | BY135: =SUM(BY114:BY133) -> 0 | BZ135: 0 | CA135: 0 | CB135: 0 | CC135: 0 | CD135: =SUM(CD114:CD133) ->  | CE135: =SUM(CE114:CE133) ->  | CF135: =SUM(CF114:CF133) ->  | CI135: =SUM(CI114:CI133) -> 
L139: Present Value = Future Value (in Constant Dollars)
M140: ( 1 + Real Discount Rate) ^ Year

Sheet Final Calculations
B1: Final Calculations
B3: This sheet performs the final calculations before presenting the summary results.
B4: Both net present value and internal rate of return on investment are calculated.
B14: A | C14: NET PRESENT VALUE CALCULATION | T14: B | U14: INTERNAL RATE OF RETURN ON INVESTMENT AND PAYBACK PERIOD
C19: PRESENT VALUE OF USER BENEFITS | G19: PRESENT VALUE OF USER BENEFITS | K19: PRESENT VALUE OF USER BENEFITS | O19: Present | P19: Present | U19: USER BENEFITS IN CONSTANT DOLLARS | Y19: USER BENEFITS IN CONSTANT DOLLARS | AC19: USER BENEFITS IN CONSTANT DOLLARS | AH19: Total
G20: (more destinations 2) | K20: (more destinations 3) | O20: Value | P20: Value | Y20: (more destinations 2) | AC20: (more destinations 3) | AG20: Total User | AH20: Project | AI20: ANNUAL | AJ20: CUMULATIVE | AL20: Years | AM20: ANNUAL
C21: Travel | D21: Vehicle | F21: Vehicle | G21: Travel | H21: Vehicle | J21: Vehicle | K21: Travel | L21: Vehicle | N21: Vehicle | O21: of Total | P21: of Total | Q21: NET | U21: Travel | V21: Vehicle | X21: Vehicle | Y21: Travel | Z21: Vehicle | AB21: Vehicle | AC21: Travel | AD21: Vehicle | AF21: Vehicle | AG21: Benefits in | AH21: Costs in | AI21: RETURNS | AJ21: RETURNS | AL21: After | AM21: RETURNS
B22: Year | C22: Time | D22: Op. Cost | E22: Accident | F22: Emission | G22: Time | H22: Op. Cost | I22: Accident | J22: Emission | K22: Time | L22: Op. Cost | M22: Accident | N22: Emission | O22: User | P22: Project | Q22: PRESENT | T22: Year | U22: Time | V22: Op. Cost | W22: Accident | X22: Emission | Y22: Time | Z22: Op. Cost | AA22: Accident | AB22: Emission | AC22: Time | AD22: Op. Cost | AE22: Accident | AF22: Emission | AG22: Constant | AH22: Constant | AI22: ON | AJ22: AFTER | AL22: Construction | AM22: ON
C23: Savings | D23: Savings | E23: Reductions | F23: Reductions | G23: Savings | H23: Savings | I23: Reductions | J23: Reductions | K23: Savings | L23: Savings | M23: Reductions | N23: Reductions | O23: Benefits | P23: Costs | Q23: VALUE | U23: Savings | V23: Savings | W23: Reductions | X23: Reductions | Y23: Savings | Z23: Savings | AA23: Reductions | AB23: Reductions | AC23: Savings | AD23: Savings | AE23: Reductions | AF23: Reductions | AG23: Dollars | AH23: Dollars | AI23: INVESTMENT | AJ23: PROJ OPENS | AL23: Begins | AM23: INVESTMENT
B24: Construction Period | T24: Construction Period | AL24: 1 | AM24: =IF(ISNA(IF(AL24<=Construct,AI25,VLOOKUP(AL24-Construct,$T$34:$AI$53,16,FALSE))),0,IF(AL24<=Construct,AI25,VLOOKUP(AL24-Construct,$T$34:$AI$53,16,FALSE))) -> 0
B25: 1 | O25: =SUM(C25:N25) -> 0 | P25: ='1) Project Information'!AE16 -> 0 | Q25: =O25-P25 -> 0 | T25: 1 | AG25: =SUM(U25:AF25) -> 0 | AH25: ='1) Project Information'!AD16 -> 0 | AI25: =AG25-AH25 -> 0 | AL25: 2 | AM25: 0
B26: 2 | O26: =SUM(C26:N26) -> 0 | P26: ='1) Project Information'!AE17 -> 0 | Q26: =O26-P26 -> 0 | T26: 2 | AG26: =SUM(U26:AF26) -> 0 | AH26: ='1) Project Information'!AD17 -> 0 | AI26: =AG26-AH26 -> 0 | AL26: 3 | AM26: 0
B27: 3 | O27: 0 | P27: ='1) Project Information'!AE18 -> 0 | Q27: 0 | T27: 3 | AG27: 0 | AH27: ='1) Project Information'!AD18 -> 0 | AI27: 0 | AL27: 4 | AM27: 0
B28: 4 | O28: 0 | P28: ='1) Project Information'!AE19 -> 0 | Q28: 0 | T28: 4 | AG28: 0 | AH28: ='1) Project Information'!AD19 -> 0 | AI28: 0 | AL28: 5 | AM28: 0
B29: 5 | O29: 0 | P29: ='1) Project Information'!AE20 -> 0 | Q29: 0 | T29: 5 | AG29: 0 | AH29: ='1) Project Information'!AD20 -> 0 | AI29: 0 | AL29: 6 | AM29: 0
B30: 6 | O30: 0 | P30: ='1) Project Information'!AE21 -> 0 | Q30: 0 | T30: 6 | AG30: 0 | AH30: ='1) Project Information'!AD21 -> 0 | AI30: 0 | AL30: 7 | AM30: 0
B31: 7 | O31: 0 | P31: ='1) Project Information'!AE22 -> 0 | Q31: 0 | T31: 7 | AG31: 0 | AH31: ='1) Project Information'!AD22 -> 0 | AI31: 0 | AL31: 8 | AM31: 0
B32: 8 | O32: 0 | P32: ='1) Project Information'!AE23 -> 0 | Q32: 0 | T32: 8 | AG32: 0 | AH32: ='1) Project Information'!AD23 -> 0 | AI32: 0 | AL32: 9 | AM32: 0
B33: Project Open | T33: Project Open | AL33: 10 | AM33: 0
B34: 1 | C34: ='Travel Time'!BB24 -> 0 | D34: ='Vehicle Operating Costs'!BH24 -> 0 | E34: ='Accident Costs'!AV24 -> 0 | F34: =Emissions!CX24 ->  | O34: =SUM(C34:N34) ->  | P34: ='1) Project Information'!AE25 -> 0 | Q34: =O34-P34 ->  | T34: 1 | U34: ='Travel Time'!BD24 -> 0 | V34: ='Vehicle Operating Costs'!BJ24 -> 0 | W34: ='Accident Costs'!AX24 -> 0 | X34: =Emissions!CZ24 ->  | AG34: =SUM(U34:AF34) ->  | AH34: ='1) Project Information'!AD25 -> 0 | AI34: =AG34-AH34 ->  | AJ34: =AI34 ->  | AL34: 11 | AM34: 0
B35: 2 | C35: ='Travel Time'!BB25 -> 0 | D35: ='Vehicle Operating Costs'!BH25 -> 0 | E35: ='Accident Costs'!AV25 -> 0 | F35: =Emissions!CX25 ->  | O35: =SUM(C35:N35) ->  | P35: ='1) Project Information'!AE26 -> 0 | Q35: =O35-P35 ->  | T35: 2 | U35: ='Travel Time'!BD25 -> 0 | V35: ='Vehicle Operating Costs'!BJ25 -> 0 | W35: ='Accident Costs'!AX25 -> 0 | X35: =Emissions!CZ25 ->  | AH35: ='1) Project Information'!AD26 -> 0 | AI35: =AG35-AH35 ->  | AJ35: =AJ34+AI35 ->  | AL35: 12 | AM35: 0
B36: 3 | C36: ='Travel Time'!BB26 -> 0 | D36: ='Vehicle Operating Costs'!BH26 -> 0 | E36: ='Accident Costs'!AV26 -> 0 | F36: =Emissions!CX26 ->  | P36: ='1) Project Information'!AE27 -> 0 | T36: 3 | U36: ='Travel Time'!BD26 -> 0 | V36: ='Vehicle Operating Costs'!BJ26 -> 0 | W36: ='Accident Costs'!AX26 -> 0 | X36: =Emissions!CZ26 ->  | AH36: ='1) Project Information'!AD27 -> 0 | AJ36: =AJ35+AI36 ->  | AL36: 13 | AM36: 0
B37: 4 | C37: ='Travel Time'!BB27 -> 0 | D37: ='Vehicle Operating Costs'!BH27 -> 0 | E37: ='Accident Costs'!AV27 -> 0 | F37: =Emissions!CX27 ->  | P37: ='1) Project Information'!AE28 -> 0 | T37: 4 | U37: ='Travel Time'!BD27 -> 0 | V37: ='Vehicle Operating Costs'!BJ27 -> 0 | W37: ='Accident Costs'!AX27 -> 0 | X37: =Emissions!CZ27 ->  | AH37: ='1) Project Information'!AD28 -> 0 | AL37: 14 | AM37: 0
B38: 5 | C38: ='Travel Time'!BB28 -> 0 | D38: ='Vehicle Operating Costs'!BH28 -> 0 | E38: ='Accident Costs'!AV28 -> 0 | F38: =Emissions!CX28 ->  | P38: ='1) Project Information'!AE29 -> 0 | T38: 5 | U38: ='Travel Time'!BD28 -> 0 | V38: ='Vehicle Operating Costs'!BJ28 -> 0 | W38: ='Accident Costs'!AX28 -> 0 | X38: =Emissions!CZ28 ->  | AH38: ='1) Project Information'!AD29 -> 0 | AL38: 15 | AM38: 0
B39: 6 | C39: ='Travel Time'!BB29 -> 0 | D39: ='Vehicle Operating Costs'!BH29 -> 0 | E39: ='Accident Costs'!AV29 -> 0 | F39: =Emissions!CX29 ->  | P39: ='1) Project Information'!AE30 -> 0 | T39: 6 | U39: ='Travel Time'!BD29 -> 0 | V39: ='Vehicle Operating Costs'!BJ29 -> 0 | W39: ='Accident Costs'!AX29 -> 0 | X39: =Emissions!CZ29 ->  | AH39: ='1) Project Information'!AD30 -> 0 | AL39: 16 | AM39: 0
B40: 7 | C40: ='Travel Time'!BB30 -> 0 | D40: ='Vehicle Operating Costs'!BH30 -> 0 | E40: ='Accident Costs'!AV30 -> 0 | F40: =Emissions!CX30 ->  | P40: ='1) Project Information'!AE31 -> 0 | T40: 7 | U40: ='Travel Time'!BD30 -> 0 | V40: ='Vehicle Operating Costs'!BJ30 -> 0 | W40: ='Accident Costs'!AX30 -> 0 | X40: =Emissions!CZ30 ->  | AH40: ='1) Project Information'!AD31 -> 0 | AL40: 17 | AM40: 0
B41: 8 | C41: ='Travel Time'!BB31 -> 0 | D41: ='Vehicle Operating Costs'!BH31 -> 0 | E41: ='Accident Costs'!AV31 -> 0 | F41: =Emissions!CX31 ->  | P41: ='1) Project Information'!AE32 -> 0 | T41: 8 | U41: ='Travel Time'!BD31 -> 0 | V41: ='Vehicle Operating Costs'!BJ31 -> 0 | W41: ='Accident Costs'!AX31 -> 0 | X41: =Emissions!CZ31 ->  | AH41: ='1) Project Information'!AD32 -> 0 | AL41: 18 | AM41: 0
B42: 9 | C42: ='Travel Time'!BB32 -> 0 | D42: ='Vehicle Operating Costs'!BH32 -> 0 | E42: ='Accident Costs'!AV32 -> 0 | F42: =Emissions!CX32 ->  | P42: ='1) Project Information'!AE33 -> 0 | T42: 9 | U42: ='Travel Time'!BD32 -> 0 | V42: ='Vehicle Operating Costs'!BJ32 -> 0 | W42: ='Accident Costs'!AX32 -> 0 | X42: =Emissions!CZ32 ->  | AH42: ='1) Project Information'!AD33 -> 0 | AL42: 19 | AM42: 0
B43: 10 | C43: ='Travel Time'!BB33 -> 0 | D43: ='Vehicle Operating Costs'!BH33 -> 0 | E43: ='Accident Costs'!AV33 -> 0 | F43: =Emissions!CX33 ->  | P43: ='1) Project Information'!AE34 -> 0 | T43: 10 | U43: ='Travel Time'!BD33 -> 0 | V43: ='Vehicle Operating Costs'!BJ33 -> 0 | W43: ='Accident Costs'!AX33 -> 0 | X43: =Emissions!CZ33 ->  | AH43: ='1) Project Information'!AD34 -> 0 | AL43: 20 | AM43: 0
B44: 11 | C44: ='Travel Time'!BB34 -> 0 | D44: ='Vehicle Operating Costs'!BH34 -> 0 | E44: ='Accident Costs'!AV34 -> 0 | F44: =Emissions!CX34 ->  | P44: ='1) Project Information'!AE35 -> 0 | T44: 11 | U44: ='Travel Time'!BD34 -> 0 | V44: ='Vehicle Operating Costs'!BJ34 -> 0 | W44: ='Accident Costs'!AX34 -> 0 | X44: =Emissions!CZ34 ->  | AH44: ='1) Project Information'!AD35 -> 0 | AL44: 21 | AM44: 0
B45: 12 | C45: ='Travel Time'!BB35 -> 0 | D45: ='Vehicle Operating Costs'!BH35 -> 0 | E45: ='Accident Costs'!AV35 -> 0 | F45: =Emissions!CX35 ->  | P45: ='1) Project Information'!AE36 -> 0 | T45: 12 | U45: ='Travel Time'!BD35 -> 0 | V45: ='Vehicle Operating Costs'!BJ35 -> 0 | W45: ='Accident Costs'!AX35 -> 0 | X45: =Emissions!CZ35 ->  | AH45: ='1) Project Information'!AD36 -> 0 | AL45: 22 | AM45: 0
B46: 13 | C46: ='Travel Time'!BB36 -> 0 | D46: ='Vehicle Operating Costs'!BH36 -> 0 | E46: ='Accident Costs'!AV36 -> 0 | F46: =Emissions!CX36 ->  | P46: ='1) Project Information'!AE37 -> 0 | T46: 13 | U46: ='Travel Time'!BD36 -> 0 | V46: ='Vehicle Operating Costs'!BJ36 -> 0 | W46: ='Accident Costs'!AX36 -> 0 | X46: =Emissions!CZ36 ->  | AH46: ='1) Project Information'!AD37 -> 0 | AL46: 23 | AM46: 0
B47: 14 | C47: ='Travel Time'!BB37 -> 0 | D47: ='Vehicle Operating Costs'!BH37 -> 0 | E47: ='Accident Costs'!AV37 -> 0 | F47: =Emissions!CX37 ->  | P47: ='1) Project Information'!AE38 -> 0 | T47: 14 | U47: ='Travel Time'!BD37 -> 0 | V47: ='Vehicle Operating Costs'!BJ37 -> 0 | W47: ='Accident Costs'!AX37 -> 0 | X47: =Emissions!CZ37 ->  | AH47: ='1) Project Information'!AD38 -> 0 | AL47: 24 | AM47: 0
B48: 15 | C48: ='Travel Time'!BB38 -> 0 | D48: ='Vehicle Operating Costs'!BH38 -> 0 | E48: ='Accident Costs'!AV38 -> 0 | F48: =Emissions!CX38 ->  | P48: ='1) Project Information'!AE39 -> 0 | T48: 15 | U48: ='Travel Time'!BD38 -> 0 | V48: ='Vehicle Operating Costs'!BJ38 -> 0 | W48: ='Accident Costs'!AX38 -> 0 | X48: =Emissions!CZ38 ->  | AH48: ='1) Project Information'!AD39 -> 0 | AL48: 25 | AM48: 0
B49: 16 | C49: ='Travel Time'!BB39 -> 0 | D49: ='Vehicle Operating Costs'!BH39 -> 0 | E49: ='Accident Costs'!AV39 -> 0 | F49: =Emissions!CX39 ->  | P49: ='1) Project Information'!AE40 -> 0 | T49: 16 | U49: ='Travel Time'!BD39 -> 0 | V49: ='Vehicle Operating Costs'!BJ39 -> 0 | W49: ='Accident Costs'!AX39 -> 0 | X49: =Emissions!CZ39 ->  | AH49: ='1) Project Information'!AD40 -> 0 | AL49: 26 | AM49: 0
B50: 17 | C50: ='Travel Time'!BB40 -> 0 | D50: ='Vehicle Operating Costs'!BH40 -> 0 | E50: ='Accident Costs'!AV40 -> 0 | F50: =Emissions!CX40 ->  | P50: ='1) Project Information'!AE41 -> 0 | T50: 17 | U50: ='Travel Time'!BD40 -> 0 | V50: ='Vehicle Operating Costs'!BJ40 -> 0 | W50: ='Accident Costs'!AX40 -> 0 | X50: =Emissions!CZ40 ->  | AH50: ='1) Project Information'!AD41 -> 0 | AL50: 27 | AM50: 0
B51: 18 | C51: ='Travel Time'!BB41 -> 0 | D51: ='Vehicle Operating Costs'!BH41 -> 0 | E51: ='Accident Costs'!AV41 -> 0 | F51: =Emissions!CX41 ->  | P51: ='1) Project Information'!AE42 -> 0 | T51: 18 | U51: ='Travel Time'!BD41 -> 0 | V51: ='Vehicle Operating Costs'!BJ41 -> 0 | W51: ='Accident Costs'!AX41 -> 0 | X51: =Emissions!CZ41 ->  | AH51: ='1) Project Information'!AD42 -> 0 | AL51: 28 | AM51: 0
B52: 19 | C52: ='Travel Time'!BB42 -> 0 | D52: ='Vehicle Operating Costs'!BH42 -> 0 | E52: ='Accident Costs'!AV42 -> 0 | F52: =Emissions!CX42 ->  | P52: ='1) Project Information'!AE43 -> 0 | T52: 19 | U52: ='Travel Time'!BD42 -> 0 | V52: ='Vehicle Operating Costs'!BJ42 -> 0 | W52: ='Accident Costs'!AX42 -> 0 | X52: =Emissions!CZ42 ->  | AH52: ='1) Project Information'!AD43 -> 0
B53: 20 | C53: ='Travel Time'!BB43 -> 0 | D53: ='Vehicle Operating Costs'!BH43 -> 0 | E53: ='Accident Costs'!AV43 -> 0 | F53: =Emissions!CX43 ->  | P53: ='1) Project Information'!AE44 -> 0 | T53: 20 | U53: ='Travel Time'!BD43 -> 0 | V53: ='Vehicle Operating Costs'!BJ43 -> 0 | W53: ='Accident Costs'!AX43 -> 0 | X53: =Emissions!CZ43 ->  | AH53: ='1) Project Information'!AD44 -> 0 | AL53: Internal Rate | AO53: The INTERNAL RATE OF RETURN (IRR) is the discount rate at which benefits and costs break even (are equal). For a project
AL54: of Return | AM54: =IF(SUM(AM24:AM51)=0,"N/A",IRR(AM24:AM51)) -> N/A | AO54: with an IRR greater than the Discount Rate, benefits are greater than costs, and the project has a positive economic value. The
B55: Total | C55: =SUM(C34:C53) -> 0 | D55: 0 | E55: 0 | G55: =SUM(G34:G53) -> 0 | H55: =SUM(H34:H53) -> 0 | I55: =SUM(I34:I53) -> 0 | J55: =SUM(J34:J53) -> 0 | K55: 0 | L55: 0 | M55: 0 | N55: 0 | O55: =SUM(O25:O53)+ResidualValue*1000/(1+DiscRate)^(20+Construct) ->  | P55: =SUM(P25:P53) -> 0 | Q55: =SUM(Q25:Q53)+ResidualValue*1000/(1+DiscRate)^(20+Construct) ->  | T55: Total | U55: =SUM(U34:U53) -> 0 | V55: 0 | W55: 0 | Y55: =SUM(Y34:Y53) -> 0 | Z55: =SUM(Z34:Z53) -> 0 | AA55: =SUM(AA34:AA53) -> 0 | AB55: =SUM(AB34:AB53) -> 0 | AC55: 0 | AD55: 0 | AE55: 0 | AF55: 0 | AG55: =SUM(AG25:AG53) ->  | AH55: =SUM(AH25:AH53) -> 0 | AI55: =SUM(AI25:AI53) ->  | AO55: IRR allows projects with different costs, different benefit flows, and different time periods to be compared.
O56: Includes | Q56: Includes
C57: ='Travel Time'!BF45 -> 0 | D57: Person-Hours of Time Saved | H57: Person-Hours of Time Saved | L57: Person-Hours of Time Saved | O57: Residual Value | Q57: Residual Value | AL57: Payback | AO57: The PAYBACK PERIOD is the number of years it takes for the net benefits (benefits minus costs) to equal, or payback, the initial
C58: ='Vehicle Operating Costs'!BL45 -> 0 | D58: VMT Reduction | H58: VMT Reduction | L58: VMT Reduction | AH58: Total Construction Costs | AJ58: =ABS(SUM(AI25:AI32)) -> 0 | AL58: Period | AM58: =IF(AJ58=0,"N/A",IF(AJ58<AJ34,"1 year",IF(AJ58>AJ53,"20+",(LOOKUP(AJ58,AJ34:AJ53,T34:T53)+1))&" years")) -> N/A | AO58: construction costs. For a project with a Payback Period longer than the life-cycle of the project, initial construction costs are not
C60: tons | D60: $ PV | G60: tons | H60: $ PV | K60: tons | L60: $ PV
C61: =Emissions!DB45 -> 0 | D61: =Emissions!DI45 ->  | E61: CO Saved | I61: CO Saved | M61: CO Saved
C62: =Emissions!DC45 -> 0 | D62: =Emissions!DJ45 ->  | E62: CO2 Saved | I62: CO2 Saved | M62: CO2 Saved | AO62: recovered. The Payback Period varies inversely with the Benefit-Cost Ratio: shorter Payback Period yields higher Benefit-Cost.
C63: =Emissions!DD45 -> 0 | D63: =Emissions!DK45 ->  | E63: NOX Saved | I63: NOX Saved | M63: NOX Saved
C64: =Emissions!DE45 -> 0 | D64: =Emissions!DL45 ->  | E64: PM10 Saved | I64: PM10 Saved | M64: PM10 Saved
C65: =Emissions!DH45 -> 0 | E65: PM2.5 Saved | I65: PM2.5 Saved | M65: PM2.5 Saved
C66: =Emissions!DF45 -> 0 | D66: =Emissions!DM45 ->  | E66: SOX Saved | I66: SOX Saved | M66: SOX Saved
C67: =Emissions!DG45 -> 0 | D67: =Emissions!DN45 ->  | E67: VOC Saved | I67: VOC Saved | M67: VOC Saved

Sheet PARAMETERS
B1: Parameters
B3: This page contains all economic values and rate tables.
B4: To update economic values automatically, change "Economic Update Factor." | AF4: Travel Demand Tables | AQ4: Operating Cost Tables | AX4: Accident Tables | BO4: Emissions Tables | DA4: Pavement Adjustments (used only for pavement projects) | DO4: Weaving Adjustments (used only for freeway | DV4: TMS Adjustments (used only for ramp metering, ramp metering signal coordination, incident | EI4: Reliability Tables (used for calculating travel time reliability
DO5: connector, HOV connector, and HOV drop ramp projects) | DV5: management, traveler information projects, AVL, transit priority, and BRT projects) | EI5: impacts if included)
B7: General Economic Parameters | I7: Mode Types | Y7: Project Types
AG8: DEMAND FOR TRAVEL IN PEAK PERIOD | AR8: FUEL CONSUMPTION RATES | AY8: HIGHWAY INJURY SEVERITY FREQUENCY | BG8: RATES FOR NON-HIGHWAY ACCIDENT EVENTS | BP8: HIGHWAY EMISSIONS FACTORS (g/mi) | CB8: HIGHWAY EMISSIONS FACTORS (g/mi) | CO8: HEALTH COST OF TRANSPORTATION EMISSIONS | DB8: PAVEMENT DETERIORATION | DI8: VEHICLE OPERATING SPEED | DP8: VEHICLE OPERATING SPEED | DW8: PEAK PERIOD SPEED, VOLUME, AND NON-HIGHWAY BENEFITS | EJ8: C11 RELIABILITY PARAMETERS
C9: Year of Current Dollars for Model | F9: 2021 | J9: Bus | Z9: Highway Capacity Expansion | AC9: Please select a type of highway project | AG9: (percent of total daily travel) | AR9: (gal/veh-mi) | AY9: (percent of injuries) | BG9: (events/million veh-mi) | BP9: Model Year 2024 | CB9: Model Year 2044 | CO9: ($/ton) | DB9: (IRI in inches/mile) | DI9: (percent adjustment) | DP9: (percent adjustment) | DW9: (percent adjustment) | EJ9: (coefficients for standard deviation calculations)
C10: Economic Update Factor (Using GDP Deflator) | F10: 1 | H10: 1 | J10: Pass Train | Z10: General Highway | AB10: GenHwy
J11: Light Rail | Z11: HOV Lane Addition | AB11: HOV | AC11: Enter HOV restriction in section 1B | AG11: Number of | AH11: Urban | AR11: Speed | AS11: Auto* | AT11: Truck | AY11: Event | AZ11: Urban | BA11: Suburban | BB11: Rural | BC11: Average | BG11: Event | BH11: Pass Train | BI11: Light Rail | BJ11: Bus | BK11: Freight Rail | BP11: Mode | BQ11: Speed | BR11: CO | BS11: CO2 | BT11: NOX | BU11: PM10 | BV11: SOX | BW11: VOC | BX11: PM2.5 | CB11: Mode | CC11: Speed | CD11: CO | CE11: CO2 | CF11: NOX | CG11: PM10 | CH11: SOX | CI11: VOC | CJ11: PM2.5 | CO11: Area | CP11: Proj Loc | CQ11: CO | CR11: CO2e | CS11: NOX | CT11: PM10 | CU11: SOX | CV11: VOC | DC11: Year 20, By Loading | DP11: Percent | DQ11: Freeway | DR11: HOV | DW11: TMS | DX11: Without | DZ11: With | EB11: Non-Highway Benefits | EE11: Total | EJ11: AlphaTTI | EK11: BetaTTI | EL11: AlphaSTD | EM11: BetaSTD
C12: Real Discount Rate | F12: 0.07 | H12: 2 | J12: Highway | Z12: HOT Lane Addition | AB12: HOT | AC12: Include toll payers as HOVs & check AVOs | AG12: Hours in | AH12: So. California | AJ12: No. California | AL12: Rural | AR12: 5 | AS12: 0.0515 | AT12: 0.14 | AY12: Severe Injury (A) | AZ12: =ROUND((11713+2488)/277160,4) -> 0.0512 | BA12: =ROUND((11713+2488)/277160,4) -> 0.0512 | BB12: =ROUND((11713+2488)/277160,4) -> 0.0512 | BC12: =ROUND((11713+2488)/277160,4) -> 0.0512 | BG12: Fatality | BH12: 0.0804 | BI12: 0.2416 | BJ12: 0.0372 | BK12: 1.0368 | BP12: Auto | BQ12: 0 | BR12: 3.5182 | BS12: 78.9185 | BT12: 0.3056 | BU12: 0.0022 | BV12: 0.0008 | BW12: 0.39 | BX12: 0.002 | CB12: Auto | CC12: 0 | CD12: 1.7535 | CE12: 60.2289 | CF12: 0.1686 | CG12: 0.0008 | CH12: 0.0006 | CI12: 0.1451 | CJ12: 0.0008 | CO12: LA/South Coast | CP12: 1 | CQ12: =ROUND(115*(1.1578/0.78)*ValueUpdate/5,0)*5 -> 170 | CR12: 52 | CS12: 15252 | CT12: 735815 | CU12: 40944 | CV12: =ROUND(2898*(1.1578/0.78)*ValueUpdate/5,0)*5 -> 4300 | DB12: Year 0 | DC12: Light | DD12: Medium | DE12: Heavy | DI12: IRI | DJ12: Auto | DK12: Truck | DP12: Weaving | DQ12: Conn | DR12: Project | DW12: Strategy | DX12: Speed | DY12: Volume | DZ12: Speed | EA12: Volume | EB12: TT | EC12: VOC | ED12: Em | EE12: Benefit | EJ12: 1.0274 | EK12: 1.2204 | EL12: 0.71 | EM12: 0.56
Z13: Passing Lane | AB13: Passing | AC13: Enter a truck speed in section 1B | AG13: Peak Period | AH13: Fwy/Exp | AI13: Other | AJ13: Fwy/Exp | AK13: Other | AL13: Fwy/Exp | AM13: Other | AR13: 6 | AS13: 0.0501 | AT13: 0.1377 | AY13: Other Visible Injury (B) | AZ13: =ROUND((60380+9746)/277160,4) -> 0.253 | BA13: =ROUND((60380+9746)/277160,4) -> 0.253 | BB13: =ROUND((60380+9746)/277160,4) -> 0.253 | BC13: =ROUND((60380+9746)/277160,4) -> 0.253 | BG13: Injury | BH13: 0.2855 | BI13: 2.9209 | BJ13: 3.5526 | BK13: 7.3121 | BQ13: 5 | BR13: 1.3616 | BS13: 555.4365 | BT13: 0.0959 | BU13: 0.007 | BV13: 0.0055 | BW13: 0.0868 | BX13: 0.0065 | CC13: 5 | CD13: 0.5559 | CE13: 330.9034 | CF13: 0.0223 | CG13: 0.0019 | CH13: 0.0033 | CI13: 0.0249 | CJ13: 0.0018 | CO13: CA Urban Area | CP13: 2 | CQ13: =ROUND(60*(1.1578/0.78)*ValueUpdate/5,0)*5 -> 90 | CR13: 52 | CS13: 15252 | CT13: 735815 | CU13: 40944 | CV13: =ROUND(954*(1.1578/0.78)*ValueUpdate/5,0)*5 -> 1415 | DB13: 0 | DC13: 125 | DD13: 150 | DE13: 350 | DI13: 0 | DJ13: 1 | DK13: 1.025 | DP13: 0 | DQ13: 1 | DR13: 1 | DW13: AMoth | DX13: 1.024390244 | DY13: 0.9503320629 | DZ13: 1.022648084 | EA13: 0.9502478565 | EB13: -5.048265471 | EC13: 12.81200477 | ED13: 1.368537764 | EE13: 0.736497545
Z14: Intersection | AB14: Intersect | AC14: Remember to run model for both roads | AG14: 1 | AH14: 0.085 | AI14: 0.085 | AJ14: 0.085 | AK14: 0.085 | AL14: 0.085 | AM14: 0.085 | AR14: 7 | AS14: 0.0488 | AT14: 0.1355 | AY14: Complaint of Pain (C) | AZ14: =ROUND((174210+18623)/277160,4) -> 0.6957 | BA14: =ROUND((174210+18623)/277160,4) -> 0.6957 | BB14: =ROUND((174210+18623)/277160,4) -> 0.6957 | BC14: =ROUND((174210+18623)/277160,4) -> 0.6957 | BG14: All Accidents | BH14: 0.3128 | BI14: 4.1374 | BJ14: 2.0523 | BK14: 13.2505 | BQ14: 6 | BR14: 1.3409 | BS14: 538.7039 | BT14: 0.0933 | BU14: 0.0065 | BV14: 0.0053 | BW14: 0.0797 | BX14: 0.006 | CC14: 6 | CD14: 0.5576 | CE14: 324.7042 | CF14: 0.0221 | CG14: 0.0018 | CH14: 0.0032 | CI14: 0.0233 | CJ14: 0.0016 | CO14: CA Rural Area | CP14: 3 | CQ14: =ROUND(54*(1.1578/0.78)*ValueUpdate/5,0)*5 -> 80 | CR14: 52 | CS14: 15252 | CT14: 735815 | CU14: 40944 | CV14: =ROUND(749*(1.1578/0.78)*ValueUpdate/5,0)*5 -> 1110 | DB14: 25 | DC14: 150 | DD14: 200 | DE14: 500 | DI14: 25 | DJ14: 1 | DK14: 1.025 | DP14: 0.002 | DQ14: 0.982 | DR14: 0.988 | DW14: AMsev | DX14: 1.530973451 | DY14: 0.9385815808 | DZ14: 1.533923304 | EA14: 0.9365252325 | EB14: 1.205596712 | EC14: 1.379528678 | ED14: -0.3652658395 | EE14: 1
Z15: Truck Only Lane | AB15: TruckLane | AC15: Remember to run macro for truck lane | AG15: 2 | AH15: 0.168 | AI15: 0.168 | AJ15: 0.168 | AK15: 0.168 | AL15: 0.168 | AM15: 0.168 | AR15: 8 | AS15: 0.0476 | AT15: 0.1333 | BQ15: 7 | BR15: 1.3206 | BS15: 522.4754 | BT15: 0.0907 | BU15: 0.006 | BV15: 0.0052 | BW15: 0.0732 | BX15: 0.0055 | CC15: 7 | CD15: 0.5594 | CE15: 318.621 | CF15: 0.0219 | CG15: 0.0017 | CH15: 0.0031 | CI15: 0.0217 | CJ15: 0.0015 | DB15: 50 | DC15: 175 | DD15: 250 | DE15: 675 | DI15: 50 | DJ15: 1 | DK15: 1.025 | DP15: 0.004 | DQ15: 0.964 | DR15: 0.976 | DW15: IMoth | DX15: 0.8763197587 | DY15: 1.178741497 | DZ15: 0.9793459552 | EA15: 0.9556060017 | EB15: 0.5127996725 | EC15: 0.148212878 | ED15: 0.05879892443 | EE15: 0.736497545 | EI15: Source: Pricing and Travel Time Reliability Enhancements in the
Z16: Bypass | AB16: Bypass | AC16: Remember to run model for both roads | AG16: 3 | AH16: 0.25 | AI16: 0.25 | AJ16: 0.25 | AK16: 0.25 | AL16: 0.25 | AM16: 0.25 | AR16: 9 | AS16: 0.0464 | AT16: 0.1312 | BQ16: 8 | BR16: 1.3005 | BS16: 506.7358 | BT16: 0.0881 | BU16: 0.0055 | BV16: 0.005 | BW16: 0.0672 | BX16: 0.0051 | CC16: 8 | CD16: 0.5612 | CE16: 312.6518 | CF16: 0.0218 | CG16: 0.0016 | CH16: 0.0031 | CI16: 0.0203 | CJ16: 0.0014 | CQ16: CO2e Uprater | CR16: 0.017 | CS16: increase in value per year | DB16: 75 | DC16: 200 | DD16: 300 | DE16: 750 | DI16: 75 | DJ16: 1 | DK16: 1.025 | DP16: 0.006 | DQ16: 0.945 | DR16: 0.964 | DW16: IMsev | DX16: 1.006389776 | DY16: 0.9724862862 | DZ16: 1.009584665 | EA16: 0.9461055622 | EB16: 0.2957044886 | EC16: 0.3126114503 | ED16: 0.3020072069 | EE16: 1 | EJ16: SANDAG Activity-Based Travel Model: Final Report, 2016.
B17: Travel Time Parameters | I17: Highway Operations Parameters | R17: Active Transportation Parameters | Z17: Queuing | AB17: Queuing | AC17: Add arrival rate & check departure rate in 1B | AG17: 4 | AH17: 0.328 | AI17: 0.328 | AJ17: 0.328 | AK17: 0.328 | AL17: 0.328 | AM17: 0.328 | AR17: 10 | AS17: 0.0452 | AT17: 0.1291 | AX17: Source: 2017 SWITRS Annual Report, Table 8C | BF17: Sources: USDOT,Transportation Statistics Annual Report, Table 2-33, 2010 to 2019 average | BQ17: 9 | BR17: 1.2807 | BS17: 491.4703 | BT17: 0.0857 | BU17: 0.0051 | BV17: 0.0049 | BW17: 0.0617 | BX17: 0.0047 | CC17: 9 | CD17: 0.563 | CE17: 306.7945 | CF17: 0.0216 | CG17: 0.0014 | CH17: 0.003 | CI17: 0.0189 | CJ17: 0.0013 | DB17: 100 | DC17: 275 | DD17: 400 | DE17: 750 | DI17: 100 | DJ17: 1 | DK17: 1.025 | DP17: 0.008 | DQ17: 0.927 | DR17: 0.952 | DW17: NoAdj | DX17: 1 | DY17: 1 | DZ17: 1 | EA17: 1 | EB17: 0 | EC17: 0 | ED17: 0 | EE17: 1
E18: Value | F18: Units | M18: Value | N18: Units | Z18: Pavement | AB18: Pavement | AC18: Enter pavement condition in section 1B | AG18: 5 | AH18: 0.403 | AI18: 0.403 | AJ18: 0.403 | AK18: 0.403 | AL18: 0.403 | AM18: 0.403 | AR18: 11 | AS18: 0.0429 | AT18: 0.1238 | BG18: FRA, Office of Safety Analysis, Table 1.13, 2011 to 2020 CY average | BQ18: 10 | BR18: 1.2613 | BS18: 476.6647 | BT18: 0.0833 | BU18: 0.0047 | BV18: 0.0047 | BW18: 0.0567 | BX18: 0.0043 | CC18: 10 | CD18: 0.5647 | CE18: 301.0469 | CF18: 0.0214 | CG18: 0.0014 | CH18: 0.003 | CI18: 0.0177 | CJ18: 0.0012 | DB18: 125 | DC18: 325 | DD18: 475 | DE18: 750 | DI18: 125 | DJ18: 1 | DK18: 1.025 | DP18: 0.01 | DQ18: 0.909 | DR18: 0.939 | DW18: ORoth | DX18: =1/1.025 -> 0.9756097561 | DY18: =1/0.967507287790243 -> 1.033583946 | DZ18: 1 | EA18: 1 | EB18: -0.07356647791 | EC18: -0.03071615219 | ED18: -0.0696029926 | EG18: 27
C19: Statewide Average Hourly Wage | E19: =32.94*ValueUpdate -> 32.94 | F19: $/hr | H19: 3 | J19: Maximum V/C Ratio | M19: 1.56 | N19: - | Q19: 16 | S19: General Travel Activity Characteristics Parameters | U19: Value | V19: Units | AG19: 6 | AH19: 0.474 | AI19: 0.474 | AJ19: 0.474 | AK19: 0.474 | AL19: 0.474 | AM19: 0.474 | AR19: 12 | AS19: 0.0407 | AT19: 0.1186 | BQ19: 11 | BR19: 1.2223 | BS19: 452.58 | BT19: 0.0804 | BU19: 0.0043 | BV19: 0.0045 | BW19: 0.0518 | BX19: 0.0039 | CC19: 11 | CD19: 0.5479 | CE19: 285.9535 | CF19: 0.0206 | CG19: 0.0012 | CH19: 0.0028 | CI19: 0.0161 | CJ19: 0.0011 | CN19: Sources: McCubbin and Delucchi, 1996 for emissions other than CO2e | DB19: 150 | DC19: 400 | DD19: 575 | DE19: 750 | DI19: 150 | DJ19: 1 | DK19: 1.013 | DP19: 0.012 | DQ19: 0.891 | DR19: 0.927 | DW19: ORsev | DX19: =1/1.05014749262537 -> 0.952247191 | DY19: =1/0.972697289554735 -> 1.028069072 | DZ19: 1 | EA19: 1 | EB19: -0.001481505335 | EC19: -0.001323833569 | ED19: 5.67437418 | EG19: 27
T20: Cycling Days per Year | U20: 365 | V20: days | Z20: Rail or Transit Cap Expansion | AC20: Please select a type of rail or transit project | AG20: 7 | AH20: 0.542 | AI20: 0.542 | AJ20: 0.542 | AK20: 0.542 | AL20: 0.542 | AM20: 0.542 | AR20: 13 | AS20: 0.0387 | AT20: 0.1137 | BQ20: 12 | BR20: 1.1846 | BS20: 429.7124 | BT20: 0.0775 | BU20: 0.0039 | BV20: 0.0042 | BW20: 0.0473 | BX20: 0.0036 | CC20: 12 | CD20: 0.5315 | CE20: 271.6169 | CF20: 0.0199 | CG20: 0.0011 | CH20: 0.0027 | CI20: 0.0147 | CJ20: 0.001 | CO20: Interagency Working Group on Social Cost of Carbon, United States Government, 2021 for CO2e | DB20: 175 | DC20: 500 | DD20: 700 | DE20: 750 | DI20: 175 | DJ20: 1 | DK20: 1 | DP20: 0.014 | DQ20: 0.873 | DR20: 0.915 | DW20: RMoth | DX20: 1 | DY20: 1 | DZ20: 1.025 | EA20: 0.9675072878 | EB20: -0.07356647791 | EC20: -0.03071615219 | ED20: -0.0696029926 | EE20: 1 | EJ20: RELIABILITY RATIO
C21: Heavy and Light Truck Drivers | J21: Percent ADT in Peak Period | N21: % | T21: Walking Days per Year | U21: 365 | V21: days | Z21: Passenger Rail | AB21: PassRail | AC21: Enter data in both sections 1B & 1E | AG21: 8 | AH21: 0.608 | AI21: 0.608 | AJ21: 0.608 | AK21: 0.608 | AL21: 0.608 | AM21: 0.608 | AR21: 14 | AS21: 0.0367 | AT21: 0.109 | BQ21: 13 | BR21: 1.148 | BS21: 408.0001 | BT21: 0.0748 | BU21: 0.0036 | BV21: 0.004 | BW21: 0.0433 | BX21: 0.0033 | CC21: 13 | CD21: 0.5156 | CE21: 257.9991 | CF21: 0.0192 | CG21: 0.001 | CH21: 0.0026 | CI21: 0.0134 | CJ21: 0.0009 | DB21: 200 | DC21: 575 | DD21: 750 | DE21: 750 | DI21: 200 | DJ21: 1 | DK21: 0.98 | DP21: 0.016 | DQ21: 0.855 | DR21: 0.903 | DW21: RMsev | DX21: 1 | DY21: 1 | DZ21: 1.050147493 | EA21: 0.9726972896 | EB21: -0.001481505335 | EC21: -0.001323833569 | ED21: 5.67437418 | EE21: 1 | EJ21: (value of reliability relative to value of time)
